{"text_format":"1","workbook":"xlsx","n_sheets":79,"sheets":["Instructions","Submission","Section A1","Section A2","Section A3","Section A4","Section A5","Section B1","Section B2","Section B3","Section B4","Section B4 EE","Section B5","Section B6","Section B7old","Section B6 ABGPI","Section B7","Section B8","Section B1 (2)","Section B2 (2)","Section B3 (2)","Section B4 (2)","Section B4 EE (2)","Section B5 (2)","Section B6 (2)","Section B6 (2) ABGPI","Section B7 (2)","Section B8 (2)","Section B1 (3)","Section B2 (3)","Section B3 (3)","Section B4 (3)","Section B4 EE (3)","Section B5 (3)","Section B6 (3)","Section B6 (3) ABGPI","Section B7 (3)","Section B8 (3)","Section B1 (4)","Section B2 (4)","Section B3 (4)","Section B4 (4)","Section B4 EE (4)","Section B5 (4)","Section B6 (3) ABGPI (2)","Section B6 (4)","Section B6 (4) ABGPI","Section B7 (4)","Section B8 (4)","Section B1 (5)","Section B2 (5)","Section B3 (5)","Section B4 (5)","Section B4 EE (5)","Section B5 (5)","Section B6 (3) ABGPI (3)","Section B6 (5)","Section B6 (5) ABGPI","Section B7 (5)","Section B8 (5)","Section D","Section D (2)","Section E","Section E1","Section E2","Section E3","Section E4","Section E5","Section F","Section G","Section H","CoI Checklist","SoQ","SoV","SoC","EPC Request","Fund Credit Purchase","Table","Track Changes"],"not_rendered":{"charts":0,"images":1,"macros":1,"external_links":1,"defined_names":33,"comments":36,"pivot_tables":0},"unopened":[],"bounds":{"document_bytes":16777216,"sheet_cells":100000,"rows_first":2000,"rows_last":500,"rows_between":2000,"halvings":0,"cell_chars":16384,"cell_head_chars":4096},"cells_cut":0,"cells_raw":0,"read":"whole","date_system":"1900"}

{"sheet":"Instructions","index":0,"n_rows":28,"n_cols":3,"rows_kept":28,"cut":false,"hidden":false,"merged":[[0,0,0,2]]}
["TECHNOLOGY INNOVATION AND EMISSIONS REDUCTION REGULATION CONSOLIDATED REPORTING FORM"]
["Introduction",null,"v23.1"]
[]
[null,"Large emitters and opted-in facilities are required to use this reporting form to prepare compliance reports, data reports and facility-specific benchmark applications under the Technology Innovation and Emissions Reduction (TIER) Regulation. Please refer to Sections 7, 15 and 23 of the TIER Regulation, the Standard for Completing Greenhouse Gas Compliance and Forecasting Reports and the Standard for Developing Benchmarks for more information regarding reporting requirements and completion of this form."]
["SGER Consolidated Form v3.0 (2012)"]
["Legal Authority"]
[]
[null,"The requirements described above are administered under the authority of the Emissions Management and Climate Resilience Act and the Technology Innovation and Emissions Reduction Regulation."]
[]
["Completion Instructions"]
[]
["1.","One compliance report form is required for each facility per reporting period. "]
["2.","For facility-specific benchmark applications (FSB), complete one form for each product that an FSB is being requested for."]
["3.","For data reports, please ensure that the director requirements have been met in the data report submission."]
["4.","Refer to sections 7, 15 and 23 of the TIER Regulation, the Standard for Completing Greenhouse Gas Compliance and Forecasting Reports, Standard for Developing Benchmarks, and Alberta Greenhouse Gas Quantification Methodologies (AQM) for more information regarding reporting requirements and completion of this form."]
["5.","Enable macros and use the tabs below to navigate through the sections of this form."]
["6.","More information about certain fields can be found in the form of pop-up comments. To view comments, hover the cursor over each cell with a comment or select the appropriate option in the menus to display all comments."]
["7.","Complete all applicable sections of this form. Questions can be submitted to AEP.GHG@gov.ab.ca."]
["8.","For items that are not applicable, check off the associated N/A checkbox or enter 'N/A' in the field itself if a checkbox is not available."]
["9.","Review and check all calculations and entered values for errors."]
["10.","Ensure that the Conflict of Interest Checklist, Statement of Qualifications, and Statement of Verification have been completed and signed by the third party assurance provider that you've retained to conduct the verification of the report or application."]
["11.","Ensure that the Statement of Certification (SoC) has been signed by the Certifying Official representing the Person Responsible for the facility. The Certifying Official may electronically sign the SoC in the reporting form  by double clicking on the X in the signature box on the SoC. Ensure that this is the last step before submitting the workbook as any further modifications to the workbook will require it to be signed again. "]
["12.","Submit the required documents to Alberta Environment and Protected Areas (\"the department\") (see \"Submission\" tab for summary of required submission documents)."]
[]
["Submission Address"]
[]
[null,"Completed reports and applications are submitted electronically to:"]
[null,"AEP.GHG@gov.ab.ca"]

{"sheet":"Submission","index":1,"n_rows":102,"n_cols":3030,"rows_kept":102,"cut":false,"hidden":false,"merged":[[48,1,48,4],[33,1,33,4],[34,1,34,4],[35,1,35,4],[36,1,36,4],[37,1,37,4],[38,1,38,4],[39,1,39,4],[30,1,30,4],[31,1,31,4],[32,1,32,4],[0,0,0,5],[26,1,26,4],[29,1,29,4],[21,1,22,4]]}
["Submission Information",null,null,null,null,null,null,"hide","hide","hide","hide","hide","hide","hide","hide","hide","hide","hide",null,null,null,null,null,null,null,null,null,null,null,null,null,null,null,null,null,null,null,null,null,null,null,null,null,null,null,null,null,null,null,null,null,null,null,null,null,null,null,null,null,null,null,null,null,null,null,null,null,null,null,null,null,null,null,null,null,null,null,null,null,null,null,null,null,null,null,null,null,null,null,null,null,null,null,null,null,null,null,null,null,null,null,null,null,null,null,null,null,null,null,null,null,null,null,null,null,null,null,null,null,null,null,null,null,null,null,null,null,null,null,null,null,null,null,null,null,null,null,null,null,null,null,null,null,null,null,null,null,null,null,null,null,null,null,null,null,null,null,null,null,null,null,null,null,null,null,null,null,null,null,null,null,null,null,null,null,null,null,null,null,null,null,null,null,null,null,null,null,null,null,null,null,null,null,null,null,null,null,null,null,null,null,null,null,null,null,null,null,null,null,null,null,null,null,null,null,null,null,null,null,null,null,null,null,null,null,null,null,null,null,null,null,null,null,null,null,null,null,null,null,null,null,null,null,null,null,null,null,null,null,null,null,null,null,null,null,null,null,null,null,null,null,null,null,null,null,null,null,null,null,null,null,null,null,null,null,null,null,null,null,null,null,null,null,null,null,null,null,null,null,null,null,null,null,null,null,null,null,null,null,null,null,null,null,null,null,null,null,null,null,null,null,null,null,null,null,null,null,null,null,null,null,null,null,null,null,null,null,null,null,null,null,null,null,null,null,null,null,null,null,null,null,null,null,null,null,null,null,null,null,null,null,null,null,null,null,null,null,null,null,null,null,null,null,null,null,null,null,null,null,null,null,null,null,null,null,null,null,null,null,null,null,null,null,null,null,null,null,null,null,null,null,null,null,null,null,null,null,null,null,null,null,null,null,null,null,null,null,null,null,null,null,null,null,null,null,null,null,null,null,null,null,null,null,null,null,null,null,null,null,null,null,null,null,null,null,null,null,null,null,null,null,null,null,null,null,null,null,null,null,null,null,null,null,null,null,null,null,null,null,null,null,null,null,null,null,null,null,null,null,null,null,null,null,null,null,null,null,null,null,null,null,null,null,null,null,null,null,null,null,null,null,null,null,null,null,null,null,null,null,null,null,null,null,null,null,null,null,null,null,null,null,null,null,null,null,null,null,null,null,null,null,null,null,null,null,null,null,null,null,null,null,null,null,null,null,null,null,null,null,null,null,null,null,null,null,null,null,null,null,null,null,null,null,null,null,null,null,null,null,null,null,null,null,null,null,null,null,null,null,null,null,null,null,null,null,null,null,null,null,null,null,null,null,null,null,null,null,null,null,null,null,null,null,null,null,null,null,null,null,null,null,null,null,null,null,null,null,null,null,null,null,null,null,null,null,null,null,null,null,null,null,null,null,null,null,null,null,null,null,null,null,null,null,null,null,null,null,null,null,null,null,null,null,null,null,null,null,null,null,null,null,null,null,null,null,null,null,null,null,null,null,null,null,null,null,null,null,null,null,null,null,null,null,null,null,null,null,null,null,null,null,null,null,null,null,null,null,null,null,null,null,null,null,null,null,null,null,null,null,null,null,null,null,null,null,null,null,null,null,null,null,null,null,null,null,null,null,null,null,null,null,null,null,null,null,null,null,null,null,null,null,null,null,null,null,null,null,null,null,null,null,null,null,null,null,null,null,null,null,null,null,null,null,null,null,null,null,null,null,null,null,null,null,null,null,null,null,null,null,null,null,null,null,null,null,null,null,null,null,null,null,null,null,null,null,null,null,null,null,null,null,null,null,null,null,null,null,null,null,null,null,null,null,null,null,null,null,null,null,null,null,null,null,null,null,null,null,null,null,null,null,null,null,null,null,null,null,null,null,null,null,null,null,null,null,null,null,null,null,null,null,null,null,null,null,null,null,null,null,null,null,null,null,null,null,null,null,null,null,null,null,null,null,null,null,null,null,null,null,null,null,null,null,null,null,null,null,null,null,null,null,null,null,null,null,null,null,null,null,null,null,null,null,null,null,null,null,null,null,null,null,null,null,null,null,null,null,null,null,null,null,null,null,null,null,null,null,null,null,null,null,null,null,null,null,null,null,null,null,null,null,null,null,null,null,null,null,null,null,null,null,null,null,null,null,null,null,null,null,null,null,null,null,null,null,null,null,null,null,null,null,null,null,null,null,null,null,null,null,null,null,null,null,null,null,null,null,null,null,null,null,null,null,null,null,null,null,null,null,null,null,null,null,null,null,null,null,null,null,null,null,null,null,null,null,null,null,null,null,null,null,null,null,null,null,null,null,null,null,null,null,null,null,null,null,null,null,null,null,null,null,null,null,null,null,null,null,null,null,null,null,null,null,null,null,null,null,null,null,null,null,null,null,null,null,null,null,null,null,null,null,null,null,null,null,null,null,null,null,null,null,null,null,null,null,null,null,null,null,null,null,null,null,null,null,null,null,null,null,null,null,null,null,null,null,null,null,null,null,null,null,null,null,null,null,null,null,null,null,null,null,null,null,null,null,null,null,null,null,null,null,null,null,null,null,null,null,null,null,null,null,null,null,null,null,null,null,null,null,null,null,null,null,null,null,null,null,null,null,null,null,null,null,null,null,null,null,null,null,null,null,null,null,null,null,null,null,null,null,null,null,null,null,null,null,null,null,null,null,null,null,null,null,null,null,null,null,null,null,null,null,null,null,null,null,null,null,null,null,null,null,null,null,null,null,null,null,null,null,null,null,null,null,null,null,null,null,null,null,null,null,null,null,null,null,null,null,null,null,null,null,null,null,null,null,null,null,null,null,null,null,null,null,null,null,null,null,null,null,null,null,null,null,null,null,null,null,null,null,null,null,null,null,null,null,null,null,null,null,null,null,null,null,null,null,null,null,null,null,null,null,null,null,null,null,null,null,null,null,null,null,null,null,null,null,null,null,null,null,null,null,null,null,null,null,null,null,null,null,null,null,null,null,null,null,null,null,null,null,null,null,null,null,null,null,null,null,null,null,null,null,null,null,null,null,null,null,null,null,null,null,null,null,null,null,null,null,null,null,null,null,null,null,null,null,null,null,null,null,null,null,null,null,null,null,null,null,null,null,null,null,null,null,null,null,null,null,null,null,null,null,null,null,null,null,null,null,null,null,null,null,null,null,null,null,null,null,null,null,null,null,null,null,null,null,null,null,null,null,null,null,null,null,null,null,null,null,null,null,null,null,null,null,null,null,null,null,null,null,null,null,null,null,null,null,null,null,null,null,null,null,null,null,null,null,null,null,null,null,null,null,null,null,null,null,null,null,null,null,null,null,null,null,null,null,null,null,null,null,null,null,null,null,null,null,null,null,null,null,null,null,null,null,null,null,null,null,null,null,null,null,null,null,null,null,null,null,null,null,null,null,null,null,null,null,null,null,null,null,null,null,null,null,null,null,null,null,null,null,null,null,null,null,null,null,null,null,null,null,null,null,null,null,null,null,null,null,null,null,null,null,null,null,null,null,null,null,null,null,null,null,null,null,null,null,null,null,null,null,null,null,null,null,null,null,null,null,null,null,null,null,null,null,null,null,null,null,null,null,null,null,null,null,null,null,null,null,null,null,null,null,null,null,null,null,null,null,null,null,null,null,null,null,null,null,null,null,null,null,null,null,null,null,null,null,null,null,null,null,null,null,null,null,null,null,null,null,null,null,null,null,null,null,null,null,null,null,null,null,null,null,null,null,null,null,null,null,null,null,null,null,null,null,null,null,null,null,null,null,null,null,null,null,null,null,null,null,null,null,null,null,null,null,null,null,null,null,null,null,null,null,null,null,null,null,null,null,null,null,null,null,null,null,null,null,null,null,null,null,null,null,null,null,null,null,null,null,null,null,null,null,null,null,null,null,null,null,null,null,null,null,null,null,null,null,null,null,null,null,null,null,null,null,null,null,null,null,null,null,null,null,null,null,null,null,null,null,null,null,null,null,null,null,null,null,null,null,null,null,null,null,null,null,null,null,null,null,null,null,null,null,null,null,null,null,null,null,null,null,null,null,null,null,null,null,null,null,null,null,null,null,null,null,null,null,null,null,null,null,null,null,null,null,null,null,null,null,null,null,null,null,null,null,null,null,null,null,null,null,null,null,null,null,null,null,null,null,null,null,null,null,null,null,null,null,null,null,null,null,null,null,null,null,null,null,null,null,null,null,null,null,null,null,null,null,null,null,null,null,null,null,null,null,null,null,null,null,null,null,null,null,null,null,null,null,null,null,null,null,null,null,null,null,null,null,null,null,null,null,null,null,null,null,null,null,null,null,null,null,null,null,null,null,null,null,null,null,null,null,null,null,null,null,null,null,null,null,null,null,null,null,null,null,null,null,null,null,null,null,null,null,null,null,null,null,null,null,null,null,null,null,null,null,null,null,null,null,null,null,null,null,null,null,null,null,null,null,null,null,null,null,null,null,null,null,null,null,null,null,null,null,null,null,null,null,null,null,null,null,null,null,null,null,null,null,null,null,null,null,null,null,null,null,null,null,null,null,null,null,null,null,null,null,null,null,null,null,null,null,null,null,null,null,null,null,null,null,null,null,null,null,null,null,null,null,2023,null,null,null,null,null,null,null,null,null,null,null,null,null,null,null,null,null,null,null,null,null,null,null,null,null,null,null,null,null,null,null,null,null,null,null,null,null,null,null,null,null,null,null,null,null,null,null,null,null,null,null,null,null,null,null,null,null,null,null,null,null,null,null,null,null,null,null,null,null,null,null,null,null,null,null,null,null,null,null,null,null,null,null,null,null,null,null,null,null,null,null,null,null,null,null,null,null,null,null,null,null,null,null,null,null,null,null,null,null,null,null,null,null,null,null,null,null,null,null,null,null,null,null,null,null,null,null,null,null,null,null,null,null,null,null,null,null,null,null,null,null,null,null,null,null,null,null,null,null,null,null,null,null,null,null,null,null,null,null,null,null,null,null,null,null,null,null,null,null,null,null,null,null,null,null,null,null,null,null,null,null,null,null,null,null,null,null,null,null,null,null,null,null,null,null,null,null,null,null,null,null,null,null,null,null,null,null,null,null,null,null,null,null,null,null,null,null,null,null,null,null,null,null,null,null,null,null,null,null,null,null,null,null,null,null,null,null,null,null,null,null,null,null,null,null,null,null,null,null,null,null,null,null,null,null,null,null,null,null,null,null,null,null,null,null,null,null,null,null,null,null,null,null,null,null,null,null,null,null,null,null,null,null,null,null,null,null,null,null,null,null,null,null,null,null,null,null,null,null,null,null,null,null,null,null,null,null,null,null,null,null,null,null,null,null,null,null,null,null,null,null,null,null,null,null,null,null,null,null,null,null,null,null,null,null,null,null,null,null,null,null,null,null,null,null,null,null,null,null,null,null,null,null,null,null,null,null,null,null,null,null,null,null,null,null,null,null,null,null,null,null,null,null,null,null,null,null,null,null,null,null,null,null,null,null,null,null,null,null,null,null,null,null,null,null,null,null,null,null,null,null,null,null,null,null,null,null,null,null,null,null,null,null,null,null,null,null,null,null,null,null,null,null,null,null,null,null,null,null,null,null,null,null,null,null,null,null,null,null,null,null,null,null,null,null,null,null,null,null,null,null,null,null,null,null,null,null,null,null,null,null,null,null,null,null,null,null,null,null,null,null,null,null,null,null,null,null,null,null,null,null,null,null,null,null,null,null,null,null,null,null,null,null,null,null,null,null,null,null,null,null,null,null,null,null,null,null,null,null,null,null,null,null,null,null,null,null,null,null,null,null,null,null,null,null,null,null,null,null,null,null,null,null,null,null,null,null,null,null,null,null,null,null,null,null,null,null,null,null,null,null,null,null,null,null,null,null,null,null,null,null,null,null,null,null,null,null,null,null,null,null,null,null,null,null,null,null,null,null,null,null,null,null,null,null,null,null,null,null,null,null,null,null,null,null,null,null,null,null,null,null,null,null,null,null,null,null,null,null,null,null,null,null,null,null,null,null,null,null,null,null,null,null,null,null,null,null,null,null,null,null,null,null,null,null,null,null,null,null,null,null,null,null,null,null,null,null,null,null,null,null,null,null,null,null,null,null,null,null,null,null,null,null,null,null,null,null,null,null,null,null,null,null,null,null,null,null,null,null,null,null,null,null,null,null,null,null,null,null,null,null,null,null,null,null,null,null,null,null,null,null,null,null,null,null,null,null,null,null,null,null,null,null,null,null,null,null,null,null,null,null,null,null,null,null,null,null,null,null,null,null,null,null,null,null,null,null,null,null,null,null,null,null,null,null,null,null,null,null,null,null,null,null,null,null,null,null,null,null,null,null,null,null,null,null,null,null,null,null,null,null,null,null,null,null,null,null,null,null,null,null,null,null,null,null,null,null,null,null,null,null,null,null,null,null,null,null,null,null,null,null,null,null,null,null,null,null,null,null,null,null,null,null,null,null,null,null,null,null,null,null,null,null,null,null,null,null,null,null,null,null,null,null,null,null,null,null,null,null,null,null,null,null,null,null,null,null,null,null,null,null,null,null,null,null,null,null,null,null,null,null,null,null,null,null,null,null,null,null,null,null,null,null,null,null,null,null,null,null,null,null,null,null,null,null,null,null,null,null,null,null,null,null,null,null,null,null,null,null,null,null,null,null,null,null,null,null,null,null,null,null,null,null,null,null,null,null,null,null,null,null,null,null,null,null,null,null,null,null,null,null,null,null,null,null,null,null,null,null,null,null,null,null,null,null,null,null,null,null,null,null,null,null,null,null,null,null,null,null,null,null,null,null,null,null,null,null,null,null,null,null,null,null,null,null,null,null,null,null,null,null,null,null,null,null,null,null,null,null,null,null,null,null,null,null,null,null,null,null,null,null,null,null,2023]
[]
[null,"Report Type",null,null,null,null,null,"The value for GWP version is obtained by =OFFSET(L33:L35,CHOOSE(I5,0,1,1),0,CHOOSE(I5,2,1,1),1) in the cell E5 via Data Valaidation/Source. However, that does not seem to work for the first selected report type or for a report type >3 Value error is produced, since the CHOOSE function tried to return a range of two cells: L33 and L44. http://www.excel-easy.com/examples/offset.html "]
[null,null,null,null,"Global Warming Potential (GWP) version",null,null,null,null,null,null,null,null,"Report Number","LastSheetSuffix",null,"Old List"]
[null,null,null,null,"IPCC2013",null,null,"Report Type",1,null,"Report Type Options","Facility Specific Benchmark",null,1," (3)",null,"Facility Specific Benchmark Application"]
["Year BM to apply",null,2023,null,null,null,null,null,null,null,null,"Facility Specific Benchmark Multi-product Facility",null,2,null,null,"Compliance Report - Non-Forecasting Facility"]
[null,null,null,null,null,null,null,null,null,null,null,"Data Report",null,3," (3)",null,"Data Report"]
[null,"Reporting Period",null,null,null,null,null,{"$f":"IF(NOT(OR(Report=1, Report=3)),\"compliance report\", \"non-compliance report\")","v":"non-compliance report"},null,3,"1 year","Compliance Report - Non-Forecasting Facility",null,4,null,null,"Interim Compliance Report - Period 1  (Jan 01 to Mar 31)"]
[null,null,"     Select number of years for this submission",null,null,null,null,"Milti Product",false,3,"2 years","Interim Compliance Report - Period 2 (Jan 01 to Jun 30)",null,5," (2)",null,"Interim Compliance Report - Period 2 (Jan 01 to Jun 30)"]
[null,null,null,null,null,null,null,"Report Type Options for FSB",null,null,"3 years","Interim Compliance Report - Period 3 (Jan 01 to Sep 30)",null,6," (3)",null,"Interim Compliance Report - Period 3 (Jan 01 to Sep 30)"]
[null,"Year 1",null,null,{"$f":"IF(OR(I5={1,2}),\"First Year of Benchmarking Period\",IF(OR(I5={4,5,6,7}),\"Compliance Year\",\"Data Report Year 1\"))","v":"First Year of Benchmarking Period"},null,null,false,false,false,"4 years","Compliance Report - Forecasting Facility - Period 4 (Jan 01 to Dec 31)",null,7," (4)",null,"Compliance Report - Forecasting Facility - Period 4 (Jan 01 to Dec 31)"]
[null,null,null,null,null,null,null,null,null,null,"5 years"]
[null,"Year 2",null,null,{"$f":"IF(OR(I5={1,2}),\"Second Year of Benchmarking Period\",IF(OR(I5={4,5,6,7}),\"N/A (leave blank)\",\"Data Report Year 2\"))","v":"Second Year of Benchmarking Period"}]
[]
[null,"Year 3",null,null,{"$f":"IF(OR(I5={1,2}),\"Third Year of Benchmarking Period\",IF(OR(I5={4,5,6,7}),\"N/A (leave blank)\",\"Data Report Year 3\"))","v":"Third Year of Benchmarking Period"}]
[]
[null,"Year 4",null,null,{"$f":"IF(OR(I5={1,2}),\"Fourth Year of Benchmarking Period\",IF(OR(I5={4,5,6,7}),\"N/A (leave blank)\",\"Data Report Year 4\"))","v":"Fourth Year of Benchmarking Period"}]
[]
[null,"Year 5",null,null,{"$f":"IF(OR(I5={1,2}),\"Fifth Year of Benchmarking Period\",IF(OR(I5={4,5,6,7}),\"N/A (leave blank)\",\"Data Report Year 5\"))","v":"Fifth Year of Benchmarking Period"},null,null,"Facility Type",null,null,"Facility Type Options","Chemical Manufacturing",null,null,"Can remove facility type in favour of NAICs code in A1"]
[null,null,null,null,null,null,null,null,null,null,null,"Coal Mining"]
[null,"Confidentiality Request",null,null,null,null,null,"Standalone Cogen",null,"No",null,"Conventional Oil and Gas Extraction"]
[null,"Are you requesting confidentiality under Section 28 of the Technology Innovation and Emissions Reduction (TIER)  Regulation for a portion of the information contained in this report?",null,null,null,null,null,null,null,"Yes",null,"Electric Power Generation"]
[null,null,null,null,null,null,null,null,null,null,null,"Fertilizer Manufacturing",null,"no change the order please, it may hurt the db"]
[null,null,null,null,null,null,null,null,null,null,null,"Feedlot"]
[null,null,null,null,null,null,null,"Baseline Period",{"$f":"COUNT(C11,C13,C15,C17,C19)","v":0},null,null,"Mineral Product Manufacturing",null,null,"Still need to specificy period"]
[null,null,null,null,null,null,null,null,null,null,null,"Oil Sands In Situ Extraction"]
[null,"Note: If yes, a written request with appropriate justification and supporting documentation must be submitted with this submission. Confidentiality will not be granted for data or information that is publicly available. The department will contact you regarding your request if there are any questions. One confidentiality request must be submitted for each facility that is requesting confidentiality.","NOTE: If yes, a written request with appropriate justification and supporting documentation must be submitted with this report. Confidentiality must not be requested for information that is publicly available. Alberta Environment will contact you regarding your request. One confidentiality request must be submitted for each facility that is requesting confidentiality.","NOTE: If yes, a written request with appropriate justification and supporting documentation must be submitted with this report. Confidentiality must not be requested for information that is publicly available. Alberta Environment will contact you regarding your request. One confidentiality request must be submitted for each facility that is requesting confidentiality.","NOTE: If yes, a written request with appropriate justification and supporting documentation must be submitted with this report. Confidentiality must not be requested for information that is publicly available. Alberta Environment will contact you regarding your request. One confidentiality request must be submitted for each facility that is requesting confidentiality.",null,null,null,null,null,null,"Oil Sands Mining and Upgrading"]
[null,null,null,null,null,null,null,"Latest Year in Report",{"$f":"IF(MAX(C11,C13,C15,C6)=0,(YEAR(NOW())-1),MAX(C11,C13,C15))","v":0},null,null,"Paper Manufacturing"]
[null,"Required Submission Documents",null,null,null,null,null,null,null,null,null,"Petroleum and Coal Products"]
["1.","TIER Report Form (this form): The completed report must be submitted in the original file format (.XLSM) downloaded from the TIER website.",null,null,null,null,null,null,null,null,null,"Pipeline Transportation"]
["2.",{"$f":"IF((AND(I5=1,I9=TRUE)),\"Third Party Verification Report. (Only one for all products of the facility)\",IF(OR(I5=4,I5=1),\"Third Party Verification Report.\",\"Third Party Verification Report. (Only if verification was required by the director)\"))","v":"Third Party Verification Report."},null,null,null,null,null,null,null,null,null,"Primary Metal Manufacturing"]
["3.",{"$f":"IF((AND(I5=1,I9=TRUE)),\"Conflict of Interest Checklist: Signed by the third party assurance provider. Only one for all products of the facility\", IF(OR(I5=4,I5=1), \"Conflict of Interest Checklist: Signed by the third party assurance provider.\",\"Conflict of Interest Checklist: Signed by the third party assurance provider. (Only if verification was required by the director)\"))","v":"Conflict of Interest Checklist: Signed by the third party assurance provider."},null,null,null,null,null,null,null,null,null,"Waste Treatment and Disposal"]
["4.",{"$f":"IF((AND(I5=1,I9=TRUE)),\"Statement of Qualifications: Signed by the third party assurance provider. Only one for all products of the facility\", IF(OR(I5=4,I5=1), \"Statement of Qualifications: Signed by the third party assurance provider.\",\"Statement of Qualifications: Signed by the third party assurance provider. (Only if verification was required by the director)\"))","v":"Statement of Qualifications: Signed by the third party assurance provider."}]
["5.",{"$f":"IF((AND(I5=1,I9=TRUE)),\"Statement of Verification: Signed by the third party assurance provider. Only one for all products of the facility\",IF(OR(I5=4,I5=1),\"Statement of Verification: Signed by the third party assurance provider.\",\"Statement of Verification: Signed by the third party assurance provider. (Only if verification was required by the director)\"))","v":"Statement of Verification: Signed by the third party assurance provider."},null,null,null,null,null,"Confidentiality",1,null,"Confidentiality Options","No"]
["6.","Statement of Certification: Signed by the certifying official representing the Person Responsible of the facility.",null,null,null,null,null,null,null,null,null,"Yes"]
["7.",{"$f":"IF(I9,\"Quantification Methodology Document. Only one for all products of the facility. Please include the methodology used to allocate emissions and indirects between products\",\"Quantification Methodology Document.\")","v":"Quantification Methodology Document."}]
["8.",{"$f":"IF(I9,\"Process Flow Diagram. Only one for all products of the facility\",\"Process Flow Diagram.\")","v":"Process Flow Diagram."}]
["9.","Confidentiality Request Letter: If requesting confidentiality on any information provided with the TIER Regulation submission."]
["10.","Emission Performance Credit Request Form, if emission performance credits are being requested. ",null,null,null,null,null,"GWP Version",{"$f":"CHOOSE(I5+1,J39,J39,IF(OR(C11>2013,C11=0),2,1),IF(OR(C11>2013,C11=0),2,1),IF(OR(C11>2013,C11=0),2,1),IF(OR(C11>2013,C11=0),2,1),IF(OR(C11>2013,C11=0),2,1),IF(OR(C11>2013,C11=0),2,1))","v":3},{"$f":"MATCH(E5,L39:L41)","v":3},null,"IPCC2004"]
["11.","Additional Supporting Documents: If applicable.",null,null,null,null,null,null,null,null,null,"IPCC2007"]
[null,null,null,null,null,null,null,null,null,null,null,"IPCC2013"]
[null,null,null,null,null,null,null,null,null,null,null,null,"Report Type"]
[null,null,null,null,null,null,null,"Species","Selected","IPCC2003","IPCC2007","IPCC2013"]
[null,null,null,null,null,null,null,"Carbon dioxide (CO2)",{"$f":"CHOOSE($I$39,J44,K44,L44)","v":1},1,1,1]
[null,null,null,null,null,null,null,"Methane (CH4)",{"$f":"CHOOSE($I$39,J45,K45,L45)","v":28},21,25,28]
[null,null,null,null,null,null,null,"Nitrous oxide (N2O)",265,310,298,265]
[null,null,null,null,null,null,null,"HFC-23 (CHF3)",12400,11700,14800,12400]
[null,null,null,null,null,null,null,"HFC-32 (CH2F2)",677,650,675,677]
[null,{"$f":"IF(Report=1,CONCATENATE(\"Note: Under Section 31 of the TIER Regulation, you are required to retain a copy of this application together with the records and information on which the application was based for at\",\"least 7 years after the year in which the facility-specific benchmark that was assigned on the basis of the application ceases to be a facility-specific benchmark for the facility.\"),CONCATENATE(\"Under Section 31 of the TIER Regulation, you are required to retain a copy of this report together with the records and information\",\" on which the report was based for at least 7 years after the year in which the report was submitted.\"))","v":"Note: Under Section 31 of the TIER Regulation, you are required to retain a copy of this application together with the records and information on which the application was based for atleast 7 years after the year in which the facility-specific benchmark that was assigned on the basis of the application ceases to be a facility-specific benchmark for the facility."},null,null,null,null,null,"HFC-41 (CH3F)",116,150,92,116,"Old report number",1]
[null,null,null,null,null,null,null,"HFC-43-10mee (C5H2F10)",1650,1300,1640,1650,"old period",3]
[null,null,null,null,null,null,null,"HFC-125 (C2HF5)",3170,2800,3500,3170]
[null,null,null,null,null,null,null,"HFC-134 (C2H2F4)",1120,1000,1100,1120]
[null,null,null,null,null,null,null,"HFC-134a (CH2FCF3)",1300,1300,1430,1300]
[null,null,null,null,null,null,null,"HFC-143 (C2H3F3)",328,300,353,328]
[null,null,null,null,null,null,null,"HFC-143a (C2H3F3)",4800,3800,4470,4800]
[null,null,null,null,null,null,null,"HFC-152 (C2H4F2)",16,null,53,16]
[null,null,null,null,null,null,null,"HFC-152a (C2H4F2)",138,140,124,138]
[null,null,null,null,null,null,null,"HFC-161 (CH3CH2F)",4,null,12,4]
[null,null,null,null,null,null,null,"HFC-227ea (C3HF7)",3350,2900,3220,3350]
[null,null,null,null,null,null,null,"HFC-236cb (CH2FCF2CF3)",1210,null,1340,1210]
[null,null,null,null,null,null,null,"HFC-236ea (CHF2CHFCF3)",1330,null,1370,1330]
[null,null,null,null,null,null,null,"HFC-236fa (C3H2F6)",8060,6300,9810,8060]
[null,null,null,null,null,null,null,"HFC-245ca (C3H3F5)",716,560,693,716]
[null,null,null,null,null,null,null,"HFC-245fa (CHF2CH2CF3)",858,null,1030,858]
[null,null,null,null,null,null,null,"HFC-365mfc",804,null,794,804]
[null,null,null,null,null,null,null,"Sulphur hexafluoride (SF6)",23500,23900,22800,23500]
[null,null,null,null,null,null,null,"Perfluoromethane (CF4)",6630,6500,7390,6630]
[null,null,null,null,null,null,null,"Perfluoroethane (C2F6)",11100,9200,12200,11100]
[null,null,null,null,null,null,null,"Perfluoroproprane (C3F8)",8900,7000,8830,8900]
[null,null,null,null,null,null,null,"Perfluorobutane (C4F10)",9200,7000,8860,9200]
[null,null,null,null,null,null,null,"Perfluorocyclobutane (c-C4F8)",9540,8700,10300,9540]
[null,null,null,null,null,null,null,"Perfluoropentane (C5F12)",8550,7500,9160,8550]
[null,null,null,null,null,null,null,"Perfluorohexane (C6F14)",7910,7400,9300,7910]
[null,null,null,null,null,null,null,"Perfluorodecalin (C10F18)",7190,null,7500,7190]
[null,null,null,null,null,null,null,"Perfluorocyclopropane (c-C3F6)",9200,null,17340,9200]
[null,null,null,null,null,null,null,"Nitrogen Trifluoride (NF3)",16100,null,17200,16100]
[]
[]
[]
[]
[]
[]
[]
[]
[]
[]
[]
[]
[]
[]
[]
[]
[]
[]
[]
[]
[]
[]
[null,null,null,null,null,null,null,{"$f":"OFFSET(INDIRECT(\"'Section B7\"&CHOOSE(Report,$O$5,$O$6,$O$7,$O$8,$O$9,$O$10,$O$11)&\"'\"&\"!A1\"),0,0,1,1)","v":"Section B:  Direct Emissions"}]
[]
[null,null,null,null,null,null,null,{"$f":"OFFSET(INDIRECT(\"'Section B7\"&CHOOSE(Report,$O$5,$O$6,$O$7,$O$8,$O$9,$O$10,$O$11)&\"'\"&\"!A1\"),0,0,1,1)","v":"Section B:  Direct Emissions"}]
[null,null,null,null,null,null,null,{"$f":"INDIRECT(\"'Section B7\"&lastBSheetSuffix&\"'\"&\"!A1\")","v":"Section B:  Direct Emissions"}]

{"sheet":"Section A1","index":2,"n_rows":30,"n_cols":4,"rows_kept":30,"cut":false,"hidden":false,"merged":[[30,1,34,3],[22,1,22,3],[20,1,20,3],[0,0,0,4],[18,1,18,3],[8,1,8,3],[6,1,6,3],[16,1,16,3],[28,1,28,3]]}
["Section A: Administrative Information"]
[]
[null,"Facility Information"]
["Facility Name",null,"Facility ID"]
[]
["Environmental Protection and Enhancement Act (EPEA) Approval/Registration Number(s) (list all that apply to this facility)"]
[]
["Alberta Energy Regulator (AER) License/Registration Number(s) (list all that apply to this facility)"]
[]
["National Pollutant Release Inventory (NPRI) ID(s)"]
[]
["NAICS Code 2017 Version 2.0",null,"SWIM GHGRP ID"]
[]
["Facility Geographical Latitude (in NAD 83)",null,"Facility Geographical Longitude (in NAD 83)"]
[]
["Facility Location (street or rural address of actual facility, if applicable, NOT the mailing address)"]
[]
["Nearest City/District/Municipality/County to Facility"]
[]
["Facility Mailing Address"]
[]
["Mailing Address City/District/Municipality/County"]
[]
["Province/Territory",null,"Postal Code"]
[]
["First Year of Commercial Operation",null,"Years of Commercial Operation for Compliance Period"]
[null,null,null,{"$f":"Submission!C6-B27+1","v":2024}]
["Petrinex ID(s) (only for Oil and Gas facilities) (ex ABBT0000000, ABBT0000001)"]
[]
["Describe the criteria used to determine the first year of commercial operation for this facility:"]

{"sheet":"Section A2","index":3,"n_rows":56,"n_cols":8,"rows_kept":56,"cut":false,"hidden":false,"merged":[[4,1,4,3],[6,1,6,3],[0,0,0,4]]}
["Section A: Administrative Information (continued)",null,null,null,null,null,"hide","hide"]
[]
[null,"Reporting Company (Person Responsible)"]
["Reporting Company Legal Name"]
[]
["Reporting Company Trade Name"]
[]
["Reporting Company Business Number"]
[]
["Reporting Company Mailing Address",null,"Mailing Address City/District/Municipality/County"]
[]
["Province",null,"Postal Code"]
[]
[]
[null,"Reporter"]
["Title",null,null,null,null,null,"Mr."]
[null,null,null,null,null,null,"Ms."]
["First Name",null,"Last Name",null,null,null,"Mrs."]
[null,null,null,null,null,null,"Miss"]
["Position/Title",null,"E-mail Address",null,null,null,"Dr."]
[]
["Telephone Number (eg. 780-123-4567 ext 8)"]
[]
["Mailing Address",null,"City/District/Municipality/County",null,null,null,null,false]
[]
["Province",null,"Postal Code"]
[]
[]
[null,"Certifying Official"]
["Title"]
[]
["First Name",null,"Last Name"]
[]
["Position/Title",null,"E-mail Address"]
[]
["Telephone Number (eg. 780-123-4567 ext 8)"]
[]
["Mailing Address",null,"City/District/Municipality/County",null,null,null,null,false]
[]
["Province",null,"Postal Code"]
[]
[]
[null,"Public Contact"]
[null,null,"(if applicable)",null,null,null,"Same as Reporter",false]
[null,"Note: Only complete below if not the same as the Reporter or the Certifying Official.",null,null,null,null,"Same as Official",false]
["Title",null,null,null,null,null,"Mr."]
[null,null,null,null,null,null,"Ms."]
["First Name",null,"Last Name"]
[]
["Position/Title",null,"E-mail Address"]
[]
["Telephone Number (eg. 780-123-4567 ext 8)"]
[]
["Mailing Address",null,"City/District/Municipality/County"]
[]
["Province",null,"Postal Code"]

{"sheet":"Section A3","index":4,"n_rows":51,"n_cols":2,"rows_kept":51,"cut":false,"hidden":false,"merged":[[0,0,0,2],[3,1,48,1]]}
["Section A: Administrative Information (continued)"]
[]
[null,"Describe any changes to the facility's boundaries, operations and major sources of greenhouse gas emissions from what has been previously reported through the SGER/CCIR or TIER.  Also, describe any impact these changes had on the greenhouse gas emissions, production and emissions intensity of the facility. If facility production, emissions or emissions intensity has changed by more than 10% from previous reports, provide an explanation of the causes of the change and whether this is a permanent change, or an anomaly:"]
[]
[]
[]
[]
[]
[]
[]
[]
[]
[]
[]
[]
[]
[]
[]
[]
[]
[]
[]
[]
[]
[]
[]
[]
[]
[]
[]
[]
[]
[]
[]
[]
[]
[]
[]
[]
[]
[]
[]
[]
[]
[]
[]
[]
[]
[]
[]
[null,{"$f":"LEFT(CONCATENATE('Section A2'!$B$5, \" - \", 'Section A1'!$B$5),95)","v":" - "}]

{"sheet":"Section A4","index":5,"n_rows":29,"n_cols":8,"rows_kept":29,"cut":false,"hidden":false,"merged":[[0,0,0,4],[20,1,20,3],[22,1,22,3],[24,1,24,3],[6,1,6,3],[12,1,12,3],[14,1,14,3],[16,1,16,3]]}
["Section A: Administrative Information (continued)",null,null,null,null,null,"hide","hide"]
[]
[null,"Consultant Information"]
[]
[null,null,null,null,null,null,"Consultant Hired?",{"$f":"B11=\"\"","v":true}]
[]
[null,"Note: This is the consultant that completed this form. This consultant cannot be the same as the Third Party Verifier. "]
[null,"Title"]
[null,null,null,null,null,null,"Mr."]
[null,"First Name",null,"Last Name",null,null,"Ms."]
[null,null,null,null,null,null,"Mrs."]
[null,"Professional Designation",null,null,null,null,"Miss"]
[null,null,null,null,null,null,"Dr."]
[null,"Position/Title"]
[]
[null,"Consulting Company Name"]
[]
[null,"Telephone Number (eg. 780-123-4567 ext 8)"]
[]
[null,"E-mail Address"]
[]
[null,"Mailing Address"]
[]
[null,"City/District/Municipality/County"]
[]
[null,"Province/Territory",null,"Postal Code"]
[]
[]
[null,{"$f":"LEFT(CONCATENATE('Section A2'!$B$5, \" - \", 'Section A1'!$B$5),95)","v":" - "}]

{"sheet":"Section A5","index":6,"n_rows":60,"n_cols":15,"rows_kept":60,"cut":false,"hidden":false,"merged":[[50,3,50,5],[54,1,54,3],[56,3,56,5],[18,1,18,3],[20,3,20,5],[24,1,24,3],[26,3,26,5],[48,1,48,3],[38,3,38,5],[44,3,44,5],[30,1,30,3],[32,3,32,5],[36,1,36,3],[42,1,42,3],[0,0,0,11],[6,1,6,3],[8,3,8,5],[12,1,12,3],[14,3,14,5]]}
["Section A: Administrative Information (continued)",null,null,null,null,null,null,null,null,null,null,null,null,"hide","hide"]
[]
[null,"Parent Company Information"]
[null,{"$f":"\"Enter information for each parent company that owned 10% or more of the facility as of December 31st of the year.\"","v":"Enter information for each parent company that owned 10% or more of the facility as of December 31st of the year."}]
[null,"Parent Company 1",null,null,null,null,null,null,null,null,null,null,null,"Parent 1",{"$f":"IF(B7=\"\",FALSE,TRUE)","v":false}]
[null,"Legal Name",null,null,null,"Business Number",null,"DUNS Number",null,"% Ownership"]
[]
[null,"Mailing Address",null,"City/District/Municipality",null,null,null,"Province/Territory",null,"Postal Code"]
[]
[]
[null,"Parent Company 2",null,null,null,null,null,null,null,"% Ownership of\nFacility",null,null,null,"Parent 2",{"$f":"IF(B13=\"\",FALSE,TRUE)","v":false}]
[null,"Legal Name",null,null,null,"Business Number",null,"DUNS Number",null,"% Ownership"]
[]
[null,"Mailing Address",null,"City/District/Municipality",null,null,null,"Province/Territory",null,"Postal Code"]
[]
[]
[null,"Parent Company 3",null,null,null,null,null,null,null,"% Ownership of\nFacility",null,null,null,"Parent 3",{"$f":"IF(B19=\"\",FALSE,TRUE)","v":false}]
[null,"Legal Name",null,null,null,"Business Number",null,"DUNS Number",null,"% Ownership"]
[]
[null,"Mailing Address",null,"City/District/Municipality",null,null,null,"Province/Territory",null,"Postal Code"]
[]
[]
[null,"Parent Company 4",null,null,null,null,null,null,null,"% Ownership of\nFacility",null,null,null,"Parent 4",{"$f":"IF(B25=\"\",FALSE,TRUE)","v":false}]
[null,"Legal Name",null,null,null,"Business Number",null,"DUNS Number",null,"% Ownership"]
[]
[null,"Mailing Address",null,"City/District/Municipality",null,null,null,"Province/Territory",null,"Postal Code"]
[]
[]
[null,"Parent Company 5",null,null,null,null,null,null,null,"% Ownership of\nFacility",null,null,null,"Parent 5",{"$f":"IF(B31=\"\",FALSE,TRUE)","v":false}]
[null,"Legal Name",null,null,null,"Business Number",null,"DUNS Number",null,"% Ownership"]
[]
[null,"Mailing Address",null,"City/District/Municipality",null,null,null,"Province/Territory",null,"Postal Code"]
[]
[]
[null,"Parent Company 6",null,null,null,null,null,null,null,"% Ownership of\nFacility",null,null,null,"Parent 6",{"$f":"IF(B37=\"\",FALSE,TRUE)","v":false}]
[null,"Legal Name",null,null,null,"Business Number",null,"DUNS Number",null,"% Ownership"]
[]
[null,"Mailing Address",null,"City/District/Municipality",null,null,null,"Province/Territory",null,"Postal Code"]
[]
[]
[null,"Parent Company 7",null,null,null,null,null,null,null,"% Ownership of\nFacility",null,null,null,"Parent 7",{"$f":"IF(B43=\"\",FALSE,TRUE)","v":false}]
[null,"Legal Name",null,null,null,"Business Number",null,"DUNS Number",null,"% Ownership"]
[]
[null,"Mailing Address",null,"City/District/Municipality",null,null,null,"Province/Territory",null,"Postal Code"]
[]
[]
[null,"Parent Company 8",null,null,null,null,null,null,null,"% Ownership of\nFacility",null,null,null,"Parent 8",{"$f":"IF(B49=\"\",FALSE,TRUE)","v":false}]
[null,"Legal Name",null,null,null,"Business Number",null,"DUNS Number",null,"% Ownership"]
[]
[null,"Mailing Address",null,"City/District/Municipality",null,null,null,"Province/Territory",null,"Postal Code"]
[]
[]
[null,"Parent Company 9",null,null,null,null,null,null,null,"% Ownership of\nFacility",null,null,null,"Parent 9",{"$f":"IF(B55=\"\",FALSE,TRUE)","v":false}]
[null,"Legal Name",null,null,null,"Business Number",null,"DUNS Number",null,"% Ownership"]
[]
[null,"Mailing Address",null,"City/District/Municipality",null,null,null,"Province/Territory",null,"Postal Code"]
[]
[]
[]
[null,{"$f":"LEFT(CONCATENATE('Section A2'!$B$5, \" - \", 'Section A1'!$B$5),95)","v":" - "}]

{"sheet":"Section B1","index":7,"n_rows":65,"n_cols":16,"rows_kept":65,"cut":false,"hidden":false,"merged":[[0,0,0,12],[18,5,18,10],[2,1,2,7],[4,1,4,4],[6,1,6,4],[1,1,1,11],[8,1,8,4],[14,1,14,4],[54,1,54,4],[10,1,10,7],[12,1,12,4],[46,1,46,4],[40,1,40,4],[42,1,42,4],[32,1,32,4],[52,1,52,7],[34,1,34,4],[62,1,62,4],[16,1,16,4],[20,1,20,7],[22,1,22,4],[36,1,36,7],[24,1,24,4],[26,1,26,4],[28,1,28,7],[30,1,30,4],[44,1,44,7],[60,1,60,7],[56,1,56,4],[58,1,58,4],[48,1,48,4],[50,1,50,4],[38,1,38,4]]}
[{"$f":"\"Section B: \" & Submission!C11 & \" Direct Emissions\"","v":"Section B:  Direct Emissions"},null,null,null,null,null,null,null,null,null,null,null,null,null,"hide","hide"]
[null,{"$f":"CONCATENATE(O2,P2)","v":"Instructions: Enter value under Tonnes. Conversion to Tonnes CO2e is calculated automatically."},null,null,null,null,null,null,null,null,null,null,null,null,"Instructions: Enter value under Tonnes. Conversion to Tonnes CO2e is calculated automatically."]
[null,"Stationary Fuel Combustion Emissions"]
[null,null,null,null,null,"N/A",null,"Tonnes",null,"GWP",null,"Tonnes (in CO2e)"]
[null,"Carbon dioxide (CO2)",null,null,null,null,null,null,"X",{"$f":"Submission!I44","v":1},"=",{"$f":"H5*J5","v":0},null,null,null,{"$f":"H5=\"\"","v":true}]
[]
[null,"Methane (CH4)",null,null,null,null,null,null,"X",{"$f":"Submission!I45","v":28},"=",{"$f":"H7*J7","v":0},null,null,null,{"$f":"H7=\"\"","v":true}]
[]
[null,"Nitrous oxide (N2O)",null,null,null,null,null,null,"X",{"$f":"Submission!I46","v":265},"=",{"$f":"H9*J9","v":0},null,null,null,{"$f":"H9=\"\"","v":true}]
[]
[null,"Industrial Process Emissions"]
[null,null,null,null,null,"N/A",null,"Tonnes",null,"GWP",null,"Tonnes (in CO2e)"]
[null,"Carbon dioxide (CO2)",null,null,null,null,null,null,"X",{"$f":"J$5","v":1},"=",{"$f":"H13*J13","v":0},null,null,null,{"$f":"H13=\"\"","v":true}]
[]
[null,"Methane (CH4)",null,null,null,null,null,null,"X",{"$f":"J$7","v":28},"=",{"$f":"H15*J15","v":0},null,null,null,{"$f":"H15=\"\"","v":true}]
[]
[null,"Nitrous oxide (N2O)",null,null,null,null,null,null,"X",{"$f":"J$9","v":265},"=",{"$f":"H17*J17","v":0},null,null,null,{"$f":"H17=\"\"","v":true}]
[]
[null,null,null,null,null,"CO2, CH4 and N2O Industrial Process Total",null,null,null,null,null,{"$f":"SUM(L17,L15,L13)","v":0}]
[]
[null,"Venting Emissions"]
[null,null,null,null,null,"N/A",null,"Tonnes",null,"GWP",null,"Tonnes (in CO2e)"]
[null,"Carbon dioxide (CO2)",null,null,null,null,null,null,"X",{"$f":"J$5","v":1},"=",{"$f":"H23*J23","v":0},null,null,null,{"$f":"H23=\"\"","v":true}]
[]
[null,"Methane (CH4)",null,null,null,null,null,null,"X",{"$f":"J$7","v":28},"=",{"$f":"H25*J25","v":0},null,null,null,{"$f":"H25=\"\"","v":true}]
[]
[null,"Nitrous oxide (N2O)",null,null,null,null,null,null,"X",{"$f":"J$9","v":265},"=",{"$f":"H27*J27","v":0},null,null,null,{"$f":"H27=\"\"","v":true}]
[]
[null,"Flaring Emissions"]
[null,null,null,null,null,"N/A",null,"Tonnes",null,"GWP",null,"Tonnes (in CO2e)"]
[null,"Carbon dioxide (CO2)",null,null,null,null,null,null,"X",{"$f":"J$5","v":1},"=",{"$f":"H31*J31","v":0},null,null,null,{"$f":"H31=\"\"","v":true}]
[]
[null,"Methane (CH4)",null,null,null,null,null,null,"X",{"$f":"J$7","v":28},"=",{"$f":"H33*J33","v":0},null,null,null,{"$f":"H33=\"\"","v":true}]
[]
[null,"Nitrous oxide (N2O)",null,null,null,null,null,null,"X",{"$f":"J$9","v":265},"=",{"$f":"H35*J35","v":0},null,null,null,{"$f":"H35=\"\"","v":true}]
[]
[null,"Fugitive/Other Emissions"]
[null,null,null,null,null,"N/A",null,"Tonnes",null,"GWP",null,"Tonnes (in CO2e)"]
[null,"Carbon dioxide (CO2)",null,null,null,null,null,null,"X",{"$f":"J$5","v":1},"=",{"$f":"H39*J39","v":0},null,null,null,{"$f":"H39=\"\"","v":true}]
[]
[null,"Methane (CH4)",null,null,null,null,null,null,"X",{"$f":"J$7","v":28},"=",{"$f":"H41*J41","v":0},null,null,null,{"$f":"H41=\"\"","v":true}]
[]
[null,"Nitrous oxide (N2O)",null,null,null,null,null,null,"X",{"$f":"J$9","v":265},"=",{"$f":"H43*J43","v":0},null,null,null,{"$f":"H43=\"\"","v":true}]
[]
[null,"On-Site Transportation Emissions"]
[null,null,null,null,null,"N/A",null,"Tonnes",null,"GWP",null,"Tonnes (in CO2e)"]
[null,"Carbon dioxide (CO2)",null,null,null,null,null,null,"X",{"$f":"J$5","v":1},"=",{"$f":"H47*J47","v":0},null,null,null,{"$f":"H47=\"\"","v":true}]
[]
[null,"Methane (CH4)",null,null,null,null,null,null,"X",{"$f":"J$7","v":28},"=",{"$f":"H49*J49","v":0},null,null,null,{"$f":"H49=\"\"","v":true}]
[]
[null,"Nitrous oxide (N2O)",null,null,null,null,null,null,"X",{"$f":"J$9","v":265},"=",{"$f":"H51*J51","v":0},null,null,null,{"$f":"H51=\"\"","v":true}]
[]
[null,"Waste and Wastewater Emissions"]
[null,null,null,null,null,"N/A",null,"Tonnes",null,"GWP",null,"Tonnes (in CO2e)"]
[null,"Carbon dioxide (CO2)",null,null,null,null,null,null,"X",{"$f":"J$5","v":1},"=",{"$f":"H55*J55","v":0},null,null,null,{"$f":"H55=\"\"","v":true}]
[]
[null,"Methane (CH4)",null,null,null,null,null,null,"X",{"$f":"J$7","v":28},"=",{"$f":"H57*J57","v":0},null,null,null,{"$f":"H57=\"\"","v":true}]
[]
[null,"Nitrous oxide (N2O)",null,null,null,null,null,null,"X",{"$f":"J$9","v":265},"=",{"$f":"H59*J59","v":0},null,null,null,{"$f":"H59=\"\"","v":true}]
[]
[null,"Formation CO2 Emissions"]
[null,null,null,null,null,"N/A",null,"Tonnes",null,"GWP",null,"Tonnes (in CO2e)"]
[null,"Carbon dioxide (CO2)",null,null,null,null,null,null,"X",{"$f":"J5","v":1},"=",{"$f":"H63*J63","v":0},null,null,null,{"$f":"H63=\"\"","v":true}]
[]
[null,{"$f":"CONCATENATE(ReportingYear,\" - \", 'Section A1'!$B$5)","v":"2023 - "}]

{"sheet":"Section B2","index":8,"n_rows":46,"n_cols":13,"rows_kept":46,"cut":false,"hidden":false,"merged":[[43,2,43,7],[0,0,0,9],[1,1,1,8]]}
[{"$f":"\"Section B: \" & Submission!C11 & \" Direct Emissions\"","v":"Section B:  Direct Emissions"},null,null,null,null,null,null,null,null,null,null,"hide","hide"]
[null,{"$f":"CONCATENATE(L2,M2)","v":"Instructions: Enter value under Tonnes. Conversion to Tonnes CO2e is calculated automatically."},null,null,null,null,null,null,null,null,null,"Instructions: Enter value under Tonnes. Conversion to Tonnes CO2e is calculated automatically."]
[null,"Hydrofluorocarbon (HFC) Emissions "]
[null,null,null,null,null,null,null,null,null,null,null,null,{"$f":"I44=0","v":true}]
[null,null,"N/A",null,"Tonnes",null,"GWP",null,"Tonnes (in CO2e)"]
[null,"HFC-23 (CHF3)",null,null,null,"X",{"$f":"Submission!I47","v":12400},"=",{"$f":"E6*G6","v":0},null,null,null,{"$f":"E6=\"\"","v":true}]
[]
[null,"HFC-32 (CH2F2)",null,null,null,"X",{"$f":"Submission!I48","v":677},"=",{"$f":"E8*G8","v":0},null,null,null,{"$f":"E8=\"\"","v":true}]
[]
[null,"HFC-41 (CH3F)",null,null,null,"X",{"$f":"Submission!I49","v":116},"=",{"$f":"E10*G10","v":0},null,null,null,{"$f":"E10=\"\"","v":true}]
[]
[null,"HFC-43-10mee (C5H2F10)",null,null,null,"X",{"$f":"Submission!I50","v":1650},"=",{"$f":"E12*G12","v":0},null,null,null,{"$f":"E12=\"\"","v":true}]
[]
[null,"HFC-125 (C2HF5)",null,null,null,"X",{"$f":"Submission!I51","v":3170},"=",{"$f":"E14*G14","v":0},null,null,null,{"$f":"E14=\"\"","v":true}]
[]
[null,"HFC-134 (CHF2CHF2)",null,null,null,"X",{"$f":"Submission!I52","v":1120},"=",{"$f":"E16*G16","v":0},null,null,null,{"$f":"E16=\"\"","v":true}]
[]
[null,"HFC-134a (CH2FCF2)",null,null,null,"X",{"$f":"Submission!I53","v":1300},"=",{"$f":"E18*G18","v":0},null,null,null,{"$f":"E18=\"\"","v":true}]
[]
[null,"HFC-143 (CHF2CH2F)",null,null,null,"X",{"$f":"Submission!I54","v":328},"=",{"$f":"E20*G20","v":0},null,null,null,{"$f":"E20=\"\"","v":true}]
[]
[null,"HFC-143a (CF3CH3)",null,null,null,"X",{"$f":"Submission!I55","v":4800},"=",{"$f":"E22*G22","v":0},null,null,null,{"$f":"E22=\"\"","v":true}]
[]
[null,"HFC-152 (CH2FCH2F)",null,null,null,"X",{"$f":"Submission!I56","v":16},"=",{"$f":"E24*G24","v":0},null,null,null,{"$f":"E24=\"\"","v":true}]
[]
[null,"HFC-152a (CH3CHF2)",null,null,null,"X",{"$f":"Submission!I57","v":138},"=",{"$f":"E26*G26","v":0},null,null,null,{"$f":"E26=\"\"","v":true}]
[]
[null,"HFC-161 (CH3CH2F)",null,null,null,"X",{"$f":"Submission!I58","v":4},"=",{"$f":"E28*G28","v":0},null,null,null,{"$f":"E28=\"\"","v":true}]
[]
[null,"HFC-227ea (C3HF7)",null,null,null,"X",{"$f":"Submission!I59","v":3350},"=",{"$f":"E30*G30","v":0},null,null,null,{"$f":"E30=\"\"","v":true}]
[]
[null,"HFC-236cb (CH2FCF2CF3)",null,null,null,"X",{"$f":"Submission!I60","v":1210},"=",{"$f":"E32*G32","v":0},null,null,null,{"$f":"E32=\"\"","v":true}]
[]
[null,"HFC-236ea (CHF2CHFCF3)",null,null,null,"X",{"$f":"Submission!I61","v":1330},"=",{"$f":"E34*G34","v":0},null,null,null,{"$f":"E34=\"\"","v":true}]
[]
[null,"HFC-236fa (C3H2F6)",null,null,null,"X",{"$f":"Submission!I62","v":8060},"=",{"$f":"E36*G36","v":0},null,null,null,{"$f":"E36=\"\"","v":true}]
[]
[null,"HFC-245ca (C3H3F5)",null,null,null,"X",{"$f":"Submission!I63","v":716},"=",{"$f":"E38*G38","v":0},null,null,null,{"$f":"E38=\"\"","v":true}]
[]
[null,"HFC-245fa (CHF2CH2CF3)",null,null,null,"X",{"$f":"Submission!I64","v":858},"=",{"$f":"E40*G40","v":0},null,null,null,{"$f":"E40=\"\"","v":true}]
[]
[null,"HFC-365mfc (CH3CF2CH2CF3)",null,null,null,"X",{"$f":"Submission!I65","v":804},"=",{"$f":"E42*G42","v":0},null,null,null,{"$f":"E42=\"\"","v":true}]
[]
[null,null,"Total HFC:",null,null,null,null,null,{"$f":"SUM(I6,I8,I10,I12,I14,I16,I18,I20,I22,I24,I26,I28,I30,I32,I34,I36,I38,I40,I42)","v":0}]
[]
[null,{"$f":"CONCATENATE(ReportingYear,\" - \", 'Section A1'!$B$5)","v":"2023 - "}]

{"sheet":"Section B3","index":9,"n_rows":44,"n_cols":16,"rows_kept":44,"cut":false,"hidden":false,"merged":[[41,1,41,10],[39,1,39,10],[33,1,33,10],[29,1,29,10],[31,1,31,4],[0,0,0,12],[23,5,23,9],[2,1,2,11],[5,1,5,4],[15,1,15,4],[7,1,7,4],[9,1,9,4],[1,1,1,11],[25,1,25,10],[13,1,13,4],[11,1,11,4],[37,1,37,10],[19,1,19,4],[35,1,35,10],[21,1,21,4],[17,1,17,4],[27,1,27,4]]}
[{"$f":"\"Section B: \" & Submission!C11 & \" Direct Emissions\"","v":"Section B:  Direct Emissions"},null,null,null,null,null,null,null,null,null,null,null,null,null,"hide","hide"]
[null,{"$f":"CONCATENATE(O2,P2)","v":"Instructions: Enter value under Tonnes. Conversion to Tonnes CO2e is calculated automatically."},null,null,null,null,null,null,null,null,null,null,null,null,"Instructions: Enter value under Tonnes. Conversion to Tonnes CO2e is calculated automatically."]
[null,"Perfluorocarbon (PFC) Emissions "]
[null,null,null,null,null,null,null,null,null,null,null,null,null,null,null,{"$f":"L24=0","v":true}]
[null,null,null,null,null,"N/A",null,"Tonnes",null,"GWP",null,"Tonnes (in CO2e)"]
[null,"Perfluoromethane (CF4)",null,null,null,null,null,null,"X",{"$f":"Submission!I67","v":6630},"=",{"$f":"H6*J6","v":0},null,null,null,{"$f":"H6=\"\"","v":true}]
[]
[null,"Perfluoroethane (C2F6)",null,null,null,null,null,null,"X",{"$f":"Submission!I68","v":11100},"=",{"$f":"H8*J8","v":0},null,null,null,{"$f":"H8=\"\"","v":true}]
[]
[null,"Perfluoropropane (C3F8)",null,null,null,null,null,null,"X",{"$f":"Submission!I69","v":8900},"=",{"$f":"H10*J10","v":0},null,null,null,{"$f":"H10=\"\"","v":true}]
[]
[null,"Perfluorobutane (C4F10)",null,null,null,null,null,null,"X",{"$f":"Submission!I70","v":9200},"=",{"$f":"H12*J12","v":0},null,null,null,{"$f":"H12=\"\"","v":true}]
[]
[null,"Perfluorocyclobutane (c-C4F8)",null,null,null,null,null,null,"X",{"$f":"Submission!I71","v":9540},"=",{"$f":"H14*J14","v":0},null,null,null,{"$f":"H14=\"\"","v":true}]
[]
[null,"Perfluoropentane (C5F12)",null,null,null,null,null,null,"X",{"$f":"Submission!I72","v":8550},"=",{"$f":"H16*J16","v":0},null,null,null,{"$f":"H16=\"\"","v":true}]
[]
[null,"Perfluorohexane (C6F14)",null,null,null,null,null,null,"X",{"$f":"Submission!I73","v":7910},"=",{"$f":"H18*J18","v":0},null,null,null,{"$f":"H18=\"\"","v":true}]
[]
[null,"Perfluorodecalin C10F18",null,null,null,null,null,null,"X",{"$f":"Submission!I74","v":7190},"=",{"$f":"H20*J20","v":0},null,null,null,{"$f":"H20=\"\"","v":true}]
[]
[null,"Perfluorocyclopropane c-C3F6",null,null,null,null,null,null,"X",{"$f":"Submission!I75","v":9200},"=",{"$f":"H22*J22","v":0},null,null,null,{"$f":"H22=\"\"","v":true}]
[]
[null,null,null,null,null,"Total PFC :",null,null,null,null,"=",{"$f":"SUM(L6,L8,L10,L12,L14,L16,L18,L20,L22)","v":0}]
[]
[null,"Nitrogen Trifluoride (NF3)"]
[null,null,null,null,null,"N/A",null,"Tonnes",null,"GWP",null,"Tonnes (in CO2e)"]
[null,"Nitrogen Trifluoride (NF3)",null,null,null,null,null,null,"X",{"$f":"Submission!I76","v":16100},"=",{"$f":"H28*J28","v":0},null,null,null,{"$f":"H28=\"\"","v":true}]
[]
[null,"Sulphur Hexafluoride (SF6) Emissions"]
[null,null,null,null,null,"N/A",null,"Tonnes",null,"GWP",null,"Tonnes (in CO2e)"]
[null,"Sulphur hexafluoride (SF6)",null,null,null,null,null,null,"X",{"$f":"Submission!I66","v":23500},"=",{"$f":"H32*J32","v":0},null,null,null,{"$f":"H32=\"\"","v":true}]
[]
[null,"Total HFC, PFC, NF3 and SF6 Emissions"]
[null,null,null,null,null,null,null,null,null,null,null,"Tonnes (in CO2e)"]
[null,"Hydrofluorocarbon (HFC)",null,null,null,null,null,null,null,null,null,{"$f":"'Section B2'!$I$44","v":0}]
[]
[null,"Perfluorocarbons (PFC)",null,null,null,null,null,null,null,null,null,{"$f":"$L$24","v":0}]
[]
[null,"Nitrogen Trifluoride (NF3)",null,null,null,null,null,null,null,null,null,{"$f":"$L$28","v":0}]
[]
[null,"Sulphur hexafluoride (SF6)",null,null,null,null,null,null,null,null,null,{"$f":"$L$32","v":0}]
[]
[null,{"$f":"CONCATENATE(ReportingYear,\" - \", 'Section A1'!$B$5)","v":"2023 - "}]

{"sheet":"Section B4","index":10,"n_rows":57,"n_cols":28,"rows_kept":57,"cut":false,"hidden":false,"merged":[[54,1,54,16],[44,11,44,12],[47,1,47,4],[49,1,49,4],[51,1,51,4],[53,8,53,13],[45,1,45,8],[39,11,39,12],[28,11,28,14],[16,1,16,4],[24,1,24,4],[10,1,10,4],[37,1,37,16],[22,1,22,10],[25,1,25,16],[11,1,11,16],[20,1,20,4],[13,7,13,12],[18,1,18,5],[28,16,28,18],[29,16,31,16],[14,1,14,9],[14,13,14,16],[18,13,18,16],[22,13,22,16],[0,0,0,19],[1,0,1,14],[4,1,4,7],[8,1,8,12],[6,1,6,4]]}
[{"$f":"\"Section B: \" & Submission!C11 & \" Direct Emissions\"","v":"Section B:  Direct Emissions"},null,null,null,null,null,null,null,null,null,null,null,null,null,null,null,null,null,null,null,null,"hide","hide","hide","hide","hide","hide","hide"]
[]
[null,"Biomass CO2 Emissions"]
[]
[null,"CO2 Emissions from Combustion of Biomass (BM)"]
[null,null,null,null,null,"N/A",null,"Tonnes"]
[null,"Carbon dioxide (CO2)",null,null,null,null,null,null,null,null,null,null,null,null,null,null,null,null,null,null,null,null,{"$f":"H7=\"\"","v":true}]
[]
[null,"CO2 Emissions from Decomposition of Biomass (BM)"]
[null,null,null,null,null,"N/A",null,"Tonnes"]
[null,"Carbon dioxide (CO2)",null,null,null,null,null,null,null,null,null,null,null,null,null,null,null,null,null,null,null,null,{"$f":"H11=\"\"","v":true}]
[null,"Note: Only CO₂ emissions from combustion and decomposition of biomass should be reported here. These emissions are not included in the calculation of the direct emissions. Methane and nitrous oxide emissions from biomass combustion and decomposition must be reported in Section B1 in the appropriate category."]
[null,"Captured CO2"]
[]
[null,"CO2 Geologically Injected On Site",null,null,null,null,null,null,null,null,null,null,null,"Capture Recognition Tonnes (CRT)"]
[null,null,null,null,null,"N/A",null,"Tonnes (in CO2e)",null,null,null,null,null,"N/A","Tonnes"]
[null,"Carbon dioxide (CO2)",null,null,null,null,null,null,null,null,null,null,null,null,null,null,null,null,null,null,null,null,{"$f":"H17=\"\"","v":true},null,{"$f":"O17=\"\"","v":true}]
[]
[null,"Exported CO2 (ECO2)",null,null,null,null,null,"Exported from non-IP",null,"IPExport",null,null,null,"Exported for Disposal as Acid Gas"]
[null,null,null,null,null,"N/A",null,"Tonnes (in CO2e)","N/A","Tonnes (in CO2e)",null,null,null,"N/A","Tonnes (in CO2e)"]
[null,"Carbon dioxide (CO2)",null,null,null,null,null,null,null,null,null,null,null,null,null,null,null,null,null,null,null,null,{"$f":"H21=\"\"","v":true},{"$f":"O21=\"\"","v":true},{"$f":"J21=\"\"","v":true}]
[]
[null,"Imported CO2 (ICO2)",null,null,null,null,null,null,null,null,null,null,null,"Imported for Disposal as Acid Gas"]
[null,null,null,null,null,"N/A",null,"Tonnes (in CO2e)",null,null,null,null,null,"N/A","Tonnes (in CO2e)",null,null,null,null,null,null,null,"       "]
[null,"Carbon dioxide (CO2)",null,null,null,null,null,null,null,null,null,null,null,null,null,null,null,null,null,null,null,null,{"$f":"H25=\"\"","v":true},{"$f":"O25=\"\"","v":true}]
[null,"Note: This section should include data on carbon capture and storage activities, including acid gas injection and enhanced oil recovery projects. Trace CO2 in fuels, feedstock or products should not be included. \nAny carbon dioxide removed from raw gas and disposed of, as an acid gas stream, to an AER approved underground formation shall be excluded from Exported and Imported CO2. These quantities should be reported in the specific fields provided for disposal of acid gas in Cells O21 and O25.\nExported CO2 reported in this section is added in the calculation of Total Regulated Emissions. Please make sure not to include this quantity in Section B1 to avoid double counting. For example, if Formation or Industrial Process CO2 is being captured by the facility and exported to another facility regulated under TIER Regulation, it should be reported as an export only and not in section B1, otherwise it will be double counted in the Total Regulated Emissions.  "]
[null,"Greenhouse Gas Intensive Inputs & Outputs"]
[]
[null,null,null,null,null,null,null,null,null,null,null,"On site (AB-CWB Only)",null,null,null,null,"Wasted H2 (AB-CWB Only)"]
[null,null,null,null,null,null,null,"Imported",null,"Exported",null,"Generated",null,null,"Used",null,"from Generated\non site",null,"from Imported",null,null,null,1E-4]
[]
[null,"Electricity [MWh]",null,null,null,null,"IE",null,null,null,null,null,null,null,null,null,null,null,null,null,null,null,{"$f":"H32=\"\"","v":true},{"$f":"J32=\"\"","v":true}]
[]
[null,"Heat [GJ]",null,null,null,null,"IHe",null,null,null,null,null,null,null,null,null,null,null,null,null,null,null,{"$f":"H34=\"\"","v":true},{"$f":"J34=\"\"","v":true}]
[]
[null,"Hydrogen [tonnes H2(*)]",null,null,null,null,"IHy",null,null,null,null,null,null,null,null,null,null,null,null,null,null,null,{"$f":"H36=\"\"","v":true},{"$f":"J36=\"\"","v":true},{"$f":"L36=\"\"","v":true},{"$f":"O36=\"\"","v":true},{"$f":"Q36=\"\"","v":true},{"$f":"S36=\"\"","v":true}]
[null,"(*) excluding trace H2 in fuels"]
[]
[null,"CO2 Used in Manufacturing of Urea"]
[]
[null,null,null,null,null,null,null,null,"N/A","Tonnes (in CO2e)"]
[null,"CO2 Used in Manufacturing of Urea (UCO2)",null,null,null,null,null,null,null,null,null,null,null,null,null,null,null,null,null,null,null,null,{"$f":"J42=\"\"","v":true}]
[]
[null,"Emissions from Fuels Subject to the Federal Fuel Charge"]
[]
[null,"Emissions from Fuels Subject to the Federal Fuel Charge"]
[null,null,null,null,null,"N/A",null,"Tonnes",null,null,null,"GWP",null,null,"Tonnes (in CO2e)"]
[null,"Carbon dioxide (CO2)",null,null,null,null,null,null,null,"X",null,{"$f":"Submission!I44","v":1},null,"=",{"$f":"H48*L48","v":0},null,null,null,null,null,null,null,{"$f":"H48=\"\"","v":true}]
[]
[null,"Methane (CH4)",null,null,null,null,null,null,null,"X",null,{"$f":"Submission!I45","v":28},null,"=",{"$f":"H50*L50","v":0},null,null,null,null,null,null,null,{"$f":"H50=\"\"","v":true}]
[]
[null,"Nitrous oxide (N2O)",null,null,null,null,null,null,null,"X",null,{"$f":"Submission!I46","v":265},null,"=",{"$f":"H52*L52","v":0},null,null,null,null,null,null,null,{"$f":"H52=\"\"","v":true}]
[]
[null,null,null,null,null,null,null,null,"Federal Fuel Charge Emissions (FFCE)",null,null,null,null,null,{"$f":"SUM(O52,O50,O48)","v":0}]
[null,"Note: Quantities in this section are substracted from Benchmark Emissions (BE), make sure to also include these quantities in Section B1. "]
[]
[null,{"$f":"CONCATENATE(ReportingYear,\" - \", 'Section A1'!$B$5)","v":"2023 - "}]

{"sheet":"Section B4 EE","index":11,"n_rows":51,"n_cols":15,"rows_kept":51,"cut":false,"hidden":true,"merged":[[0,0,0,10],[21,1,21,9],[49,1,49,9],[50,1,50,9],[35,1,35,9],[1,1,1,9]]}
[{"$f":"\"Section B: \" & Submission!C11 & \" Direct Emissions\"","v":"Section B:  Direct Emissions"},null,null,null,null,null,null,null,null,null,null,null,"hide","hide","hide"]
[]
[null,{"$f":"\"Self-Generation Information\"","v":"Self-Generation Information"},null,null,null,null,null,null,null,null,null,null,null,null,"Trigger"]
[]
[null,null,null,null,null,null,null,null,null,null,null,null,null,{"$f":"IF(O5>0,FALSE,TRUE)","v":true},{"$f":"SUM(I17,I20,I26,I40,I48)","v":0}]
[]
[]
[null,"Self Generation Emissions"]
[]
[null,null,null,null,null,null,null,null,"Tonnes (in CO2e)"]
[null,"Carbon dioxide (CO2)",null,null,null,"X",{"$f":"Submission!I44","v":1},"=",{"$f":"E11*G11","v":0},null,null,null,null,{"$f":"E11=\"\"","v":true}]
[]
[null,"Methane (CH4)",null,null,null,"X",{"$f":"Submission!I45","v":28},"=",{"$f":"E13*G13","v":0},null,null,null,null,{"$f":"E13=\"\"","v":true}]
[]
[null,"Nitrous oxide (N2O)",null,null,null,"X",{"$f":"Submission!I46","v":265},"=",{"$f":"E15*G15","v":0},null,null,null,null,{"$f":"E15=\"\"","v":true}]
[]
[null,null,null,null,null,null,null,"Total GHG Emissions from Self Generation (EE)",{"$f":"SUM(I11,I13,I15)","v":0}]
[]
[]
[null,null,null,null,null,null,null,"Total GHG Emissions from Self Generation (EE)"]
[]
[null,"Note: Report in this section the emissions attributable to self-generation of electricity and\\or cogeneration at the facility for the production of the product being reported or offsite exports of heat and electricity specific to the product being reported. This include all emissions from fossil fuels but only Methane (CH4) and Nitrous Oxide (N2O) emissions when the fuel used for electricity generation or cogeneration is biomass. For guidance refer to Chapter 16 of the Alberta greenhouse gas quantification methodologies."]
[]
[null,{"$f":"\" Electricity\"","v":" Electricity"}]
[null,null,null,null,null,null,null,"N/A","Quantity","Units"]
[null,null,null,null,null,null,"Electricity Self Generated (Net of Station Load)",null,null,"MWh",null,null,null,{"$f":"I26=0","v":true}]
[]
[null,null,null,null,null,null,"Electricity Imported",null,{"$f":"'Section B4'!H32","v":0},"MWh"]
[]
[null,null,null,null,null,null,"Electricity Exported",null,{"$f":"'Section B4'!J32","v":0},"MWh"]
[]
[null,"Elecused = Elecself-generated + Elecimport-Elecexport",null,null,null,null,"Electricity Used",null,{"$f":"I26+I28-I30","v":0},"MWh"]
[]
[null,null,null,null,null,null,"Electricity Used",null,null,"MWh",null,null,null,{"$f":"I34=\"\"","v":true}]
[]
[null,"Note: Report in this section the electricity generated at the facility from cogeneration and\\or non-cogeneration specific to the product being reported (net of station load). For guidance refer to Chapter 16 of the Alberta greenhouse gas quantification methodologies."]
[null,{"$f":"\" Heat\"","v":" Heat"}]
[]
[null,null,null,null,null,null,null,"N/A","Quantity","Units"]
[null,null,null,null,null,null,"Heat Cogenerated (Net heat produced by cogeneration)",null,null,"GJ",null,null,null,{"$f":"I40=\"\"","v":true}]
[]
[null,null,null,null,null,null,"Heat Imported",null,{"$f":"'Section B4'!H34","v":0},"GJ"]
[]
[null,null,null,null,null,null,"Heat Exported",null,{"$f":"'Section B4'!J34","v":0},"GJ"]
[]
[null,null,null,null,"Hused = Hcogenerated + Himport- Hexport",null,"Heat Used",null,{"$f":"I40+I42-I44","v":0},"GJ"]
[]
[null,null,null,null,null,null,"Heat Used",null,null,"GJ",null,null,null,{"$f":"I48=\"\"","v":true}]
[]
[null,"Note: Heat cogenerated is heat produced as a by-product of electricity generation at the facility specific to the product being reported. For guidance refer to Chapter 16 of the Alberta greenhouse gas quantification methodologies.",null,null,null,null,null,null,null,null,null,null,"Note: Heat cogenerated is heat produced as a by-product of electricity generation at the facility. It does not include heat produced using conventional boilers that are not related to the generation of electricity  ","Note: Input the corresponding Heat Used value from the Self-generation Multiproduct Form."]
[null,{"$f":"CONCATENATE(ReportingYear,\" - \", 'Section A1'!$B$5)","v":"2023 - "}]

{"sheet":"Section B5","index":12,"n_rows":15,"n_cols":17,"rows_kept":15,"cut":false,"hidden":false,"merged":[[13,1,13,12],[14,1,14,12],[15,1,15,12],[0,0,0,13],[9,1,9,12],[3,1,3,12],[6,1,6,12],[1,0,1,12],[4,1,4,12]]}
[{"$f":"\"Section B: \" & Submission!C11 & \" Direct Emissions\"","v":"Section B:  Direct Emissions"},null,null,null,null,null,null,null,null,null,null,null,null,null,null,"hide","hide"]
[]
[null,"Negligible Emission Sources"]
[null,"List all GHG emission sources that are being treated as negligible in the space below. For all negligible, include the annual emissions estimate and expected year-to-year variation in (tonnes CO2e). If additional space is required, please attach a document and specify the name below. Under TIER Regulation all negligible sources are to be included in the corresponding emission categories in Sections B1, B2, B3 and B4, and count towards the Direct Emissions. Alternative methods may be used to assess the negligibility of these emissions."]
[]
[null,{"$f":"\"Public Availability of \"&ReportingYear&\" GHG Emissions Data\"","v":"Public Availability of 2023 GHG Emissions Data"},null,null,null,null,null,null,null,null,null,null,null,null,null,"Options","Yes"]
[null,{"$f":"\"Are \"&ReportingYear&\" greenhouse gas emissions data by gas type for this facility publicly available (i.e., published or by request)?\"","v":"Are 2023 greenhouse gas emissions data by gas type for this facility publicly available (i.e., published or by request)?"},null,null,null,null,null,null,null,null,null,null,null,null,null,null,"No"]
[null,null,null,null,null,null,null,null,null,null,null,null,null,null,null,"Total Publicly Available"]
[]
[null,{"$f":"\"Are \"&ReportingYear&\" greenhouse gas emissions data by source category for this facility publicly available (i.e., published or by request)?\"","v":"Are 2023 greenhouse gas emissions data by source category for this facility publicly available (i.e., published or by request)?"}]
[null,null,null,null,null,null,null,null,null,null,null,null,null,null,null,"By Gas Available"]
[]
[null,"Note: Confidentiality must not be requested for information that is publicly available."]
[]
[null,{"$f":"CONCATENATE(ReportingYear,\" - \", 'Section A1'!$B$5)","v":"2023 - "}]

{"sheet":"Section B6","index":13,"n_rows":90,"n_cols":34,"rows_kept":90,"cut":false,"hidden":true,"merged":[[81,17,81,31],[82,17,82,31],[48,1,48,13],[0,0,0,14],[53,1,53,13],[79,17,79,31],[80,17,80,31]]}
[{"$f":"\"Section B: \" & Submission!C11 & \" Production Information\"","v":"Section B:  Production Information"},null,null,null,null,null,null,null,null,null,null,null,null,null,null,null,"hide","hide","hide","hide","hide","hide","hide","hide","hide","hide","hide","hide","hide","hide","hide","hide","hide","hide"]
[]
[null,{"$f":"\" Production Information for \"&Submission!C11","v":" Production Information for "}]
[]
[null,null,"N/A","Product (P)",null,"Quantity",null,"Units",null,{"$f":"\"Established or Assigned Benchmark\n(BE or BA) for \"&Submission!C11","v":"Established or Assigned Benchmark\n(BE or BA) for "},null,"Transition Allocation Benchmark (BTA)",null,"Allocations\nTonnes (in CO2e)",null,null,"Established or Assigned Benchmark","Checkboxes","Units",null,"ABGPI Selected"]
[null,"Production Item 1",null,null,null,null,null,null,null,{"$f":"Q6","v":""},null,null,null,{"$f":"IF(R6=TRUE,\" \",F6*J6+F6*L6)","v":" "},null,null,{"$f":"IFERROR(CHOOSE(MATCH($D6,$R$61:$R$79,0),INDIRECT(\"$\"&$V$86&\"$61\"),INDIRECT(\"$\"&$V$86&\"$62\"),INDIRECT(\"$\"&$V$86&\"$63\"),INDIRECT(\"$\"&$V$86&\"$64\"), INDIRECT(\"$\"&$V$86&\"$65\"), INDIRECT(\"$\"&$V$86&\"$66\"),INDIRECT(\"$\"&$V$86&\"$67\"),INDIRECT(\"$\"&$V$86&\"$68\"),INDIRECT(\"$\"&$V$86&\"$69\"),INDIRECT(\"$\"&$V$86&\"$70\"),INDIRECT(\"$\"&$V$86&\"$71\"),INDIRECT(\"$\"&$V$86&\"$72\"),INDIRECT(\"$\"&$V$86&\"$73\"),INDIRECT(\"$\"&$V$86&\"$74\"),INDIRECT(\"$\"&$V$86&\"$75\"),INDIRECT(\"$\"&$V$86&\"$76\")),\"\")","v":""},{"$f":"F6=\"\"","v":true},{"$f":"IFERROR(CHOOSE(MATCH($D6,$R$61:$R$79,0),$AF$61,$AF$62,$AF$63,$AF$64,$AF$65,$AF$66,$AF$67,$AF$68,$AF$69,$AF$70,$AF$71,$AF$72,$AF$73,$AF$74,$AF$75,$AF$76,$AF$77,$AF$78,$AF$79),\"\")","v":""},null,false]
[null,null,null,null,null,null,null,null,null,null,null,null,null,null,null,null,null,null,{"$f":"IFERROR(CHOOSE(MATCH($D7,$R$61:$R$79,0),$AF$61,$AF$62,$AF$63,$AF$64,$AF$65,$AF$66,$AF$67,$AF$68,$AF$69,$AF$70,$AF$71,$AF$72,$AF$73,$AF$74,$AF$75,$AF$76,$AF$77,$AF$78,$AF$79),\"\")","v":""}]
[null,"Production Item 2",null,null,null,null,null,null,null,{"$f":"Q8","v":""},null,null,null,{"$f":"IF(R8=TRUE,\" \",F8*J8+F8*L8)","v":" "},null,null,{"$f":"IFERROR(CHOOSE(MATCH($D8,$R$61:$R$79,0),INDIRECT(\"$\"&$V$86&\"$61\"),INDIRECT(\"$\"&$V$86&\"$62\"),INDIRECT(\"$\"&$V$86&\"$63\"),INDIRECT(\"$\"&$V$86&\"$64\"), INDIRECT(\"$\"&$V$86&\"$65\"), INDIRECT(\"$\"&$V$86&\"$66\"),INDIRECT(\"$\"&$V$86&\"$67\"),INDIRECT(\"$\"&$V$86&\"$68\"),INDIRECT(\"$\"&$V$86&\"$69\"),INDIRECT(\"$\"&$V$86&\"$70\"),INDIRECT(\"$\"&$V$86&\"$71\"),INDIRECT(\"$\"&$V$86&\"$72\"),INDIRECT(\"$\"&$V$86&\"$73\"),INDIRECT(\"$\"&$V$86&\"$74\"),INDIRECT(\"$\"&$V$86&\"$75\"),INDIRECT(\"$\"&$V$86&\"$76\")),\"\")","v":""},{"$f":"F8=\"\"","v":true},""]
[null,null,null,null,null,null,null,null,null,null,null,null,null,null,null,null,null,null,""]
[null,"Production Item 3",null,null,null,null,null,null,null,{"$f":"Q10","v":""},null,null,null,{"$f":"IF(R10=TRUE,\" \",F10*J10+F10*L10)","v":" "},null,null,{"$f":"IFERROR(CHOOSE(MATCH($D10,$R$61:$R$79,0),INDIRECT(\"$\"&$V$86&\"$61\"),INDIRECT(\"$\"&$V$86&\"$62\"),INDIRECT(\"$\"&$V$86&\"$63\"),INDIRECT(\"$\"&$V$86&\"$64\"), INDIRECT(\"$\"&$V$86&\"$65\"), INDIRECT(\"$\"&$V$86&\"$66\"),INDIRECT(\"$\"&$V$86&\"$67\"),INDIRECT(\"$\"&$V$86&\"$68\"),INDIRECT(\"$\"&$V$86&\"$69\"),INDIRECT(\"$\"&$V$86&\"$70\"),INDIRECT(\"$\"&$V$86&\"$71\"),INDIRECT(\"$\"&$V$86&\"$72\"),INDIRECT(\"$\"&$V$86&\"$73\"),INDIRECT(\"$\"&$V$86&\"$74\"),INDIRECT(\"$\"&$V$86&\"$75\"),INDIRECT(\"$\"&$V$86&\"$76\")),\"\")","v":""},{"$f":"F10=\"\"","v":true},""]
[null,null,null,null,null,null,null,null,null,null,null,null,null,null,null,null,null,null,""]
[null,"Production Item 4",null,null,null,null,null,null,null,{"$f":"Q12","v":""},null,null,null,{"$f":"IF(R12=TRUE,\" \",F12*J12+F12*L12)","v":" "},null,null,{"$f":"IFERROR(CHOOSE(MATCH($D12,$R$61:$R$79,0),INDIRECT(\"$\"&$V$86&\"$61\"),INDIRECT(\"$\"&$V$86&\"$62\"),INDIRECT(\"$\"&$V$86&\"$63\"),INDIRECT(\"$\"&$V$86&\"$64\"), INDIRECT(\"$\"&$V$86&\"$65\"), INDIRECT(\"$\"&$V$86&\"$66\"),INDIRECT(\"$\"&$V$86&\"$67\"),INDIRECT(\"$\"&$V$86&\"$68\"),INDIRECT(\"$\"&$V$86&\"$69\"),INDIRECT(\"$\"&$V$86&\"$70\"),INDIRECT(\"$\"&$V$86&\"$71\"),INDIRECT(\"$\"&$V$86&\"$72\"),INDIRECT(\"$\"&$V$86&\"$73\"),INDIRECT(\"$\"&$V$86&\"$74\"),INDIRECT(\"$\"&$V$86&\"$75\"),INDIRECT(\"$\"&$V$86&\"$76\")),\"\")","v":""},{"$f":"F12=\"\"","v":true},""]
[null,null,null,null,null,null,null,null,null,null,null,null,null,null,null,null,null,null,""]
[null,"Production Item 5",null,null,null,null,null,null,null,{"$f":"Q14","v":""},null,null,null,{"$f":"IF(R14=TRUE,\" \",F14*J14+F14*L14)","v":" "},null,null,{"$f":"IFERROR(CHOOSE(MATCH($D14,$R$61:$R$79,0),INDIRECT(\"$\"&$V$86&\"$61\"),INDIRECT(\"$\"&$V$86&\"$62\"),INDIRECT(\"$\"&$V$86&\"$63\"),INDIRECT(\"$\"&$V$86&\"$64\"), INDIRECT(\"$\"&$V$86&\"$65\"), INDIRECT(\"$\"&$V$86&\"$66\"),INDIRECT(\"$\"&$V$86&\"$67\"),INDIRECT(\"$\"&$V$86&\"$68\"),INDIRECT(\"$\"&$V$86&\"$69\"),INDIRECT(\"$\"&$V$86&\"$70\"),INDIRECT(\"$\"&$V$86&\"$71\"),INDIRECT(\"$\"&$V$86&\"$72\"),INDIRECT(\"$\"&$V$86&\"$73\"),INDIRECT(\"$\"&$V$86&\"$74\"),INDIRECT(\"$\"&$V$86&\"$75\"),INDIRECT(\"$\"&$V$86&\"$76\")),\"\")","v":""},{"$f":"F14=\"\"","v":true},""]
[null,null,null,null,null,null,null,null,null,null,null,null,null,null,null,null,null,null,""]
[null,"Production Item 6",null,null,null,null,null,null,null,{"$f":"Q16","v":""},null,null,null,{"$f":"IF(R16=TRUE,\" \",F16*J16+F16*L16)","v":" "},null,null,{"$f":"IFERROR(CHOOSE(MATCH($D16,$R$61:$R$79,0),INDIRECT(\"$\"&$V$86&\"$61\"),INDIRECT(\"$\"&$V$86&\"$62\"),INDIRECT(\"$\"&$V$86&\"$63\"),INDIRECT(\"$\"&$V$86&\"$64\"), INDIRECT(\"$\"&$V$86&\"$65\"), INDIRECT(\"$\"&$V$86&\"$66\"),INDIRECT(\"$\"&$V$86&\"$67\"),INDIRECT(\"$\"&$V$86&\"$68\"),INDIRECT(\"$\"&$V$86&\"$69\"),INDIRECT(\"$\"&$V$86&\"$70\"),INDIRECT(\"$\"&$V$86&\"$71\"),INDIRECT(\"$\"&$V$86&\"$72\"),INDIRECT(\"$\"&$V$86&\"$73\"),INDIRECT(\"$\"&$V$86&\"$74\"),INDIRECT(\"$\"&$V$86&\"$75\"),INDIRECT(\"$\"&$V$86&\"$76\")),\"\")","v":""},{"$f":"F16=\"\"","v":true},""]
[null,null,null,null,null,null,null,null,null,null,null,null,null,null,null,null,null,null,""]
[null,"Production Item 7",null,null,null,null,null,null,null,{"$f":"Q18","v":""},null,null,null,{"$f":"IF(R18=TRUE,\" \",F18*J18+F18*L18)","v":" "},null,null,{"$f":"IFERROR(CHOOSE(MATCH($D18,$R$61:$R$79,0),INDIRECT(\"$\"&$V$86&\"$61\"),INDIRECT(\"$\"&$V$86&\"$62\"),INDIRECT(\"$\"&$V$86&\"$63\"),INDIRECT(\"$\"&$V$86&\"$64\"), INDIRECT(\"$\"&$V$86&\"$65\"), INDIRECT(\"$\"&$V$86&\"$66\"),INDIRECT(\"$\"&$V$86&\"$67\"),INDIRECT(\"$\"&$V$86&\"$68\"),INDIRECT(\"$\"&$V$86&\"$69\"),INDIRECT(\"$\"&$V$86&\"$70\"),INDIRECT(\"$\"&$V$86&\"$71\"),INDIRECT(\"$\"&$V$86&\"$72\"),INDIRECT(\"$\"&$V$86&\"$73\"),INDIRECT(\"$\"&$V$86&\"$74\"),INDIRECT(\"$\"&$V$86&\"$75\"),INDIRECT(\"$\"&$V$86&\"$76\")),\"\")","v":""},{"$f":"F18=\"\"","v":true},""]
[null,null,null,null,null,null,null,null,null,null,null,null,null,null,null,null,null,null,""]
[null,"Production Item 8",null,null,null,null,null,null,null,{"$f":"Q20","v":""},null,null,null,{"$f":"IF(R20=TRUE,\" \",F20*J20+F20*L20)","v":" "},null,null,{"$f":"IFERROR(CHOOSE(MATCH($D20,$R$61:$R$79,0),INDIRECT(\"$\"&$V$86&\"$61\"),INDIRECT(\"$\"&$V$86&\"$62\"),INDIRECT(\"$\"&$V$86&\"$63\"),INDIRECT(\"$\"&$V$86&\"$64\"), INDIRECT(\"$\"&$V$86&\"$65\"), INDIRECT(\"$\"&$V$86&\"$66\"),INDIRECT(\"$\"&$V$86&\"$67\"),INDIRECT(\"$\"&$V$86&\"$68\"),INDIRECT(\"$\"&$V$86&\"$69\"),INDIRECT(\"$\"&$V$86&\"$70\"),INDIRECT(\"$\"&$V$86&\"$71\"),INDIRECT(\"$\"&$V$86&\"$72\"),INDIRECT(\"$\"&$V$86&\"$73\"),INDIRECT(\"$\"&$V$86&\"$74\"),INDIRECT(\"$\"&$V$86&\"$75\"),INDIRECT(\"$\"&$V$86&\"$76\")),\"\")","v":""},{"$f":"F20=\"\"","v":true},""]
[null,null,null,null,null,null,null,null,null,null,null,null,null,null,null,null,null,null,""]
[null,"Production Item 9",null,null,null,null,null,null,null,{"$f":"Q22","v":""},null,null,null,{"$f":"IF(R22=TRUE,\" \",F22*J22+F22*L22)","v":" "},null,null,{"$f":"IFERROR(CHOOSE(MATCH($D22,$R$61:$R$79,0),INDIRECT(\"$\"&$V$86&\"$61\"),INDIRECT(\"$\"&$V$86&\"$62\"),INDIRECT(\"$\"&$V$86&\"$63\"),INDIRECT(\"$\"&$V$86&\"$64\"), INDIRECT(\"$\"&$V$86&\"$65\"), INDIRECT(\"$\"&$V$86&\"$66\"),INDIRECT(\"$\"&$V$86&\"$67\"),INDIRECT(\"$\"&$V$86&\"$68\"),INDIRECT(\"$\"&$V$86&\"$69\"),INDIRECT(\"$\"&$V$86&\"$70\"),INDIRECT(\"$\"&$V$86&\"$71\"),INDIRECT(\"$\"&$V$86&\"$72\"),INDIRECT(\"$\"&$V$86&\"$73\"),INDIRECT(\"$\"&$V$86&\"$74\"),INDIRECT(\"$\"&$V$86&\"$75\"),INDIRECT(\"$\"&$V$86&\"$76\")),\"\")","v":""},{"$f":"F22=\"\"","v":true},""]
[null,null,null,null,null,null,null,null,null,null,null,null,null,null,null,null,null,null,""]
[null,"Production Item 10",null,null,null,null,null,null,null,{"$f":"Q24","v":""},null,null,null,{"$f":"IF(R24=TRUE,\" \",F24*J24+F24*L24)","v":" "},null,null,{"$f":"IFERROR(CHOOSE(MATCH($D24,$R$61:$R$79,0),INDIRECT(\"$\"&$V$86&\"$61\"),INDIRECT(\"$\"&$V$86&\"$62\"),INDIRECT(\"$\"&$V$86&\"$63\"),INDIRECT(\"$\"&$V$86&\"$64\"), INDIRECT(\"$\"&$V$86&\"$65\"), INDIRECT(\"$\"&$V$86&\"$66\"),INDIRECT(\"$\"&$V$86&\"$67\"),INDIRECT(\"$\"&$V$86&\"$68\"),INDIRECT(\"$\"&$V$86&\"$69\"),INDIRECT(\"$\"&$V$86&\"$70\"),INDIRECT(\"$\"&$V$86&\"$71\"),INDIRECT(\"$\"&$V$86&\"$72\"),INDIRECT(\"$\"&$V$86&\"$73\"),INDIRECT(\"$\"&$V$86&\"$74\"),INDIRECT(\"$\"&$V$86&\"$75\"),INDIRECT(\"$\"&$V$86&\"$76\")),\"\")","v":""},{"$f":"F24=\"\"","v":true},""]
[null,null,null,null,null,null,null,null,null,null,null,null,null,null,null,null,null,null,""]
[null,"Production Item 11",null,null,null,null,null,null,null,{"$f":"Q26","v":""},null,null,null,{"$f":"IF(R26=TRUE,\" \",F26*J26+F26*L26)","v":" "},null,null,{"$f":"IFERROR(CHOOSE(MATCH($D26,$R$61:$R$79,0),INDIRECT(\"$\"&$V$86&\"$61\"),INDIRECT(\"$\"&$V$86&\"$62\"),INDIRECT(\"$\"&$V$86&\"$63\"),INDIRECT(\"$\"&$V$86&\"$64\"), INDIRECT(\"$\"&$V$86&\"$65\"), INDIRECT(\"$\"&$V$86&\"$66\"),INDIRECT(\"$\"&$V$86&\"$67\"),INDIRECT(\"$\"&$V$86&\"$68\"),INDIRECT(\"$\"&$V$86&\"$69\"),INDIRECT(\"$\"&$V$86&\"$70\"),INDIRECT(\"$\"&$V$86&\"$71\"),INDIRECT(\"$\"&$V$86&\"$72\"),INDIRECT(\"$\"&$V$86&\"$73\"),INDIRECT(\"$\"&$V$86&\"$74\"),INDIRECT(\"$\"&$V$86&\"$75\"),INDIRECT(\"$\"&$V$86&\"$76\")),\"\")","v":""},{"$f":"F26=\"\"","v":true},""]
[null,null,null,null,null,null,null,null,null,null,null,null,null,null,null,null,null,null,""]
[null,"Production Item 12",null,null,null,null,null,null,null,{"$f":"Q28","v":""},null,null,null,{"$f":"IF(R28=TRUE,\" \",F28*J28+F28*L28)","v":" "},null,null,{"$f":"IFERROR(CHOOSE(MATCH($D28,$R$61:$R$79,0),INDIRECT(\"$\"&$V$86&\"$61\"),INDIRECT(\"$\"&$V$86&\"$62\"),INDIRECT(\"$\"&$V$86&\"$63\"),INDIRECT(\"$\"&$V$86&\"$64\"), INDIRECT(\"$\"&$V$86&\"$65\"), INDIRECT(\"$\"&$V$86&\"$66\"),INDIRECT(\"$\"&$V$86&\"$67\"),INDIRECT(\"$\"&$V$86&\"$68\"),INDIRECT(\"$\"&$V$86&\"$69\"),INDIRECT(\"$\"&$V$86&\"$70\"),INDIRECT(\"$\"&$V$86&\"$71\"),INDIRECT(\"$\"&$V$86&\"$72\"),INDIRECT(\"$\"&$V$86&\"$73\"),INDIRECT(\"$\"&$V$86&\"$74\"),INDIRECT(\"$\"&$V$86&\"$75\"),INDIRECT(\"$\"&$V$86&\"$76\")),\"\")","v":""},{"$f":"F28=\"\"","v":true},""]
[null,null,null,null,null,null,null,null,null,null,null,null,null,null,null,null,null,null,""]
[null,"Production Item 13",null,null,null,null,null,null,null,{"$f":"Q30","v":""},null,null,null,{"$f":"IF(R30=TRUE,\" \",F30*J30+F30*L30)","v":" "},null,null,{"$f":"IFERROR(CHOOSE(MATCH($D30,$R$61:$R$79,0),INDIRECT(\"$\"&$V$86&\"$61\"),INDIRECT(\"$\"&$V$86&\"$62\"),INDIRECT(\"$\"&$V$86&\"$63\"),INDIRECT(\"$\"&$V$86&\"$64\"), INDIRECT(\"$\"&$V$86&\"$65\"), INDIRECT(\"$\"&$V$86&\"$66\"),INDIRECT(\"$\"&$V$86&\"$67\"),INDIRECT(\"$\"&$V$86&\"$68\"),INDIRECT(\"$\"&$V$86&\"$69\"),INDIRECT(\"$\"&$V$86&\"$70\"),INDIRECT(\"$\"&$V$86&\"$71\"),INDIRECT(\"$\"&$V$86&\"$72\"),INDIRECT(\"$\"&$V$86&\"$73\"),INDIRECT(\"$\"&$V$86&\"$74\"),INDIRECT(\"$\"&$V$86&\"$75\"),INDIRECT(\"$\"&$V$86&\"$76\")),\"\")","v":""},{"$f":"F30=\"\"","v":true},""]
[null,null,null,null,null,null,null,null,null,null,null,null,null,null,null,null,null,null,""]
[null,"Production Item 14",null,null,null,null,null,null,null,{"$f":"Q32","v":""},null,null,null,{"$f":"IF(R32=TRUE,\" \",F32*J32+F32*L32)","v":" "},null,null,{"$f":"IFERROR(CHOOSE(MATCH($D32,$R$61:$R$79,0),INDIRECT(\"$\"&$V$86&\"$61\"),INDIRECT(\"$\"&$V$86&\"$62\"),INDIRECT(\"$\"&$V$86&\"$63\"),INDIRECT(\"$\"&$V$86&\"$64\"), INDIRECT(\"$\"&$V$86&\"$65\"), INDIRECT(\"$\"&$V$86&\"$66\"),INDIRECT(\"$\"&$V$86&\"$67\"),INDIRECT(\"$\"&$V$86&\"$68\"),INDIRECT(\"$\"&$V$86&\"$69\"),INDIRECT(\"$\"&$V$86&\"$70\"),INDIRECT(\"$\"&$V$86&\"$71\"),INDIRECT(\"$\"&$V$86&\"$72\"),INDIRECT(\"$\"&$V$86&\"$73\"),INDIRECT(\"$\"&$V$86&\"$74\"),INDIRECT(\"$\"&$V$86&\"$75\"),INDIRECT(\"$\"&$V$86&\"$76\")),\"\")","v":""},{"$f":"F32=\"\"","v":true},""]
[null,null,null,null,null,null,null,null,null,null,null,null,null,null,null,null,null,null,""]
[null,"Production Item 15",null,null,null,null,null,null,null,{"$f":"Q34","v":""},null,null,null,{"$f":"IF(R34=TRUE,\" \",F34*J34+F34*L34)","v":" "},null,null,{"$f":"IFERROR(CHOOSE(MATCH($D34,$R$61:$R$79,0),INDIRECT(\"$\"&$V$86&\"$61\"),INDIRECT(\"$\"&$V$86&\"$62\"),INDIRECT(\"$\"&$V$86&\"$63\"),INDIRECT(\"$\"&$V$86&\"$64\"), INDIRECT(\"$\"&$V$86&\"$65\"), INDIRECT(\"$\"&$V$86&\"$66\"),INDIRECT(\"$\"&$V$86&\"$67\"),INDIRECT(\"$\"&$V$86&\"$68\"),INDIRECT(\"$\"&$V$86&\"$69\"),INDIRECT(\"$\"&$V$86&\"$70\"),INDIRECT(\"$\"&$V$86&\"$71\"),INDIRECT(\"$\"&$V$86&\"$72\"),INDIRECT(\"$\"&$V$86&\"$73\"),INDIRECT(\"$\"&$V$86&\"$74\"),INDIRECT(\"$\"&$V$86&\"$75\"),INDIRECT(\"$\"&$V$86&\"$76\")),\"\")","v":""},{"$f":"F34=\"\"","v":true},""]
[null,null,null,null,null,null,null,null,null,null,null,null,null,null,null,null,null,null,""]
[null,"Production Item 16",null,null,null,null,null,null,null,{"$f":"Q36","v":""},null,null,null,{"$f":"IF(R36=TRUE,\" \",F36*J36+F36*L36)","v":" "},null,null,{"$f":"IFERROR(CHOOSE(MATCH($D36,$R$61:$R$79,0),INDIRECT(\"$\"&$V$86&\"$61\"),INDIRECT(\"$\"&$V$86&\"$62\"),INDIRECT(\"$\"&$V$86&\"$63\"),INDIRECT(\"$\"&$V$86&\"$64\"), INDIRECT(\"$\"&$V$86&\"$65\"), INDIRECT(\"$\"&$V$86&\"$66\"),INDIRECT(\"$\"&$V$86&\"$67\"),INDIRECT(\"$\"&$V$86&\"$68\"),INDIRECT(\"$\"&$V$86&\"$69\"),INDIRECT(\"$\"&$V$86&\"$70\"),INDIRECT(\"$\"&$V$86&\"$71\"),INDIRECT(\"$\"&$V$86&\"$72\"),INDIRECT(\"$\"&$V$86&\"$73\"),INDIRECT(\"$\"&$V$86&\"$74\"),INDIRECT(\"$\"&$V$86&\"$75\"),INDIRECT(\"$\"&$V$86&\"$76\")),\"\")","v":""},{"$f":"F36=\"\"","v":true},""]
[null,null,null,null,null,null,null,null,null,null,null,null,null,null,null,null,null,null,""]
[null,"Production Item 17",null,null,null,null,null,null,null,{"$f":"Q38","v":""},null,null,null,{"$f":"IF(R38=TRUE,\" \",F38*J38+F38*L38)","v":" "},null,null,{"$f":"IFERROR(CHOOSE(MATCH($D38,$R$61:$R$79,0),INDIRECT(\"$\"&$V$86&\"$61\"),INDIRECT(\"$\"&$V$86&\"$62\"),INDIRECT(\"$\"&$V$86&\"$63\"),INDIRECT(\"$\"&$V$86&\"$64\"), INDIRECT(\"$\"&$V$86&\"$65\"), INDIRECT(\"$\"&$V$86&\"$66\"),INDIRECT(\"$\"&$V$86&\"$67\"),INDIRECT(\"$\"&$V$86&\"$68\"),INDIRECT(\"$\"&$V$86&\"$69\"),INDIRECT(\"$\"&$V$86&\"$70\"),INDIRECT(\"$\"&$V$86&\"$71\"),INDIRECT(\"$\"&$V$86&\"$72\"),INDIRECT(\"$\"&$V$86&\"$73\"),INDIRECT(\"$\"&$V$86&\"$74\"),INDIRECT(\"$\"&$V$86&\"$75\"),INDIRECT(\"$\"&$V$86&\"$76\")),\"\")","v":""},{"$f":"F38=\"\"","v":true},""]
[null,null,null,null,null,null,null,null,null,null,null,null,null,null,null,null,null,null,""]
[null,"Production Item 18",null,null,null,null,null,null,null,{"$f":"Q40","v":""},null,null,null,{"$f":"IF(R40=TRUE,\" \",F40*J40+F40*L40)","v":" "},null,null,{"$f":"IFERROR(CHOOSE(MATCH($D40,$R$61:$R$79,0),INDIRECT(\"$\"&$V$86&\"$61\"),INDIRECT(\"$\"&$V$86&\"$62\"),INDIRECT(\"$\"&$V$86&\"$63\"),INDIRECT(\"$\"&$V$86&\"$64\"), INDIRECT(\"$\"&$V$86&\"$65\"), INDIRECT(\"$\"&$V$86&\"$66\"),INDIRECT(\"$\"&$V$86&\"$67\"),INDIRECT(\"$\"&$V$86&\"$68\"),INDIRECT(\"$\"&$V$86&\"$69\"),INDIRECT(\"$\"&$V$86&\"$70\"),INDIRECT(\"$\"&$V$86&\"$71\"),INDIRECT(\"$\"&$V$86&\"$72\"),INDIRECT(\"$\"&$V$86&\"$73\"),INDIRECT(\"$\"&$V$86&\"$74\"),INDIRECT(\"$\"&$V$86&\"$75\"),INDIRECT(\"$\"&$V$86&\"$76\")),\"\")","v":""},{"$f":"F40=\"\"","v":true},""]
[null,null,null,null,null,null,null,null,null,null,null,null,null,null,null,null,null,null,""]
[null,"Production Item 19",null,null,null,null,null,null,null,{"$f":"Q42","v":""},null,null,null,{"$f":"IF(R42=TRUE,\" \",F42*J42+F42*L42)","v":" "},null,null,{"$f":"IFERROR(CHOOSE(MATCH($D42,$R$61:$R$79,0),INDIRECT(\"$\"&$V$86&\"$61\"),INDIRECT(\"$\"&$V$86&\"$62\"),INDIRECT(\"$\"&$V$86&\"$63\"),INDIRECT(\"$\"&$V$86&\"$64\"), INDIRECT(\"$\"&$V$86&\"$65\"), INDIRECT(\"$\"&$V$86&\"$66\"),INDIRECT(\"$\"&$V$86&\"$67\"),INDIRECT(\"$\"&$V$86&\"$68\"),INDIRECT(\"$\"&$V$86&\"$69\"),INDIRECT(\"$\"&$V$86&\"$70\"),INDIRECT(\"$\"&$V$86&\"$71\"),INDIRECT(\"$\"&$V$86&\"$72\"),INDIRECT(\"$\"&$V$86&\"$73\"),INDIRECT(\"$\"&$V$86&\"$74\"),INDIRECT(\"$\"&$V$86&\"$75\"),INDIRECT(\"$\"&$V$86&\"$76\")),\"\")","v":""},{"$f":"F42=\"\"","v":true},""]
[null,null,null,null,null,null,null,null,null,null,null,null,null,null,null,null,null,null,""]
[null,"Production Item 20",null,null,null,null,null,null,null,{"$f":"Q44","v":""},null,null,null,{"$f":"IF(R44=TRUE,\" \",F44*J44+F44*L44)","v":" "},null,null,{"$f":"IFERROR(CHOOSE(MATCH($D44,$R$61:$R$79,0),INDIRECT(\"$\"&$V$86&\"$61\"),INDIRECT(\"$\"&$V$86&\"$62\"),INDIRECT(\"$\"&$V$86&\"$63\"),INDIRECT(\"$\"&$V$86&\"$64\"), INDIRECT(\"$\"&$V$86&\"$65\"), INDIRECT(\"$\"&$V$86&\"$66\"),INDIRECT(\"$\"&$V$86&\"$67\"),INDIRECT(\"$\"&$V$86&\"$68\"),INDIRECT(\"$\"&$V$86&\"$69\"),INDIRECT(\"$\"&$V$86&\"$70\"),INDIRECT(\"$\"&$V$86&\"$71\"),INDIRECT(\"$\"&$V$86&\"$72\"),INDIRECT(\"$\"&$V$86&\"$73\"),INDIRECT(\"$\"&$V$86&\"$74\"),INDIRECT(\"$\"&$V$86&\"$75\"),INDIRECT(\"$\"&$V$86&\"$76\")),\"\")","v":""},{"$f":"F44=\"\"","v":true},""]
[]
[null,"Products Allocations",null,null,null,null,null,null,null,null,null,"Tonnes (in CO2e)",null,{"$f":"SUM(N6,N8,N10,N12,N14,N16,N18,N20,N22,N24,N26,N28,N30,N32,N34,N36,N38,N40,N42,N44)","v":0}]
[]
[null,{"$f":"\"Public Availability of \"&Submission!C11&\" Production Information\"","v":"Public Availability of  Production Information"}]
[null,{"$f":"\"Is \"&Submission!C11&\" production information for this facility publicly available? (i.e. published or by request)\"","v":"Is  production information for this facility publicly available? (i.e. published or by request)"},null,null,null,null,null,null,null,null,null,null,null,null,null,null,null,{"$f":"COLUMN()","v":18}]
[]
[]
[null,"Note: Confidentiality must not be requested for information that is publicly available."]
[null,null,null,null,null,null,null,null,null,null,null,null,null,null,null,null,"Avail",1,"Options","Yes"]
[null,{"$f":"CONCATENATE(ReportingYear,\" - \", 'Section A1'!$B$5)","v":"2023 - "},null,null,null,null,null,null,null,null,null,null,null,null,null,null,null,null,null,"No"]
[]
[]
[null,null,null,null,null,null,null,null,null,null,null,null,null,null,null,null,null,null,"Table   Established Benchmarks for Products"]
[null,null,null,null,null,null,null,null,null,null,null,null,null,null,null,null,null,"Position of the column is the range 2018-2023",{"$f":"COLUMN()","v":19},{"$f":"COLUMN()","v":20},{"$f":"COLUMN()","v":21},{"$f":"COLUMN()","v":22},{"$f":"COLUMN()","v":23},{"$f":"COLUMN()","v":24},{"$f":"COLUMN()","v":25},{"$f":"COLUMN()","v":26},{"$f":"COLUMN()","v":27},{"$f":"COLUMN()","v":28},{"$f":"COLUMN()","v":29},{"$f":"COLUMN()","v":30},{"$f":"COLUMN()","v":31}]
[null,null,null,null,null,null,null,null,null,null,null,null,null,null,null,null,null,null,2018,2019,2020,2021,2022,2023,2024,2025,2026,2027,2028,2029,2030,"unit"]
[null,null,null,null,null,null,null,null,null,null,null,null,null,null,null,null,"SELECTED HPB ","Product","Established benchmark for 2018 (tonnes of CO2e per benchmark unit)","Established benchmark for 2019 (tonnes of CO2e per benchmark unit)","Established benchmark for 2020 (tonnes of CO2e per benchmark unit)","Established benchmark for 2021 (tonnes of CO2e per benchmark unit)","Established benchmark for 2022 (tonnes of CO2e per benchmark unit)","High performance benchmark for 2023 (tonnes of CO2e per benchmark unit)2","High performance benchmark for 2024 (tonnes of CO2e per benchmark unit)3","High performance benchmark for 2025 (tonnes of CO2e per benchmark unit)4","High performance benchmark for 2026 (tonnes of CO2e per benchmark unit)5","High performance benchmark for 2027 (tonnes of CO2e per benchmark unit)6","High performance benchmark for 2028 (tonnes of CO2e per benchmark unit)7","High performance benchmark for 2029 (tonnes of CO2e per benchmark unit)8","High performance benchmark for 2030 (tonnes of CO2e per benchmark unit)9","Benchmark unit","Name used?","List of unused names"]
[null,null,null,null,null,null,null,null,null,null,null,null,null,null,null,null,{"$f":"OFFSET(R61,0,$V$90)","v":0.65169999999999995},"Alberta gas processing index",null,null,0.65820000000000001,0.65820000000000001,0.65820000000000001,0.65169999999999995,0.63839999999999997,0.62509999999999999,0.61180000000000001,0.59850000000000003,0.58520000000000005,0.57189999999999996,0.55859999999999999,"Tonne CO2e",{"$f":"IF(COUNTIF($D$6:$D$44,$R61)>=1,\"\",ROW())","v":61},{"$f":"IF(ROW(R61)-ROW(R$61)+1>COUNT(AG$61:AG$79),\"\",\nINDEX(R:R,SMALL(AG$61:AG$79,1+ROW(R61)-ROW(R$61))))","v":"Alberta gas processing index"}]
[null,null,null,null,null,null,null,null,null,null,null,null,null,null,null,null,{"$f":"OFFSET(R62,0,$V$90)","v":1.758},"Ammonia",null,null,1.7669999999999999,1.7669999999999999,1.7669999999999999,1.758,1.746,1.7350000000000001,1.7230000000000001,1.7110000000000001,1.6990000000000001,1.6879999999999999,1.6759999999999999,"Tonne",62,"Ammonia"]
[null,null,null,null,null,null,null,null,null,null,null,null,null,null,null,null,0.14480000000000001,"Ammonium nitrate",null,null,0.15260000000000001,0.15260000000000001,0.15260000000000001,0.14480000000000001,0.14280000000000001,0.14080000000000001,0.13880000000000001,0.1368,0.1348,0.1328,0.1308,"Tonne",63,"Ammonium nitrate"]
[null,null,null,null,null,null,null,null,null,null,null,null,null,null,null,null,0.29160000000000003,"Bitumen - Oil Sands In Situ",null,null,0.2974,0.2974,0.2974,0.29160000000000003,0.28560000000000002,0.2797,0.2737,0.26779999999999998,0.26179999999999998,0.25019999999999998,0.2387,"m3 of bitumen",64,"Bitumen - Oil Sands In Situ"]
[null,null,null,null,null,null,null,null,null,null,null,null,null,null,null,null,0.1918,"Bitumen - Oil Sands Mining",null,null,0.19489999999999999,0.19489999999999999,0.19489999999999999,0.1918,0.18770000000000001,0.1835,0.1794,0.17530000000000001,0.17119999999999999,0.16350000000000001,0.15590000000000001,"m3 of bitumen",65,"Bitumen - Oil Sands Mining"]
[null,null,null,null,null,null,null,null,null,null,null,null,null,null,null,null,0,"Bleached Kraft Pulp",null,null,null,null,null,null,null,null,null,null,null,null,null,"Air dry metric tonne",66,"Bleached Kraft Pulp"]
[null,null,null,null,null,null,null,null,null,null,null,null,null,null,null,null,0.1118,"Canola Oil - Crude",null,null,0.11409999999999999,0.11409999999999999,0.11409999999999999,0.1118,0.1095,0.1072,0.10489999999999999,0.1026,0.1003,9.8070000000000004E-2,9.579E-2,"Tonne",67,"Canola Oil - Crude"]
[null,null,null,null,null,null,null,null,null,null,null,null,null,null,null,null,0.77039999999999997,"Cement",null,null,0.77569999999999995,0.77569999999999995,0.77569999999999995,0.77039999999999997,0.76490000000000002,0.75949999999999995,0.75409999999999999,0.74870000000000003,0.74319999999999997,0.73780000000000001,0.73240000000000005,"Tonne",68,"Cement"]
[null,null,null,null,null,null,null,null,null,null,null,null,null,null,null,null,7.0830000000000004E-2,"Coal - Bituminous",null,null,7.0529999999999995E-2,7.0529999999999995E-2,7.0529999999999995E-2,7.0830000000000004E-2,6.9379999999999997E-2,6.794E-2,6.6489999999999994E-2,6.5049999999999997E-2,6.3600000000000004E-2,6.216E-2,6.071E-2,"Tonne",69,"Coal - Bituminous"]
[null,null,null,null,null,null,null,null,null,null,null,null,null,null,null,null,1.223E-2,"Coal - Sub-bituminous",null,null,1.189E-2,1.189E-2,1.189E-2,1.223E-2,1.1979999999999999E-2,1.1730000000000001E-2,1.1480000000000001E-2,1.123E-2,1.098E-2,1.073E-2,1.048E-2,"Tonne",70,"Coal - Sub-bituminous"]
[null,null,null,null,null,null,null,null,null,null,null,null,null,null,null,null,0.36259999999999998,"Electricity",null,null,0.37,0.37,0.37,0.36259999999999998,0.35520000000000002,0.3478,0.34039999999999998,0.33300000000000002,0.3256,0.31819999999999998,0.31080000000000002,"Megawatt hour",71,"Electricity"]
[null,null,null,null,null,null,null,null,null,null,null,null,null,null,null,null,1.374E-3,"Ethyl alcohol",null,null,1.402E-3,1.402E-3,1.402E-3,1.374E-3,1.346E-3,1.3179999999999999E-3,1.2899999999999999E-3,1.2620000000000001E-3,1.2340000000000001E-3,1.206E-3,1.178E-3,"Litres absolute alcohol",72,"Ethyl alcohol"]
[null,null,null,null,null,null,null,null,null,null,null,null,null,null,null,null,0.4929,"Ethylene glycol",null,null,0.50229999999999997,0.50229999999999997,0.50229999999999997,0.4929,0.48349999999999999,0.47410000000000002,0.4647,0.45529999999999998,0.44590000000000002,0.4365,0.42709999999999998,"Tonne",73,"Ethylene glycol"]
[null,null,null,null,null,null,null,null,null,null,null,null,null,null,null,null,0.47220000000000001,"High‑value Chemicals",null,null,0.4819,0.4819,0.4819,0.47220000000000001,0.46260000000000001,0.45290000000000002,0.44330000000000003,0.43369999999999997,0.42399999999999999,0.41439999999999999,0.40479999999999999,"Tonne",74,"High‑value Chemicals"]
[null,null,null,null,null,null,null,null,null,null,null,null,null,null,null,null,8.9930000000000003,"Hydrogen",null,null,9.0679999999999996,9.0679999999999996,9.0679999999999996,8.9930000000000003,8.9190000000000005,8.8439999999999994,8.7690000000000001,8.6940000000000008,8.6199999999999992,8.5449999999999999,8.4700000000000006,"Tonne",75,"Hydrogen"]
[null,null,null,null,null,null,null,null,null,null,null,null,null,null,null,null,{"$f":"OFFSET(R76,0,$V$90)","v":6.173E-2},"Industrial Heat",null,null,6.2990000000000004E-2,6.2990000000000004E-2,6.2990000000000004E-2,6.173E-2,6.0470000000000003E-2,5.9209999999999999E-2,5.7950000000000002E-2,5.6689999999999997E-2,5.543E-2,5.4170000000000003E-2,5.2909999999999999E-2,"Gigajoule",76,"Industrial Heat"]
[null,null,null,null,null,null,null,null,null,null,null,null,null,null,null,null,0,"Refining",null,null,0,0,2.0419999999999998,null,null,null,null,null,null,null,null,"Alberta complexity weighted barrel (in thousands)",77,"Refining"]
[null,null,null,null,null,null,null,null,null,null,null,null,null,null,null,null,0,"Upgrading",null,null,2.8740000000000001,2.8740000000000001,2.8740000000000001,null,null,null,null,null,null,null,null,"Upgrading AB-CWB (in thousands)",78,"Upgrading"]
[null,null,null,null,null,null,null,null,null,null,null,null,null,null,null,null,0.24429999999999999,"Urea - Granular",null,null,0.24929999999999999,0.24929999999999999,0.24929999999999999,0.24429999999999999,0.23930000000000001,0.23430000000000001,0.2293,0.2243,0.21929999999999999,0.21429999999999999,0.2094,"Tonne",79,"Urea - Granular"]
[null,null,null,null,null,null,null,null,null,null,null,null,null,null,null,null,null,"Note:  The values in the columns for 2020, 2021 and 2022 reflect the application of an annual 1% tightening rate."]
[null,null,null,null,null,null,null,null,null,null,null,null,null,null,null,null,null,"*BE is the established benchmark for the year."]
[null,null,null,null,null,null,null,null,null,null,null,null,null,null,null,null,null,"**BEY-1 is the established benchmark for the previous year."]
[null,null,null,null,null,null,null,null,null,null,null,null,null,null,null,null,null,"*** is the tightening rate."]
[]
[null,null,null,null,null,null,null,null,null,null,null,null,null,null,null,null,null,"Column that should be selected for the current year:",null,null,null,{"$f":"IFERROR(CHOOSE(MATCH(ReportingYear,$S$59:$AE$59,0),$S$61,$S$62,$S$63,$S$64,$S$65,$S$66,$S$67,$S$68,$S$69,$S$70,$S$71,$S$72,$S$73,$S$74,$S$75,$S$76,$S$77,$S$78,$S$79),\"\")","v":0}]
[null,null,null,null,null,null,null,null,null,null,null,null,null,null,null,null,null,"Letter of the column for the matching year:",null,null,null,{"$f":"SUBSTITUTE(ADDRESS(1,V87,4),\"1\",\"\")","v":"X"}]
[null,null,null,null,null,null,null,null,null,null,null,null,null,null,null,null,null,"Position of the matching year in the list 2018-2023 (add the number of column R to make sure the numbers are correct since MATCHE returns a relative number within the input list); 1 by default - if the Year is outside the 2018-2023 range.",null,null,null,{"$f":"IFERROR(MATCH(ReportingYear,$S$59:$AE$59,0)+R49,1+R49)","v":24}]
[null,null,null,null,null,null,null,null,null,null,null,null,null,null,null,null,null,"Reporting year",null,null,null,{"$f":"ReportingYear","v":2023}]
[]
[null,null,null,null,null,null,null,null,null,null,null,null,null,null,null,null,null,"Lookup Compensation",null,"(Used for Master Product Lookup)",null,{"$f":"V87-18","v":6}]

{"sheet":"Section B7old","index":14,"n_rows":63,"n_cols":13,"rows_kept":63,"cut":false,"hidden":true,"merged":[[60,1,60,8],[0,0,0,9],[57,1,57,8],[58,1,58,8],[59,1,59,8]]}
[{"$f":"\"Section B: \"&Submission!C11&\" Emissions, Production and Emissions Intensity Information (continued)\"","v":"Section B:  Emissions, Production and Emissions Intensity Information (continued)"},null,null,null,null,null,null,null,null,null,null,"hide","hide"]
[]
[null,{"$f":"Submission!C11&\" Cogeneration Information\"","v":" Cogeneration Information"}]
[]
[null,null,null,null,null,null,null,null,null,null,null,null,true]
[]
[null,{"$f":"Submission!C11&\" GHG Emissions (Cogen)\"","v":" GHG Emissions (Cogen)"}]
[null,"Carbon dioxide (CO2)",null,null,null,null," tonnes CO2"]
[]
[null,"Methane (CH4)",null,null,null,null," tonnes CH4"]
[]
[null,"Nitrous oxide (N2O)",null,null,null,null," tonnes N2O"]
[]
[null,null,"Total GHG Emissions from Cogen (GT)",null,{"$f":"E8*'Section B1'!J5+E10*'Section B1'!J7+E12*'Section B1'!J9","v":0},null," tonnes CO2e"]
[]
[null,{"$f":"Submission!C11&\" Fuel Use Information\"","v":" Fuel Use Information"}]
[null,null,null,null,null,null,null,null,null,null,null,null,true]
[null,null,"Type",null,"Quantity",null,"Units"]
[null,"Fuel Used for Cogeneration ",null,null,null,null,"GJ (HHV)"]
[]
[null,"Fuel Used for Cogeneration ",null,null,null,null,"GJ (HHV)"]
[]
[null,"Fuel Used for Cogeneration ",null,null,null,null,"GJ (HHV)"]
[]
[null,"Fuel Used for Cogeneration ",null,null,null,null,"GJ (HHV)"]
[]
[null,"Fuel Used for Cogeneration ",null,null,null,null,"GJ (HHV)"]
[]
[null,"Fuel Used for Cogeneration ",null,null,null,null,"GJ (HHV)"]
[]
[null,{"$f":"Submission!C11&\" Heat\"","v":" Heat"}]
[null,null,null,null,"Quantity",null,"Units"]
[null,null,"Total Net Heat Production from Cogeneration (H)",null,null,null,"GJ"]
[]
[null,null,"Deemed Input Energy Attributed to Heat (EH = H / 0.8)",null,{"$f":"E33/0.8","v":0},null,"GJ"]
[]
[null,null,"Mass/Volume/Heat of Fuel Deemed Used to Produce Heat (MH)"]
[]
[null,null,"Deemed GHG Emissions from Heat Production (DH)",null,{"$f":"IFERROR(E14*E35/(E19+E21+E23+E25+E27+E29),)","v":0},null,"tonnes CO2e"]
[]
[null,{"$f":"Submission!C11&\" Electricity\"","v":" Electricity"}]
[null,null,null,null,"Quantity",null,"Units"]
[null,null,"Total Cogen Electricity Generation (Net of Station Load) (E)",null,null,null,"MWh"]
[]
[null,null,"Deemed GHG Emissions from Electricity Generation (DE)",null,{"$f":"E43*0.418","v":0},null,"tonnes CO2e"]
[null,null,"(DE = 0.418 X E)"]
[]
[null,null,"Electrical Apportionment of Cogen Emissions (AE = GT - DH)",null,{"$f":"E14-E39","v":0},null,"tonnes CO2e"]
[]
[null,null,"Electrical Intensity (AE / E)",null,{"$f":"IF(ISERR(E48/E43),0,E48/E43)","v":0},null,"tCO2e/MWh"]
[]
[null,"Operations"]
[null,null,null,null,"Quantity",null,"Units"]
[null,null,"Total Hours of Operation of the Cogeneration Facility",null,null,null,"hours"]
[]
[null,"Methodology"]
[]
[null,"In the methodology document, please provide the following additional information regarding cogeneration:"]
[null,"1) Explanation of heat calculation methodology, including the enthalpies."]
[null,"2) Various thermal streams and annualized flow averages, temperature averages, and pressure averages for each stream."]
[null,"3) Simple conceptual/logic diagram of the cogeneration layout."]
[]
[null,{"$f":"CONCATENATE(ReportingYear,\" - \", 'Section A1'!$B$5)","v":"2023 - "}]

{"sheet":"Section B6 ABGPI","index":15,"n_rows":37,"n_cols":16,"rows_kept":37,"cut":false,"hidden":true,"merged":[[34,1,34,9],[36,1,36,11],[4,1,4,11],[0,0,0,12],[2,1,2,12]]}
[{"$f":"\"Section B: \" & Submission!C11 & \" Direct Emissions\"","v":"Section B:  Direct Emissions"},null,null,null,null,null,null,null,null,null,null,null,null,null,null,"hide"]
[]
[null,"Alberta Gas Processing Index Calculation Template"]
[]
[null,"Instructions: Enter the quantities for your facility as provided for the benchmarking exercise.  For facilities that did not participate in the benchmarking exercise, more detailed quantification guidance is forthcoming.  Note that the quantity for Non-Energy Utilities is total plant production, including straddle plant residue gas, in metres cubed oil equivalent.  The weighting factor was based on emissions associated with venting, flaring, and fugitives.  This quantity of total plant production is also used for the Formation CO2 benchmarks."]
[null,"Module","N/A","Quantity",null,"Quantity Units",null,"Weighting/ conversion factor",null,"Weighted Quantity",null,"Weighted Quantity Units"]
[null,"Inlet Compression",null,null,null,"Throughput (e3m3)",null,3.304E-2,null,{"$f":"IF(P7=TRUE,\" \",D7*H7)","v":" "},null,"tonnes CO2e",null,null,null,{"$f":"D7=\"\"","v":true}]
[]
[null,"Dehydration",null,null,null,"Throughput (e3m3)",null,2.47E-3,null,{"$f":"IF(P9=TRUE,\" \",D9*H9)","v":" "},null,"tonnes CO2e",null,null,null,{"$f":"D9=\"\"","v":true}]
[]
[null,"Amine Sweetening",null,null,null,"Throughput (e3m3)",null,3.04E-2,null,{"$f":"IF(P11=TRUE,\" \",D11*H11)","v":" "},null,"tonnes CO2e",null,null,null,{"$f":"D11=\"\"","v":true}]
[]
[null,"Total Refrigeration",null,null,null,"Throughput (e3m3)",null,1.8350000000000002E-2,null,{"$f":"IF(P13=TRUE,\" \",D13*H13)","v":" "},null,"tonnes CO2e",null,null,null,{"$f":"D13=\"\"","v":true}]
[]
[null,"Fractionation",null,null,null,"Production (m3OE)",null,4.1410000000000002E-2,null,{"$f":"IF(P15=TRUE,\" \",D15*H15)","v":" "},null,"tonnes CO2e",null,null,null,{"$f":"D15=\"\"","v":true}]
[]
[null,"Stabilization",null,null,null,"Production (m3OE)",null,5.5370000000000003E-2,null,{"$f":"IF(P17=TRUE,\" \",D17*H17)","v":" "},null,"tonnes CO2e",null,null,null,{"$f":"D17=\"\"","v":true}]
[]
[null,"Sales Compression",null,null,null,"Throughput (e3m3)",null,2.1350000000000001E-2,null,{"$f":"IF(P19=TRUE,\" \",D19*H19)","v":" "},null,"tonnes CO2e",null,null,null,{"$f":"D19=\"\"","v":true}]
[]
[null,"Sulphur Plant",null,null,null,"Production (tonnes sulphur)",null,0.4249,null,{"$f":"IF(P21=TRUE,\" \",D21*H21)","v":" "},null,"tonnes CO2e",null,null,null,{"$f":"D21=\"\"","v":true}]
[]
[null,"Acid Gas Injection",null,null,null,"Throughput (e3m3 acid gas)",null,0.39600000000000002,null,{"$f":"IF(P23=TRUE,\" \",D23*H23)","v":" "},null,"tonnes CO2e",null,null,null,{"$f":"D23=\"\"","v":true}]
[]
[null,"Ethane Extraction",null,null,null,"Production (m3OE)",null,0.12509999999999999,null,{"$f":"IF(P25=TRUE,\" \",D25*H25)","v":" "},null,"tonnes CO2e",null,null,null,{"$f":"D25=\"\"","v":true}]
[]
[null,"Cavern Storage",null,null,null,"Production (m3 ethane)",null,0.01,null,{"$f":"IF(P27=TRUE,\" \",D27*H27)","v":" "},null,"tonnes CO2e",null,null,null,{"$f":"D27=\"\"","v":true}]
[]
[null,"CO2 Plant",null,null,null,"Throughput (e3m3 CO2)",null,0.18809999999999999,null,{"$f":"IF(P29=TRUE,\" \",D29*H29)","v":" "},null,"tonnes CO2e",null,null,null,{"$f":"D29=\"\"","v":true}]
[]
[null,"Flaring, Venting, Fugitives, Other",null,null,null,"Production (m3OE)",null,4.4520000000000002E-3,null,{"$f":"IF(P31=TRUE,\" \",D31*H31)","v":" "},null,"tonnes CO2e",null,null,null,{"$f":"D31=\"\"","v":true}]
[]
[null,null,null,null,null,null,null,"Alberta Gas Processing Index (PABGPI)",null,{"$f":"SUM(J7:J32)","v":0},null,"tonnes CO2e"]
[]
[]
[]
[null,{"$f":"CONCATENATE(ReportingYear,\" - \", 'Section A1'!$B$5)","v":"2023 - "}]

{"sheet":"Section B7","index":16,"n_rows":59,"n_cols":10,"rows_kept":59,"cut":false,"hidden":false,"merged":[[0,0,0,4],[39,3,40,3]]}
[{"$f":"\"Section B: \" & Submission!C11 & \" Direct Emissions\"","v":"Section B:  Direct Emissions"},null,null,null,null,null,"hide","hide","hide","hide"]
[]
[null,{"$f":"\" Direct Emissions by Gas Type\"","v":" Direct Emissions by Gas Type"},null,null,null,null,"Direct Emissions by Gas Type","Direct Emissions by Gas Type"]
[null,null,"Total Tonnes (in CO2e)"]
[null,"Carbon dioxide (CO2)",{"$f":"SUM('Section B1'!L5,'Section B1'!L13,'Section B1'!L23,'Section B1'!L31,'Section B1'!L39,'Section B1'!L47,'Section B1'!L55,'Section B1'!L63)","v":0},"(Excludes CO2 from Biomass)"]
[]
[null,"Methane (CH4)",{"$f":"SUM('Section B1'!L7,'Section B1'!L15,'Section B1'!L25,'Section B1'!L33,'Section B1'!L41,'Section B1'!L49,'Section B1'!L57)","v":0}]
[]
[null,"Nitrous oxide (N2O)",{"$f":"SUM('Section B1'!L9,'Section B1'!L17,'Section B1'!L27,'Section B1'!L35,'Section B1'!L43,'Section B1'!L51,'Section B1'!L59)","v":0}]
[]
[null,"Hydrofluorocarbon (HFC)",{"$f":"SUM('Section B3'!L36)","v":0}]
[]
[null,"Perfluorocarbon (PFC)",{"$f":"'Section B3'!L38","v":0}]
[]
[null,"Sulphur Hexafluoride (SF6)",{"$f":"'Section B3'!L42","v":0}]
[]
[null,"Nitrogen Trifluoride (NF3)",{"$f":"'Section B3'!L40","v":0}]
[]
[null,{"$f":"\" Total Regulated Emissions Calculation\"","v":" Total Regulated Emissions Calculation"},null,null,null,null,"Benchmark Emissions Calculation","Benchmark Emissions Calculation"]
[null,null,"Total Tonnes (in CO2e)"]
[null,"Direct Emissions (DE)",{"$f":"SUM(C5,C7,C9,C11,C13,C15,C17)","v":0},"Sum of CO2, CH4, N2O, HFC, PFC, SF6, NF3",null,null,"Direct Emissions (DE)","Direct Emissions (DE)"]
[]
[null,"Exported CO2 (ECO2)",{"$f":"'Section B4'!H21","v":0}]
[]
[null,"Imported CO2 (ICO2)",{"$f":"'Section B4'!H25","v":0}]
[]
[null,"CO2 Used in Manufacturing of Urea (UCO2)",{"$f":"'Section B4'!J42","v":0}]
[]
[null,"Emission from Combustion of Clear Fuels (ECF)",{"$f":"'Section B4'!O54","v":0}]
[]
[null,"Capture Recognition Tonnes (CRT)",{"$f":"'Section B4'!O17","v":0}]
[]
[null,"Total Regulated Emissions (TRE)",{"$f":"C21-C25+C23+C27","v":0},{"$f":"IF(OR(Submission!$I$5=2,Submission!$I$5=1),\"TRE = DE - ICO2 + ECO2 + UCO2\",\"TRE = DE - ICO2 + ECO2 + UCO2 - CRT\")","v":"TRE = DE - ICO2 + ECO2 + UCO2"},null,null,"Benchmark Emissions (BE)","Benchmark Emissions (BE)","BE = DE - FFCE - ICO2 + ECO2 + UCO2","BE = DE - FFCE - ICO2 + ECO2 + UCO2"]
[]
[null,{"$f":"\"Allowable Emissions\"","v":"Allowable Emissions"}]
[null,null,"Total Tonnes (in CO2e)"]
[null,"Products Allocations",{"$f":"'Section B6'!N46","v":0},"∑ BEi x Pi + ∑ BAj x Pj",null,null,"This is OBA before subtraction"]
[]
[null,"Scope Adjustment for Indirect Emissions",{"$f":"IFERROR('Section B4'!H32*'Section B7'!H48+'Section B4'!H34*'Section B7'!H50+('Section B4'!H36*'Section B7'!H52*(IF('Section B7'!H55>0,0,1))),\"Error\")","v":"Error"},"((BEE x IE) + (BEHy x IHy) + (BEIHE x IHE))",null,null,"Scope adjustment (B4) - calculated from inputs and put here."]
[null,null,null,"OBA = ∑ BEi x Pi + ∑ BAj x Pj – ((BEE x IE) + (BEHy x IHy) + (BEIHE x IHE)) + ∑ BTAk x Pk "]
[null,"Output Based Allocation (OBA)",{"$f":"IFERROR(MAX(ROUND(C37-C39,0),0),\"Error\")","v":"Error"},null,null,null,"OBA = gross-scope"]
[]
[null,{"$f":"CONCATENATE(ReportingYear,\" - \", 'Section A1'!$B$5)","v":"2023 - "}]
[]
[]
[null,null,null,null,null,null,{"$f":"\"Benchmarks for the current compliance/reporting year \" &ReportingYear","v":"Benchmarks for the current compliance/reporting year 2023"}]
[]
[null,null,null,null,null,null,"Electricity benchmark for the current year:",{"$f":"IF(ReportingYear=2018,'Section B6'!S68,IF(ReportingYear=2019,'Section B6'!T68,IF(ReportingYear=2020,'Section B6'!U68,IF(ReportingYear=2021,'Section B6'!V68,IF(ReportingYear=2022,'Section B6'!W68,'Section B6'!#REF!)))))","v":{"$error":"#REF!"}}]
[]
[null,null,null,null,null,null,"Heat",{"$f":"IF(ReportingYear=2018,'Section B6'!S74,IF(ReportingYear=2019,'Section B6'!T74,IF(ReportingYear=2020,'Section B6'!U74,IF(ReportingYear=2021,'Section B6'!V74,IF(ReportingYear=2022,'Section B6'!W74,'Section B6'!#REF!)))))","v":{"$error":"#REF!"}}]
[]
[null,null,null,null,null,null,"Hydrogen",{"$f":"IF(ReportingYear=2018,'Section B6'!S73,IF(ReportingYear=2019,'Section B6'!T73,IF(ReportingYear=2020,'Section B6'!U73,IF(ReportingYear=2021,'Section B6'!V73,IF(ReportingYear=2022,'Section B6'!W73,'Section B6'!#REF!)))))","v":{"$error":"#REF!"}}]
[]
[]
[null,null,null,null,null,null,"Hydrogen Exclusion Count",{"$f":"SUM(H56:H59)","v":0}]
[null,null,null,null,null,null,"NAICS Refining",{"$f":"IF('Section A1'!B13=\"324110\",1,0)","v":0}]
[null,null,null,null,null,null,"Product Refining",{"$f":"(COUNTIF('Section B6'!D6:D44,\"Refining\"))","v":0}]
[null,null,null,null,null,null,"NAICS Oilsands",{"$f":"IF('Section A1'!B13=\"211141\",1,0)+IF('Section A1'!B13=\"211142\",1,0)","v":0}]
[null,null,null,null,null,null,"Product Upgrading",{"$f":"(COUNTIF('Section B6'!D6:D44,\"Upgrading\"))","v":0}]

{"sheet":"Section B8","index":17,"n_rows":58,"n_cols":21,"rows_kept":58,"cut":false,"hidden":false,"merged":[[0,0,0,10],[54,1,54,9]]}
[{"$f":"\"Section B: \" & Submission!C11 & \" Fuel Usage\"","v":"Section B:  Fuel Usage"},null,null,null,null,null,null,null,null,null,null,null,"hide","hide","hide","hide","hide","hide","hide","hide","hide"]
[]
[{"$f":"\" Fuel and Feedstock Usage Information\"","v":" Fuel and Feedstock Usage Information"}]
[]
[{"$f":"\"List all fuels and feedstocks associated with emissions that are reported for the facility:\"","v":"List all fuels and feedstocks associated with emissions that are reported for the facility:"}]
[]
[null,"Fuel / Feedstock",null,"Type","N/A","Description",null,"Quantity",null,"Units"]
[1,null,null,null,null,null,null,null,null,{"$f":"IF(N8=TRUE, \"\",VLOOKUP(D8,$R$8:$T$34,3,FALSE))","v":""},null,null,"Fuel",{"$f":"D8=\"\"","v":true},null,null,null,"Aviation gas",null,"Litres","Produced gas"]
[null,null,null,null,null,null,null,null,null,null,null,null,"Feedstock",null,null,null,null,"Aviation jet fuel",null,"Litres","Mixed Gas"]
[2,null,null,null,null,null,null,null,null,{"$f":"IF(N10=TRUE, \"\",VLOOKUP(D10,$R$8:$T$34,3,FALSE))","v":""},null,null,null,{"$f":"D10=\"\"","v":true},null,null,null,"Bunker fuel",null,"Litres","Benzene"]
[null,null,null,null,null,null,null,null,null,null,null,null,null,null,null,null,null,"Butane",null,"Litres","Methane"]
[3,null,null,null,null,null,null,null,null,"",null,null,null,true,null,null,null,"Coal coke",null,"Tonnes","Oil"]
[null,null,null,null,null,null,null,null,null,null,null,null,null,null,null,null,null,"Coke oven gas",null,"STD m3","Biomass"]
[4,null,null,null,null,null,null,null,null,"",null,null,null,true,null,null,null,"Diesel - Marked",null,"Litres","Black liquor"]
[null,null,null,null,null,null,null,null,null,null,null,null,null,null,null,null,null,"Diesel - Unmarked",null,"Litres","Hog fuel"]
[5,null,null,null,null,null,null,null,null,"",null,null,null,true,null,null,null,"Ethane",null,"Litres","NCG"]
[null,null,null,null,null,null,null,null,null,null,null,null,null,null,null,null,null,"Gas liquids",null,"Litres"]
[6,null,null,null,null,null,null,null,null,"",null,null,null,true,null,"STD m3",null,"Gasoline - Marked",null,"Litres"]
[null,null,null,null,null,null,null,null,null,null,null,null,null,null,null,"Tonnes",null,"Gasoline - Unmarked",null,"Litres"]
[7,null,null,null,null,null,null,null,null,"",null,null,null,true,null,"kilolitres",null,"Heating distillate oil",null,"Litres"]
[null,null,null,null,null,null,null,null,null,null,null,null,null,null,null,"dry tonnes",null,"Heavy fuel oil",null,"Litres"]
[8,null,null,null,null,null,null,null,null,"",null,null,null,true,null,null,null,"High heat value coal",null,"Tonnes"]
[null,null,null,null,null,null,null,null,null,null,null,null,null,null,null,null,null,"Kerosene",null,"Litres"]
[9,null,null,null,null,null,null,null,null,"",null,null,null,true,null,null,null,"Locomotive diesel",null,"Litres"]
[null,null,null,null,null,null,null,null,null,null,null,null,null,null,null,null,null,"Low heat value coal",null,"Tonnes"]
[10,null,null,null,null,null,null,null,null,"",null,null,null,true,null,null,null,"Methanol",null,"Litres"]
[null,null,null,null,null,null,null,null,null,null,null,null,null,null,null,null,null,"Naphtha",null,"Litres"]
[11,null,null,null,null,null,null,null,null,"",null,null,null,true,null,null,null,"Natural gas",null,"GJ"]
[null,null,null,null,null,null,null,null,null,null,null,null,null,null,null,null,null,"Raw gas",null,"GJ"]
[12,null,null,null,null,null,null,null,null,"",null,null,null,true,null,null,null,"Pentanes plus/condensate",null,"Litres"]
[null,null,null,null,null,null,null,null,null,null,null,null,null,null,null,null,null,"Propane",null,"Litres"]
[13,null,null,null,null,null,null,null,null,"",null,null,null,true,null,null,null,"Refinery gas",null,"STD m3"]
[null,null,null,null,null,null,null,null,null,null,null,null,null,null,null,null,null,"Refinery petroleum coke",null,"Tonnes"]
[14,null,null,null,null,null,null,null,null,"",null,null,null,true,null,null,null,"Upgrader petroleum coke",null,"Tonnes"]
[]
[15,null,null,null,null,null,null,null,null,"",null,null,null,true]
[]
[16,null,null,null,null,null,null,null,null,"",null,null,null,true]
[]
[17,null,null,null,null,null,null,null,null,"",null,null,null,true]
[]
[18,null,null,null,null,null,null,null,null,"",null,null,null,true]
[]
[19,null,null,null,null,null,null,null,null,"",null,null,null,true]
[]
[20,null,null,null,null,null,null,null,null,"",null,null,null,true]
[]
[]
[]
[]
[]
[]
[]
[]
[null,"All fuels need to be reported whether or not the federal fuel charge has been paid or not."]
[]
[]
[null,{"$f":"CONCATENATE(ReportingYear,\" - \", 'Section A1'!$B$5)","v":"2023 - "}]

{"sheet":"Section B1 (2)","index":18,"n_rows":65,"n_cols":16,"rows_kept":65,"cut":false,"hidden":false,"merged":[[60,1,60,7],[62,1,62,4],[46,1,46,4],[48,1,48,4],[50,1,50,4],[52,1,52,7],[54,1,54,4],[56,1,56,4],[38,1,38,4],[40,1,40,4],[42,1,42,4],[44,1,44,7],[58,1,58,4],[28,1,28,7],[30,1,30,4],[32,1,32,4],[34,1,34,4],[36,1,36,7],[18,5,18,10],[20,1,20,7],[22,1,22,4],[24,1,24,4],[26,1,26,4],[8,1,8,4],[10,1,10,7],[12,1,12,4],[14,1,14,4],[16,1,16,4],[0,0,0,12],[1,1,1,11],[2,1,2,7],[4,1,4,4],[6,1,6,4]]}
[{"$f":"\"Section B: \" & Submission!C13 & \" Direct Emissions\"","v":"Section B:  Direct Emissions"},null,null,null,null,null,null,null,null,null,null,null,null,null,"hide","hide"]
[null,{"$f":"CONCATENATE(O2,P2)","v":"Instructions: Enter value under Tonnes. Conversion to Tonnes CO2e is calculated automatically."},null,null,null,null,null,null,null,null,null,null,null,null,"Instructions: Enter value under Tonnes. Conversion to Tonnes CO2e is calculated automatically."]
[null,"Stationary Fuel Combustion Emissions"]
[null,null,null,null,null,"N/A",null,"Tonnes",null,"GWP",null,"Tonnes (in CO2e)"]
[null,"Carbon dioxide (CO2)",null,null,null,null,null,null,"X",{"$f":"Submission!I44","v":1},"=",{"$f":"H5*J5","v":0},null,null,null,{"$f":"H5=\"\"","v":true}]
[]
[null,"Methane (CH4)",null,null,null,null,null,null,"X",{"$f":"Submission!I45","v":28},"=",{"$f":"H7*J7","v":0},null,null,null,{"$f":"H7=\"\"","v":true}]
[]
[null,"Nitrous oxide (N2O)",null,null,null,null,null,null,"X",{"$f":"Submission!I46","v":265},"=",{"$f":"H9*J9","v":0},null,null,null,{"$f":"H9=\"\"","v":true}]
[]
[null,"Industrial Process Emissions"]
[null,null,null,null,null,"N/A",null,"Tonnes",null,"GWP",null,"Tonnes (in CO2e)"]
[null,"Carbon dioxide (CO2)",null,null,null,null,null,null,"X",{"$f":"J$5","v":1},"=",{"$f":"H13*J13","v":0},null,null,null,{"$f":"H13=\"\"","v":true}]
[]
[null,"Methane (CH4)",null,null,null,null,null,null,"X",{"$f":"J$7","v":28},"=",{"$f":"H15*J15","v":0},null,null,null,{"$f":"H15=\"\"","v":true}]
[]
[null,"Nitrous oxide (N2O)",null,null,null,null,null,null,"X",{"$f":"J$9","v":265},"=",{"$f":"H17*J17","v":0},null,null,null,{"$f":"H17=\"\"","v":true}]
[]
[null,null,null,null,null,"CO2, CH4 and N2O Industrial Process Total",null,null,null,null,null,{"$f":"SUM(L17,L15,L13)","v":0}]
[]
[null,"Venting Emissions"]
[null,null,null,null,null,"N/A",null,"Tonnes",null,"GWP",null,"Tonnes (in CO2e)"]
[null,"Carbon dioxide (CO2)",null,null,null,null,null,null,"X",{"$f":"J$5","v":1},"=",{"$f":"H23*J23","v":0},null,null,null,{"$f":"H23=\"\"","v":true}]
[]
[null,"Methane (CH4)",null,null,null,null,null,null,"X",{"$f":"J$7","v":28},"=",{"$f":"H25*J25","v":0},null,null,null,{"$f":"H25=\"\"","v":true}]
[]
[null,"Nitrous oxide (N2O)",null,null,null,null,null,null,"X",{"$f":"J$9","v":265},"=",{"$f":"H27*J27","v":0},null,null,null,{"$f":"H27=\"\"","v":true}]
[]
[null,"Flaring Emissions"]
[null,null,null,null,null,"N/A",null,"Tonnes",null,"GWP",null,"Tonnes (in CO2e)"]
[null,"Carbon dioxide (CO2)",null,null,null,null,null,null,"X",{"$f":"J$5","v":1},"=",{"$f":"H31*J31","v":0},null,null,null,{"$f":"H31=\"\"","v":true}]
[]
[null,"Methane (CH4)",null,null,null,null,null,null,"X",{"$f":"J$7","v":28},"=",{"$f":"H33*J33","v":0},null,null,null,{"$f":"H33=\"\"","v":true}]
[]
[null,"Nitrous oxide (N2O)",null,null,null,null,null,null,"X",{"$f":"J$9","v":265},"=",{"$f":"H35*J35","v":0},null,null,null,{"$f":"H35=\"\"","v":true}]
[]
[null,"Fugitive/Other Emissions"]
[null,null,null,null,null,"N/A",null,"Tonnes",null,"GWP",null,"Tonnes (in CO2e)"]
[null,"Carbon dioxide (CO2)",null,null,null,null,null,null,"X",{"$f":"J$5","v":1},"=",{"$f":"H39*J39","v":0},null,null,null,{"$f":"H39=\"\"","v":true}]
[]
[null,"Methane (CH4)",null,null,null,null,null,null,"X",{"$f":"J$7","v":28},"=",{"$f":"H41*J41","v":0},null,null,null,{"$f":"H41=\"\"","v":true}]
[]
[null,"Nitrous oxide (N2O)",null,null,null,null,null,null,"X",{"$f":"J$9","v":265},"=",{"$f":"H43*J43","v":0},null,null,null,{"$f":"H43=\"\"","v":true}]
[]
[null,"On-Site Transportation Emissions"]
[null,null,null,null,null,"N/A",null,"Tonnes",null,"GWP",null,"Tonnes (in CO2e)"]
[null,"Carbon dioxide (CO2)",null,null,null,null,null,null,"X",{"$f":"J$5","v":1},"=",{"$f":"H47*J47","v":0},null,null,null,{"$f":"H47=\"\"","v":true}]
[]
[null,"Methane (CH4)",null,null,null,null,null,null,"X",{"$f":"J$7","v":28},"=",{"$f":"H49*J49","v":0},null,null,null,{"$f":"H49=\"\"","v":true}]
[]
[null,"Nitrous oxide (N2O)",null,null,null,null,null,null,"X",{"$f":"J$9","v":265},"=",{"$f":"H51*J51","v":0},null,null,null,{"$f":"H51=\"\"","v":true}]
[]
[null,"Waste and Wastewater Emissions"]
[null,null,null,null,null,"N/A",null,"Tonnes",null,"GWP",null,"Tonnes (in CO2e)"]
[null,"Carbon dioxide (CO2)",null,null,null,null,null,null,"X",{"$f":"J$5","v":1},"=",{"$f":"H55*J55","v":0},null,null,null,{"$f":"H55=\"\"","v":true}]
[]
[null,"Methane (CH4)",null,null,null,null,null,null,"X",{"$f":"J$7","v":28},"=",{"$f":"H57*J57","v":0},null,null,null,{"$f":"H57=\"\"","v":true}]
[]
[null,"Nitrous oxide (N2O)",null,null,null,null,null,null,"X",{"$f":"J$9","v":265},"=",{"$f":"H59*J59","v":0},null,null,null,{"$f":"H59=\"\"","v":true}]
[]
[null,"Formation CO2 Emissions"]
[null,null,null,null,null,"N/A",null,"Tonnes",null,"GWP",null,"Tonnes (in CO2e)"]
[null,"Carbon dioxide (CO2)",null,null,null,null,null,null,"X",{"$f":"J5","v":1},"=",{"$f":"H63*J63","v":0},null,null,null,{"$f":"H63=\"\"","v":true}]
[]
[null,{"$f":"CONCATENATE(ReportingYear,\" - \", 'Section A1'!$B$5)","v":"2023 - "}]

{"sheet":"Section B2 (2)","index":19,"n_rows":46,"n_cols":13,"rows_kept":46,"cut":false,"hidden":false,"merged":[[0,0,0,9],[43,2,43,7],[1,1,1,8]]}
[{"$f":"\"Section B: \" & Submission!C13 & \" Direct Emissions\"","v":"Section B:  Direct Emissions"},null,null,null,null,null,null,null,null,null,null,"hide","hide"]
[null,{"$f":"CONCATENATE(L2,M2)","v":"Instructions: Enter value under Tonnes. Conversion to Tonnes CO2e is calculated automatically."},null,null,null,null,null,null,null,null,null,"Instructions: Enter value under Tonnes. Conversion to Tonnes CO2e is calculated automatically."]
[null,"Hydrofluorocarbon (HFC) Emissions "]
[null,null,null,null,null,null,null,null,null,null,null,null,{"$f":"I44=0","v":true}]
[null,null,"N/A",null,"Tonnes",null,"GWP",null,"Tonnes (in CO2e)"]
[null,"HFC-23 (CHF3)",null,null,null,"X",{"$f":"Submission!I47","v":12400},"=",{"$f":"E6*G6","v":0},null,null,null,{"$f":"E6=\"\"","v":true}]
[]
[null,"HFC-32 (CH2F2)",null,null,null,"X",{"$f":"Submission!I48","v":677},"=",{"$f":"E8*G8","v":0},null,null,null,{"$f":"E8=\"\"","v":true}]
[]
[null,"HFC-41 (CH3F)",null,null,null,"X",{"$f":"Submission!I49","v":116},"=",{"$f":"E10*G10","v":0},null,null,null,{"$f":"E10=\"\"","v":true}]
[]
[null,"HFC-43-10mee (C5H2F10)",null,null,null,"X",{"$f":"Submission!I50","v":1650},"=",{"$f":"E12*G12","v":0},null,null,null,{"$f":"E12=\"\"","v":true}]
[]
[null,"HFC-125 (C2HF5)",null,null,null,"X",{"$f":"Submission!I51","v":3170},"=",{"$f":"E14*G14","v":0},null,null,null,{"$f":"E14=\"\"","v":true}]
[]
[null,"HFC-134 (CHF2CHF2)",null,null,null,"X",{"$f":"Submission!I52","v":1120},"=",{"$f":"E16*G16","v":0},null,null,null,{"$f":"E16=\"\"","v":true}]
[]
[null,"HFC-134a (CH2FCF2)",null,null,null,"X",{"$f":"Submission!I53","v":1300},"=",{"$f":"E18*G18","v":0},null,null,null,{"$f":"E18=\"\"","v":true}]
[]
[null,"HFC-143 (CHF2CH2F)",null,null,null,"X",{"$f":"Submission!I54","v":328},"=",{"$f":"E20*G20","v":0},null,null,null,{"$f":"E20=\"\"","v":true}]
[]
[null,"HFC-143a (CF3CH3)",null,null,null,"X",{"$f":"Submission!I55","v":4800},"=",{"$f":"E22*G22","v":0},null,null,null,{"$f":"E22=\"\"","v":true}]
[]
[null,"HFC-152 (CH2FCH2F)",null,null,null,"X",{"$f":"Submission!I56","v":16},"=",{"$f":"E24*G24","v":0},null,null,null,{"$f":"E24=\"\"","v":true}]
[]
[null,"HFC-152a (CH3CHF2)",null,null,null,"X",{"$f":"Submission!I57","v":138},"=",{"$f":"E26*G26","v":0},null,null,null,{"$f":"E26=\"\"","v":true}]
[]
[null,"HFC-161 (CH3CH2F)",null,null,null,"X",{"$f":"Submission!I58","v":4},"=",{"$f":"E28*G28","v":0},null,null,null,{"$f":"E28=\"\"","v":true}]
[]
[null,"HFC-227ea (C3HF7)",null,null,null,"X",{"$f":"Submission!I59","v":3350},"=",{"$f":"E30*G30","v":0},null,null,null,{"$f":"E30=\"\"","v":true}]
[]
[null,"HFC-236cb (CH2FCF2CF3)",null,null,null,"X",{"$f":"Submission!I60","v":1210},"=",{"$f":"E32*G32","v":0},null,null,null,{"$f":"E32=\"\"","v":true}]
[]
[null,"HFC-236ea (CHF2CHFCF3)",null,null,null,"X",{"$f":"Submission!I61","v":1330},"=",{"$f":"E34*G34","v":0},null,null,null,{"$f":"E34=\"\"","v":true}]
[]
[null,"HFC-236fa (C3H2F6)",null,null,null,"X",{"$f":"Submission!I62","v":8060},"=",{"$f":"E36*G36","v":0},null,null,null,{"$f":"E36=\"\"","v":true}]
[]
[null,"HFC-245ca (C3H3F5)",null,null,null,"X",{"$f":"Submission!I63","v":716},"=",{"$f":"E38*G38","v":0},null,null,null,{"$f":"E38=\"\"","v":true}]
[]
[null,"HFC-245fa (CHF2CH2CF3)",null,null,null,"X",{"$f":"Submission!I64","v":858},"=",{"$f":"E40*G40","v":0},null,null,null,{"$f":"E40=\"\"","v":true}]
[]
[null,"HFC-365mfc (CH3CF2CH2CF3)",null,null,null,"X",{"$f":"Submission!I65","v":804},"=",{"$f":"E42*G42","v":0},null,null,null,{"$f":"E42=\"\"","v":true}]
[]
[null,null,"Total HFC:",null,null,null,null,null,{"$f":"SUM(I6,I8,I10,I12,I14,I16,I18,I20,I22,I24,I26,I28,I30,I32,I34,I36,I38,I40,I42)","v":0}]
[]
[null,{"$f":"CONCATENATE(ReportingYear,\" - \", 'Section A1'!$B$5)","v":"2023 - "}]

{"sheet":"Section B3 (2)","index":20,"n_rows":44,"n_cols":16,"rows_kept":44,"cut":false,"hidden":false,"merged":[[41,1,41,10],[25,1,25,10],[27,1,27,4],[29,1,29,10],[31,1,31,4],[33,1,33,10],[35,1,35,10],[19,1,19,4],[21,1,21,4],[23,5,23,9],[37,1,37,10],[39,1,39,10],[11,1,11,4],[1,1,1,11],[13,1,13,4],[15,1,15,4],[17,1,17,4],[0,0,0,12],[2,1,2,11],[5,1,5,4],[7,1,7,4],[9,1,9,4]]}
[{"$f":"\"Section B: \" & Submission!C13 & \" Direct Emissions\"","v":"Section B:  Direct Emissions"},null,null,null,null,null,null,null,null,null,null,null,null,null,"hide","hide"]
[null,{"$f":"CONCATENATE(O2,P2)","v":"Instructions: Enter value under Tonnes. Conversion to Tonnes CO2e is calculated automatically."},null,null,null,null,null,null,null,null,null,null,null,null,"Instructions: Enter value under Tonnes. Conversion to Tonnes CO2e is calculated automatically."]
[null,"Perfluorocarbon (PFC) Emissions "]
[null,null,null,null,null,null,null,null,null,null,null,null,null,null,null,{"$f":"(L24=0)","v":true}]
[null,null,null,null,null,"N/A",null,"Tonnes",null,"GWP",null,"Tonnes (in CO2e)"]
[null,"Perfluoromethane (CF4)",null,null,null,null,null,null,"X",{"$f":"Submission!I67","v":6630},"=",{"$f":"H6*J6","v":0},null,null,null,{"$f":"H6=\"\"","v":true}]
[]
[null,"Perfluoroethane (C2F6)",null,null,null,null,null,null,"X",{"$f":"Submission!I68","v":11100},"=",{"$f":"H8*J8","v":0},null,null,null,{"$f":"H8=\"\"","v":true}]
[]
[null,"Perfluoropropane (C3F8)",null,null,null,null,null,null,"X",{"$f":"Submission!I69","v":8900},"=",{"$f":"H10*J10","v":0},null,null,null,{"$f":"H10=\"\"","v":true}]
[]
[null,"Perfluorobutane (C4F10)",null,null,null,null,null,null,"X",{"$f":"Submission!I70","v":9200},"=",{"$f":"H12*J12","v":0},null,null,null,{"$f":"H12=\"\"","v":true}]
[]
[null,"Perfluorocyclobutane (c-C4F8)",null,null,null,null,null,null,"X",{"$f":"Submission!I71","v":9540},"=",{"$f":"H14*J14","v":0},null,null,null,{"$f":"H14=\"\"","v":true}]
[]
[null,"Perfluoropentane (C5F12)",null,null,null,null,null,null,"X",{"$f":"Submission!I72","v":8550},"=",{"$f":"H16*J16","v":0},null,null,null,{"$f":"H16=\"\"","v":true}]
[]
[null,"Perfluorohexane (C6F14)",null,null,null,null,null,null,"X",{"$f":"Submission!I73","v":7910},"=",{"$f":"H18*J18","v":0},null,null,null,{"$f":"H18=\"\"","v":true}]
[]
[null,"Perfluorodecalin C10F18",null,null,null,null,null,null,"X",{"$f":"Submission!I74","v":7190},"=",{"$f":"H20*J20","v":0},null,null,null,{"$f":"H20=\"\"","v":true}]
[]
[null,"Perfluorocyclopropane c-C3F6",null,null,null,null,null,null,"X",{"$f":"Submission!I75","v":9200},"=",{"$f":"H22*J22","v":0},null,null,null,{"$f":"H22=\"\"","v":true}]
[]
[null,null,null,null,null,"Total PFC :",null,null,null,null,"=",{"$f":"SUM(L6,L8,L10,L12,L14,L16,L18,L20,L22)","v":0}]
[]
[null,"Nitrogen Trifluoride (NF3)"]
[null,null,null,null,null,"N/A",null,"Tonnes",null,"GWP",null,"Tonnes (in CO2e)"]
[null,"Nitrogen Trifluoride (NF3)",null,null,null,null,null,null,"X",{"$f":"Submission!I76","v":16100},"=",{"$f":"H28*J28","v":0},null,null,null,{"$f":"H28=\"\"","v":true}]
[]
[null,"Sulphur Hexafluoride (SF6) Emissions"]
[null,null,null,null,null,"N/A",null,"Tonnes",null,"GWP",null,"Tonnes (in CO2e)"]
[null,"Sulphur hexafluoride (SF6)",null,null,null,null,null,null,"X",{"$f":"Submission!I66","v":23500},"=",{"$f":"H32*J32","v":0},null,null,null,{"$f":"H32=\"\"","v":true}]
[]
[null,"Total HFC, PFC, NF3 and SF6 Emissions"]
[null,null,null,null,null,null,null,null,null,null,null,"Tonnes (in CO2e)"]
[null,"Hydrofluorocarbon (HFC)",null,null,null,null,null,null,null,null,null,{"$f":"'Section B2 (2)'!$I$44","v":0}]
[]
[null,"Perfluorocarbons (PFC)",null,null,null,null,null,null,null,null,null,{"$f":"$L$24","v":0}]
[]
[null,"Nitrogen Trifluoride (NF3)",null,null,null,null,null,null,null,null,null,{"$f":"$L$28","v":0}]
[]
[null,"Sulphur hexafluoride (SF6)",null,null,null,null,null,null,null,null,null,{"$f":"$L$32","v":0}]
[]
[null,{"$f":"CONCATENATE(ReportingYear,\" - \", 'Section A1'!$B$5)","v":"2023 - "}]

{"sheet":"Section B4 (2)","index":21,"n_rows":57,"n_cols":28,"rows_kept":57,"cut":false,"hidden":false,"merged":[[10,1,10,4],[0,0,0,19],[1,0,1,14],[4,1,4,7],[6,1,6,4],[8,1,8,12],[39,11,39,12],[11,1,11,16],[13,7,13,12],[16,1,16,4],[20,1,20,4],[22,1,22,10],[24,1,24,4],[25,1,25,16],[28,11,28,14],[37,1,37,16],[28,16,28,18],[29,16,31,16],[14,13,14,16],[18,13,18,16],[22,13,22,16],[14,1,14,9],[54,1,54,16],[44,11,44,12],[45,1,45,8],[47,1,47,4],[49,1,49,4],[51,1,51,4],[53,8,53,13]]}
[{"$f":"\"Section B: \" & Submission!C13 & \" Direct Emissions\"","v":"Section B:  Direct Emissions"},null,null,null,null,null,null,null,null,null,null,null,null,null,null,null,null,null,null,null,null,"hide","hide","hide","hide","hide","hide","hide"]
[]
[null,"Biomass CO2 Emissions"]
[]
[null,"CO2 Emissions from Combustion of Biomass (BM)"]
[null,null,null,null,null,"N/A",null,"Tonnes"]
[null,"Carbon dioxide (CO2)",null,null,null,null,null,null,null,null,null,null,null,null,null,null,null,null,null,null,null,null,{"$f":"H7=\"\"","v":true}]
[]
[null,"CO2 Emissions from Decomposition of Biomass (BM)"]
[null,null,null,null,null,"N/A",null,"Tonnes"]
[null,"Carbon dioxide (CO2)",null,null,null,null,null,null,null,null,null,null,null,null,null,null,null,null,null,null,null,null,{"$f":"H11=\"\"","v":true}]
[null,"Note: Only CO₂ emissions from combustion and decomposition of biomass should be reported here. These emissions are not included in the calculation of the direct emissions. Methane and nitrous oxide emissions from biomass combustion and decomposition must be reported in Section B1 in the appropriate category."]
[null,"Captured CO2"]
[]
[null,"CO2 Geologically Injected On Site",null,null,null,null,null,null,null,null,null,null,null,"Capture Recognition Tonnes (CRT)"]
[null,null,null,null,null,"N/A",null,"Tonnes (in CO2e)",null,null,null,null,null,"N/A","Tonnes"]
[null,"Carbon dioxide (CO2)",null,null,null,null,null,null,null,null,null,null,null,null,null,null,null,null,null,null,null,null,{"$f":"H17=\"\"","v":true},null,{"$f":"O17=\"\"","v":true}]
[]
[null,"Exported CO2 (ECO2)",null,null,null,null,null,"Exported from non-IP",null,"IPExport",null,null,null,"Exported for Disposal as Acid Gas"]
[null,null,null,null,null,"N/A",null,"Tonnes (in CO2e)","N/A","Tonnes (in CO2e)",null,null,null,"N/A","Tonnes (in CO2e)"]
[null,"Carbon dioxide (CO2)",null,null,null,null,null,null,null,null,null,null,null,null,null,null,null,null,null,null,null,null,{"$f":"H21=\"\"","v":true},{"$f":"O21=\"\"","v":true},{"$f":"J21=\"\"","v":true}]
[]
[null,"Imported CO2 (ICO2)",null,null,null,null,null,null,null,null,null,null,null,"Imported for Disposal as Acid Gas"]
[null,null,null,null,null,"N/A",null,"Tonnes (in CO2e)",null,null,null,null,null,"N/A","Tonnes (in CO2e)",null,null,null,null,null,null,null,"       "]
[null,"Carbon dioxide (CO2)",null,null,null,null,null,null,null,null,null,null,null,null,null,null,"`",null,null,null,null,null,{"$f":"H25=\"\"","v":true},{"$f":"O25=\"\"","v":true}]
[null,"Note: This section should include data on carbon capture and storage activities, including acid gas injection and enhanced oil recovery projects. Trace CO2 in fuels, feedstock or products should not be included. \nAny carbon dioxide removed from raw gas and disposed of, as an acid gas stream, to an AER approved underground formation shall be excluded from Exported and Imported CO2. These quantities should be reported in the specific fields provided for disposal of acid gas in Cells O21 and O25.\nExported CO2 reported in this section is added in the calculation of Total Regulated Emissions. Please make sure not to include this quantity in Section B1 to avoid double counting. For example, if Formation or Industrial Process CO2 is being captured by the facility and exported to another facility regulated under TIER Regulation, it should be reported as an export only and not in section B1, otherwise it will be double counted in the Total Regulated Emissions.  "]
[null,"Greenhouse Gas Intensive Inputs & Outputs"]
[]
[null,null,null,null,null,null,null,null,null,null,null,"On site (AB-CWB Only)",null,null,null,null,"Wasted H2 (AB-CWB Only)"]
[null,null,null,null,null,null,null,"Imported",null,"Exported",null,"Generated",null,null,"Used",null,"from Generated\non site",null,"from Imported",null,null,null,1E-4]
[]
[null,"Electricity [MWh]",null,null,null,null,"IE",null,null,null,null,null,null,null,null,null,null,null,null,null,null,null,{"$f":"H32=\"\"","v":true},{"$f":"J32=\"\"","v":true}]
[]
[null,"Heat [GJ]",null,null,null,null,"IHe",null,null,null,null,null,null,null,null,null,null,null,null,null,null,null,{"$f":"H34=\"\"","v":true},{"$f":"J34=\"\"","v":true}]
[]
[null,"Hydrogen [tonnes H2(*)]",null,null,null,null,"IHy",null,null,null,null,null,null,null,null,null,null,null,null,null,null,null,{"$f":"H36=\"\"","v":true},{"$f":"J36=\"\"","v":true},{"$f":"L36=\"\"","v":true},{"$f":"O36=\"\"","v":true},{"$f":"Q36=\"\"","v":true},{"$f":"S36=\"\"","v":true}]
[null,"(*) excluding trace H2 in fuels"]
[]
[null,"CO2 Used in Manufacturing of Urea"]
[]
[null,null,null,null,null,null,null,null,"N/A","Tonnes (in CO2e)"]
[null,"CO2 Used in Manufacturing of Urea (UCO2)",null,null,null,null,null,null,null,null,null,null,null,null,null,null,null,null,null,null,null,null,{"$f":"J42=\"\"","v":true}]
[]
[null,"Emissions from Fuels Subject to the Federal Fuel Charge"]
[]
[null,"Emissions from Fuels Subject to the Federal Fuel Charge"]
[null,null,null,null,null,"N/A",null,"Tonnes",null,null,null,"GWP",null,null,"Tonnes (in CO2e)"]
[null,"Carbon dioxide (CO2)",null,null,null,null,null,null,null,"X",null,{"$f":"Submission!I44","v":1},null,"=",{"$f":"H48*L48","v":0},null,null,null,null,null,null,null,{"$f":"H48=\"\"","v":true}]
[]
[null,"Methane (CH4)",null,null,null,null,null,null,null,"X",null,{"$f":"Submission!I45","v":28},null,"=",{"$f":"H50*L50","v":0},null,null,null,null,null,null,null,{"$f":"H50=\"\"","v":true}]
[]
[null,"Nitrous oxide (N2O)",null,null,null,null,null,null,null,"X",null,{"$f":"Submission!I46","v":265},null,"=",{"$f":"H52*L52","v":0},null,null,null,null,null,null,null,{"$f":"H52=\"\"","v":true}]
[]
[null,null,null,null,null,null,null,null,"Federal Fuel Charge Emissions (FFCE)",null,null,null,null,null,{"$f":"SUM(O52,O50,O48)","v":0}]
[null,"Note: Quantities in this section are substracted from Benchmark Emissions (BE), make sure to also include these quantities in Section B1. "]
[]
[null,{"$f":"CONCATENATE(ReportingYear,\" - \", 'Section A1'!$B$5)","v":"2023 - "}]

{"sheet":"Section B4 EE (2)","index":22,"n_rows":51,"n_cols":15,"rows_kept":51,"cut":false,"hidden":true,"merged":[[0,0,0,10],[21,1,21,9],[35,1,35,9],[49,1,49,9],[50,1,50,9]]}
[{"$f":"\"Section B: \" & Submission!C13 & \" Direct Emissions\"","v":"Section B:  Direct Emissions"},null,null,null,null,null,null,null,null,null,null,null,"hide","hide","hide"]
[]
[null,{"$f":"\"Self-Generation Information\"","v":"Self-Generation Information"},null,null,null,null,null,null,null,null,null,null,null,null,"Trigger"]
[]
[null,null,null,null,null,null,null,null,null,null,null,null,null,{"$f":"IF(O5>0,FALSE,TRUE)","v":true},{"$f":"SUM(I17,I20,I26,I40,I48)","v":0}]
[]
[]
[null,"Self Generation Emissions"]
[]
[null,null,null,null,null,null,null,null,"Tonnes (in CO2e)"]
[null,"Carbon dioxide (CO2)",null,null,null,"X",{"$f":"Submission!I44","v":1},"=",{"$f":"E11*G11","v":0},null,null,null,null,{"$f":"E11=\"\"","v":true}]
[]
[null,"Methane (CH4)",null,null,null,"X",{"$f":"Submission!I45","v":28},"=",{"$f":"E13*G13","v":0},null,null,null,null,{"$f":"E13=\"\"","v":true}]
[]
[null,"Nitrous oxide (N2O)",null,null,null,"X",{"$f":"Submission!I46","v":265},"=",{"$f":"E15*G15","v":0},null,null,null,null,{"$f":"E15=\"\"","v":true}]
[]
[null,null,null,null,null,null,null,"Total GHG Emissions from Self Generation (EE)",{"$f":"SUM(I11,I13,I15)","v":0}]
[]
[]
[null,null,null,null,null,null,null,"Total GHG Emissions from Self Generation (EE)"]
[]
[null,"Note: Report in this section the emissions attributable to self-generation of electricity and\\or cogeneration at the facility for the production of the product or offsite exports of heat and electricity. This include all emissions from fossil fuels but only Methane (CH4) and Nitrous Oxide (N2O) emissions when the fuel used for electricity generation or cogeneration is biomass. "]
[]
[null,{"$f":"\" Electricity\"","v":" Electricity"}]
[null,null,null,null,null,null,null,"N/A","Quantity","Units"]
[null,null,null,null,null,null,"Electricity Self Generated (Net of Station Load)",null,null,"MWh",null,null,null,{"$f":"I26=\"\"","v":true}]
[]
[null,null,null,null,null,null,"Electricity Imported",null,{"$f":"'Section B4 (2)'!H32","v":0},"MWh"]
[]
[null,null,null,null,null,null,"Electricity Exported",null,{"$f":"'Section B4 (2)'!J32","v":0},"MWh"]
[]
[null,"Elecused = Elecself-generated + Elecimport-Elecexport",null,null,null,null,"Electricity Used",null,{"$f":"I26+I28-I30","v":0},"MWh"]
[]
[null,null,null,null,null,null,"Electricity Used",null,null,"MWh",null,null,null,{"$f":"I34=\"\"","v":true}]
[]
[null,{"$f":"IF(Submission!$I$5=2,N36,M36)","v":"Note: Report in this section the electricity generated at the facility from cogeneration and\\or non-cogeneration sources (net of station load). "},null,null,null,null,null,null,null,null,null,null,"Note: Report in this section the electricity generated at the facility from cogeneration and\\or non-cogeneration sources (net of station load). ","Note: Input the corresponding Electricity Used value from the Self-generation Multiproduct Form."]
[null,{"$f":"\" Heat\"","v":" Heat"}]
[]
[null,null,null,null,null,null,null,"N/A","Quantity","Units"]
[null,null,null,null,null,null,"Heat Cogenerated (Net heat produced by cogeneration)",null,null,"GJ",null,null,null,{"$f":"I40=\"\"","v":true}]
[]
[null,null,null,null,null,null,"Heat Imported",null,{"$f":"'Section B4 (2)'!H34","v":0},"GJ"]
[]
[null,null,null,null,null,null,"Heat Exported",null,{"$f":"'Section B4 (2)'!J34","v":0},"GJ"]
[]
[null,null,null,null,"Hused = Hcogenerated + Himport- Hexport",null,"Heat Used",null,{"$f":"I40+I42-I44","v":0},"GJ"]
[]
[null,null,null,null,null,null,"Heat Used",null,null,"GJ",null,null,null,{"$f":"I48=\"\"","v":true}]
[]
[null,{"$f":"IF(Submission!$I$5=2,N50,M50)","v":"Note: Heat cogenerated is heat produced as a by-product of electricity generation at the facility. It does not include heat produced using conventional boilers that are not related to the generation of electricity  "},null,null,null,null,null,null,null,null,null,null,"Note: Heat cogenerated is heat produced as a by-product of electricity generation at the facility. It does not include heat produced using conventional boilers that are not related to the generation of electricity  ","Note: Input the corresponding Heat Used value from the Self-generation Multiproduct Form."]
[null,{"$f":"CONCATENATE(ReportingYear,\" - \", 'Section A1'!$B$5)","v":"2023 - "}]

{"sheet":"Section B5 (2)","index":23,"n_rows":15,"n_cols":17,"rows_kept":15,"cut":false,"hidden":false,"merged":[[13,1,13,12],[14,1,14,12],[15,1,15,12],[0,0,0,13],[1,0,1,12],[3,1,3,12],[4,1,4,12],[6,1,6,12],[9,1,9,12]]}
[{"$f":"\"Section B: \" & Submission!C13 & \" Direct Emissions\"","v":"Section B:  Direct Emissions"},null,null,null,null,null,null,null,null,null,null,null,null,null,null,"hide","hide"]
[]
[null,"Negligible Emission Sources"]
[null,"List all GHG emission sources that are being treated as negligible in the space below. For all negligible, include the annual emissions estimate and expected year-to-year variation in (tonnes CO2e). If additional space is required, please attach a document and specify the name below. Under TIER Regulation all negligible sources are to be included in the corresponding emission categories in Sections B1, B2, B3 and B4, and count towards the Direct Emissions. Alternative methods may be used to assess the negligibility of these emissions."]
[]
[null,{"$f":"\"Public Availability of \"&Submission!C13&\" GHG Emissions Data\"","v":"Public Availability of  GHG Emissions Data"},null,null,null,null,null,null,null,null,null,null,null,null,null,"Options","Yes"]
[null,{"$f":"\"Are \"&Submission!C13&\" greenhouse gas emissions data by gas type for this facility publicly available (i.e., published or by request)?\"","v":"Are  greenhouse gas emissions data by gas type for this facility publicly available (i.e., published or by request)?"},null,null,null,null,null,null,null,null,null,null,null,null,null,null,"No"]
[null,null,null,null,null,null,null,null,null,null,null,null,null,null,null,"Total Publicly Available"]
[]
[null,{"$f":"\"Are \"&Submission!C13&\" greenhouse gas emissions data by source category for this facility publicly available (i.e., published or by request)?\"","v":"Are  greenhouse gas emissions data by source category for this facility publicly available (i.e., published or by request)?"}]
[null,null,null,null,null,null,null,null,null,null,null,null,null,null,null,"By Gas Available"]
[]
[null,"Note: Confidentiality must not be requested for information that is publicly available."]
[]
[null,{"$f":"CONCATENATE(ReportingYear,\" - \", 'Section A1'!$B$5)","v":"2023 - "}]

{"sheet":"Section B6 (2)","index":24,"n_rows":85,"n_cols":27,"rows_kept":85,"cut":false,"hidden":true,"merged":[[79,17,79,24],[0,0,0,14],[48,1,48,13],[53,1,53,13],[76,17,76,24],[77,17,77,24],[78,17,78,24]]}
[{"$f":"\"Section B: \" & Submission!C13 & \" Production Information\"","v":"Section B:  Production Information"},null,null,null,null,null,null,null,null,null,null,null,null,null,null,null,"hide","hide","hide","hide","hide","hide","hide","hide","hide","hide","hide"]
[]
[null,{"$f":"\" Production Information for \"&Submission!C13","v":" Production Information for "}]
[]
[null,null,"N/A","Product (P)",null,"Quantity",null,"Units",null,{"$f":"\"Established or Assigned Benchmark\n(BE or BA) for \"&Submission!C11","v":"Established or Assigned Benchmark\n(BE or BA) for "},null,"Transition Allocation Benchmark (BTA)",null,"Allocations\nTonnes (in CO2e)",null,null,"Established or Assigned Benchmark","Checkboxes","Units",null,"ABGPI Selected"]
[null,"Production Item 1",null,"",null,"",null,null,null,{"$f":"Q6","v":""},null,null,null,{"$f":"IF(R6=TRUE,\" \",F6*J6+F6*L6)","v":" "},null,null,{"$f":"IFERROR(CHOOSE(MATCH($D6,$R$61:$R$76,0),INDIRECT(\"$\"&$V$83&\"$61\"),INDIRECT(\"$\"&$V$83&\"$62\"),INDIRECT(\"$\"&$V$83&\"$63\"),INDIRECT(\"$\"&$V$83&\"$64\"), INDIRECT(\"$\"&$V$83&\"$65\"), INDIRECT(\"$\"&$V$83&\"$66\"),INDIRECT(\"$\"&$V$83&\"$67\"),INDIRECT(\"$\"&$V$83&\"$68\"),INDIRECT(\"$\"&$V$83&\"$69\"),INDIRECT(\"$\"&$V$83&\"$70\"),INDIRECT(\"$\"&$V$83&\"$71\"),INDIRECT(\"$\"&$V$83&\"$72\"),INDIRECT(\"$\"&$V$83&\"$73\"),INDIRECT(\"$\"&$V$83&\"$74\"),INDIRECT(\"$\"&$V$83&\"$75\"),INDIRECT(\"$\"&$V$83&\"$76\")),\"\")","v":""},{"$f":"F6=\"\"","v":true},{"$f":"IFERROR(CHOOSE(MATCH($D6,$R$61:$R$76,0),$Y$61,$Y$62,$Y$63,$Y$64,$Y$65,$Y$66,$Y$67,$Y$68,$Y$69,$Y$70,$Y$71,$Y$72,$Y$73,$Y$74,$Y$75,$Y$76),\"\")","v":""},null,false]
[null,null,null,null,null,null,null,null,null,null,null,null,null,null,null,null,null,null,{"$f":"IFERROR(CHOOSE(MATCH($D7,$R$61:$R$76,0),$Y$61,$Y$62,$Y$63,$Y$64,$Y$65,$Y$66,$Y$67,$Y$68,$Y$69,$Y$70,$Y$71,$Y$72,$Y$73,$Y$74,$Y$75,$Y$76),\"\")","v":""}]
[null,"Production Item 2",null,"",null,"",null,null,null,{"$f":"Q8","v":""},null,null,null,{"$f":"IF(R8=TRUE,\" \",F8*J8+F8*L8)","v":" "},null,null,{"$f":"IFERROR(CHOOSE(MATCH($D8,$R$61:$R$76,0),INDIRECT(\"$\"&$V$83&\"$61\"),INDIRECT(\"$\"&$V$83&\"$62\"),INDIRECT(\"$\"&$V$83&\"$63\"),INDIRECT(\"$\"&$V$83&\"$64\"), INDIRECT(\"$\"&$V$83&\"$65\"), INDIRECT(\"$\"&$V$83&\"$66\"),INDIRECT(\"$\"&$V$83&\"$67\"),INDIRECT(\"$\"&$V$83&\"$68\"),INDIRECT(\"$\"&$V$83&\"$69\"),INDIRECT(\"$\"&$V$83&\"$70\"),INDIRECT(\"$\"&$V$83&\"$71\"),INDIRECT(\"$\"&$V$83&\"$72\"),INDIRECT(\"$\"&$V$83&\"$73\"),INDIRECT(\"$\"&$V$83&\"$74\"),INDIRECT(\"$\"&$V$83&\"$75\"),INDIRECT(\"$\"&$V$83&\"$76\")),\"\")","v":""},{"$f":"F8=\"\"","v":true},""]
[null,null,null,null,null,null,null,null,null,null,null,null,null,null,null,null,null,null,""]
[null,"Production Item 3",null,"",null,"",null,null,null,null,null,null,null,{"$f":"IF(R10=TRUE,\" \",F10*J10+F10*L10)","v":" "},null,null,"",{"$f":"F10=\"\"","v":true},""]
[null,null,null,null,null,null,null,null,null,null,null,null,null,null,null,null,null,null,""]
[null,"Production Item 4",null,"",null,"",null,null,null,null,null,null,null,{"$f":"IF(R12=TRUE,\" \",F12*J12+F12*L12)","v":" "},null,null,"",{"$f":"F12=\"\"","v":true},""]
[null,null,null,null,null,null,null,null,null,null,null,null,null,null,null,null,null,null,""]
[null,"Production Item 5",null,"",null,"",null,null,null,null,null,null,null,{"$f":"IF(R14=TRUE,\" \",F14*J14+F14*L14)","v":" "},null,null,"",{"$f":"F14=\"\"","v":true},""]
[null,null,null,null,null,null,null,null,null,null,null,null,null,null,null,null,null,null,""]
[null,"Production Item 6",null,"",null,"",null,null,null,null,null,null,null,{"$f":"IF(R16=TRUE,\" \",F16*J16+F16*L16)","v":" "},null,null,"",{"$f":"F16=\"\"","v":true},""]
[null,null,null,null,null,null,null,null,null,null,null,null,null,null,null,null,null,null,""]
[null,"Production Item 7",null,"",null,"",null,null,null,null,null,null,null,{"$f":"IF(R18=TRUE,\" \",F18*J18+F18*L18)","v":" "},null,null,"",{"$f":"F18=\"\"","v":true},""]
[null,null,null,null,null,null,null,null,null,null,null,null,null,null,null,null,null,null,""]
[null,"Production Item 8",null,"",null,"",null,null,null,null,null,null,null,{"$f":"IF(R20=TRUE,\" \",F20*J20+F20*L20)","v":" "},null,null,"",{"$f":"F20=\"\"","v":true},""]
[null,null,null,null,null,null,null,null,null,null,null,null,null,null,null,null,null,null,""]
[null,"Production Item 9",null,"",null,"",null,null,null,null,null,null,null,{"$f":"IF(R22=TRUE,\" \",F22*J22+F22*L22)","v":" "},null,null,"",{"$f":"F22=\"\"","v":true},""]
[null,null,null,null,null,null,null,null,null,null,null,null,null,null,null,null,null,null,""]
[null,"Production Item 10",null,"",null,"",null,null,null,null,null,null,null,{"$f":"IF(R24=TRUE,\" \",F24*J24+F24*L24)","v":" "},null,null,"",{"$f":"F24=\"\"","v":true},""]
[null,null,null,null,null,null,null,null,null,null,null,null,null,null,null,null,null,null,""]
[null,"Production Item 11",null,"",null,"",null,null,null,null,null,null,null,{"$f":"IF(R26=TRUE,\" \",F26*J26+F26*L26)","v":" "},null,null,"",{"$f":"F26=\"\"","v":true},""]
[null,null,null,null,null,null,null,null,null,null,null,null,null,null,null,null,null,null,""]
[null,"Production Item 12",null,"",null,"",null,null,null,null,null,null,null,{"$f":"IF(R28=TRUE,\" \",F28*J28+F28*L28)","v":" "},null,null,"",{"$f":"F28=\"\"","v":true},""]
[null,null,null,null,null,null,null,null,null,null,null,null,null,null,null,null,null,null,""]
[null,"Production Item 13",null,"",null,"",null,null,null,null,null,null,null,{"$f":"IF(R30=TRUE,\" \",F30*J30+F30*L30)","v":" "},null,null,"",{"$f":"F30=\"\"","v":true},""]
[null,null,null,null,null,null,null,null,null,null,null,null,null,null,null,null,null,null,""]
[null,"Production Item 14",null,"",null,"",null,null,null,null,null,null,null,{"$f":"IF(R32=TRUE,\" \",F32*J32+F32*L32)","v":" "},null,null,"",{"$f":"F32=\"\"","v":true},""]
[null,null,null,null,null,null,null,null,null,null,null,null,null,null,null,null,null,null,""]
[null,"Production Item 15",null,"",null,"",null,null,null,null,null,null,null,{"$f":"IF(R34=TRUE,\" \",F34*J34+F34*L34)","v":" "},null,null,"",{"$f":"F34=\"\"","v":true},""]
[null,null,null,null,null,null,null,null,null,null,null,null,null,null,null,null,null,null,""]
[null,"Production Item 16",null,"",null,"",null,null,null,null,null,null,null,{"$f":"IF(R36=TRUE,\" \",F36*J36+F36*L36)","v":" "},null,null,"",{"$f":"F36=\"\"","v":true},""]
[null,null,null,null,null,null,null,null,null,null,null,null,null,null,null,null,null,null,""]
[null,"Production Item 17",null,"",null,null,null,null,null,null,null,null,null,{"$f":"IF(R38=TRUE,\" \",F38*J38+F38*L38)","v":" "},null,null,"",{"$f":"F38=\"\"","v":true},""]
[null,null,null,null,null,null,null,null,null,null,null,null,null,null,null,null,null,null,""]
[null,"Production Item 18",null,"",null,null,null,null,null,null,null,null,null,{"$f":"IF(R40=TRUE,\" \",F40*J40+F40*L40)","v":" "},null,null,"",{"$f":"F40=\"\"","v":true},""]
[null,null,null,null,null,null,null,null,null,null,null,null,null,null,null,null,null,null,""]
[null,"Production Item 19",null,"",null,null,null,null,null,null,null,null,null,{"$f":"IF(R42=TRUE,\" \",F42*J42+F42*L42)","v":" "},null,null,"",{"$f":"F42=\"\"","v":true},""]
[null,null,null,null,null,null,null,null,null,null,null,null,null,null,null,null,null,null,""]
[null,"Production Item 20",null,"",null,null,null,null,null,{"$f":"Q44","v":""},null,null,null,{"$f":"IF(R44=TRUE,\" \",F44*J44+F44*L44)","v":" "},null,null,"",{"$f":"F44=\"\"","v":true},""]
[]
[null,"Products Allocations",null,null,null,null,null,null,null,null,null,"Tonnes (in CO2e)",null,{"$f":"SUM(N6,N8,N10,N12,N14,N16,N18,N20,N22,N24,N26,N28,N30,N32,N34,N36,N38,N40,N42,N44)","v":0}]
[]
[null,{"$f":"\"Public Availability of \"&Submission!C13&\" Production Information\"","v":"Public Availability of  Production Information"}]
[null,{"$f":"\"Is \"&Submission!C13&\" production information for this facility publicly available? (i.e. published or by request)\"","v":"Is  production information for this facility publicly available? (i.e. published or by request)"},null,null,null,null,null,null,null,null,null,null,null,null,null,null,null,{"$f":"COLUMN()","v":18}]
[]
[]
[null,"Note: Confidentiality must not be requested for information that is publicly available."]
[null,null,null,null,null,null,null,null,null,null,null,null,null,null,null,null,"Avail",1,"Options","Yes"]
[null,{"$f":"CONCATENATE(ReportingYear,\" - \", 'Section A1'!$B$5)","v":"2023 - "},null,null,null,null,null,null,null,null,null,null,null,null,null,null,null,null,null,"No"]
[]
[]
[null,null,null,null,null,null,null,null,null,null,null,null,null,null,null,null,null,null,"Table   Established Benchmarks for Products"]
[null,null,null,null,null,null,null,null,null,null,null,null,null,null,null,null,null,"Position of the column is the range 2018-2023",{"$f":"COLUMN()","v":19},{"$f":"COLUMN()","v":20},{"$f":"COLUMN()","v":21},{"$f":"COLUMN()","v":22},{"$f":"COLUMN()","v":23}]
[null,null,null,null,null,null,null,null,null,null,null,null,null,null,null,null,null,null,2018,2019,2020,2021,2022,null,"unit"]
[null,null,null,null,null,null,null,null,null,null,null,null,null,null,null,null,null,"Product","Established benchmark for 2018 (tonnes of CO2e per benchmark unit)","Established benchmark for 2019 (tonnes of CO2e per benchmark unit)","Established benchmark for 2020 (tonnes of CO2e per benchmark unit)","Established benchmark for 2021 (tonnes of CO2e per benchmark unit)","Established benchmark for 2022 (tonnes of CO2e per benchmark unit)","Established benchmark for 2023 and subsequent years (tonnes of CO2e per  benchmark unit) is determined as follows:","Benchmark unit","Name used?","List of unused names"]
[null,null,null,null,null,null,null,null,null,null,null,null,null,null,null,null,null,"Ammonia",1.9419999999999999,1.9419999999999999,1.9350000000000001,1.9279999999999999,1.921,"*BE = **BEY-1 - ***0.007","Tonne",{"$f":"IF(COUNTIF($D$6:$D$44,$R61)>=1,\"\",ROW())","v":61},{"$f":"IF(ROW(R61)-ROW(R$61)+1>COUNT(Z$61:Z$76),\"\",\nINDEX(R:R,SMALL(Z$61:Z$76,1+ROW(R61)-ROW(R$61))))","v":"Ammonia"}]
[null,null,null,null,null,null,null,null,null,null,null,null,null,null,null,null,null,"Ammonium nitrate",0.32600000000000001,0.32600000000000001,0.32500000000000001,0.32400000000000001,0.32300000000000001,"BE = BEY-1 - 0.0010","Tonne",62,"Ammonium nitrate"]
[null,null,null,null,null,null,null,null,null,null,null,null,null,null,null,null,null,"Alberta gas processing index",0.9,0.9,0.89100000000000001,0.88200000000000001,0.873,"BE = BEY-1 - 0.0090","Tonne CO2e",63,"Alberta gas processing index"]
[null,null,null,null,null,null,null,null,null,null,null,null,null,null,null,null,null,"Bituminous coal",7.0529999999999995E-2,7.0529999999999995E-2,6.9819999999999993E-2,6.9110000000000005E-2,6.8400000000000002E-2,"BE = BEY-1 - 0.00071","Tonne",64,"Bituminous coal"]
[null,null,null,null,null,null,null,null,null,null,null,null,null,null,null,null,null,"Cement",0.7853,0.7853,0.7823,0.77929999999999999,0.77629999999999999,"BE = BEY-1 - 0.0030","Tonne",65,"Cement"]
[null,null,null,null,null,null,null,null,null,null,null,null,null,null,null,null,null,"Electricity",0.37,0.37,0.36630000000000001,0.36259999999999998,0.3589,"BE = BEY-1 - 0.0037","Megawatt hour",66,"Electricity"]
[null,null,null,null,null,null,null,null,null,null,null,null,null,null,null,null,null,"Ethylene glycol",0.49459999999999998,0.49459999999999998,0.49209999999999998,0.48959999999999998,0.48709999999999998,"BE = BEY-1 - 0.0025","Tonne",67,"Ethylene glycol"]
[null,null,null,null,null,null,null,null,null,null,null,null,null,null,null,null,null,"Hardwood kraft pulp",0.20319999999999999,0.20319999999999999,0.20119999999999999,0.19919999999999999,0.19719999999999999,"BE = BEY-1 - 0.0020","Air dry metric tonne",68,"Hardwood kraft pulp"]
[null,null,null,null,null,null,null,null,null,null,null,null,null,null,null,null,null,"High value chemicals",0.48499999999999999,0.48499999999999999,0.48010000000000003,0.47520000000000001,0.4703,"BE = BEY-1 - 0.0049","Tonne",69,"High value chemicals"]
[null,null,null,null,null,null,null,null,null,null,null,null,null,null,null,null,null,"Hydrogen",9.0679999999999996,9.0679999999999996,8.9969999999999999,8.8859999999999992,8.7949999999999999,"BE = BEY-1 - 0.091","Tonne",70,"Hydrogen"]
[null,null,null,null,null,null,null,null,null,null,null,null,null,null,null,null,null,"Industrial heat",6.2990000000000004E-2,6.2990000000000004E-2,6.2359999999999999E-2,6.173E-2,6.1100000000000002E-2,"BE = BEY-1 - 0.00063","Gigajoule",71,"Industrial heat"]
[null,null,null,null,null,null,null,null,null,null,null,null,null,null,null,null,null,"Oil sands in situ bitumen",0.35039999999999999,0.35039999999999999,0.34689999999999999,0.34339999999999998,0.33989999999999998,"BE = BEY-1 - 0.0035","m3 of bitumen",72,"Oil sands in situ bitumen"]
[null,null,null,null,null,null,null,null,null,null,null,null,null,null,null,null,null,"Oil sands mining bitumen",0.19539999999999999,0.19539999999999999,0.19339999999999999,0.19139999999999999,0.18940000000000001,"BE = BEY-1 - 0.0020","m3 of bitumen",73,"Oil sands mining bitumen"]
[null,null,null,null,null,null,null,null,null,null,null,null,null,null,null,null,null,"Refining",3.831,3.831,3.7930000000000001,3.7549999999999999,3.7170000000000001,"BE = BEY-1 - 0.038","Alberta complexity weighted barrel (in thousands)",74,"Refining"]
[null,null,null,null,null,null,null,null,null,null,null,null,null,null,null,null,null,"Softwood kraft pulp",0.30149999999999999,0.30149999999999999,0.29849999999999999,0.29549999999999998,0.29249999999999998,"BE = BEY-1 - 0.0030","Air dry metric tonne",75,"Softwood kraft pulp"]
[null,null,null,null,null,null,null,null,null,null,null,null,null,null,null,null,null,"Upgrading",2.4510000000000001,2.4510000000000001,2.4260000000000002,2.4009999999999998,2.3759999999999999,"BE = BEY-1 - 0.025","Upgrading AB-CWB (in thousands)",76,"Upgrading"]
[null,null,null,null,null,null,null,null,null,null,null,null,null,null,null,null,null,"Note:  The values in the columns for 2020, 2021 and 2022 reflect the application of an annual 1% tightening rate."]
[null,null,null,null,null,null,null,null,null,null,null,null,null,null,null,null,null,"*BE is the established benchmark for the year."]
[null,null,null,null,null,null,null,null,null,null,null,null,null,null,null,null,null,"**BEY-1 is the established benchmark for the previous year."]
[null,null,null,null,null,null,null,null,null,null,null,null,null,null,null,null,null,"*** is the tightening rate."]
[]
[null,null,null,null,null,null,null,null,null,null,null,null,null,null,null,null,null,"Column that should be selected for the current year:",null,null,null,{"$f":"IFERROR(CHOOSE(MATCH(ReportingYear,$S$59:$X$59,0),$S$61,$S$62,$S$63,$S$64,$S$65,$S$66,$S$67,$S$68,$S$69,$S$70,$S$71,$S$72,$S$73,$S$74,$S$75,$S$76),\"\")","v":""}]
[null,null,null,null,null,null,null,null,null,null,null,null,null,null,null,null,null,"Letter of the column for the matching year:",null,null,null,{"$f":"SUBSTITUTE(ADDRESS(1,V84,4),\"1\",\"\")","v":"S"}]
[null,null,null,null,null,null,null,null,null,null,null,null,null,null,null,null,null,"Position of the matching year in the list 2018-2023 (add the number of column R to make sure the numbers are correct since MATCHE returns a relative number within the input list); 1 by default - if the Year is outside the 2018-2023 range.",null,null,null,{"$f":"IFERROR(MATCH(ReportingYear,$S$59:$W$59,0)+R49,1+R49)","v":19}]
[null,null,null,null,null,null,null,null,null,null,null,null,null,null,null,null,null,"Reporting year",null,null,null,{"$f":"ReportingYear","v":2023}]

{"sheet":"Section B6 (2) ABGPI","index":25,"n_rows":37,"n_cols":16,"rows_kept":37,"cut":false,"hidden":true,"merged":[[0,0,0,12],[2,1,2,12],[4,1,4,11],[34,1,34,9],[36,1,36,11]]}
[{"$f":"\"Section B: \" & Submission!C13 & \" Direct Emissions\"","v":"Section B:  Direct Emissions"},null,null,null,null,null,null,null,null,null,null,null,null,null,null,"hide"]
[]
[null,"Alberta Gas Processing Index Calculation Template"]
[]
[null,"Instructions: Enter the quantities for your facility as provided for the benchmarking exercise.  For facilities that did not participate in the benchmarking exercise, more detailed quantification guidance is forthcoming.  Note that the quantity for Non-Energy Utilities is total plant production, including straddle plant residue gas, in metres cubed oil equivalent.  The weighting factor was based on emissions associated with venting, flaring, and fugitives.  This quantity of total plant production is also used for the Formation CO2 benchmarks."]
[null,"Module","N/A","Quantity",null,"Quantity Units",null,"Weighting/ conversion factor",null,"Weighted Quantity",null,"Weighted Quantity Units"]
[null,"Inlet Compression",null,null,null,"Throughput (e3m3)",null,3.304E-2,null,{"$f":"IF(P7=TRUE,\" \",D7*H7)","v":" "},null,"tonnes CO2e",null,null,null,{"$f":"D7=\"\"","v":true}]
[]
[null,"Dehydration",null,null,null,"Throughput (e3m3)",null,2.47E-3,null,{"$f":"IF(P9=TRUE,\" \",D9*H9)","v":" "},null,"tonnes CO2e",null,null,null,{"$f":"D9=\"\"","v":true}]
[]
[null,"Amine Sweetening",null,null,null,"Throughput (e3m3)",null,3.04E-2,null,{"$f":"IF(P11=TRUE,\" \",D11*H11)","v":" "},null,"tonnes CO2e",null,null,null,{"$f":"D11=\"\"","v":true}]
[]
[null,"Total Refrigeration",null,null,null,"Throughput (e3m3)",null,1.8350000000000002E-2,null,{"$f":"IF(P13=TRUE,\" \",D13*H13)","v":" "},null,"tonnes CO2e",null,null,null,{"$f":"D13=\"\"","v":true}]
[]
[null,"Fractionation",null,null,null,"Production (m3OE)",null,4.1410000000000002E-2,null,{"$f":"IF(P15=TRUE,\" \",D15*H15)","v":" "},null,"tonnes CO2e",null,null,null,{"$f":"D15=\"\"","v":true}]
[]
[null,"Stabilization",null,null,null,"Production (m3OE)",null,5.5370000000000003E-2,null,{"$f":"IF(P17=TRUE,\" \",D17*H17)","v":" "},null,"tonnes CO2e",null,null,null,{"$f":"D17=\"\"","v":true}]
[]
[null,"Sales Compression",null,null,null,"Throughput (e3m3)",null,2.1350000000000001E-2,null,{"$f":"IF(P19=TRUE,\" \",D19*H19)","v":" "},null,"tonnes CO2e",null,null,null,{"$f":"D19=\"\"","v":true}]
[]
[null,"Sulphur Plant",null,null,null,"Production (tonnes sulphur)",null,0.4249,null,{"$f":"IF(P21=TRUE,\" \",D21*H21)","v":" "},null,"tonnes CO2e",null,null,null,{"$f":"D21=\"\"","v":true}]
[]
[null,"Acid Gas Injection",null,null,null,"Throughput (e3m3 acid gas)",null,0.39600000000000002,null,{"$f":"IF(P23=TRUE,\" \",D23*H23)","v":" "},null,"tonnes CO2e",null,null,null,{"$f":"D23=\"\"","v":true}]
[]
[null,"Ethane Extraction",null,null,null,"Production (m3OE)",null,0.12509999999999999,null,{"$f":"IF(P25=TRUE,\" \",D25*H25)","v":" "},null,"tonnes CO2e",null,null,null,{"$f":"D25=\"\"","v":true}]
[]
[null,"Cavern Storage",null,null,null,"Production (m3 ethane)",null,0.01,null,{"$f":"IF(P27=TRUE,\" \",D27*H27)","v":" "},null,"tonnes CO2e",null,null,null,{"$f":"D27=\"\"","v":true}]
[]
[null,"CO2 Plant",null,null,null,"Throughput (e3m3 CO2)",null,0.18809999999999999,null,{"$f":"IF(P29=TRUE,\" \",D29*H29)","v":" "},null,"tonnes CO2e",null,null,null,{"$f":"D29=\"\"","v":true}]
[]
[null,"Flaring, Venting, Fugitives, Other",null,null,null,"Production (m3OE)",null,4.4520000000000002E-3,null,{"$f":"IF(P31=TRUE,\" \",D31*H31)","v":" "},null,"tonnes CO2e",null,null,null,{"$f":"D31=\"\"","v":true}]
[]
[null,null,null,null,null,null,null,"Alberta Gas Processing Index (PABGPI)",null,{"$f":"SUM(J7:J32)","v":0},null,"tonnes CO2e"]
[]
[]
[]
[null,{"$f":"CONCATENATE(ReportingYear,\" - \", 'Section A1'!$B$5)","v":"2023 - "}]

{"sheet":"Section B7 (2)","index":26,"n_rows":59,"n_cols":10,"rows_kept":59,"cut":false,"hidden":false,"merged":[[0,0,0,4],[39,3,40,3]]}
[{"$f":"\"Section B: \" & Submission!C13 & \" Direct Emissions\"","v":"Section B:  Direct Emissions"},null,null,null,null,null,"hide","hide","hide","hide"]
[]
[null,{"$f":"\" Direct Emissions by Gas Type\"","v":" Direct Emissions by Gas Type"},null,null,null,null,"Direct Emissions by Gas Type","Direct Emissions by Gas Type"]
[null,null,"Total Tonnes (in CO2e)"]
[null,"Carbon dioxide (CO2)",{"$f":"SUM('Section B1 (2)'!L5,'Section B1 (2)'!L13,'Section B1 (2)'!L23,'Section B1 (2)'!L31,'Section B1 (2)'!L39,'Section B1 (2)'!L47,'Section B1 (2)'!L55,'Section B1 (2)'!L63)","v":0},"(Excludes CO2 from Biomass)"]
[]
[null,"Methane (CH4)",{"$f":"SUM('Section B1 (2)'!L7,'Section B1 (2)'!L15,'Section B1 (2)'!L25,'Section B1 (2)'!L33,'Section B1 (2)'!L41,'Section B1 (2)'!L49,'Section B1 (2)'!L57)","v":0}]
[]
[null,"Nitrous oxide (N2O)",{"$f":"SUM('Section B1 (2)'!L9,'Section B1 (2)'!L17,'Section B1 (2)'!L27,'Section B1 (2)'!L35,'Section B1 (2)'!L43,'Section B1 (2)'!L51,'Section B1 (2)'!L59)","v":0}]
[]
[null,"Hydrofluorocarbon (HFC)",{"$f":"SUM('Section B3 (2)'!L36)","v":0}]
[]
[null,"Perfluorocarbon (PFC)",{"$f":"'Section B3 (2)'!L38","v":0}]
[]
[null,"Sulphur Hexafluoride (SF6)",{"$f":"'Section B3 (2)'!L42","v":0}]
[]
[null,"Nitrogen Trifluoride (NF3)",{"$f":"'Section B3 (2)'!L40","v":0}]
[]
[null,{"$f":"\" Total Regulated Emissions Calculation\"","v":" Total Regulated Emissions Calculation"},null,null,null,null,"Benchmark Emissions Calculation","Benchmark Emissions Calculation"]
[null,null,"Total Tonnes (in CO2e)"]
[null,"Direct Emissions (DE)",{"$f":"SUM(C5,C7,C9,C11,C13,C15,C17)","v":0},"Sum of CO2, CH4, N2O, HFC, PFC, SF6, NF3",null,null,"Direct Emissions (DE)","Direct (DE)"]
[]
[null,"Exported CO2 (ECO2)",{"$f":"'Section B4 (2)'!H21","v":0}]
[]
[null,"Imported CO2 (ICO2)",{"$f":"'Section B4 (2)'!H25","v":0}]
[]
[null,"CO2 Used in Manufacturing of Urea (UCO2)",{"$f":"'Section B4 (2)'!J42","v":0}]
[]
[null,"Emission from Combustion of Clear Fuels (ECF)",{"$f":"'Section B4 (2)'!O54","v":0}]
[]
[null,"Capture Recognition Tonnes (CRT)",{"$f":"'Section B4 (2)'!O17","v":0}]
[]
[null,"Total Regulated Emissions (TRE)",{"$f":"C21-C25+C23+C27","v":0},{"$f":"IF(OR(Submission!$I$5=2,Submission!$I$5=1),\"TRE = DE - ICO2 + ECO2 + UCO2\",\"TRE = DE - ICO2 + ECO2 + UCO2 - CRT\")","v":"TRE = DE - ICO2 + ECO2 + UCO2"},null,null,"Benchmark Emissions (BE)","Benchmark Emissions (BE)","BE = DE - FFCE - ICO2 + ECO2 + UCO2","BE = DE - FFCE - ICO2 + ECO2 + UCO2"]
[]
[null,{"$f":"\"Allowable Emissions\"","v":"Allowable Emissions"}]
[null,null,"Total Tonnes (in CO2e)"]
[null,"Products Allocations",{"$f":"'Section B6 (2)'!N46","v":0},"∑ BEi x Pi + ∑ BAj x Pj",null,null,"This is OBA before subtraction"]
[]
[null,"Scope Adjustment for Indirect Emissions",{"$f":"'Section B4 (2)'!H32*'Section B7 (2)'!H48+'Section B4 (2)'!H34*'Section B7 (2)'!H50+('Section B4 (2)'!H36*'Section B7 (2)'!H52*(IF('Section B7 (2)'!H55>0,0,1)))","v":{"$error":"#VALUE!"}},"((BEE x IE) + (BEHy x IHy) + (BEIHE x IHE))",null,null,"Scope adjustment (B4) - calculated from inputs and put here."]
[null,null,null,"OBA = ∑ BEi x Pi + ∑ BAj x Pj – ((BEE x IE) + (BEHy x IHy) + (BEIHE x IHE)) + ∑ BTAk x Pk "]
[null,"Output Based Allocation (OBA)",{"$f":"MAX(ROUND(C37-C39,0),0)","v":{"$error":"#VALUE!"}},null,null,null,"OBA = gross-scope"]
[]
[null,{"$f":"CONCATENATE(ReportingYear,\" - \", 'Section A1'!$B$5)","v":"2023 - "}]
[]
[]
[null,null,null,null,null,null,{"$f":"\"Benchmarks for the current compliance/reporting year \" &ReportingYear","v":"Benchmarks for the current compliance/reporting year 2023"}]
[]
[null,null,null,null,null,null,"Electricity benchmark for the current year:",{"$f":"IF(ReportingYear=2018,'Section B6 (2)'!S66,IF(ReportingYear=2019,'Section B6 (2)'!T66,IF(ReportingYear=2020,'Section B6 (2)'!U66,IF(ReportingYear=2021,'Section B6 (2)'!V66,IF(ReportingYear=2022,'Section B6 (2)'!W66,'Section B6 (2)'!X66)))))","v":"BE = BEY-1 - 0.0037"}]
[]
[null,null,null,null,null,null,"Heat",{"$f":"IF(ReportingYear=2018,'Section B6 (2)'!S71,IF(ReportingYear=2019,'Section B6 (2)'!T71,IF(ReportingYear=2020,'Section B6 (2)'!U71,IF(ReportingYear=2021,'Section B6 (2)'!V71,IF(ReportingYear=2022,'Section B6 (2)'!W71,'Section B6 (2)'!X71)))))","v":"BE = BEY-1 - 0.00063"}]
[]
[null,null,null,null,null,null,"Hydrogen",{"$f":"IF(ReportingYear=2018,'Section B6 (2)'!S70,IF(ReportingYear=2019,'Section B6 (2)'!T70,IF(ReportingYear=2020,'Section B6 (2)'!U70,IF(ReportingYear=2021,'Section B6 (2)'!V70,IF(ReportingYear=2022,'Section B6 (2)'!W70,'Section B6 (2)'!X70)))))","v":"BE = BEY-1 - 0.091"}]
[]
[]
[null,null,null,null,null,null,"Hydrogen Exclusion Count",{"$f":"SUM(H56:H59)","v":0}]
[null,null,null,null,null,null,"NAICS Refining",{"$f":"IF('Section A1'!B13=\"324110\",1,0)","v":0}]
[null,null,null,null,null,null,"Product Refining",{"$f":"(COUNTIF('Section B6 (2)'!D6:D44,\"Refining\"))","v":0}]
[null,null,null,null,null,null,"NAICS Oilsands",{"$f":"IF('Section A1'!B13=\"211141\",1,0)+IF('Section A1'!B13=\"211142\",1,0)","v":0}]
[null,null,null,null,null,null,"Product Upgrading",{"$f":"(COUNTIF('Section B6 (2)'!D6:D44,\"Upgrading\"))","v":0}]

{"sheet":"Section B8 (2)","index":27,"n_rows":58,"n_cols":21,"rows_kept":58,"cut":false,"hidden":false,"merged":[[0,0,0,10],[54,1,54,9]]}
[{"$f":"\"Section B: \" & Submission!C13 & \" Fuel Usage\"","v":"Section B:  Fuel Usage"},null,null,null,null,null,null,null,null,null,null,null,"hide","hide","hide","hide","hide","hide","hide","hide","hide"]
[]
[{"$f":"\" Fuel and Feedstock Usage Information\"","v":" Fuel and Feedstock Usage Information"}]
[]
[{"$f":"\"List all fuels and feedstocks associated with emissions that are reported for the facility:\"","v":"List all fuels and feedstocks associated with emissions that are reported for the facility:"}]
[]
[null,"Fuel / Feedstock",null,"Type","N/A","Description",null,"Quantity",null,"Units"]
[1,null,null,null,null,null,null,null,null,{"$f":"IF(N8=TRUE, \"\",VLOOKUP(D8,$R$8:$T$34,3,FALSE))","v":""},null,null,"Fuel",{"$f":"D8=\"\"","v":true},null,null,null,"Aviation gas",null,"Litres","Produced gas"]
[null,null,null,null,null,null,null,null,null,null,null,null,"Feedstock",null,null,null,null,"Aviation jet fuel",null,"Litres","Mixed Gas"]
[2,null,null,null,null,null,null,null,null,{"$f":"IF(N10=TRUE, \"\",VLOOKUP(D10,$R$8:$T$34,3,FALSE))","v":""},null,null,null,{"$f":"D10=\"\"","v":true},null,null,null,"Bunker fuel",null,"Litres","Benzene"]
[null,null,null,null,null,null,null,null,null,null,null,null,null,null,null,null,null,"Butane",null,"Litres","Methane"]
[3,null,null,null,null,null,null,null,null,{"$f":"IF(N12=TRUE, \"\",VLOOKUP(D12,$R$8:$T$34,3,FALSE))","v":""},null,null,null,true,null,null,null,"Coal coke",null,"Tonnes","Oil"]
[null,null,null,null,null,null,null,null,null,null,null,null,null,null,null,null,null,"Coke oven gas",null,"STD m3","Biomass"]
[4,null,null,null,null,null,null,null,null,{"$f":"IF(N14=TRUE, \"\",VLOOKUP(D14,$R$8:$T$34,3,FALSE))","v":""},null,null,null,true,null,null,null,"Diesel - Marked",null,"Litres","Black liquor"]
[null,null,null,null,null,null,null,null,null,null,null,null,null,null,null,null,null,"Diesel - Unmarked",null,"Litres","Hog fuel"]
[5,null,null,null,null,null,null,null,null,{"$f":"IF(N16=TRUE, \"\",VLOOKUP(D16,$R$8:$T$34,3,FALSE))","v":""},null,null,null,true,null,null,null,"Ethane",null,"Litres","NCG"]
[null,null,null,null,null,null,null,null,null,null,null,null,null,null,null,null,null,"Gas liquids",null,"Litres"]
[6,null,null,null,null,null,null,null,null,{"$f":"IF(N18=TRUE, \"\",VLOOKUP(D18,$R$8:$T$34,3,FALSE))","v":""},null,null,null,true,null,"STD m3",null,"Gasoline - Marked",null,"Litres"]
[null,null,null,null,null,null,null,null,null,null,null,null,null,null,null,"Tonnes",null,"Gasoline - Unmarked",null,"Litres"]
[7,null,null,null,null,null,null,null,null,{"$f":"IF(N20=TRUE, \"\",VLOOKUP(D20,$R$8:$T$34,3,FALSE))","v":""},null,null,null,true,null,"kilolitres",null,"Heating distillate oil",null,"Litres"]
[null,null,null,null,null,null,null,null,null,null,null,null,null,null,null,"dry tonnes",null,"Heavy fuel oil",null,"Litres"]
[8,null,null,null,null,null,null,null,null,{"$f":"IF(N22=TRUE, \"\",VLOOKUP(D22,$R$8:$T$34,3,FALSE))","v":""},null,null,null,true,null,null,null,"High heat value coal",null,"Tonnes"]
[null,null,null,null,null,null,null,null,null,null,null,null,null,null,null,null,null,"Kerosene",null,"Litres"]
[9,null,null,null,null,null,null,null,null,{"$f":"IF(N24=TRUE, \"\",VLOOKUP(D24,$R$8:$T$34,3,FALSE))","v":""},null,null,null,true,null,null,null,"Locomotive diesel",null,"Litres"]
[null,null,null,null,null,null,null,null,null,null,null,null,null,null,null,null,null,"Low heat value coal",null,"Tonnes"]
[10,null,null,null,null,null,null,null,null,{"$f":"IF(N26=TRUE, \"\",VLOOKUP(D26,$R$8:$T$34,3,FALSE))","v":""},null,null,null,true,null,null,null,"Methanol",null,"Litres"]
[null,null,null,null,null,null,null,null,null,null,null,null,null,null,null,null,null,"Naphtha",null,"Litres"]
[11,null,null,null,null,null,null,null,null,{"$f":"IF(N28=TRUE, \"\",VLOOKUP(D28,$R$8:$T$34,3,FALSE))","v":""},null,null,null,true,null,null,null,"Natural gas",null,"GJ"]
[null,null,null,null,null,null,null,null,null,null,null,null,null,null,null,null,null,"Raw gas",null,"GJ"]
[12,null,null,null,null,null,null,null,null,{"$f":"IF(N30=TRUE, \"\",VLOOKUP(D30,$R$8:$T$34,3,FALSE))","v":""},null,null,null,true,null,null,null,"Pentanes plus/condensate",null,"Litres"]
[null,null,null,null,null,null,null,null,null,null,null,null,null,null,null,null,null,"Propane",null,"Litres"]
[13,null,null,null,null,null,null,null,null,{"$f":"IF(N32=TRUE, \"\",VLOOKUP(D32,$R$8:$T$34,3,FALSE))","v":""},null,null,null,true,null,null,null,"Refinery gas",null,"STD m3"]
[null,null,null,null,null,null,null,null,null,null,null,null,null,null,null,null,null,"Refinery petroleum coke",null,"Tonnes"]
[14,null,null,null,null,null,null,null,null,{"$f":"IF(N34=TRUE, \"\",VLOOKUP(D34,$R$8:$T$34,3,FALSE))","v":""},null,null,null,true,null,null,null,"Upgrader petroleum coke",null,"Tonnes"]
[]
[15,null,null,null,null,null,null,null,null,{"$f":"IF(N36=TRUE, \"\",VLOOKUP(D36,$R$8:$T$34,3,FALSE))","v":""},null,null,null,true]
[]
[16,null,null,null,null,null,null,null,null,{"$f":"IF(N38=TRUE, \"\",VLOOKUP(D38,$R$8:$T$34,3,FALSE))","v":""},null,null,null,true]
[]
[17,null,null,null,null,null,null,null,null,{"$f":"IF(N40=TRUE, \"\",VLOOKUP(D40,$R$8:$T$34,3,FALSE))","v":""},null,null,null,true]
[]
[18,null,null,null,null,null,null,null,null,{"$f":"IF(N42=TRUE, \"\",VLOOKUP(D42,$R$8:$T$34,3,FALSE))","v":""},null,null,null,true]
[]
[19,null,null,null,null,null,null,null,null,{"$f":"IF(N44=TRUE, \"\",VLOOKUP(D44,$R$8:$T$34,3,FALSE))","v":""},null,null,null,true]
[]
[20,null,null,null,null,null,null,null,null,{"$f":"IF(N46=TRUE, \"\",VLOOKUP(D46,$R$8:$T$34,3,FALSE))","v":""},null,null,null,true]
[]
[]
[]
[]
[]
[]
[]
[]
[null,"All fuels need to be reported whether or not the federal fuel charge has been paid or not."]
[]
[]
[null,{"$f":"CONCATENATE(ReportingYear,\" - \", 'Section A1'!$B$5)","v":"2023 - "}]

{"sheet":"Section B1 (3)","index":28,"n_rows":65,"n_cols":16,"rows_kept":65,"cut":false,"hidden":false,"merged":[[60,1,60,7],[62,1,62,4],[46,1,46,4],[48,1,48,4],[50,1,50,4],[52,1,52,7],[54,1,54,4],[56,1,56,4],[38,1,38,4],[40,1,40,4],[42,1,42,4],[44,1,44,7],[58,1,58,4],[28,1,28,7],[30,1,30,4],[32,1,32,4],[34,1,34,4],[36,1,36,7],[18,5,18,10],[20,1,20,7],[22,1,22,4],[24,1,24,4],[26,1,26,4],[8,1,8,4],[10,1,10,7],[12,1,12,4],[14,1,14,4],[16,1,16,4],[0,0,0,12],[1,1,1,11],[2,1,2,7],[4,1,4,4],[6,1,6,4]]}
[{"$f":"\"Section B: \" & Submission!C15 & \" Direct Emissions\"","v":"Section B:  Direct Emissions"},null,null,null,null,null,null,null,null,null,null,null,null,null,"hide","hide"]
[null,{"$f":"CONCATENATE(O2,P2)","v":"Instructions: Enter value under Tonnes. Conversion to Tonnes CO2e is calculated automatically."},null,null,null,null,null,null,null,null,null,null,null,null,"Instructions: Enter value under Tonnes. Conversion to Tonnes CO2e is calculated automatically."]
[null,"Stationary Fuel Combustion Emissions"]
[null,null,null,null,null,"N/A",null,"Tonnes",null,"GWP",null,"Tonnes (in CO2e)"]
[null,"Carbon dioxide (CO2)",null,null,null,null,null,null,"X",{"$f":"Submission!I44","v":1},"=",{"$f":"H5*J5","v":0},null,null,null,{"$f":"H5=\"\"","v":true}]
[]
[null,"Methane (CH4)",null,null,null,null,null,null,"X",{"$f":"Submission!I45","v":28},"=",{"$f":"H7*J7","v":0},null,null,null,{"$f":"H7=\"\"","v":true}]
[]
[null,"Nitrous oxide (N2O)",null,null,null,null,null,null,"X",{"$f":"Submission!I46","v":265},"=",{"$f":"H9*J9","v":0},null,null,null,{"$f":"H9=\"\"","v":true}]
[]
[null,"Industrial Process Emissions"]
[null,null,null,null,null,"N/A",null,"Tonnes",null,"GWP",null,"Tonnes (in CO2e)"]
[null,"Carbon dioxide (CO2)",null,null,null,null,null,null,"X",{"$f":"J$5","v":1},"=",{"$f":"H13*J13","v":0},null,null,null,{"$f":"H13=\"\"","v":true}]
[]
[null,"Methane (CH4)",null,null,null,null,null,null,"X",{"$f":"J$7","v":28},"=",{"$f":"H15*J15","v":0},null,null,null,{"$f":"H15=\"\"","v":true}]
[]
[null,"Nitrous oxide (N2O)",null,null,null,null,null,null,"X",{"$f":"J$9","v":265},"=",{"$f":"H17*J17","v":0},null,null,null,{"$f":"H17=\"\"","v":true}]
[]
[null,null,null,null,null,"CO2, CH4 and N2O Industrial Process Total",null,null,null,null,null,{"$f":"SUM(L17,L15,L13)","v":0}]
[]
[null,"Venting Emissions"]
[null,null,null,null,null,"N/A",null,"Tonnes",null,"GWP",null,"Tonnes (in CO2e)"]
[null,"Carbon dioxide (CO2)",null,null,null,null,null,null,"X",{"$f":"J$5","v":1},"=",{"$f":"H23*J23","v":0},null,null,null,{"$f":"H23=\"\"","v":true}]
[]
[null,"Methane (CH4)",null,null,null,null,null,null,"X",{"$f":"J$7","v":28},"=",{"$f":"H25*J25","v":0},null,null,null,{"$f":"H25=\"\"","v":true}]
[]
[null,"Nitrous oxide (N2O)",null,null,null,null,null,null,"X",{"$f":"J$9","v":265},"=",{"$f":"H27*J27","v":0},null,null,null,{"$f":"H27=\"\"","v":true}]
[]
[null,"Flaring Emissions"]
[null,null,null,null,null,"N/A",null,"Tonnes",null,"GWP",null,"Tonnes (in CO2e)"]
[null,"Carbon dioxide (CO2)",null,null,null,null,null,null,"X",{"$f":"J$5","v":1},"=",{"$f":"H31*J31","v":0},null,null,null,{"$f":"H31=\"\"","v":true}]
[]
[null,"Methane (CH4)",null,null,null,null,null,null,"X",{"$f":"J$7","v":28},"=",{"$f":"H33*J33","v":0},null,null,null,{"$f":"H33=\"\"","v":true}]
[]
[null,"Nitrous oxide (N2O)",null,null,null,null,null,null,"X",{"$f":"J$9","v":265},"=",{"$f":"H35*J35","v":0},null,null,null,{"$f":"H35=\"\"","v":true}]
[]
[null,"Fugitive/Other Emissions"]
[null,null,null,null,null,"N/A",null,"Tonnes",null,"GWP",null,"Tonnes (in CO2e)"]
[null,"Carbon dioxide (CO2)",null,null,null,null,null,null,"X",{"$f":"J$5","v":1},"=",{"$f":"H39*J39","v":0},null,null,null,{"$f":"H39=\"\"","v":true}]
[]
[null,"Methane (CH4)",null,null,null,null,null,null,"X",{"$f":"J$7","v":28},"=",{"$f":"H41*J41","v":0},null,null,null,{"$f":"H41=\"\"","v":true}]
[]
[null,"Nitrous oxide (N2O)",null,null,null,null,null,null,"X",{"$f":"J$9","v":265},"=",{"$f":"H43*J43","v":0},null,null,null,{"$f":"H43=\"\"","v":true}]
[]
[null,"On-Site Transportation Emissions"]
[null,null,null,null,null,"N/A",null,"Tonnes",null,"GWP",null,"Tonnes (in CO2e)"]
[null,"Carbon dioxide (CO2)",null,null,null,null,null,null,"X",{"$f":"J$5","v":1},"=",{"$f":"H47*J47","v":0},null,null,null,{"$f":"H47=\"\"","v":true}]
[]
[null,"Methane (CH4)",null,null,null,null,null,null,"X",{"$f":"J$7","v":28},"=",{"$f":"H49*J49","v":0},null,null,null,{"$f":"H49=\"\"","v":true}]
[]
[null,"Nitrous oxide (N2O)",null,null,null,null,null,null,"X",{"$f":"J$9","v":265},"=",{"$f":"H51*J51","v":0},null,null,null,{"$f":"H51=\"\"","v":true}]
[]
[null,"Waste and Wastewater Emissions"]
[null,null,null,null,null,"N/A",null,"Tonnes",null,"GWP",null,"Tonnes (in CO2e)"]
[null,"Carbon dioxide (CO2)",null,null,null,null,null,null,"X",{"$f":"J$5","v":1},"=",{"$f":"H55*J55","v":0},null,null,null,{"$f":"H55=\"\"","v":true}]
[]
[null,"Methane (CH4)",null,null,null,null,null,null,"X",{"$f":"J$7","v":28},"=",{"$f":"H57*J57","v":0},null,null,null,{"$f":"H57=\"\"","v":true}]
[]
[null,"Nitrous oxide (N2O)",null,null,null,null,null,null,"X",{"$f":"J$9","v":265},"=",{"$f":"H59*J59","v":0},null,null,null,{"$f":"H59=\"\"","v":true}]
[]
[null,"Formation CO2 Emissions"]
[null,null,null,null,null,"N/A",null,"Tonnes",null,"GWP",null,"Tonnes (in CO2e)"]
[null,"Carbon dioxide (CO2)",null,null,null,null,null,null,"X",{"$f":"J5","v":1},"=",{"$f":"H63*J63","v":0},null,null,null,{"$f":"H63=\"\"","v":true}]
[]
[null,{"$f":"CONCATENATE(ReportingYear,\" - \", 'Section A1'!$B$5)","v":"2023 - "}]

{"sheet":"Section B2 (3)","index":29,"n_rows":46,"n_cols":13,"rows_kept":46,"cut":false,"hidden":false,"merged":[[0,0,0,9],[43,2,43,7],[1,1,1,8]]}
[{"$f":"\"Section B: \" & Submission!C15 & \" Direct Emissions\"","v":"Section B:  Direct Emissions"},null,null,null,null,null,null,null,null,null,null,"hide","hide"]
[null,{"$f":"CONCATENATE(L2,M2)","v":"Instructions: Enter value under Tonnes. Conversion to Tonnes CO2e is calculated automatically."},null,null,null,null,null,null,null,null,null,"Instructions: Enter value under Tonnes. Conversion to Tonnes CO2e is calculated automatically."]
[null,"Hydrofluorocarbon (HFC) Emissions "]
[null,null,null,null,null,null,null,null,null,null,null,null,{"$f":"I44=0","v":true}]
[null,null,"N/A",null,"Tonnes",null,"GWP",null,"Tonnes (in CO2e)"]
[null,"HFC-23 (CHF3)",null,null,null,"X",{"$f":"Submission!I47","v":12400},"=",{"$f":"E6*G6","v":0},null,null,null,{"$f":"E6=\"\"","v":true}]
[]
[null,"HFC-32 (CH2F2)",null,null,null,"X",{"$f":"Submission!I48","v":677},"=",{"$f":"E8*G8","v":0},null,null,null,{"$f":"E8=\"\"","v":true}]
[]
[null,"HFC-41 (CH3F)",null,null,null,"X",{"$f":"Submission!I49","v":116},"=",{"$f":"E10*G10","v":0},null,null,null,{"$f":"E10=\"\"","v":true}]
[]
[null,"HFC-43-10mee (C5H2F10)",null,null,null,"X",{"$f":"Submission!I50","v":1650},"=",{"$f":"E12*G12","v":0},null,null,null,{"$f":"E12=\"\"","v":true}]
[]
[null,"HFC-125 (C2HF5)",null,null,null,"X",{"$f":"Submission!I51","v":3170},"=",{"$f":"E14*G14","v":0},null,null,null,{"$f":"E14=\"\"","v":true}]
[]
[null,"HFC-134 (CHF2CHF2)",null,null,null,"X",{"$f":"Submission!I52","v":1120},"=",{"$f":"E16*G16","v":0},null,null,null,{"$f":"E16=\"\"","v":true}]
[]
[null,"HFC-134a (CH2FCF2)",null,null,null,"X",{"$f":"Submission!I53","v":1300},"=",{"$f":"E18*G18","v":0},null,null,null,{"$f":"E18=\"\"","v":true}]
[]
[null,"HFC-143 (CHF2CH2F)",null,null,null,"X",{"$f":"Submission!I54","v":328},"=",{"$f":"E20*G20","v":0},null,null,null,{"$f":"E20=\"\"","v":true}]
[]
[null,"HFC-143a (CF3CH3)",null,null,null,"X",{"$f":"Submission!I55","v":4800},"=",{"$f":"E22*G22","v":0},null,null,null,{"$f":"E22=\"\"","v":true}]
[]
[null,"HFC-152 (CH2FCH2F)",null,null,null,"X",{"$f":"Submission!I56","v":16},"=",{"$f":"E24*G24","v":0},null,null,null,{"$f":"E24=\"\"","v":true}]
[]
[null,"HFC-152a (CH3CHF2)",null,null,null,"X",{"$f":"Submission!I57","v":138},"=",{"$f":"E26*G26","v":0},null,null,null,{"$f":"E26=\"\"","v":true}]
[]
[null,"HFC-161 (CH3CH2F)",null,null,null,"X",{"$f":"Submission!I58","v":4},"=",{"$f":"E28*G28","v":0},null,null,null,{"$f":"E28=\"\"","v":true}]
[]
[null,"HFC-227ea (C3HF7)",null,null,null,"X",{"$f":"Submission!I59","v":3350},"=",{"$f":"E30*G30","v":0},null,null,null,{"$f":"E30=\"\"","v":true}]
[]
[null,"HFC-236cb (CH2FCF2CF3)",null,null,null,"X",{"$f":"Submission!I60","v":1210},"=",{"$f":"E32*G32","v":0},null,null,null,{"$f":"E32=\"\"","v":true}]
[]
[null,"HFC-236ea (CHF2CHFCF3)",null,null,null,"X",{"$f":"Submission!I61","v":1330},"=",{"$f":"E34*G34","v":0},null,null,null,{"$f":"E34=\"\"","v":true}]
[]
[null,"HFC-236fa (C3H2F6)",null,null,null,"X",{"$f":"Submission!I62","v":8060},"=",{"$f":"E36*G36","v":0},null,null,null,{"$f":"E36=\"\"","v":true}]
[]
[null,"HFC-245ca (C3H3F5)",null,null,null,"X",{"$f":"Submission!I63","v":716},"=",{"$f":"E38*G38","v":0},null,null,null,{"$f":"E38=\"\"","v":true}]
[]
[null,"HFC-245fa (CHF2CH2CF3)",null,null,null,"X",{"$f":"Submission!I64","v":858},"=",{"$f":"E40*G40","v":0},null,null,null,{"$f":"E40=\"\"","v":true}]
[]
[null,"HFC-365mfc (CH3CF2CH2CF3)",null,null,null,"X",{"$f":"Submission!I65","v":804},"=",{"$f":"E42*G42","v":0},null,null,null,{"$f":"E42=\"\"","v":true}]
[]
[null,null,"Total HFC:",null,null,null,null,null,{"$f":"SUM(I6,I8,I10,I12,I14,I16,I18,I20,I22,I24,I26,I28,I30,I32,I34,I36,I38,I40,I42)","v":0}]
[]
[null,{"$f":"CONCATENATE(ReportingYear,\" - \", 'Section A1'!$B$5)","v":"2023 - "}]

{"sheet":"Section B3 (3)","index":30,"n_rows":44,"n_cols":16,"rows_kept":44,"cut":false,"hidden":false,"merged":[[41,1,41,10],[25,1,25,10],[27,1,27,4],[29,1,29,10],[31,1,31,4],[33,1,33,10],[35,1,35,10],[19,1,19,4],[21,1,21,4],[23,5,23,9],[37,1,37,10],[39,1,39,10],[11,1,11,4],[1,1,1,11],[13,1,13,4],[15,1,15,4],[17,1,17,4],[0,0,0,12],[2,1,2,11],[5,1,5,4],[7,1,7,4],[9,1,9,4]]}
[{"$f":"\"Section B: \" & Submission!C15 & \" Direct Emissions\"","v":"Section B:  Direct Emissions"},null,null,null,null,null,null,null,null,null,null,null,null,null,"hide","hide"]
[null,{"$f":"CONCATENATE(O2,P2)","v":"Instructions: Enter value under Tonnes. Conversion to Tonnes CO2e is calculated automatically."},null,null,null,null,null,null,null,null,null,null,null,null,"Instructions: Enter value under Tonnes. Conversion to Tonnes CO2e is calculated automatically."]
[null,"Perfluorocarbon (PFC) Emissions "]
[null,null,null,null,null,null,null,null,null,null,null,null,null,null,null,{"$f":"(L24=0)","v":true}]
[null,null,null,null,null,"N/A",null,"Tonnes",null,"GWP",null,"Tonnes (in CO2e)"]
[null,"Perfluoromethane (CF4)",null,null,null,null,null,null,"X",{"$f":"Submission!I67","v":6630},"=",{"$f":"H6*J6","v":0},null,null,null,{"$f":"H6=\"\"","v":true}]
[]
[null,"Perfluoroethane (C2F6)",null,null,null,null,null,null,"X",{"$f":"Submission!I68","v":11100},"=",{"$f":"H8*J8","v":0},null,null,null,{"$f":"H8=\"\"","v":true}]
[]
[null,"Perfluoropropane (C3F8)",null,null,null,null,null,null,"X",{"$f":"Submission!I69","v":8900},"=",{"$f":"H10*J10","v":0},null,null,null,{"$f":"H10=\"\"","v":true}]
[]
[null,"Perfluorobutane (C4F10)",null,null,null,null,null,null,"X",{"$f":"Submission!I70","v":9200},"=",{"$f":"H12*J12","v":0},null,null,null,{"$f":"H12=\"\"","v":true}]
[]
[null,"Perfluorocyclobutane (c-C4F8)",null,null,null,null,null,null,"X",{"$f":"Submission!I71","v":9540},"=",{"$f":"H14*J14","v":0},null,null,null,{"$f":"H14=\"\"","v":true}]
[]
[null,"Perfluoropentane (C5F12)",null,null,null,null,null,null,"X",{"$f":"Submission!I72","v":8550},"=",{"$f":"H16*J16","v":0},null,null,null,{"$f":"H16=\"\"","v":true}]
[]
[null,"Perfluorohexane (C6F14)",null,null,null,null,null,null,"X",{"$f":"Submission!I73","v":7910},"=",{"$f":"H18*J18","v":0},null,null,null,{"$f":"H18=\"\"","v":true}]
[]
[null,"Perfluorodecalin C10F18",null,null,null,null,null,null,"X",{"$f":"Submission!I74","v":7190},"=",{"$f":"H20*J20","v":0},null,null,null,{"$f":"H20=\"\"","v":true}]
[]
[null,"Perfluorocyclopropane c-C3F6",null,null,null,null,null,null,"X",{"$f":"Submission!I75","v":9200},"=",{"$f":"H22*J22","v":0},null,null,null,{"$f":"H22=\"\"","v":true}]
[]
[null,null,null,null,null,"Total PFC :",null,null,null,null,"=",{"$f":"SUM(L6,L8,L10,L12,L14,L16,L18,L20,L22)","v":0}]
[]
[null,"Nitrogen Trifluoride (NF3)"]
[null,null,null,null,null,"N/A",null,"Tonnes",null,"GWP",null,"Tonnes (in CO2e)"]
[null,"Nitrogen Trifluoride (NF3)",null,null,null,null,null,null,"X",{"$f":"Submission!I76","v":16100},"=",{"$f":"H28*J28","v":0},null,null,null,{"$f":"H28=\"\"","v":true}]
[]
[null,"Sulphur Hexafluoride (SF6) Emissions"]
[null,null,null,null,null,"N/A",null,"Tonnes",null,"GWP",null,"Tonnes (in CO2e)"]
[null,"Sulphur hexafluoride (SF6)",null,null,null,null,null,null,"X",{"$f":"Submission!I66","v":23500},"=",{"$f":"H32*J32","v":0},null,null,null,{"$f":"H32=\"\"","v":true}]
[]
[null,"Total HFC, PFC, NF3 and SF6 Emissions"]
[null,null,null,null,null,null,null,null,null,null,null,"Tonnes (in CO2e)"]
[null,"Hydrofluorocarbon (HFC)",null,null,null,null,null,null,null,null,null,{"$f":"'Section B2 (3)'!$I$44","v":0}]
[]
[null,"Perfluorocarbons (PFC)",null,null,null,null,null,null,null,null,null,{"$f":"$L$24","v":0}]
[]
[null,"Nitrogen Trifluoride (NF3)",null,null,null,null,null,null,null,null,null,{"$f":"$L$28","v":0}]
[]
[null,"Sulphur hexafluoride (SF6)",null,null,null,null,null,null,null,null,null,{"$f":"$L$32","v":0}]
[]
[null,{"$f":"CONCATENATE(ReportingYear,\" - \", 'Section A1'!$B$5)","v":"2023 - "}]

{"sheet":"Section B4 (3)","index":31,"n_rows":57,"n_cols":28,"rows_kept":57,"cut":false,"hidden":false,"merged":[[22,1,22,10],[24,1,24,4],[28,11,28,14],[39,11,39,12],[37,1,37,16],[25,1,25,16],[28,16,28,18],[29,16,31,16],[22,13,22,16],[10,1,10,4],[13,7,13,12],[16,1,16,4],[20,1,20,4],[11,1,11,16],[14,13,14,16],[18,13,18,16],[14,1,14,9],[0,0,0,19],[1,0,1,14],[4,1,4,7],[6,1,6,4],[8,1,8,12],[54,1,54,16],[44,11,44,12],[47,1,47,4],[49,1,49,4],[51,1,51,4],[53,8,53,13],[45,1,45,8]]}
[{"$f":"\"Section B: \" & Submission!C15 & \" Direct Emissions\"","v":"Section B:  Direct Emissions"},null,null,null,null,null,null,null,null,null,null,null,null,null,null,null,null,null,null,null,null,"hide","hide","hide","hide","hide","hide","hide"]
[]
[null,"Biomass CO2 Emissions"]
[]
[null,"CO2 Emissions from Combustion of Biomass (BM)"]
[null,null,null,null,null,"N/A",null,"Tonnes"]
[null,"Carbon dioxide (CO2)",null,null,null,null,null,null,null,null,null,null,null,null,null,null,null,null,null,null,null,null,{"$f":"H7=\"\"","v":true}]
[]
[null,"CO2 Emissions from Decomposition of Biomass (BM)"]
[null,null,null,null,null,"N/A",null,"Tonnes"]
[null,"Carbon dioxide (CO2)",null,null,null,null,null,null,null,null,null,null,null,null,null,null,null,null,null,null,null,null,{"$f":"H11=\"\"","v":true}]
[null,"Note: Only CO₂ emissions from combustion and decomposition of biomass should be reported here. These emissions are not included in the calculation of the direct emissions. Methane and nitrous oxide emissions from biomass combustion and decomposition must be reported in Section B1 in the appropriate category."]
[null,"Captured CO2"]
[]
[null,"CO2 Geologically Injected On Site",null,null,null,null,null,null,null,null,null,null,null,"Capture Recognition Tonnes (CRT)"]
[null,null,null,null,null,"N/A",null,"Tonnes (in CO2e)",null,null,null,null,null,"N/A","Tonnes"]
[null,"Carbon dioxide (CO2)",null,null,null,null,null,null,null,null,null,null,null,null,null,null,null,null,null,null,null,null,{"$f":"H17=\"\"","v":true},null,{"$f":"O17=\"\"","v":true}]
[]
[null,"Exported CO2 (ECO2)",null,null,null,null,null,"Exported from non-IP",null,"IPExport",null,null,null,"Exported for Disposal as Acid Gas"]
[null,null,null,null,null,"N/A",null,"Tonnes (in CO2e)","N/A","Tonnes (in CO2e)",null,null,null,"N/A","Tonnes (in CO2e)"]
[null,"Carbon dioxide (CO2)",null,null,null,null,null,null,null,null,null,null,null,null,null,null,null,null,null,null,null,null,{"$f":"H21=\"\"","v":true},{"$f":"O21=\"\"","v":true},true]
[]
[null,"Imported CO2 (ICO2)",null,null,null,null,null,null,null,null,null,null,null,"Imported for Disposal as Acid Gas"]
[null,null,null,null,null,"N/A",null,"Tonnes (in CO2e)",null,null,null,null,null,"N/A","Tonnes (in CO2e)"]
[null,"Carbon dioxide (CO2)",null,null,null,null,null,null,null,null,null,null,null,null,null,null,null,null,null,null,null,null,{"$f":"H25=\"\"","v":true},{"$f":"O25=\"\"","v":true}]
[null,"Note: This section should include data on carbon capture and storage activities, including acid gas injection and enhanced oil recovery projects. Trace CO2 in fuels, feedstock or products should not be included. \nAny carbon dioxide removed from raw gas and disposed of, as an acid gas stream, to an AER approved underground formation shall be excluded from Exported and Imported CO2. These quantities should be reported in the specific fields provided for disposal of acid gas in Cells O21 and O25.\nExported CO2 reported in this section is added in the calculation of Total Regulated Emissions. Please make sure not to include this quantity in Section B1 to avoid double counting. For example, if Formation or Industrial Process CO2 is being captured by the facility and exported to another facility regulated under TIER Regulation, it should be reported as an export only and not in section B1, otherwise it will be double counted in the Total Regulated Emissions.  "]
[null,"Greenhouse Gas Intensive Inputs & Outputs"]
[]
[null,null,null,null,null,null,null,null,null,null,null,"On site (AB-CWB Only)",null,null,null,null,"Wasted H2 (AB-CWB Only)"]
[null,null,null,null,null,null,null,"Imported",null,"Exported",null,"Generated",null,null,"Used",null,"from Generated\non site",null,"from Imported",null,null,null,1E-4]
[]
[null,"Electricity [MWh]",null,null,null,null,"IE",null,null,null,null,null,null,null,null,null,null,null,null,null,null,null,{"$f":"H32=\"\"","v":true},{"$f":"J32=\"\"","v":true}]
[]
[null,"Heat [GJ]",null,null,null,null,"IHe",null,null,null,null,null,null,null,null,null,null,null,null,null,null,null,{"$f":"H34=\"\"","v":true},{"$f":"J34=\"\"","v":true}]
[]
[null,"Hydrogen [tonnes H2(*)]",null,null,null,null,"IHy",null,null,null,null,null,null,null,null,null,null,null,null,null,null,null,{"$f":"H36=\"\"","v":true},{"$f":"J36=\"\"","v":true},{"$f":"L36=\"\"","v":true},{"$f":"O36=\"\"","v":true},{"$f":"Q36=\"\"","v":true},{"$f":"S36=\"\"","v":true}]
[null,"(*) excluding trace H2 in fuels"]
[]
[null,"CO2 Used in Manufacturing of Urea"]
[]
[null,null,null,null,null,null,null,null,"N/A","Tonnes (in CO2e)"]
[null,"CO2 Used in Manufacturing of Urea (UCO2)",null,null,null,null,null,null,null,null,null,null,null,null,null,null,null,null,null,null,null,null,{"$f":"J42=\"\"","v":true}]
[]
[null,"Emissions from Fuels Subject to the Federal Fuel Charge"]
[]
[null,"Emissions from Fuels Subject to the Federal Fuel Charge"]
[null,null,null,null,null,"N/A",null,"Tonnes",null,null,null,"GWP",null,null,"Tonnes (in CO2e)"]
[null,"Carbon dioxide (CO2)",null,null,null,null,null,null,null,"X",null,{"$f":"Submission!I44","v":1},null,"=",{"$f":"H48*L48","v":0},null,null,null,null,null,null,null,{"$f":"H48=\"\"","v":true}]
[]
[null,"Methane (CH4)",null,null,null,null,null,null,null,"X",null,{"$f":"Submission!I45","v":28},null,"=",{"$f":"H50*L50","v":0},null,null,null,null,null,null,null,{"$f":"H50=\"\"","v":true}]
[]
[null,"Nitrous oxide (N2O)",null,null,null,null,null,null,null,"X",null,{"$f":"Submission!I46","v":265},null,"=",{"$f":"H52*L52","v":0},null,null,null,null,null,null,null,{"$f":"H52=\"\"","v":true}]
[]
[null,null,null,null,null,null,null,null,"CO2, CH4 and N2O Clear Fuel Total (ECF)",null,null,null,null,null,{"$f":"SUM(O52,O50,O48)","v":0}]
[null,"Note: Quantities in this section are substracted from Benchmark Emissions (BE), make sure to also include these quantities in Section B1. "]
[]
[null,{"$f":"CONCATENATE(ReportingYear,\" - \", 'Section A1'!$B$5)","v":"2023 - "}]

{"sheet":"Section B4 EE (3)","index":32,"n_rows":51,"n_cols":15,"rows_kept":51,"cut":false,"hidden":true,"merged":[[0,0,0,10],[21,1,21,9],[35,1,35,9],[49,1,49,9],[50,1,50,9]]}
[{"$f":"\"Section B: \" & Submission!C15 & \" Direct Emissions\"","v":"Section B:  Direct Emissions"},null,null,null,null,null,null,null,null,null,null,null,"hide","hide","hide"]
[]
[null,{"$f":"\"Self-Generation Information\"","v":"Self-Generation Information"},null,null,null,null,null,null,null,null,null,null,null,null,"Trigger"]
[]
[null,null,null,null,null,null,null,null,null,null,null,null,null,{"$f":"IF(O5>0,FALSE,TRUE)","v":true},{"$f":"SUM(I17,I20,I26,I40,I48)","v":0}]
[]
[]
[null,"Self Generation Emissions"]
[]
[null,null,null,null,null,null,null,null,"Tonnes (in CO2e)"]
[null,"Carbon dioxide (CO2)",null,null,null,"X",{"$f":"Submission!I44","v":1},"=",{"$f":"E11*G11","v":0},null,null,null,null,{"$f":"E11=\"\"","v":true}]
[]
[null,"Methane (CH4)",null,null,null,"X",{"$f":"Submission!I45","v":28},"=",{"$f":"E13*G13","v":0},null,null,null,null,{"$f":"E13=\"\"","v":true}]
[]
[null,"Nitrous oxide (N2O)",null,null,null,"X",{"$f":"Submission!I46","v":265},"=",{"$f":"E15*G15","v":0},null,null,null,null,{"$f":"E15=\"\"","v":true}]
[]
[null,null,null,null,null,null,null,"Total GHG Emissions from Self Generation (EE)",{"$f":"SUM(I11,I13,I15)","v":0}]
[]
[]
[null,null,null,null,null,null,null,"Total GHG Emissions from Self Generation (EE)"]
[]
[null,"Note: Report in this section the emissions attributable to self-generation of electricity and\\or cogeneration at the facility for the production of the product or offsite exports of heat and electricity. This include all emissions from fossil fuels but only Methane (CH4) and Nitrous Oxide (N2O) emissions when the fuel used for electricity generation or cogeneration is biomass. "]
[]
[null,{"$f":"\" Electricity\"","v":" Electricity"}]
[null,null,null,null,null,null,null,"N/A","Quantity","Units"]
[null,null,null,null,null,null,"Electricity Self Generated (Net of Station Load)",null,null,"MWh",null,null,null,{"$f":"I26=\"\"","v":true}]
[]
[null,null,null,null,null,null,"Electricity Imported",null,{"$f":"'Section B4 (3)'!H32","v":0},"MWh"]
[]
[null,null,null,null,null,null,"Electricity Exported",null,{"$f":"'Section B4 (3)'!J32","v":0},"MWh"]
[]
[null,"Elecused = Elecself-generated + Elecimport-Elecexport",null,null,null,null,"Electricity Used",null,{"$f":"I26+I28-I30","v":0},"MWh"]
[]
[null,null,null,null,null,null,"Electricity Used",null,null,"MWh",null,null,null,{"$f":"I34=\"\"","v":true}]
[]
[null,{"$f":"IF(Submission!$I$5=2,N36,M36)","v":"Note: Report in this section the electricity generated at the facility from cogeneration and\\or non-cogeneration sources (net of station load). "},null,null,null,null,null,null,null,null,null,null,"Note: Report in this section the electricity generated at the facility from cogeneration and\\or non-cogeneration sources (net of station load). ","Note: Input the corresponding Electricity Used value from the Self-generation Multiproduct Form."]
[null,{"$f":"\" Heat\"","v":" Heat"}]
[]
[null,null,null,null,null,null,null,"N/A","Quantity","Units"]
[null,null,null,null,null,null,"Heat Cogenerated (Net heat produced by cogeneration)",null,null,"GJ",null,null,null,{"$f":"I40=\"\"","v":true}]
[]
[null,null,null,null,null,null,"Heat Imported",null,{"$f":"'Section B4 (3)'!H34","v":0},"GJ"]
[]
[null,null,null,null,null,null,"Heat Exported",null,{"$f":"'Section B4 (3)'!J34","v":0},"GJ"]
[]
[null,null,null,null,"Hused = Hcogenerated + Himport- Hexport",null,"Heat Used",null,{"$f":"I40+I42-I44","v":0},"GJ"]
[]
[null,null,null,null,null,null,"Heat Used",null,null,"GJ",null,null,null,{"$f":"I48=\"\"","v":true}]
[]
[null,{"$f":"IF(Submission!$I$5=2,N50,M50)","v":"Note: Heat cogenerated is heat produced as a by-product of electricity generation at the facility. It does not include heat produced using conventional boilers that are not related to the generation of electricity  "},null,null,null,null,null,null,null,null,null,null,"Note: Heat cogenerated is heat produced as a by-product of electricity generation at the facility. It does not include heat produced using conventional boilers that are not related to the generation of electricity  ","Note: Input the corresponding Heat Used value from the Self-generation Multiproduct Form."]
[null,{"$f":"CONCATENATE(ReportingYear,\" - \", 'Section A1'!$B$5)","v":"2023 - "}]

{"sheet":"Section B5 (3)","index":33,"n_rows":15,"n_cols":17,"rows_kept":15,"cut":false,"hidden":false,"merged":[[13,1,13,12],[14,1,14,12],[15,1,15,12],[0,0,0,13],[1,0,1,12],[3,1,3,12],[4,1,4,12],[6,1,6,12],[9,1,9,12]]}
[{"$f":"\"Section B: \" & Submission!C15 & \" Direct Emissions\"","v":"Section B:  Direct Emissions"},null,null,null,null,null,null,null,null,null,null,null,null,null,null,"hide","hide"]
[]
[null,"Negligible Emission Sources"]
[null,"List all GHG emission sources that are being treated as negligible in the space below. For all negligible, include the annual emissions estimate and expected year-to-year variation in (tonnes CO2e). If additional space is required, please attach a document and specify the name below. Under TIER Regulation all negligible sources are to be included in the corresponding emission categories in Sections B1, B2, B3 and B4, and count towards the Direct Emissions. Alternative methods may be used to assess the negligibility of these emissions."]
[]
[null,{"$f":"\"Public Availability of \"&Submission!C15&\" GHG Emissions Data\"","v":"Public Availability of  GHG Emissions Data"},null,null,null,null,null,null,null,null,null,null,null,null,null,"Options","Yes"]
[null,{"$f":"\"Are \"&Submission!C15&\" greenhouse gas emissions data by gas type for this facility publicly available (i.e., published or by request)?\"","v":"Are  greenhouse gas emissions data by gas type for this facility publicly available (i.e., published or by request)?"},null,null,null,null,null,null,null,null,null,null,null,null,null,null,"No"]
[null,null,null,null,null,null,null,null,null,null,null,null,null,null,null,"Total Publicly Available"]
[]
[null,{"$f":"\"Are \"&Submission!C15&\" greenhouse gas emissions data by source category for this facility publicly available (i.e., published or by request)?\"","v":"Are  greenhouse gas emissions data by source category for this facility publicly available (i.e., published or by request)?"}]
[null,null,null,null,null,null,null,null,null,null,null,null,null,null,null,"By Gas Available"]
[]
[null,"Note: Confidentiality must not be requested for information that is publicly available."]
[]
[null,{"$f":"CONCATENATE(ReportingYear,\" - \", 'Section A1'!$B$5)","v":"2023 - "}]

{"sheet":"Section B6 (3)","index":34,"n_rows":85,"n_cols":27,"rows_kept":85,"cut":false,"hidden":true,"merged":[[79,17,79,24],[0,0,0,14],[48,1,48,13],[53,1,53,13],[76,17,76,24],[77,17,77,24],[78,17,78,24]]}
[{"$f":"\"Section B: \" & Submission!C15 & \" Production Information\"","v":"Section B:  Production Information"},null,null,null,null,null,null,null,null,null,null,null,null,null,null,null,"hide","hide","hide","hide","hide","hide","hide","hide","hide","hide","hide"]
[]
[null,{"$f":"\" Production Information for \"&Submission!C15","v":" Production Information for "}]
[]
[null,null,"N/A","Product (P)",null,"Quantity",null,"Units",null,{"$f":"\"Established or Assigned Benchmark\n(BE or BA) for \"&Submission!C11","v":"Established or Assigned Benchmark\n(BE or BA) for "},null,"Transition Allocation Benchmark (BTA)",null,"Allocations\nTonnes (in CO2e)",null,null,"Established or Assigned Benchmark","Checkboxes","Units",null,"ABGPI Selected"]
[null,"Production Item 1",null,"",null,"",null,null,null,{"$f":"Q6","v":""},null,null,null,{"$f":"IF(R6=TRUE,\" \",F6*J6+F6*L6)","v":" "},null,null,{"$f":"IFERROR(CHOOSE(MATCH($D6,$R$61:$R$76,0),INDIRECT(\"$\"&$V$83&\"$61\"),INDIRECT(\"$\"&$V$83&\"$62\"),INDIRECT(\"$\"&$V$83&\"$63\"),INDIRECT(\"$\"&$V$83&\"$64\"), INDIRECT(\"$\"&$V$83&\"$65\"), INDIRECT(\"$\"&$V$83&\"$66\"),INDIRECT(\"$\"&$V$83&\"$67\"),INDIRECT(\"$\"&$V$83&\"$68\"),INDIRECT(\"$\"&$V$83&\"$69\"),INDIRECT(\"$\"&$V$83&\"$70\"),INDIRECT(\"$\"&$V$83&\"$71\"),INDIRECT(\"$\"&$V$83&\"$72\"),INDIRECT(\"$\"&$V$83&\"$73\"),INDIRECT(\"$\"&$V$83&\"$74\"),INDIRECT(\"$\"&$V$83&\"$75\"),INDIRECT(\"$\"&$V$83&\"$76\")),\"\")","v":""},{"$f":"F6=\"\"","v":true},{"$f":"IFERROR(CHOOSE(MATCH($D6,$R$61:$R$76,0),$Y$61,$Y$62,$Y$63,$Y$64,$Y$65,$Y$66,$Y$67,$Y$68,$Y$69,$Y$70,$Y$71,$Y$72,$Y$73,$Y$74,$Y$75,$Y$76),\"\")","v":""},null,false]
[null,null,null,null,null,null,null,null,null,null,null,null,null,null,null,null,null,null,{"$f":"IFERROR(CHOOSE(MATCH($D7,$R$61:$R$76,0),$Y$61,$Y$62,$Y$63,$Y$64,$Y$65,$Y$66,$Y$67,$Y$68,$Y$69,$Y$70,$Y$71,$Y$72,$Y$73,$Y$74,$Y$75,$Y$76),\"\")","v":""}]
[null,"Production Item 2",null,"",null,"",null,null,null,{"$f":"Q8","v":""},null,null,null,{"$f":"IF(R8=TRUE,\" \",F8*J8+F8*L8)","v":" "},null,null,{"$f":"IFERROR(CHOOSE(MATCH($D8,$R$61:$R$76,0),INDIRECT(\"$\"&$V$83&\"$61\"),INDIRECT(\"$\"&$V$83&\"$62\"),INDIRECT(\"$\"&$V$83&\"$63\"),INDIRECT(\"$\"&$V$83&\"$64\"), INDIRECT(\"$\"&$V$83&\"$65\"), INDIRECT(\"$\"&$V$83&\"$66\"),INDIRECT(\"$\"&$V$83&\"$67\"),INDIRECT(\"$\"&$V$83&\"$68\"),INDIRECT(\"$\"&$V$83&\"$69\"),INDIRECT(\"$\"&$V$83&\"$70\"),INDIRECT(\"$\"&$V$83&\"$71\"),INDIRECT(\"$\"&$V$83&\"$72\"),INDIRECT(\"$\"&$V$83&\"$73\"),INDIRECT(\"$\"&$V$83&\"$74\"),INDIRECT(\"$\"&$V$83&\"$75\"),INDIRECT(\"$\"&$V$83&\"$76\")),\"\")","v":""},{"$f":"F8=\"\"","v":true},""]
[null,null,null,null,null,null,null,null,null,null,null,null,null,null,null,null,null,null,""]
[null,"Production Item 3",null,"",null,"",null,null,null,null,null,null,null,{"$f":"IF(R10=TRUE,\" \",F10*J10+F10*L10)","v":" "},null,null,"",{"$f":"F10=\"\"","v":true},""]
[null,null,null,null,null,null,null,null,null,null,null,null,null,null,null,null,null,null,""]
[null,"Production Item 4",null,"",null,"",null,null,null,null,null,null,null,{"$f":"IF(R12=TRUE,\" \",F12*J12+F12*L12)","v":" "},null,null,"",{"$f":"F12=\"\"","v":true},""]
[null,null,null,null,null,null,null,null,null,null,null,null,null,null,null,null,null,null,""]
[null,"Production Item 5",null,"",null,"",null,null,null,null,null,null,null,{"$f":"IF(R14=TRUE,\" \",F14*J14+F14*L14)","v":" "},null,null,"",{"$f":"F14=\"\"","v":true},""]
[null,null,null,null,null,null,null,null,null,null,null,null,null,null,null,null,null,null,""]
[null,"Production Item 6",null,"",null,"",null,null,null,null,null,null,null,{"$f":"IF(R16=TRUE,\" \",F16*J16+F16*L16)","v":" "},null,null,"",{"$f":"F16=\"\"","v":true},""]
[null,null,null,null,null,null,null,null,null,null,null,null,null,null,null,null,null,null,""]
[null,"Production Item 7",null,"",null,"",null,null,null,null,null,null,null,{"$f":"IF(R18=TRUE,\" \",F18*J18+F18*L18)","v":" "},null,null,"",{"$f":"F18=\"\"","v":true},""]
[null,null,null,null,null,null,null,null,null,null,null,null,null,null,null,null,null,null,""]
[null,"Production Item 8",null,"",null,"",null,null,null,null,null,null,null,{"$f":"IF(R20=TRUE,\" \",F20*J20+F20*L20)","v":" "},null,null,"",{"$f":"F20=\"\"","v":true},""]
[null,null,null,null,null,null,null,null,null,null,null,null,null,null,null,null,null,null,""]
[null,"Production Item 9",null,"",null,"",null,null,null,null,null,null,null,{"$f":"IF(R22=TRUE,\" \",F22*J22+F22*L22)","v":" "},null,null,"",{"$f":"F22=\"\"","v":true},""]
[null,null,null,null,null,null,null,null,null,null,null,null,null,null,null,null,null,null,""]
[null,"Production Item 10",null,"",null,"",null,null,null,null,null,null,null,{"$f":"IF(R24=TRUE,\" \",F24*J24+F24*L24)","v":" "},null,null,"",{"$f":"F24=\"\"","v":true},""]
[null,null,null,null,null,null,null,null,null,null,null,null,null,null,null,null,null,null,""]
[null,"Production Item 11",null,"",null,"",null,null,null,null,null,null,null,{"$f":"IF(R26=TRUE,\" \",F26*J26+F26*L26)","v":" "},null,null,"",{"$f":"F26=\"\"","v":true},""]
[null,null,null,null,null,null,null,null,null,null,null,null,null,null,null,null,null,null,""]
[null,"Production Item 12",null,"",null,"",null,null,null,{"$f":"Q28","v":""},null,null,null,{"$f":"IF(R28=TRUE,\" \",F28*J28+F28*L28)","v":" "},null,null,"",{"$f":"F28=\"\"","v":true},""]
[null,null,null,null,null,null,null,null,null,null,null,null,null,null,null,null,null,null,""]
[null,"Production Item 13",null,"",null,"",null,null,null,null,null,null,null,{"$f":"IF(R30=TRUE,\" \",F30*J30+F30*L30)","v":" "},null,null,"",{"$f":"F30=\"\"","v":true},""]
[null,null,null,null,null,null,null,null,null,null,null,null,null,null,null,null,null,null,""]
[null,"Production Item 14",null,"",null,"",null,null,null,null,null,null,null,{"$f":"IF(R32=TRUE,\" \",F32*J32+F32*L32)","v":" "},null,null,"",{"$f":"F32=\"\"","v":true},""]
[null,null,null,null,null,null,null,null,null,null,null,null,null,null,null,null,null,null,""]
[null,"Production Item 15",null,"",null,"",null,null,null,null,null,null,null,{"$f":"IF(R34=TRUE,\" \",F34*J34+F34*L34)","v":" "},null,null,"",{"$f":"F34=\"\"","v":true},""]
[null,null,null,null,null,null,null,null,null,null,null,null,null,null,null,null,null,null,""]
[null,"Production Item 16",null,"",null,"",null,null,null,null,null,null,null,{"$f":"IF(R36=TRUE,\" \",F36*J36+F36*L36)","v":" "},null,null,"",{"$f":"F36=\"\"","v":true},""]
[null,null,null,null,null,null,null,null,null,null,null,null,null,null,null,null,null,null,""]
[null,"Production Item 17",null,"",null,null,null,null,null,null,null,null,null,{"$f":"IF(R38=TRUE,\" \",F38*J38+F38*L38)","v":" "},null,null,"",{"$f":"F38=\"\"","v":true},""]
[null,null,null,null,null,null,null,null,null,null,null,null,null,null,null,null,null,null,""]
[null,"Production Item 18",null,"",null,null,null,null,null,null,null,null,null,{"$f":"IF(R40=TRUE,\" \",F40*J40+F40*L40)","v":" "},null,null,"",{"$f":"F40=\"\"","v":true},""]
[null,null,null,null,null,null,null,null,null,null,null,null,null,null,null,null,null,null,""]
[null,"Production Item 19",null,"",null,null,null,null,null,null,null,null,null,{"$f":"IF(R42=TRUE,\" \",F42*J42+F42*L42)","v":" "},null,null,"",{"$f":"F42=\"\"","v":true},""]
[null,null,null,null,null,null,null,null,null,null,null,null,null,null,null,null,null,null,""]
[null,"Production Item 20",null,"",null,null,null,null,null,{"$f":"Q44","v":""},null,null,null,{"$f":"IF(R44=TRUE,\" \",F44*J44+F44*L44)","v":" "},null,null,"",{"$f":"F44=\"\"","v":true},""]
[]
[null,"Products Allocations",null,null,null,null,null,null,null,null,null,"Tonnes (in CO2e)",null,{"$f":"SUM(N6,N8,N10,N12,N14,N16,N18,N20,N22,N24,N26,N28,N30,N32,N34,N36,N38,N40,N42,N44)","v":0}]
[]
[null,{"$f":"\"Public Availability of \"&Submission!C15&\" Production Information\"","v":"Public Availability of  Production Information"}]
[null,{"$f":"\"Is \"&Submission!C15&\" production information for this facility publicly available? (i.e. published or by request)\"","v":"Is  production information for this facility publicly available? (i.e. published or by request)"},null,null,null,null,null,null,null,null,null,null,null,null,null,null,null,{"$f":"COLUMN()","v":18}]
[]
[]
[null,"Note: Confidentiality must not be requested for information that is publicly available."]
[null,null,null,null,null,null,null,null,null,null,null,null,null,null,null,null,"Avail",1,"Options","Yes"]
[null,{"$f":"CONCATENATE(ReportingYear,\" - \", 'Section A1'!$B$5)","v":"2023 - "},null,null,null,null,null,null,null,null,null,null,null,null,null,null,null,null,null,"No"]
[]
[]
[null,null,null,null,null,null,null,null,null,null,null,null,null,null,null,null,null,null,"Table   Established Benchmarks for Products"]
[null,null,null,null,null,null,null,null,null,null,null,null,null,null,null,null,null,"Position of the column is the range 2018-2023",{"$f":"COLUMN()","v":19},{"$f":"COLUMN()","v":20},{"$f":"COLUMN()","v":21},{"$f":"COLUMN()","v":22},{"$f":"COLUMN()","v":23}]
[null,null,null,null,null,null,null,null,null,null,null,null,null,null,null,null,null,null,2018,2019,2020,2021,2022,null,"unit"]
[null,null,null,null,null,null,null,null,null,null,null,null,null,null,null,null,null,"Product","Established benchmark for 2018 (tonnes of CO2e per benchmark unit)","Established benchmark for 2019 (tonnes of CO2e per benchmark unit)","Established benchmark for 2020 (tonnes of CO2e per benchmark unit)","Established benchmark for 2021 (tonnes of CO2e per benchmark unit)","Established benchmark for 2022 (tonnes of CO2e per benchmark unit)","Established benchmark for 2023 and subsequent years (tonnes of CO2e per  benchmark unit) is determined as follows:","Benchmark unit","Name used?","List of unused names"]
[null,null,null,null,null,null,null,null,null,null,null,null,null,null,null,null,null,"Ammonia",1.9419999999999999,1.9419999999999999,1.9350000000000001,1.9279999999999999,1.921,"*BE = **BEY-1 - ***0.007","Tonne",{"$f":"IF(COUNTIF($D$6:$D$44,$R61)>=1,\"\",ROW())","v":61},{"$f":"IF(ROW(R61)-ROW(R$61)+1>COUNT(Z$61:Z$76),\"\",\nINDEX(R:R,SMALL(Z$61:Z$76,1+ROW(R61)-ROW(R$61))))","v":"Ammonia"}]
[null,null,null,null,null,null,null,null,null,null,null,null,null,null,null,null,null,"Ammonium nitrate",0.32600000000000001,0.32600000000000001,0.32500000000000001,0.32400000000000001,0.32300000000000001,"BE = BEY-1 - 0.0010","Tonne",62,"Ammonium nitrate"]
[null,null,null,null,null,null,null,null,null,null,null,null,null,null,null,null,null,"Alberta gas processing index",0.9,0.9,0.89100000000000001,0.88200000000000001,0.873,"BE = BEY-1 - 0.0090","Tonne CO2e",63,"Alberta gas processing index"]
[null,null,null,null,null,null,null,null,null,null,null,null,null,null,null,null,null,"Bituminous coal",7.0529999999999995E-2,7.0529999999999995E-2,6.9819999999999993E-2,6.9110000000000005E-2,6.8400000000000002E-2,"BE = BEY-1 - 0.00071","Tonne",64,"Bituminous coal"]
[null,null,null,null,null,null,null,null,null,null,null,null,null,null,null,null,null,"Cement",0.7853,0.7853,0.7823,0.77929999999999999,0.77629999999999999,"BE = BEY-1 - 0.0030","Tonne",65,"Cement"]
[null,null,null,null,null,null,null,null,null,null,null,null,null,null,null,null,null,"Electricity",0.37,0.37,0.36630000000000001,0.36259999999999998,0.3589,"BE = BEY-1 - 0.0037","Megawatt hour",66,"Electricity"]
[null,null,null,null,null,null,null,null,null,null,null,null,null,null,null,null,null,"Ethylene glycol",0.49459999999999998,0.49459999999999998,0.49209999999999998,0.48959999999999998,0.48709999999999998,"BE = BEY-1 - 0.0025","Tonne",67,"Ethylene glycol"]
[null,null,null,null,null,null,null,null,null,null,null,null,null,null,null,null,null,"Hardwood kraft pulp",0.20319999999999999,0.20319999999999999,0.20119999999999999,0.19919999999999999,0.19719999999999999,"BE = BEY-1 - 0.0020","Air dry metric tonne",68,"Hardwood kraft pulp"]
[null,null,null,null,null,null,null,null,null,null,null,null,null,null,null,null,null,"High value chemicals",0.48499999999999999,0.48499999999999999,0.48010000000000003,0.47520000000000001,0.4703,"BE = BEY-1 - 0.0049","Tonne",69,"High value chemicals"]
[null,null,null,null,null,null,null,null,null,null,null,null,null,null,null,null,null,"Hydrogen",9.0679999999999996,9.0679999999999996,8.9969999999999999,8.8859999999999992,8.7949999999999999,"BE = BEY-1 - 0.091","Tonne",70,"Hydrogen"]
[null,null,null,null,null,null,null,null,null,null,null,null,null,null,null,null,null,"Industrial heat",6.2990000000000004E-2,6.2990000000000004E-2,6.2359999999999999E-2,6.173E-2,6.1100000000000002E-2,"BE = BEY-1 - 0.00063","Gigajoule",71,"Industrial heat"]
[null,null,null,null,null,null,null,null,null,null,null,null,null,null,null,null,null,"Oil sands in situ bitumen",0.35039999999999999,0.35039999999999999,0.34689999999999999,0.34339999999999998,0.33989999999999998,"BE = BEY-1 - 0.0035","m3 of bitumen",72,"Oil sands in situ bitumen"]
[null,null,null,null,null,null,null,null,null,null,null,null,null,null,null,null,null,"Oil sands mining bitumen",0.19539999999999999,0.19539999999999999,0.19339999999999999,0.19139999999999999,0.18940000000000001,"BE = BEY-1 - 0.0020","m3 of bitumen",73,"Oil sands mining bitumen"]
[null,null,null,null,null,null,null,null,null,null,null,null,null,null,null,null,null,"Refining",3.831,3.831,3.7930000000000001,3.7549999999999999,3.7170000000000001,"BE = BEY-1 - 0.038","Alberta complexity weighted barrel (in thousands)",74,"Refining"]
[null,null,null,null,null,null,null,null,null,null,null,null,null,null,null,null,null,"Softwood kraft pulp",0.30149999999999999,0.30149999999999999,0.29849999999999999,0.29549999999999998,0.29249999999999998,"BE = BEY-1 - 0.0030","Air dry metric tonne",75,"Softwood kraft pulp"]
[null,null,null,null,null,null,null,null,null,null,null,null,null,null,null,null,null,"Upgrading",2.4510000000000001,2.4510000000000001,2.4260000000000002,2.4009999999999998,2.3759999999999999,"BE = BEY-1 - 0.025","Upgrading AB-CWB (in thousands)",76,"Upgrading"]
[null,null,null,null,null,null,null,null,null,null,null,null,null,null,null,null,null,"Note:  The values in the columns for 2020, 2021 and 2022 reflect the application of an annual 1% tightening rate."]
[null,null,null,null,null,null,null,null,null,null,null,null,null,null,null,null,null,"*BE is the established benchmark for the year."]
[null,null,null,null,null,null,null,null,null,null,null,null,null,null,null,null,null,"**BEY-1 is the established benchmark for the previous year."]
[null,null,null,null,null,null,null,null,null,null,null,null,null,null,null,null,null,"*** is the tightening rate."]
[]
[null,null,null,null,null,null,null,null,null,null,null,null,null,null,null,null,null,"Column that should be selected for the current year:",null,null,null,{"$f":"IFERROR(CHOOSE(MATCH(ReportingYear,$S$59:$X$59,0),$S$61,$S$62,$S$63,$S$64,$S$65,$S$66,$S$67,$S$68,$S$69,$S$70,$S$71,$S$72,$S$73,$S$74,$S$75,$S$76),\"\")","v":""}]
[null,null,null,null,null,null,null,null,null,null,null,null,null,null,null,null,null,"Letter of the column for the matching year:",null,null,null,{"$f":"SUBSTITUTE(ADDRESS(1,V84,4),\"1\",\"\")","v":"S"}]
[null,null,null,null,null,null,null,null,null,null,null,null,null,null,null,null,null,"Position of the matching year in the list 2018-2023 (add the number of column R to make sure the numbers are correct since MATCHE returns a relative number within the input list); 1 by default - if the Year is outside the 2018-2023 range.",null,null,null,{"$f":"IFERROR(MATCH(ReportingYear,$S$59:$W$59,0)+R49,1+R49)","v":19}]
[null,null,null,null,null,null,null,null,null,null,null,null,null,null,null,null,null,"Reporting year",null,null,null,{"$f":"ReportingYear","v":2023}]

{"sheet":"Section B6 (3) ABGPI","index":35,"n_rows":37,"n_cols":16,"rows_kept":37,"cut":false,"hidden":true,"merged":[[0,0,0,12],[2,1,2,12],[4,1,4,11],[34,1,34,9],[36,1,36,11]]}
[{"$f":"\"Section B: \" & Submission!C15 & \" Direct Emissions\"","v":"Section B:  Direct Emissions"},null,null,null,null,null,null,null,null,null,null,null,null,null,null,"hide"]
[]
[null,"Alberta Gas Processing Index Calculation Template"]
[]
[null,"Instructions: Enter the quantities for your facility as provided for the benchmarking exercise.  For facilities that did not participate in the benchmarking exercise, more detailed quantification guidance is forthcoming.  Note that the quantity for Non-Energy Utilities is total plant production, including straddle plant residue gas, in metres cubed oil equivalent.  The weighting factor was based on emissions associated with venting, flaring, and fugitives.  This quantity of total plant production is also used for the Formation CO2 benchmarks."]
[null,"Module","N/A","Quantity",null,"Quantity Units",null,"Weighting/ conversion factor",null,"Weighted Quantity",null,"Weighted Quantity Units"]
[null,"Inlet Compression",null,null,null,"Throughput (e3m3)",null,3.304E-2,null,{"$f":"IF(P7=TRUE,\" \",D7*H7)","v":" "},null,"tonnes CO2e",null,null,null,{"$f":"D7=\"\"","v":true}]
[]
[null,"Dehydration",null,null,null,"Throughput (e3m3)",null,2.47E-3,null,{"$f":"IF(P9=TRUE,\" \",D9*H9)","v":" "},null,"tonnes CO2e",null,null,null,{"$f":"D9=\"\"","v":true}]
[]
[null,"Amine Sweetening",null,null,null,"Throughput (e3m3)",null,3.04E-2,null,{"$f":"IF(P11=TRUE,\" \",D11*H11)","v":" "},null,"tonnes CO2e",null,null,null,{"$f":"D11=\"\"","v":true}]
[]
[null,"Total Refrigeration",null,null,null,"Throughput (e3m3)",null,1.8350000000000002E-2,null,{"$f":"IF(P13=TRUE,\" \",D13*H13)","v":" "},null,"tonnes CO2e",null,null,null,{"$f":"D13=\"\"","v":true}]
[]
[null,"Fractionation",null,null,null,"Production (m3OE)",null,4.1410000000000002E-2,null,{"$f":"IF(P15=TRUE,\" \",D15*H15)","v":" "},null,"tonnes CO2e",null,null,null,{"$f":"D15=\"\"","v":true}]
[]
[null,"Stabilization",null,null,null,"Production (m3OE)",null,5.5370000000000003E-2,null,{"$f":"IF(P17=TRUE,\" \",D17*H17)","v":" "},null,"tonnes CO2e",null,null,null,{"$f":"D17=\"\"","v":true}]
[]
[null,"Sales Compression",null,null,null,"Throughput (e3m3)",null,2.1350000000000001E-2,null,{"$f":"IF(P19=TRUE,\" \",D19*H19)","v":" "},null,"tonnes CO2e",null,null,null,{"$f":"D19=\"\"","v":true}]
[]
[null,"Sulphur Plant",null,null,null,"Production (tonnes sulphur)",null,0.4249,null,{"$f":"IF(P21=TRUE,\" \",D21*H21)","v":" "},null,"tonnes CO2e",null,null,null,{"$f":"D21=\"\"","v":true}]
[]
[null,"Acid Gas Injection",null,null,null,"Throughput (e3m3 acid gas)",null,0.39600000000000002,null,{"$f":"IF(P23=TRUE,\" \",D23*H23)","v":" "},null,"tonnes CO2e",null,null,null,{"$f":"D23=\"\"","v":true}]
[]
[null,"Ethane Extraction",null,null,null,"Production (m3OE)",null,0.12509999999999999,null,{"$f":"IF(P25=TRUE,\" \",D25*H25)","v":" "},null,"tonnes CO2e",null,null,null,true]
[null,null,null,null,null,null,null,null,null,null,null,null,null,null,null,true]
[null,"Cavern Storage",null,null,null,"Production (m3 ethane)",null,0.01,null,{"$f":"IF(P27=TRUE,\" \",D27*H27)","v":" "},null,"tonnes CO2e",null,null,null,true]
[]
[null,"CO2 Plant",null,null,null,"Throughput (e3m3 CO2)",null,0.18809999999999999,null,{"$f":"IF(P29=TRUE,\" \",D29*H29)","v":" "},null,"tonnes CO2e",null,null,null,true]
[]
[null,"Flaring, Venting, Fugitives, Other",null,null,null,"Production (m3OE)",null,4.4520000000000002E-3,null,{"$f":"IF(P31=TRUE,\" \",D31*H31)","v":" "},null,"tonnes CO2e",null,null,null,{"$f":"D31=\"\"","v":true}]
[]
[null,null,null,null,null,null,null,"Alberta Gas Processing Index (PABGPI)",null,{"$f":"SUM(J7:J32)","v":0},null,"tonnes CO2e"]
[]
[]
[]
[null,{"$f":"CONCATENATE(ReportingYear,\" - \", 'Section A1'!$B$5)","v":"2023 - "}]

{"sheet":"Section B7 (3)","index":36,"n_rows":59,"n_cols":11,"rows_kept":59,"cut":false,"hidden":false,"merged":[[0,0,0,4],[39,3,40,3]]}
[{"$f":"\"Section B: \" & Submission!C15 & \" Direct Emissions\"","v":"Section B:  Direct Emissions"},null,null,null,null,null,"hide","hide","hide","hide","hide"]
[]
[null,{"$f":"\" Direct Emissions by Gas Type\"","v":" Direct Emissions by Gas Type"},null,null,null,null,"Direct Emissions by Gas Type","Direct Emissions by Gas Type"]
[null,null,"Total Tonnes (in CO2e)"]
[null,"Carbon dioxide (CO2)",{"$f":"SUM('Section B1 (3)'!L5,'Section B1 (3)'!L13,'Section B1 (3)'!L23,'Section B1 (3)'!L31,'Section B1 (3)'!L39,'Section B1 (3)'!L47,'Section B1 (3)'!L55,'Section B1 (3)'!L63)","v":0},"(Excludes CO2 from Biomass)"]
[]
[null,"Methane (CH4)",{"$f":"SUM('Section B1 (3)'!L7,'Section B1 (3)'!L15,'Section B1 (3)'!L25,'Section B1 (3)'!L33,'Section B1 (3)'!L41,'Section B1 (3)'!L49,'Section B1 (3)'!L57)","v":0}]
[]
[null,"Nitrous oxide (N2O)",{"$f":"SUM('Section B1 (3)'!L9,'Section B1 (3)'!L17,'Section B1 (3)'!L27,'Section B1 (3)'!L35,'Section B1 (3)'!L43,'Section B1 (3)'!L51,'Section B1 (3)'!L59)","v":0}]
[]
[null,"Hydrofluorocarbon (HFC)",{"$f":"SUM('Section B3 (3)'!L36)","v":0}]
[]
[null,"Perfluorocarbon (PFC)",{"$f":"'Section B3 (3)'!L38","v":0}]
[]
[null,"Sulphur Hexafluoride (SF6)",{"$f":"'Section B3 (3)'!L42","v":0}]
[]
[null,"Nitrogen Trifluoride (NF3)",{"$f":"'Section B3 (3)'!L40","v":0}]
[]
[null,{"$f":"\" Total Regulated Emissions Calculation\"","v":" Total Regulated Emissions Calculation"},null,null,null,null,"Benchmark Emissions Calculation","Benchmark Emissions Calculation"]
[null,null,"Total Tonnes (in CO2e)"]
[null,"Direct Emissions (DE)",{"$f":"SUM(C5,C7,C9,C11,C13,C15,C17)","v":0},"Sum of CO2, CH4, N2O, HFC, PFC, SF6, NF3",null,null,"Direct Emissions (DE)","Direct Emissions (DE)"]
[]
[null,"Exported CO2 (ECO2)",{"$f":"'Section B4 (3)'!H21","v":0}]
[]
[null,"Imported CO2 (ICO2)",{"$f":"'Section B4 (3)'!H25","v":0}]
[]
[null,"CO2 Used in Manufacturing of Urea (UCO2)",{"$f":"'Section B4 (3)'!J42","v":0}]
[]
[null,"Emission from Combustion of Clear Fuels (ECF)",{"$f":"'Section B4 (3)'!O54","v":0}]
[]
[null,"Capture Recognition Tonnes (CRT)",{"$f":"'Section B4 (3)'!O17","v":0}]
[]
[null,"Total Regulated Emissions (TRE)",{"$f":"C21-C25+C23+C27","v":0},{"$f":"IF(OR(Submission!$I$5=2,Submission!$I$5=1),\"TRE = DE - ICO2 + ECO2 + UCO2\",\"TRE = DE - ICO2 + ECO2 + UCO2 - CRT\")","v":"TRE = DE - ICO2 + ECO2 + UCO2"},null,null,"Benchmark Emissions (BE)","Benchmark Emissions (BE)","BE = DE - FFCE - ICO2 + ECO2 + UCO2","BE = DE - FFCE - ICO2 + ECO2 + UCO2"]
[]
[null,{"$f":"\"Allowable Emissions\"","v":"Allowable Emissions"}]
[null,null,"Total Tonnes (in CO2e)"]
[null,"Products Allocations",{"$f":"'Section B6 (3)'!N46","v":0},"∑ BEi x Pi + ∑ BAj x Pj",null,null,"This is OBA before subtraction"]
[]
[null,"Scope Adjustment for Indirect Emissions",{"$f":"'Section B4 (3)'!H32*'Section B7 (3)'!H48+'Section B4 (3)'!H34*'Section B7 (3)'!H50+('Section B4 (3)'!H36*'Section B7 (3)'!H52*(IF('Section B7 (3)'!H55>0,0,1)))","v":{"$error":"#VALUE!"}},"((BEE x IE) + (BEHy x IHy) + (BEIHE x IHE))",null,null,"Scope adjustment (B4) - calculated from inputs and put here."]
[null,null,null,"OBA = ∑ BEi x Pi + ∑ BAj x Pj – ((BEE x IE) + (BEHy x IHy) + (BEIHE x IHE)) + ∑ BTAk x Pk "]
[null,"Output Based Allocation (OBA)",{"$f":"MAX(ROUND(C37-C39,0),0)","v":{"$error":"#VALUE!"}},null,null,null,"OBA = gross-scope"]
[]
[null,{"$f":"CONCATENATE(ReportingYear,\" - \", 'Section A1'!$B$5)","v":"2023 - "}]
[]
[]
[null,null,null,null,null,null,{"$f":"\"Benchmarks for the current compliance/reporting year \" &ReportingYear","v":"Benchmarks for the current compliance/reporting year 2023"}]
[]
[null,null,null,null,null,null,"Electricity benchmark for the current year:",{"$f":"IF(ReportingYear=2018,'Section B6 (3)'!S66,IF(ReportingYear=2019,'Section B6 (3)'!T66,IF(ReportingYear=2020,'Section B6 (3)'!U66,IF(ReportingYear=2021,'Section B6 (3)'!V66,IF(ReportingYear=2022,'Section B6 (3)'!W66,'Section B6 (3)'!X66)))))","v":"BE = BEY-1 - 0.0037"}]
[]
[null,null,null,null,null,null,"Heat",{"$f":"IF(ReportingYear=2018,'Section B6 (3)'!S71,IF(ReportingYear=2019,'Section B6 (3)'!T71,IF(ReportingYear=2020,'Section B6 (3)'!U71,IF(ReportingYear=2021,'Section B6 (3)'!V71,IF(ReportingYear=2022,'Section B6 (3)'!W71,'Section B6 (3)'!X71)))))","v":"BE = BEY-1 - 0.00063"}]
[]
[null,null,null,null,null,null,"Hydrogen",{"$f":"IF(ReportingYear=2018,'Section B6 (3)'!S70,IF(ReportingYear=2019,'Section B6 (3)'!T70,IF(ReportingYear=2020,'Section B6 (3)'!U70,IF(ReportingYear=2021,'Section B6 (3)'!V70,IF(ReportingYear=2022,'Section B6 (3)'!W70,'Section B6 (3)'!X70)))))","v":"BE = BEY-1 - 0.091"}]
[]
[]
[null,null,null,null,null,null,"Hydrogen Exclusion Count",{"$f":"SUM(H56:H59)","v":0}]
[null,null,null,null,null,null,"NAICS Refining",{"$f":"IF('Section A1'!B13=\"324110\",1,0)","v":0}]
[null,null,null,null,null,null,"Product Refining",{"$f":"(COUNTIF('Section B6 (3)'!D6:D44,\"Refining\"))","v":0}]
[null,null,null,null,null,null,"NAICS Oilsands",{"$f":"IF('Section A1'!B13=\"211141\",1,0)+IF('Section A1'!B13=\"211142\",1,0)","v":0}]
[null,null,null,null,null,null,"Product Upgrading",{"$f":"(COUNTIF('Section B6 (3)'!D6:D44,\"Upgrading\"))","v":0}]

{"sheet":"Section B8 (3)","index":37,"n_rows":58,"n_cols":21,"rows_kept":58,"cut":false,"hidden":false,"merged":[[0,0,0,10],[54,1,54,9]]}
[{"$f":"\"Section B: \" & Submission!C15 & \" Fuel Usage\"","v":"Section B:  Fuel Usage"},null,null,null,null,null,null,null,null,null,null,null,"hide","hide","hide","hide","hide","hide","hide","hide","hide"]
[]
[{"$f":"\" Fuel and Feedstock Usage Information\"","v":" Fuel and Feedstock Usage Information"}]
[]
[{"$f":"\"List all fuels and feedstocks associated with emissions that are reported for the facility:\"","v":"List all fuels and feedstocks associated with emissions that are reported for the facility:"}]
[]
[null,"Fuel / Feedstock",null,"Type","N/A","Description",null,"Quantity",null,"Units"]
[1,null,null,null,null,null,null,null,null,{"$f":"IF(N8=TRUE, \"\",VLOOKUP(D8,$R$8:$T$34,3,FALSE))","v":""},null,null,"Fuel",{"$f":"D8=\"\"","v":true},null,null,null,"Aviation gas",null,"Litres","Produced gas"]
[null,null,null,null,null,null,null,null,null,null,null,null,"Feedstock",null,null,null,null,"Aviation jet fuel",null,"Litres","Mixed Gas"]
[2,null,null,null,null,null,null,null,null,{"$f":"IF(N10=TRUE, \"\",VLOOKUP(D10,$R$8:$T$34,3,FALSE))","v":""},null,null,null,{"$f":"D10=\"\"","v":true},null,null,null,"Bunker fuel",null,"Litres","Benzene"]
[null,null,null,null,null,null,null,null,null,null,null,null,null,null,null,null,null,"Butane",null,"Litres","Methane"]
[3,null,null,null,null,null,null,null,null,{"$f":"IF(N12=TRUE, \"\",VLOOKUP(D12,$R$8:$T$34,3,FALSE))","v":""},null,null,null,true,null,null,null,"Coal coke",null,"Tonnes","Oil"]
[null,null,null,null,null,null,null,null,null,null,null,null,null,null,null,null,null,"Coke oven gas",null,"STD m3","Biomass"]
[4,null,null,null,null,null,null,null,null,{"$f":"IF(N14=TRUE, \"\",VLOOKUP(D14,$R$8:$T$34,3,FALSE))","v":""},null,null,null,true,null,null,null,"Diesel - Marked",null,"Litres","Black liquor"]
[null,null,null,null,null,null,null,null,null,null,null,null,null,null,null,null,null,"Diesel - Unmarked",null,"Litres","Hog fuel"]
[5,null,null,null,null,null,null,null,null,{"$f":"IF(N16=TRUE, \"\",VLOOKUP(D16,$R$8:$T$34,3,FALSE))","v":""},null,null,null,true,null,null,null,"Ethane",null,"Litres","NCG"]
[null,null,null,null,null,null,null,null,null,null,null,null,null,null,null,null,null,"Gas liquids",null,"Litres"]
[6,null,null,null,null,null,null,null,null,{"$f":"IF(N18=TRUE, \"\",VLOOKUP(D18,$R$8:$T$34,3,FALSE))","v":""},null,null,null,true,null,"STD m3",null,"Gasoline - Marked",null,"Litres"]
[null,null,null,null,null,null,null,null,null,null,null,null,null,null,null,"Tonnes",null,"Gasoline - Unmarked",null,"Litres"]
[7,null,null,null,null,null,null,null,null,{"$f":"IF(N20=TRUE, \"\",VLOOKUP(D20,$R$8:$T$34,3,FALSE))","v":""},null,null,null,true,null,"kilolitres",null,"Heating distillate oil",null,"Litres"]
[null,null,null,null,null,null,null,null,null,null,null,null,null,null,null,"dry tonnes",null,"Heavy fuel oil",null,"Litres"]
[8,null,null,null,null,null,null,null,null,{"$f":"IF(N22=TRUE, \"\",VLOOKUP(D22,$R$8:$T$34,3,FALSE))","v":""},null,null,null,true,null,null,null,"High heat value coal",null,"Tonnes"]
[null,null,null,null,null,null,null,null,null,null,null,null,null,null,null,null,null,"Kerosene",null,"Litres"]
[9,null,null,null,null,null,null,null,null,{"$f":"IF(N24=TRUE, \"\",VLOOKUP(D24,$R$8:$T$34,3,FALSE))","v":""},null,null,null,true,null,null,null,"Locomotive diesel",null,"Litres"]
[null,null,null,null,null,null,null,null,null,null,null,null,null,null,null,null,null,"Low heat value coal",null,"Tonnes"]
[10,null,null,null,null,null,null,null,null,{"$f":"IF(N26=TRUE, \"\",VLOOKUP(D26,$R$8:$T$34,3,FALSE))","v":""},null,null,null,true,null,null,null,"Methanol",null,"Litres"]
[null,null,null,null,null,null,null,null,null,null,null,null,null,null,null,null,null,"Naphtha",null,"Litres"]
[11,null,null,null,null,null,null,null,null,{"$f":"IF(N28=TRUE, \"\",VLOOKUP(D28,$R$8:$T$34,3,FALSE))","v":""},null,null,null,true,null,null,null,"Natural gas",null,"GJ"]
[null,null,null,null,null,null,null,null,null,null,null,null,null,null,null,null,null,"Raw gas",null,"GJ"]
[12,null,null,null,null,null,null,null,null,{"$f":"IF(N30=TRUE, \"\",VLOOKUP(D30,$R$8:$T$34,3,FALSE))","v":""},null,null,null,true,null,null,null,"Pentanes plus/condensate",null,"Litres"]
[null,null,null,null,null,null,null,null,null,null,null,null,null,null,null,null,null,"Propane",null,"Litres"]
[13,null,null,null,null,null,null,null,null,{"$f":"IF(N32=TRUE, \"\",VLOOKUP(D32,$R$8:$T$34,3,FALSE))","v":""},null,null,null,true,null,null,null,"Refinery gas",null,"STD m3"]
[null,null,null,null,null,null,null,null,null,null,null,null,null,null,null,null,null,"Refinery petroleum coke",null,"Tonnes"]
[14,null,null,null,null,null,null,null,null,{"$f":"IF(N34=TRUE, \"\",VLOOKUP(D34,$R$8:$T$34,3,FALSE))","v":""},null,null,null,true,null,null,null,"Upgrader petroleum coke",null,"Tonnes"]
[]
[15,null,null,null,null,null,null,null,null,{"$f":"IF(N36=TRUE, \"\",VLOOKUP(D36,$R$8:$T$34,3,FALSE))","v":""},null,null,null,true]
[]
[16,null,null,null,null,null,null,null,null,{"$f":"IF(N38=TRUE, \"\",VLOOKUP(D38,$R$8:$T$34,3,FALSE))","v":""},null,null,null,true]
[]
[17,null,null,null,null,null,null,null,null,{"$f":"IF(N40=TRUE, \"\",VLOOKUP(D40,$R$8:$T$34,3,FALSE))","v":""},null,null,null,true]
[]
[18,null,null,null,null,null,null,null,null,{"$f":"IF(N42=TRUE, \"\",VLOOKUP(D42,$R$8:$T$34,3,FALSE))","v":""},null,null,null,true]
[]
[19,null,null,null,null,null,null,null,null,{"$f":"IF(N44=TRUE, \"\",VLOOKUP(D44,$R$8:$T$34,3,FALSE))","v":""},null,null,null,true]
[]
[20,null,null,null,null,null,null,null,null,{"$f":"IF(N46=TRUE, \"\",VLOOKUP(D46,$R$8:$T$34,3,FALSE))","v":""},null,null,null,true]
[]
[]
[]
[]
[]
[]
[]
[]
[null,"All fuels need to be reported whether or not the federal fuel charge has been paid or not."]
[]
[]
[null,{"$f":"CONCATENATE(ReportingYear,\" - \", 'Section A1'!$B$5)","v":"2023 - "}]

{"sheet":"Section B1 (4)","index":38,"n_rows":65,"n_cols":16,"rows_kept":65,"cut":false,"hidden":true,"merged":[[20,1,20,7],[0,0,0,12],[1,1,1,11],[2,1,2,7],[4,1,4,4],[6,1,6,4],[8,1,8,4],[10,1,10,7],[12,1,12,4],[14,1,14,4],[16,1,16,4],[18,5,18,10],[44,1,44,7],[22,1,22,4],[24,1,24,4],[26,1,26,4],[28,1,28,7],[30,1,30,4],[32,1,32,4],[34,1,34,4],[36,1,36,7],[38,1,38,4],[40,1,40,4],[42,1,42,4],[58,1,58,4],[60,1,60,7],[62,1,62,4],[46,1,46,4],[48,1,48,4],[50,1,50,4],[52,1,52,7],[54,1,54,4],[56,1,56,4]]}
[{"$f":"\"Section B: \" & Submission!C17 & \" Direct Emissions\"","v":"Section B:  Direct Emissions"},null,null,null,null,null,null,null,null,null,null,null,null,null,"hide","hide"]
[null,{"$f":"CONCATENATE(O2,P2)","v":"Instructions: Enter value under Tonnes. Conversion to Tonnes CO2e is calculated automatically."},null,null,null,null,null,null,null,null,null,null,null,null,"Instructions: Enter value under Tonnes. Conversion to Tonnes CO2e is calculated automatically."]
[null,"Stationary Fuel Combustion Emissions"]
[null,null,null,null,null,"N/A",null,"Tonnes",null,"GWP",null,"Tonnes (in CO2e)"]
[null,"Carbon dioxide (CO2)",null,null,null,null,null,null,"X",{"$f":"Submission!I44","v":1},"=",{"$f":"H5*J5","v":0},null,null,null,{"$f":"H5=\"\"","v":true}]
[]
[null,"Methane (CH4)",null,null,null,null,null,null,"X",{"$f":"Submission!I45","v":28},"=",{"$f":"H7*J7","v":0},null,null,null,{"$f":"H7=\"\"","v":true}]
[]
[null,"Nitrous oxide (N2O)",null,null,null,null,null,null,"X",{"$f":"Submission!I46","v":265},"=",{"$f":"H9*J9","v":0},null,null,null,{"$f":"H9=\"\"","v":true}]
[]
[null,"Industrial Process Emissions"]
[null,null,null,null,null,"N/A",null,"Tonnes",null,"GWP",null,"Tonnes (in CO2e)"]
[null,"Carbon dioxide (CO2)",null,null,null,null,null,null,"X",{"$f":"J$5","v":1},"=",{"$f":"H13*J13","v":0},null,null,null,{"$f":"H13=\"\"","v":true}]
[]
[null,"Methane (CH4)",null,null,null,null,null,null,"X",{"$f":"J$7","v":28},"=",{"$f":"H15*J15","v":0},null,null,null,{"$f":"H15=\"\"","v":true}]
[]
[null,"Nitrous oxide (N2O)",null,null,null,null,null,null,"X",{"$f":"J$9","v":265},"=",{"$f":"H17*J17","v":0},null,null,null,{"$f":"H17=\"\"","v":true}]
[]
[null,null,null,null,null,"CO2, CH4 and N2O Industrial Process Total",null,null,null,null,null,{"$f":"SUM(L17,L15,L13)","v":0}]
[]
[null,"Venting Emissions"]
[null,null,null,null,null,"N/A",null,"Tonnes",null,"GWP",null,"Tonnes (in CO2e)"]
[null,"Carbon dioxide (CO2)",null,null,null,null,null,null,"X",{"$f":"J$5","v":1},"=",{"$f":"H23*J23","v":0},null,null,null,{"$f":"H23=\"\"","v":true}]
[]
[null,"Methane (CH4)",null,null,null,null,null,null,"X",{"$f":"J$7","v":28},"=",{"$f":"H25*J25","v":0},null,null,null,{"$f":"H25=\"\"","v":true}]
[]
[null,"Nitrous oxide (N2O)",null,null,null,null,null,null,"X",{"$f":"J$9","v":265},"=",{"$f":"H27*J27","v":0},null,null,null,{"$f":"H27=\"\"","v":true}]
[]
[null,"Flaring Emissions"]
[null,null,null,null,null,"N/A",null,"Tonnes",null,"GWP",null,"Tonnes (in CO2e)"]
[null,"Carbon dioxide (CO2)",null,null,null,null,null,null,"X",{"$f":"J$5","v":1},"=",{"$f":"H31*J31","v":0},null,null,null,{"$f":"H31=\"\"","v":true}]
[]
[null,"Methane (CH4)",null,null,null,null,null,null,"X",{"$f":"J$7","v":28},"=",{"$f":"H33*J33","v":0},null,null,null,{"$f":"H33=\"\"","v":true}]
[]
[null,"Nitrous oxide (N2O)",null,null,null,null,null,null,"X",{"$f":"J$9","v":265},"=",{"$f":"H35*J35","v":0},null,null,null,{"$f":"H35=\"\"","v":true}]
[]
[null,"Fugitive/Other Emissions"]
[null,null,null,null,null,"N/A",null,"Tonnes",null,"GWP",null,"Tonnes (in CO2e)"]
[null,"Carbon dioxide (CO2)",null,null,null,null,null,null,"X",{"$f":"J$5","v":1},"=",{"$f":"H39*J39","v":0},null,null,null,{"$f":"H39=\"\"","v":true}]
[]
[null,"Methane (CH4)",null,null,null,null,null,null,"X",{"$f":"J$7","v":28},"=",{"$f":"H41*J41","v":0},null,null,null,{"$f":"H41=\"\"","v":true}]
[]
[null,"Nitrous oxide (N2O)",null,null,null,null,null,null,"X",{"$f":"J$9","v":265},"=",{"$f":"H43*J43","v":0},null,null,null,{"$f":"H43=\"\"","v":true}]
[]
[null,"On-Site Transportation Emissions"]
[null,null,null,null,null,"N/A",null,"Tonnes",null,"GWP",null,"Tonnes (in CO2e)"]
[null,"Carbon dioxide (CO2)",null,null,null,null,null,null,"X",{"$f":"J$5","v":1},"=",{"$f":"H47*J47","v":0},null,null,null,{"$f":"H47=\"\"","v":true}]
[]
[null,"Methane (CH4)",null,null,null,null,null,null,"X",{"$f":"J$7","v":28},"=",{"$f":"H49*J49","v":0},null,null,null,{"$f":"H49=\"\"","v":true}]
[]
[null,"Nitrous oxide (N2O)",null,null,null,null,null,null,"X",{"$f":"J$9","v":265},"=",{"$f":"H51*J51","v":0},null,null,null,{"$f":"H51=\"\"","v":true}]
[]
[null,"Waste and Wastewater Emissions"]
[null,null,null,null,null,"N/A",null,"Tonnes",null,"GWP",null,"Tonnes (in CO2e)"]
[null,"Carbon dioxide (CO2)",null,null,null,null,null,null,"X",{"$f":"J$5","v":1},"=",{"$f":"H55*J55","v":0},null,null,null,{"$f":"H55=\"\"","v":true}]
[]
[null,"Methane (CH4)",null,null,null,null,null,null,"X",{"$f":"J$7","v":28},"=",{"$f":"H57*J57","v":0},null,null,null,{"$f":"H57=\"\"","v":true}]
[]
[null,"Nitrous oxide (N2O)",null,null,null,null,null,null,"X",{"$f":"J$9","v":265},"=",{"$f":"H59*J59","v":0},null,null,null,{"$f":"H59=\"\"","v":true}]
[]
[null,"Formation CO2 Emissions"]
[null,null,null,null,null,"N/A",null,"Tonnes",null,"GWP",null,"Tonnes (in CO2e)"]
[null,"Carbon dioxide (CO2)",null,null,null,null,null,null,"X",{"$f":"J5","v":1},"=",{"$f":"H63*J63","v":0},null,null,null,{"$f":"H63=\"\"","v":true}]
[]
[null,{"$f":"CONCATENATE(ReportingYear,\" - \", 'Section A1'!$B$5)","v":"2023 - "}]

{"sheet":"Section B2 (4)","index":39,"n_rows":46,"n_cols":13,"rows_kept":46,"cut":false,"hidden":true,"merged":[[0,0,0,9],[1,1,1,8],[43,2,43,7]]}
[{"$f":"\"Section B: \" & Submission!C17 & \" Direct Emissions\"","v":"Section B:  Direct Emissions"},null,null,null,null,null,null,null,null,null,null,"hide","hide"]
[null,{"$f":"CONCATENATE(L2,M2)","v":"Instructions: Enter value under Tonnes. Conversion to Tonnes CO2e is calculated automatically."},null,null,null,null,null,null,null,null,null,"Instructions: Enter value under Tonnes. Conversion to Tonnes CO2e is calculated automatically."]
[null,"Hydrofluorocarbon (HFC) Emissions "]
[null,null,null,null,null,null,null,null,null,null,null,null,{"$f":"I44=0","v":true}]
[null,null,"N/A",null,"Tonnes",null,"GWP",null,"Tonnes (in CO2e)"]
[null,"HFC-23 (CHF3)",null,null,null,"X",{"$f":"Submission!I47","v":12400},"=",{"$f":"E6*G6","v":0},null,null,null,{"$f":"E6=\"\"","v":true}]
[]
[null,"HFC-32 (CH2F2)",null,null,null,"X",{"$f":"Submission!I48","v":677},"=",{"$f":"E8*G8","v":0},null,null,null,{"$f":"E8=\"\"","v":true}]
[]
[null,"HFC-41 (CH3F)",null,null,null,"X",{"$f":"Submission!I49","v":116},"=",{"$f":"E10*G10","v":0},null,null,null,{"$f":"E10=\"\"","v":true}]
[]
[null,"HFC-43-10mee (C5H2F10)",null,null,null,"X",{"$f":"Submission!I50","v":1650},"=",{"$f":"E12*G12","v":0},null,null,null,{"$f":"E12=\"\"","v":true}]
[]
[null,"HFC-125 (C2HF5)",null,null,null,"X",{"$f":"Submission!I51","v":3170},"=",{"$f":"E14*G14","v":0},null,null,null,{"$f":"E14=\"\"","v":true}]
[]
[null,"HFC-134 (CHF2CHF2)",null,null,null,"X",{"$f":"Submission!I52","v":1120},"=",{"$f":"E16*G16","v":0},null,null,null,{"$f":"E16=\"\"","v":true}]
[]
[null,"HFC-134a (CH2FCF2)",null,null,null,"X",{"$f":"Submission!I53","v":1300},"=",{"$f":"E18*G18","v":0},null,null,null,{"$f":"E18=\"\"","v":true}]
[]
[null,"HFC-143 (CHF2CH2F)",null,null,null,"X",{"$f":"Submission!I54","v":328},"=",{"$f":"E20*G20","v":0},null,null,null,{"$f":"E20=\"\"","v":true}]
[]
[null,"HFC-143a (CF3CH3)",null,null,null,"X",{"$f":"Submission!I55","v":4800},"=",{"$f":"E22*G22","v":0},null,null,null,{"$f":"E22=\"\"","v":true}]
[]
[null,"HFC-152 (CH2FCH2F)",null,null,null,"X",{"$f":"Submission!I56","v":16},"=",{"$f":"E24*G24","v":0},null,null,null,{"$f":"E24=\"\"","v":true}]
[]
[null,"HFC-152a (CH3CHF2)",null,null,null,"X",{"$f":"Submission!I57","v":138},"=",{"$f":"E26*G26","v":0},null,null,null,{"$f":"E26=\"\"","v":true}]
[]
[null,"HFC-161 (CH3CH2F)",null,null,null,"X",{"$f":"Submission!I58","v":4},"=",{"$f":"E28*G28","v":0},null,null,null,{"$f":"E28=\"\"","v":true}]
[]
[null,"HFC-227ea (C3HF7)",null,null,null,"X",{"$f":"Submission!I59","v":3350},"=",{"$f":"E30*G30","v":0},null,null,null,{"$f":"E30=\"\"","v":true}]
[]
[null,"HFC-236cb (CH2FCF2CF3)",null,null,null,"X",{"$f":"Submission!I60","v":1210},"=",{"$f":"E32*G32","v":0},null,null,null,{"$f":"E32=\"\"","v":true}]
[]
[null,"HFC-236ea (CHF2CHFCF3)",null,null,null,"X",{"$f":"Submission!I61","v":1330},"=",{"$f":"E34*G34","v":0},null,null,null,{"$f":"E34=\"\"","v":true}]
[]
[null,"HFC-236fa (C3H2F6)",null,null,null,"X",{"$f":"Submission!I62","v":8060},"=",{"$f":"E36*G36","v":0},null,null,null,{"$f":"E36=\"\"","v":true}]
[]
[null,"HFC-245ca (C3H3F5)",null,null,null,"X",{"$f":"Submission!I63","v":716},"=",{"$f":"E38*G38","v":0},null,null,null,{"$f":"E38=\"\"","v":true}]
[]
[null,"HFC-245fa (CHF2CH2CF3)",null,null,null,"X",{"$f":"Submission!I64","v":858},"=",{"$f":"E40*G40","v":0},null,null,null,{"$f":"E40=\"\"","v":true}]
[]
[null,"HFC-365mfc (CH3CF2CH2CF3)",null,null,null,"X",{"$f":"Submission!I65","v":804},"=",{"$f":"E42*G42","v":0},null,null,null,{"$f":"E42=\"\"","v":true}]
[]
[null,null,"Total HFC:",null,null,null,null,null,{"$f":"SUM(I6,I8,I10,I12,I14,I16,I18,I20,I22,I24,I26,I28,I30,I32,I34,I36,I38,I40,I42)","v":0}]
[]
[null,{"$f":"CONCATENATE(ReportingYear,\" - \", 'Section A1'!$B$5)","v":"2023 - "}]

{"sheet":"Section B3 (4)","index":40,"n_rows":44,"n_cols":16,"rows_kept":44,"cut":false,"hidden":true,"merged":[[21,1,21,4],[0,0,0,12],[1,1,1,11],[2,1,2,11],[5,1,5,4],[7,1,7,4],[9,1,9,4],[11,1,11,4],[13,1,13,4],[15,1,15,4],[17,1,17,4],[19,1,19,4],[35,1,35,10],[37,1,37,10],[39,1,39,10],[41,1,41,10],[23,5,23,9],[25,1,25,10],[27,1,27,4],[29,1,29,10],[31,1,31,4],[33,1,33,10]]}
[{"$f":"\"Section B: \" & Submission!C17 & \" Direct Emissions\"","v":"Section B:  Direct Emissions"},null,null,null,null,null,null,null,null,null,null,null,null,null,"hide","hide"]
[null,{"$f":"CONCATENATE(O2,P2)","v":"Instructions: Enter value under Tonnes. Conversion to Tonnes CO2e is calculated automatically."},null,null,null,null,null,null,null,null,null,null,null,null,"Instructions: Enter value under Tonnes. Conversion to Tonnes CO2e is calculated automatically."]
[null,"Perfluorocarbon (PFC) Emissions "]
[null,null,null,null,null,null,null,null,null,null,null,null,null,null,null,{"$f":"(L24=0)","v":true}]
[null,null,null,null,null,"N/A",null,"Tonnes",null,"GWP",null,"Tonnes (in CO2e)"]
[null,"Perfluoromethane (CF4)",null,null,null,null,null,null,"X",{"$f":"Submission!I67","v":6630},"=",{"$f":"H6*J6","v":0},null,null,null,{"$f":"H6=\"\"","v":true}]
[]
[null,"Perfluoroethane (C2F6)",null,null,null,null,null,null,"X",{"$f":"Submission!I68","v":11100},"=",{"$f":"H8*J8","v":0},null,null,null,{"$f":"H8=\"\"","v":true}]
[]
[null,"Perfluoropropane (C3F8)",null,null,null,null,null,null,"X",{"$f":"Submission!I69","v":8900},"=",{"$f":"H10*J10","v":0},null,null,null,{"$f":"H10=\"\"","v":true}]
[]
[null,"Perfluorobutane (C4F10)",null,null,null,null,null,null,"X",{"$f":"Submission!I70","v":9200},"=",{"$f":"H12*J12","v":0},null,null,null,{"$f":"H12=\"\"","v":true}]
[]
[null,"Perfluorocyclobutane (c-C4F8)",null,null,null,null,null,null,"X",{"$f":"Submission!I71","v":9540},"=",{"$f":"H14*J14","v":0},null,null,null,{"$f":"H14=\"\"","v":true}]
[]
[null,"Perfluoropentane (C5F12)",null,null,null,null,null,null,"X",{"$f":"Submission!I72","v":8550},"=",{"$f":"H16*J16","v":0},null,null,null,{"$f":"H16=\"\"","v":true}]
[]
[null,"Perfluorohexane (C6F14)",null,null,null,null,null,null,"X",{"$f":"Submission!I73","v":7910},"=",{"$f":"H18*J18","v":0},null,null,null,{"$f":"H18=\"\"","v":true}]
[]
[null,"Perfluorodecalin C10F18",null,null,null,null,null,null,"X",{"$f":"Submission!I74","v":7190},"=",{"$f":"H20*J20","v":0},null,null,null,{"$f":"H20=\"\"","v":true}]
[]
[null,"Perfluorocyclopropane c-C3F6",null,null,null,null,null,null,"X",{"$f":"Submission!I75","v":9200},"=",{"$f":"H22*J22","v":0},null,null,null,{"$f":"H22=\"\"","v":true}]
[]
[null,null,null,null,null,"Total PFC :",null,null,null,null,"=",{"$f":"SUM(L6,L8,L10,L12,L14,L16,L18,L20,L22)","v":0}]
[]
[null,"Nitrogen Trifluoride (NF3)"]
[null,null,null,null,null,"N/A",null,"Tonnes",null,"GWP",null,"Tonnes (in CO2e)"]
[null,"Nitrogen Trifluoride (NF3)",null,null,null,null,null,null,"X",{"$f":"Submission!I76","v":16100},"=",{"$f":"H28*J28","v":0},null,null,null,{"$f":"H28=\"\"","v":true}]
[]
[null,"Sulphur Hexafluoride (SF6) Emissions"]
[null,null,null,null,null,"N/A",null,"Tonnes",null,"GWP",null,"Tonnes (in CO2e)"]
[null,"Sulphur hexafluoride (SF6)",null,null,null,null,null,null,"X",{"$f":"Submission!I66","v":23500},"=",{"$f":"H32*J32","v":0},null,null,null,{"$f":"H32=\"\"","v":true}]
[]
[null,"Total HFC, PFC, NF3 and SF6 Emissions"]
[null,null,null,null,null,null,null,null,null,null,null,"Tonnes (in CO2e)"]
[null,"Hydrofluorocarbon (HFC)",null,null,null,null,null,null,null,null,null,{"$f":"'Section B2 (4)'!$I$44","v":0}]
[]
[null,"Perfluorocarbons (PFC)",null,null,null,null,null,null,null,null,null,{"$f":"$L$24","v":0}]
[]
[null,"Nitrogen Trifluoride (NF3)",null,null,null,null,null,null,null,null,null,{"$f":"$L$28","v":0}]
[]
[null,"Sulphur hexafluoride (SF6)",null,null,null,null,null,null,null,null,null,{"$f":"$L$32","v":0}]
[]
[null,{"$f":"CONCATENATE(ReportingYear,\" - \", 'Section A1'!$B$5)","v":"2023 - "}]

{"sheet":"Section B4 (4)","index":41,"n_rows":57,"n_cols":28,"rows_kept":57,"cut":false,"hidden":true,"merged":[[10,1,10,4],[0,0,0,19],[1,0,1,14],[4,1,4,7],[6,1,6,4],[8,1,8,12],[39,11,39,12],[11,1,11,16],[13,7,13,12],[16,1,16,4],[20,1,20,4],[22,1,22,10],[24,1,24,4],[25,1,25,16],[28,11,28,14],[37,1,37,16],[28,16,28,18],[29,16,31,16],[18,13,18,16],[22,13,22,16],[14,13,14,16],[14,1,14,9],[54,1,54,16],[44,11,44,12],[45,1,45,8],[47,1,47,4],[49,1,49,4],[51,1,51,4],[53,8,53,13]]}
[{"$f":"\"Section B: \" & Submission!C17 & \" Direct Emissions\"","v":"Section B:  Direct Emissions"},null,null,null,null,null,null,null,null,null,null,null,null,null,null,null,null,null,null,null,null,"hide","hide","hide","hide","hide","hide","hide"]
[]
[null,"Biomass CO2 Emissions"]
[]
[null,"CO2 Emissions from Combustion of Biomass (BM)"]
[null,null,null,null,null,"N/A",null,"Tonnes"]
[null,"Carbon dioxide (CO2)",null,null,null,null,null,null,null,null,null,null,null,null,null,null,null,null,null,null,null,null,{"$f":"H7=\"\"","v":true}]
[]
[null,"CO2 Emissions from Decomposition of Biomass (BM)"]
[null,null,null,null,null,"N/A",null,"Tonnes"]
[null,"Carbon dioxide (CO2)",null,null,null,null,null,null,null,null,null,null,null,null,null,null,null,null,null,null,null,null,{"$f":"H11=\"\"","v":true}]
[null,"Note: Only CO₂ emissions from combustion and decomposition of biomass should be reported here. These emissions are not included in the calculation of the direct emissions. Methane and nitrous oxide emissions from biomass combustion and decomposition must be reported in Section B1 in the appropriate category."]
[null,"Captured CO2"]
[]
[null,"CO2 Geologically Injected On Site",null,null,null,null,null,null,null,null,null,null,null,"Capture Recognition Tonnes (CRT)"]
[null,null,null,null,null,"N/A",null,"Tonnes (in CO2e)",null,null,null,null,null,"N/A","Tonnes"]
[null,"Carbon dioxide (CO2)",null,null,null,null,null,null,null,null,null,null,null,null,null,null,null,null,null,null,null,null,{"$f":"H17=\"\"","v":true},null,{"$f":"O17=\"\"","v":true}]
[]
[null,"Exported CO2 (ECO2)",null,null,null,null,null,"Exported from non-IP",null,"IPExport",null,null,null,"Exported for Disposal as Acid Gas"]
[null,null,null,null,null,"N/A",null,"Tonnes (in CO2e)","N/A","Tonnes (in CO2e)",null,null,null,"N/A","Tonnes (in CO2e)"]
[null,"Carbon dioxide (CO2)",null,null,null,null,null,null,null,null,null,null,null,null,null,null,null,null,null,null,null,null,{"$f":"H21=\"\"","v":true},{"$f":"O21=\"\"","v":true},{"$f":"J21=\"\"","v":true}]
[]
[null,"Imported CO2 (ICO2)",null,null,null,null,null,null,null,null,null,null,null,"Imported for Disposal as Acid Gas"]
[null,null,null,null,null,"N/A",null,"Tonnes (in CO2e)",null,null,null,null,null,"N/A","Tonnes (in CO2e)"]
[null,"Carbon dioxide (CO2)",null,null,null,null,null,null,null,null,null,null,null,null,null,null,null,null,null,null,null,null,{"$f":"H25=\"\"","v":true},{"$f":"O25=\"\"","v":true}]
[null,"Note: This section should include data on carbon capture and storage activities, including acid gas injection and enhanced oil recovery projects. Trace CO2 in fuels, feedstock or products should not be included. \nAny carbon dioxide removed from raw gas and disposed of, as an acid gas stream, to an AER approved underground formation shall be excluded from Exported and Imported CO2. These quantities should be reported in the specific fields provided for disposal of acid gas in Cells O21 and O25.\nExported CO2 reported in this section is added in the calculation of Total Regulated Emissions. Please make sure not to include this quantity in Section B1 to avoid double counting. For example, if Formation or Industrial Process CO2 is being captured by the facility and exported to another facility regulated under TIER Regulation, it should be reported as an export only and not in section B1, otherwise it will be double counted in the Total Regulated Emissions.  "]
[null,"Greenhouse Gas Intensive Inputs & Outputs"]
[]
[null,null,null,null,null,null,null,null,null,null,null,"On site (AB-CWB Only)",null,null,null,null,"Wasted H2 (AB-CWB Only)"]
[null,null,null,null,null,null,null,"Imported",null,"Exported",null,"Generated",null,null,"Used",null,"from Generated\non site",null,"from Imported",null,null,null,1E-4]
[]
[null,"Electricity [MWh]",null,null,null,null,"IE",null,null,null,null,null,null,null,null,null,null,null,null,null,null,null,{"$f":"H32=\"\"","v":true},{"$f":"J32=\"\"","v":true}]
[]
[null,"Heat [GJ]",null,null,null,null,"IHe",null,null,null,null,null,null,null,null,null,null,null,null,null,null,null,{"$f":"H34=\"\"","v":true},{"$f":"J34=\"\"","v":true}]
[]
[null,"Hydrogen [tonnes H2(*)]",null,null,null,null,"IHy",null,null,null,null,null,null,null,null,null,null,null,null,null,null,null,{"$f":"H36=\"\"","v":true},{"$f":"J36=\"\"","v":true},{"$f":"L36=\"\"","v":true},{"$f":"O36=\"\"","v":true},{"$f":"Q36=\"\"","v":true},{"$f":"S36=\"\"","v":true}]
[null,"(*) excluding trace H2 in fuels"]
[]
[null,"CO2 Used in Manufacturing of Urea"]
[]
[null,null,null,null,null,null,null,null,"N/A","Tonnes (in CO2e)"]
[null,"CO2 Used in Manufacturing of Urea (UCO2)",null,null,null,null,null,null,null,null,null,null,null,null,null,null,null,null,null,null,null,null,null,{"$f":"J42=\"\"","v":true}]
[]
[null,"Emissions from Fuels Subject to the Federal Fuel Charge"]
[]
[null,"Emissions from Fuels Subject to the Federal Fuel Charge"]
[null,null,null,null,null,"N/A",null,"Tonnes",null,null,null,"GWP",null,null,"Tonnes (in CO2e)"]
[null,"Carbon dioxide (CO2)",null,null,null,null,null,null,null,"X",null,{"$f":"Submission!I44","v":1},null,"=",{"$f":"H48*L48","v":0},null,null,null,null,null,null,null,{"$f":"H48=\"\"","v":true}]
[]
[null,"Methane (CH4)",null,null,null,null,null,null,null,"X",null,{"$f":"Submission!I45","v":28},null,"=",{"$f":"H50*L50","v":0},null,null,null,null,null,null,null,{"$f":"H50=\"\"","v":true}]
[]
[null,"Nitrous oxide (N2O)",null,null,null,null,null,null,null,"X",null,{"$f":"Submission!I46","v":265},null,"=",{"$f":"H52*L52","v":0},null,null,null,null,null,null,null,{"$f":"H52=\"\"","v":true}]
[]
[null,null,null,null,null,null,null,null,"CO2, CH4 and N2O Clear Fuel Total (ECF)",null,null,null,null,null,{"$f":"SUM(O52,O50,O48)","v":0}]
[null,"Note: Quantities in this section are substracted from Benchmark Emissions (BE), make sure to also include these quantities in Section B1. "]
[]
[null,{"$f":"CONCATENATE(ReportingYear,\" - \", 'Section A1'!$B$5)","v":"2023 - "}]

{"sheet":"Section B4 EE (4)","index":42,"n_rows":51,"n_cols":15,"rows_kept":51,"cut":false,"hidden":true,"merged":[[0,0,0,10],[21,1,21,9],[35,1,35,9],[49,1,49,9],[50,1,50,9]]}
[{"$f":"\"Section B: \" & Submission!C17 & \" Direct Emissions\"","v":"Section B:  Direct Emissions"},null,null,null,null,null,null,null,null,null,null,null,"hide","hide","hide"]
[]
[null,{"$f":"\"Self-Generation Information\"","v":"Self-Generation Information"},null,null,null,null,null,null,null,null,null,null,null,null,"Trigger"]
[]
[null,null,null,null,null,null,null,null,null,null,null,null,null,{"$f":"IF(O5>0,FALSE,TRUE)","v":true},{"$f":"SUM(I17,I20,I26,I40,I48)","v":0}]
[]
[]
[null,"Self Generation Emissions"]
[]
[null,null,null,null,null,null,null,null,"Tonnes (in CO2e)"]
[null,"Carbon dioxide (CO2)",null,null,null,"X",{"$f":"Submission!I44","v":1},"=",{"$f":"E11*G11","v":0},null,null,null,null,{"$f":"E11=\"\"","v":true}]
[]
[null,"Methane (CH4)",null,null,null,"X",{"$f":"Submission!I45","v":28},"=",{"$f":"E13*G13","v":0},null,null,null,null,{"$f":"E13=\"\"","v":true}]
[]
[null,"Nitrous oxide (N2O)",null,null,null,"X",{"$f":"Submission!I46","v":265},"=",{"$f":"E15*G15","v":0},null,null,null,null,{"$f":"E15=\"\"","v":true}]
[]
[null,null,null,null,null,null,null,"Total GHG Emissions from Self Generation (EE)",{"$f":"SUM(I11,I13,I15)","v":0}]
[]
[]
[null,null,null,null,null,null,null,"Total GHG Emissions from Self Generation (EE)"]
[]
[null,"Note: Report in this section the emissions attributable to self-generation of electricity and\\or cogeneration at the facility for the production of the product or offsite exports of heat and electricity. This include all emissions from fossil fuels but only Methane (CH4) and Nitrous Oxide (N2O) emissions when the fuel used for electricity generation or cogeneration is biomass. "]
[]
[null,{"$f":"\" Electricity\"","v":" Electricity"}]
[null,null,null,null,null,null,null,"N/A","Quantity","Units"]
[null,null,null,null,null,null,"Electricity Self Generated (Net of Station Load)",null,null,"MWh",null,null,null,{"$f":"I26=\"\"","v":true}]
[]
[null,null,null,null,null,null,"Electricity Imported",null,{"$f":"'Section B4 (4)'!H32","v":0},"MWh"]
[]
[null,null,null,null,null,null,"Electricity Exported",null,{"$f":"'Section B4 (4)'!J32","v":0},"MWh"]
[]
[null,"Elecused = Elecself-generated + Elecimport-Elecexport",null,null,null,null,"Electricity Used",null,{"$f":"I26+I28-I30","v":0},"MWh"]
[]
[null,null,null,null,null,null,"Electricity Used",null,null,"MWh",null,null,null,{"$f":"I34=\"\"","v":true}]
[]
[null,{"$f":"IF(Submission!$I$5=2,N36,M36)","v":"Note: Report in this section the electricity generated at the facility from cogeneration and\\or non-cogeneration sources (net of station load). "},null,null,null,null,null,null,null,null,null,null,"Note: Report in this section the electricity generated at the facility from cogeneration and\\or non-cogeneration sources (net of station load). ","Note: Input the corresponding Electricity Used value from the Self-generation Multiproduct Form."]
[null,{"$f":"\" Heat\"","v":" Heat"}]
[]
[null,null,null,null,null,null,null,"N/A","Quantity","Units"]
[null,null,null,null,null,null,"Heat Cogenerated (Net heat produced by cogeneration)",null,null,"GJ",null,null,null,{"$f":"I40=\"\"","v":true}]
[]
[null,null,null,null,null,null,"Heat Imported",null,{"$f":"'Section B4 (4)'!H34","v":0},"GJ"]
[]
[null,null,null,null,null,null,"Heat Exported",null,{"$f":"'Section B4 (4)'!J34","v":0},"GJ"]
[]
[null,null,null,null,"Hused = Hcogenerated + Himport- Hexport",null,"Heat Used",null,{"$f":"I40+I42-I44","v":0},"GJ"]
[]
[null,null,null,null,null,null,"Heat Used",null,null,"GJ",null,null,null,{"$f":"I48=\"\"","v":true}]
[]
[null,{"$f":"IF(Submission!$I$5=2,N50,M50)","v":"Note: Heat cogenerated is heat produced as a by-product of electricity generation at the facility. It does not include heat produced using conventional boilers that are not related to the generation of electricity  "},null,null,null,null,null,null,null,null,null,null,"Note: Heat cogenerated is heat produced as a by-product of electricity generation at the facility. It does not include heat produced using conventional boilers that are not related to the generation of electricity  ","Note: Input the corresponding Heat Used value from the Self-generation Multiproduct Form."]
[null,{"$f":"CONCATENATE(ReportingYear,\" - \", 'Section A1'!$B$5)","v":"2023 - "}]

{"sheet":"Section B5 (4)","index":43,"n_rows":15,"n_cols":17,"rows_kept":15,"cut":false,"hidden":true,"merged":[[13,1,13,12],[14,1,14,12],[15,1,15,12],[0,0,0,13],[1,0,1,12],[3,1,3,12],[4,1,4,12],[6,1,6,12],[9,1,9,12]]}
[{"$f":"\"Section B: \" & Submission!C17 & \" Direct Emissions\"","v":"Section B:  Direct Emissions"},null,null,null,null,null,null,null,null,null,null,null,null,null,null,"hide","hide"]
[]
[null,"Negligible Emission Sources"]
[null,"List all GHG emission sources that are being treated as negligible in the space below. For all negligible, include the annual emissions estimate and expected year-to-year variation in (tonnes CO2e). If additional space is required, please attach a document and specify the name below. Under TIER Regulation all negligible sources are to be included in the corresponding emission categories in Sections B1, B2, B3 and B4, and count towards the Direct Emissions. Alternative methods may be used to assess the negligibility of these emissions."]
[]
[null,{"$f":"\"Public Availability of \"&Submission!C15&\" GHG Emissions Data\"","v":"Public Availability of  GHG Emissions Data"},null,null,null,null,null,null,null,null,null,null,null,null,null,"Options","Yes"]
[null,{"$f":"\"Are \"&Submission!C15&\" greenhouse gas emissions data by gas type for this facility publicly available (i.e., published or by request)?\"","v":"Are  greenhouse gas emissions data by gas type for this facility publicly available (i.e., published or by request)?"},null,null,null,null,null,null,null,null,null,null,null,null,null,null,"No"]
[null,null,null,null,null,null,null,null,null,null,null,null,null,null,null,"Total Publicly Available"]
[]
[null,{"$f":"\"Are \"&Submission!C15&\" greenhouse gas emissions data by source category for this facility publicly available (i.e., published or by request)?\"","v":"Are  greenhouse gas emissions data by source category for this facility publicly available (i.e., published or by request)?"}]
[null,null,null,null,null,null,null,null,null,null,null,null,null,null,null,"By Gas Available"]
[]
[null,"Note: Confidentiality must not be requested for information that is publicly available."]
[]
[null,{"$f":"CONCATENATE(ReportingYear,\" - \", 'Section A1'!$B$5)","v":"2023 - "}]

{"sheet":"Section B6 (3) ABGPI (2)","index":44,"n_rows":37,"n_cols":16,"rows_kept":37,"cut":false,"hidden":true,"merged":[[0,0,0,12],[2,1,2,12],[4,1,4,11],[34,1,34,9],[36,1,36,11]]}
[{"$f":"\"Section B: \" & Submission!C17 & \" Direct Emissions\"","v":"Section B:  Direct Emissions"},null,null,null,null,null,null,null,null,null,null,null,null,null,null,"hide"]
[]
[null,"Alberta Gas Processing Index Calculation Template"]
[]
[null,"Instructions: Enter the quantities for your facility as provided for the benchmarking exercise.  For facilities that did not participate in the benchmarking exercise, more detailed quantification guidance is forthcoming.  Note that the quantity for Non-Energy Utilities is total plant production, including straddle plant residue gas, in metres cubed oil equivalent.  The weighting factor was based on emissions associated with venting, flaring, and fugitives.  This quantity of total plant production is also used for the Formation CO2 benchmarks."]
[null,"Module","N/A","Quantity",null,"Quantity Units",null,"Weighting/ conversion factor",null,"Weighted Quantity",null,"Weighted Quantity Units"]
[null,"Inlet Compression",null,null,null,"Throughput (e3m3)",null,3.304E-2,null,{"$f":"IF(P7=TRUE,\" \",D7*H7)","v":" "},null,"tonnes CO2e",null,null,null,{"$f":"D7=\"\"","v":true}]
[]
[null,"Dehydration",null,null,null,"Throughput (e3m3)",null,2.47E-3,null,{"$f":"IF(P9=TRUE,\" \",D9*H9)","v":" "},null,"tonnes CO2e",null,null,null,{"$f":"D9=\"\"","v":true}]
[]
[null,"Amine Sweetening",null,null,null,"Throughput (e3m3)",null,3.04E-2,null,{"$f":"IF(P11=TRUE,\" \",D11*H11)","v":" "},null,"tonnes CO2e",null,null,null,{"$f":"D11=\"\"","v":true}]
[]
[null,"Total Refrigeration",null,null,null,"Throughput (e3m3)",null,1.8350000000000002E-2,null,{"$f":"IF(P13=TRUE,\" \",D13*H13)","v":" "},null,"tonnes CO2e",null,null,null,{"$f":"D13=\"\"","v":true}]
[]
[null,"Fractionation",null,null,null,"Production (m3OE)",null,4.1410000000000002E-2,null,{"$f":"IF(P15=TRUE,\" \",D15*H15)","v":" "},null,"tonnes CO2e",null,null,null,{"$f":"D15=\"\"","v":true}]
[]
[null,"Stabilization",null,null,null,"Production (m3OE)",null,5.5370000000000003E-2,null,{"$f":"IF(P17=TRUE,\" \",D17*H17)","v":" "},null,"tonnes CO2e",null,null,null,{"$f":"D17=\"\"","v":true}]
[]
[null,"Sales Compression",null,null,null,"Throughput (e3m3)",null,2.1350000000000001E-2,null,{"$f":"IF(P19=TRUE,\" \",D19*H19)","v":" "},null,"tonnes CO2e",null,null,null,{"$f":"D19=\"\"","v":true}]
[]
[null,"Sulphur Plant",null,null,null,"Production (tonnes sulphur)",null,0.4249,null,{"$f":"IF(P21=TRUE,\" \",D21*H21)","v":" "},null,"tonnes CO2e",null,null,null,{"$f":"D21=\"\"","v":true}]
[]
[null,"Acid Gas Injection",null,null,null,"Throughput (e3m3 acid gas)",null,0.39600000000000002,null,{"$f":"IF(P23=TRUE,\" \",D23*H23)","v":" "},null,"tonnes CO2e",null,null,null,{"$f":"D23=\"\"","v":true}]
[]
[null,"Ethane Extraction",null,null,null,"Production (m3OE)",null,0.12509999999999999,null,{"$f":"IF(P25=TRUE,\" \",D25*H25)","v":" "},null,"tonnes CO2e",null,null,null,true]
[null,null,null,null,null,null,null,null,null,null,null,null,null,null,null,true]
[null,"Cavern Storage",null,null,null,"Production (m3 ethane)",null,0.01,null,{"$f":"IF(P27=TRUE,\" \",D27*H27)","v":" "},null,"tonnes CO2e",null,null,null,true]
[]
[null,"CO2 Plant",null,null,null,"Throughput (e3m3 CO2)",null,0.18809999999999999,null,{"$f":"IF(P29=TRUE,\" \",D29*H29)","v":" "},null,"tonnes CO2e",null,null,null,true]
[]
[null,"Flaring, Venting, Fugitives, Other",null,null,null,"Production (m3OE)",null,4.4520000000000002E-3,null,{"$f":"IF(P31=TRUE,\" \",D31*H31)","v":" "},null,"tonnes CO2e",null,null,null,{"$f":"D31=\"\"","v":true}]
[]
[null,null,null,null,null,null,null,"Alberta Gas Processing Index (PABGPI)",null,{"$f":"SUM(J7:J32)","v":0},null,"tonnes CO2e"]
[]
[]
[]
[null,{"$f":"CONCATENATE(ReportingYear,\" - \", 'Section A1'!$B$5)","v":"2023 - "}]

{"sheet":"Section B6 (4)","index":45,"n_rows":85,"n_cols":27,"rows_kept":85,"cut":false,"hidden":true,"merged":[[79,17,79,24],[0,0,0,14],[48,1,48,13],[53,1,53,13],[76,17,76,24],[77,17,77,24],[78,17,78,24]]}
[{"$f":"\"Section B: \" & Submission!C17 & \" Production Information\"","v":"Section B:  Production Information"},null,null,null,null,null,null,null,null,null,null,null,null,null,null,null,"hide","hide","hide","hide","hide","hide","hide","hide","hide","hide","hide"]
[]
[null,{"$f":"\" Production Information for \"&Submission!C17","v":" Production Information for "}]
[]
[null,null,"N/A","Product (P)",null,"Quantity",null,"Units",null,{"$f":"\"Established or Assigned Benchmark\n(BE or BA) for \"&Submission!C11","v":"Established or Assigned Benchmark\n(BE or BA) for "},null,"Transition Allocation Benchmark (BTA)",null,"Allocations\nTonnes (in CO2e)",null,null,"Established or Assigned Benchmark","Checkboxes","Units",null,"ABGPI Selected"]
[null,"Production Item 1",null,"",null,"",null,null,null,{"$f":"Q6","v":""},null,null,null,{"$f":"IF(R6=TRUE,\" \",F6*J6+F6*L6)","v":" "},null,null,{"$f":"IFERROR(CHOOSE(MATCH($D6,$R$61:$R$76,0),INDIRECT(\"$\"&$V$83&\"$61\"),INDIRECT(\"$\"&$V$83&\"$62\"),INDIRECT(\"$\"&$V$83&\"$63\"),INDIRECT(\"$\"&$V$83&\"$64\"), INDIRECT(\"$\"&$V$83&\"$65\"), INDIRECT(\"$\"&$V$83&\"$66\"),INDIRECT(\"$\"&$V$83&\"$67\"),INDIRECT(\"$\"&$V$83&\"$68\"),INDIRECT(\"$\"&$V$83&\"$69\"),INDIRECT(\"$\"&$V$83&\"$70\"),INDIRECT(\"$\"&$V$83&\"$71\"),INDIRECT(\"$\"&$V$83&\"$72\"),INDIRECT(\"$\"&$V$83&\"$73\"),INDIRECT(\"$\"&$V$83&\"$74\"),INDIRECT(\"$\"&$V$83&\"$75\"),INDIRECT(\"$\"&$V$83&\"$76\")),\"\")","v":""},{"$f":"F6=\"\"","v":true},{"$f":"IFERROR(CHOOSE(MATCH($D6,$R$61:$R$76,0),$Y$61,$Y$62,$Y$63,$Y$64,$Y$65,$Y$66,$Y$67,$Y$68,$Y$69,$Y$70,$Y$71,$Y$72,$Y$73,$Y$74,$Y$75,$Y$76),\"\")","v":""},null,false]
[null,null,null,null,null,null,null,null,null,null,null,null,null,null,null,null,null,null,{"$f":"IFERROR(CHOOSE(MATCH($D7,$R$61:$R$76,0),$Y$61,$Y$62,$Y$63,$Y$64,$Y$65,$Y$66,$Y$67,$Y$68,$Y$69,$Y$70,$Y$71,$Y$72,$Y$73,$Y$74,$Y$75,$Y$76),\"\")","v":""}]
[null,"Production Item 2",null,"",null,"",null,null,null,{"$f":"Q8","v":""},null,null,null,{"$f":"IF(R8=TRUE,\" \",F8*J8+F8*L8)","v":" "},null,null,{"$f":"IFERROR(CHOOSE(MATCH($D8,$R$61:$R$76,0),INDIRECT(\"$\"&$V$83&\"$61\"),INDIRECT(\"$\"&$V$83&\"$62\"),INDIRECT(\"$\"&$V$83&\"$63\"),INDIRECT(\"$\"&$V$83&\"$64\"), INDIRECT(\"$\"&$V$83&\"$65\"), INDIRECT(\"$\"&$V$83&\"$66\"),INDIRECT(\"$\"&$V$83&\"$67\"),INDIRECT(\"$\"&$V$83&\"$68\"),INDIRECT(\"$\"&$V$83&\"$69\"),INDIRECT(\"$\"&$V$83&\"$70\"),INDIRECT(\"$\"&$V$83&\"$71\"),INDIRECT(\"$\"&$V$83&\"$72\"),INDIRECT(\"$\"&$V$83&\"$73\"),INDIRECT(\"$\"&$V$83&\"$74\"),INDIRECT(\"$\"&$V$83&\"$75\"),INDIRECT(\"$\"&$V$83&\"$76\")),\"\")","v":""},{"$f":"F8=\"\"","v":true},""]
[null,null,null,null,null,null,null,null,null,null,null,null,null,null,null,null,null,null,""]
[null,"Production Item 3",null,"",null,"",null,null,null,{"$f":"Q10","v":""},null,null,null,{"$f":"IF(R10=TRUE,\" \",F10*J10+F10*L10)","v":" "},null,null,"",{"$f":"F10=\"\"","v":true},""]
[null,null,null,null,null,null,null,null,null,null,null,null,null,null,null,null,null,null,""]
[null,"Production Item 4",null,"",null,"",null,null,null,null,null,null,null,{"$f":"IF(R12=TRUE,\" \",F12*J12+F12*L12)","v":" "},null,null,"",{"$f":"F12=\"\"","v":true},""]
[null,null,null,null,null,null,null,null,null,null,null,null,null,null,null,null,null,null,""]
[null,"Production Item 5",null,"",null,"",null,null,null,null,null,null,null,{"$f":"IF(R14=TRUE,\" \",F14*J14+F14*L14)","v":" "},null,null,"",{"$f":"F14=\"\"","v":true},""]
[null,null,null,null,null,null,null,null,null,null,null,null,null,null,null,null,null,null,""]
[null,"Production Item 6",null,"",null,"",null,null,null,null,null,null,null,{"$f":"IF(R16=TRUE,\" \",F16*J16+F16*L16)","v":" "},null,null,"",{"$f":"F16=\"\"","v":true},""]
[null,null,null,null,null,null,null,null,null,null,null,null,null,null,null,null,null,null,""]
[null,"Production Item 7",null,"",null,"",null,null,null,null,null,null,null,{"$f":"IF(R18=TRUE,\" \",F18*J18+F18*L18)","v":" "},null,null,"",{"$f":"F18=\"\"","v":true},""]
[null,null,null,null,null,null,null,null,null,null,null,null,null,null,null,null,null,null,""]
[null,"Production Item 8",null,"",null,"",null,null,null,null,null,null,null,{"$f":"IF(R20=TRUE,\" \",F20*J20+F20*L20)","v":" "},null,null,"",{"$f":"F20=\"\"","v":true},""]
[null,null,null,null,null,null,null,null,null,null,null,null,null,null,null,null,null,null,""]
[null,"Production Item 9",null,"",null,"",null,null,null,null,null,null,null,{"$f":"IF(R22=TRUE,\" \",F22*J22+F22*L22)","v":" "},null,null,"",{"$f":"F22=\"\"","v":true},""]
[null,null,null,null,null,null,null,null,null,null,null,null,null,null,null,null,null,null,""]
[null,"Production Item 10",null,"",null,"",null,null,null,null,null,null,null,{"$f":"IF(R24=TRUE,\" \",F24*J24+F24*L24)","v":" "},null,null,"",{"$f":"F24=\"\"","v":true},""]
[null,null,null,null,null,null,null,null,null,null,null,null,null,null,null,null,null,null,""]
[null,"Production Item 11",null,"",null,"",null,null,null,null,null,null,null,{"$f":"IF(R26=TRUE,\" \",F26*J26+F26*L26)","v":" "},null,null,"",{"$f":"F26=\"\"","v":true},""]
[null,null,null,null,null,null,null,null,null,null,null,null,null,null,null,null,null,null,""]
[null,"Production Item 12",null,"",null,"",null,null,null,null,null,null,null,{"$f":"IF(R28=TRUE,\" \",F28*J28+F28*L28)","v":" "},null,null,"",{"$f":"F28=\"\"","v":true},""]
[null,null,null,null,null,null,null,null,null,null,null,null,null,null,null,null,null,null,""]
[null,"Production Item 13",null,"",null,"",null,null,null,null,null,null,null,{"$f":"IF(R30=TRUE,\" \",F30*J30+F30*L30)","v":" "},null,null,"",{"$f":"F30=\"\"","v":true},""]
[null,null,null,null,null,null,null,null,null,null,null,null,null,null,null,null,null,null,""]
[null,"Production Item 14",null,"",null,"",null,null,null,null,null,null,null,{"$f":"IF(R32=TRUE,\" \",F32*J32+F32*L32)","v":" "},null,null,"",{"$f":"F32=\"\"","v":true},""]
[null,null,null,null,null,null,null,null,null,null,null,null,null,null,null,null,null,null,""]
[null,"Production Item 15",null,"",null,"",null,null,null,null,null,null,null,{"$f":"IF(R34=TRUE,\" \",F34*J34+F34*L34)","v":" "},null,null,"",{"$f":"F34=\"\"","v":true},""]
[null,null,null,null,null,null,null,null,null,null,null,null,null,null,null,null,null,null,""]
[null,"Production Item 16",null,"",null,"",null,null,null,null,null,null,null,{"$f":"IF(R36=TRUE,\" \",F36*J36+F36*L36)","v":" "},null,null,"",{"$f":"F36=\"\"","v":true},""]
[null,null,null,null,null,null,null,null,null,null,null,null,null,null,null,null,null,null,""]
[null,"Production Item 17",null,"",null,null,null,null,null,null,null,null,null,{"$f":"IF(R38=TRUE,\" \",F38*J38+F38*L38)","v":" "},null,null,"",{"$f":"F38=\"\"","v":true},""]
[null,null,null,null,null,null,null,null,null,null,null,null,null,null,null,null,null,null,""]
[null,"Production Item 18",null,"",null,null,null,null,null,null,null,null,null,{"$f":"IF(R40=TRUE,\" \",F40*J40+F40*L40)","v":" "},null,null,"",{"$f":"F40=\"\"","v":true},""]
[null,null,null,null,null,null,null,null,null,null,null,null,null,null,null,null,null,null,""]
[null,"Production Item 19",null,"",null,null,null,null,null,null,null,null,null,{"$f":"IF(R42=TRUE,\" \",F42*J42+F42*L42)","v":" "},null,null,"",{"$f":"F42=\"\"","v":true},""]
[null,null,null,null,null,null,null,null,null,null,null,null,null,null,null,null,null,null,""]
[null,"Production Item 20",null,"",null,null,null,null,null,{"$f":"Q44","v":""},null,null,null,{"$f":"IF(R44=TRUE,\" \",F44*J44+F44*L44)","v":" "},null,null,"",{"$f":"F44=\"\"","v":true},""]
[]
[null,"Products Allocations",null,null,null,null,null,null,null,null,null,"Tonnes (in CO2e)",null,{"$f":"SUM(N6,N8,N10,N12,N14,N16,N18,N20,N22,N24,N26,N28,N30,N32,N34,N36,N38,N40,N42,N44)","v":0}]
[]
[null,{"$f":"\"Public Availability of \"&Submission!C17&\" Production Information\"","v":"Public Availability of  Production Information"}]
[null,{"$f":"\"Is \"&Submission!C17&\" production information for this facility publicly available? (i.e. published or by request)\"","v":"Is  production information for this facility publicly available? (i.e. published or by request)"},null,null,null,null,null,null,null,null,null,null,null,null,null,null,null,{"$f":"COLUMN()","v":18}]
[]
[]
[null,"Note: Confidentiality must not be requested for information that is publicly available."]
[null,null,null,null,null,null,null,null,null,null,null,null,null,null,null,null,"Avail",1,"Options","Yes"]
[null,{"$f":"CONCATENATE(ReportingYear,\" - \", 'Section A1'!$B$5)","v":"2023 - "},null,null,null,null,null,null,null,null,null,null,null,null,null,null,null,null,null,"No"]
[]
[]
[null,null,null,null,null,null,null,null,null,null,null,null,null,null,null,null,null,null,"Table   Established Benchmarks for Products"]
[null,null,null,null,null,null,null,null,null,null,null,null,null,null,null,null,null,"Position of the column is the range 2018-2023",{"$f":"COLUMN()","v":19},{"$f":"COLUMN()","v":20},{"$f":"COLUMN()","v":21},{"$f":"COLUMN()","v":22},{"$f":"COLUMN()","v":23}]
[null,null,null,null,null,null,null,null,null,null,null,null,null,null,null,null,null,null,2018,2019,2020,2021,2022,null,"unit"]
[null,null,null,null,null,null,null,null,null,null,null,null,null,null,null,null,null,"Product","Established benchmark for 2018 (tonnes of CO2e per benchmark unit)","Established benchmark for 2019 (tonnes of CO2e per benchmark unit)","Established benchmark for 2020 (tonnes of CO2e per benchmark unit)","Established benchmark for 2021 (tonnes of CO2e per benchmark unit)","Established benchmark for 2022 (tonnes of CO2e per benchmark unit)","Established benchmark for 2023 and subsequent years (tonnes of CO2e per  benchmark unit) is determined as follows:","Benchmark unit","Name used?","List of unused names"]
[null,null,null,null,null,null,null,null,null,null,null,null,null,null,null,null,null,"Ammonia",1.9419999999999999,1.9419999999999999,1.9350000000000001,1.9279999999999999,1.921,"*BE = **BEY-1 - ***0.007","Tonne",{"$f":"IF(COUNTIF($D$6:$D$44,$R61)>=1,\"\",ROW())","v":61},{"$f":"IF(ROW(R61)-ROW(R$61)+1>COUNT(Z$61:Z$76),\"\",\nINDEX(R:R,SMALL(Z$61:Z$76,1+ROW(R61)-ROW(R$61))))","v":"Ammonia"}]
[null,null,null,null,null,null,null,null,null,null,null,null,null,null,null,null,null,"Ammonium nitrate",0.32600000000000001,0.32600000000000001,0.32500000000000001,0.32400000000000001,0.32300000000000001,"BE = BEY-1 - 0.0010","Tonne",62,"Ammonium nitrate"]
[null,null,null,null,null,null,null,null,null,null,null,null,null,null,null,null,null,"Alberta gas processing index",0.9,0.9,0.89100000000000001,0.88200000000000001,0.873,"BE = BEY-1 - 0.0090","Tonne CO2e",63,"Alberta gas processing index"]
[null,null,null,null,null,null,null,null,null,null,null,null,null,null,null,null,null,"Bituminous coal",7.0529999999999995E-2,7.0529999999999995E-2,6.9819999999999993E-2,6.9110000000000005E-2,6.8400000000000002E-2,"BE = BEY-1 - 0.00071","Tonne",64,"Bituminous coal"]
[null,null,null,null,null,null,null,null,null,null,null,null,null,null,null,null,null,"Cement",0.7853,0.7853,0.7823,0.77929999999999999,0.77629999999999999,"BE = BEY-1 - 0.0030","Tonne",65,"Cement"]
[null,null,null,null,null,null,null,null,null,null,null,null,null,null,null,null,null,"Electricity",0.37,0.37,0.36630000000000001,0.36259999999999998,0.3589,"BE = BEY-1 - 0.0037","Megawatt hour",66,"Electricity"]
[null,null,null,null,null,null,null,null,null,null,null,null,null,null,null,null,null,"Ethylene glycol",0.49459999999999998,0.49459999999999998,0.49209999999999998,0.48959999999999998,0.48709999999999998,"BE = BEY-1 - 0.0025","Tonne",67,"Ethylene glycol"]
[null,null,null,null,null,null,null,null,null,null,null,null,null,null,null,null,null,"Hardwood kraft pulp",0.20319999999999999,0.20319999999999999,0.20119999999999999,0.19919999999999999,0.19719999999999999,"BE = BEY-1 - 0.0020","Air dry metric tonne",68,"Hardwood kraft pulp"]
[null,null,null,null,null,null,null,null,null,null,null,null,null,null,null,null,null,"High value chemicals",0.48499999999999999,0.48499999999999999,0.48010000000000003,0.47520000000000001,0.4703,"BE = BEY-1 - 0.0049","Tonne",69,"High value chemicals"]
[null,null,null,null,null,null,null,null,null,null,null,null,null,null,null,null,null,"Hydrogen",9.0679999999999996,9.0679999999999996,8.9969999999999999,8.8859999999999992,8.7949999999999999,"BE = BEY-1 - 0.091","Tonne",70,"Hydrogen"]
[null,null,null,null,null,null,null,null,null,null,null,null,null,null,null,null,null,"Industrial heat",6.2990000000000004E-2,6.2990000000000004E-2,6.2359999999999999E-2,6.173E-2,6.1100000000000002E-2,"BE = BEY-1 - 0.00063","Gigajoule",71,"Industrial heat"]
[null,null,null,null,null,null,null,null,null,null,null,null,null,null,null,null,null,"Oil sands in situ bitumen",0.35039999999999999,0.35039999999999999,0.34689999999999999,0.34339999999999998,0.33989999999999998,"BE = BEY-1 - 0.0035","m3 of bitumen",72,"Oil sands in situ bitumen"]
[null,null,null,null,null,null,null,null,null,null,null,null,null,null,null,null,null,"Oil sands mining bitumen",0.19539999999999999,0.19539999999999999,0.19339999999999999,0.19139999999999999,0.18940000000000001,"BE = BEY-1 - 0.0020","m3 of bitumen",73,"Oil sands mining bitumen"]
[null,null,null,null,null,null,null,null,null,null,null,null,null,null,null,null,null,"Refining",3.831,3.831,3.7930000000000001,3.7549999999999999,3.7170000000000001,"BE = BEY-1 - 0.038","Alberta complexity weighted barrel (in thousands)",74,"Refining"]
[null,null,null,null,null,null,null,null,null,null,null,null,null,null,null,null,null,"Softwood kraft pulp",0.30149999999999999,0.30149999999999999,0.29849999999999999,0.29549999999999998,0.29249999999999998,"BE = BEY-1 - 0.0030","Air dry metric tonne",75,"Softwood kraft pulp"]
[null,null,null,null,null,null,null,null,null,null,null,null,null,null,null,null,null,"Upgrading",2.4510000000000001,2.4510000000000001,2.4260000000000002,2.4009999999999998,2.3759999999999999,"BE = BEY-1 - 0.025","Upgrading AB-CWB (in thousands)",76,"Upgrading"]
[null,null,null,null,null,null,null,null,null,null,null,null,null,null,null,null,null,"Note:  The values in the columns for 2020, 2021 and 2022 reflect the application of an annual 1% tightening rate."]
[null,null,null,null,null,null,null,null,null,null,null,null,null,null,null,null,null,"*BE is the established benchmark for the year."]
[null,null,null,null,null,null,null,null,null,null,null,null,null,null,null,null,null,"**BEY-1 is the established benchmark for the previous year."]
[null,null,null,null,null,null,null,null,null,null,null,null,null,null,null,null,null,"*** is the tightening rate."]
[]
[null,null,null,null,null,null,null,null,null,null,null,null,null,null,null,null,null,"Column that should be selected for the current year:",null,null,null,{"$f":"IFERROR(CHOOSE(MATCH(ReportingYear,$S$59:$X$59,0),$S$61,$S$62,$S$63,$S$64,$S$65,$S$66,$S$67,$S$68,$S$69,$S$70,$S$71,$S$72,$S$73,$S$74,$S$75,$S$76),\"\")","v":""}]
[null,null,null,null,null,null,null,null,null,null,null,null,null,null,null,null,null,"Letter of the column for the matching year:",null,null,null,{"$f":"SUBSTITUTE(ADDRESS(1,V84,4),\"1\",\"\")","v":"S"}]
[null,null,null,null,null,null,null,null,null,null,null,null,null,null,null,null,null,"Position of the matching year in the list 2018-2023 (add the number of column R to make sure the numbers are correct since MATCHE returns a relative number within the input list); 1 by default - if the Year is outside the 2018-2023 range.",null,null,null,{"$f":"IFERROR(MATCH(ReportingYear,$S$59:$W$59,0)+R49,1+R49)","v":19}]
[null,null,null,null,null,null,null,null,null,null,null,null,null,null,null,null,null,"Reporting year",null,null,null,{"$f":"ReportingYear","v":2023}]

{"sheet":"Section B6 (4) ABGPI","index":46,"n_rows":37,"n_cols":16,"rows_kept":37,"cut":false,"hidden":true,"merged":[[0,0,0,12],[2,1,2,12],[4,1,4,11],[34,1,34,9],[36,1,36,11]]}
[{"$f":"\"Section B: \" & Submission!C17 & \" Direct Emissions\"","v":"Section B:  Direct Emissions"},null,null,null,null,null,null,null,null,null,null,null,null,null,null,"hide"]
[]
[null,"Alberta Gas Processing Index Calculation Template"]
[]
[null,"Instructions: Enter the quantities for your facility as provided for the benchmarking exercise.  For facilities that did not participate in the benchmarking exercise, more detailed quantification guidance is forthcoming.  Note that the quantity for Non-Energy Utilities is total plant production, including straddle plant residue gas, in metres cubed oil equivalent.  The weighting factor was based on emissions associated with venting, flaring, and fugitives.  This quantity of total plant production is also used for the Formation CO2 benchmarks."]
[null,"Module","N/A","Quantity",null,"Quantity Units",null,"Weighting/ conversion factor",null,"Weighted Quantity",null,"Weighted Quantity Units"]
[null,"Inlet Compression",null,null,null,"Throughput (e3m3)",null,3.304E-2,null,{"$f":"IF(P7=TRUE,\" \",D7*H7)","v":" "},null,"tonnes CO2e",null,null,null,{"$f":"D7=\"\"","v":true}]
[]
[null,"Dehydration",null,null,null,"Throughput (e3m3)",null,2.47E-3,null,{"$f":"IF(P9=TRUE,\" \",D9*H9)","v":" "},null,"tonnes CO2e",null,null,null,{"$f":"D9=\"\"","v":true}]
[]
[null,"Amine Sweetening",null,null,null,"Throughput (e3m3)",null,3.04E-2,null,{"$f":"IF(P11=TRUE,\" \",D11*H11)","v":" "},null,"tonnes CO2e",null,null,null,{"$f":"D11=\"\"","v":true}]
[]
[null,"Total Refrigeration",null,null,null,"Throughput (e3m3)",null,1.8350000000000002E-2,null,{"$f":"IF(P13=TRUE,\" \",D13*H13)","v":" "},null,"tonnes CO2e",null,null,null,{"$f":"D13=\"\"","v":true}]
[]
[null,"Fractionation",null,null,null,"Production (m3OE)",null,4.1410000000000002E-2,null,{"$f":"IF(P15=TRUE,\" \",D15*H15)","v":" "},null,"tonnes CO2e",null,null,null,{"$f":"D15=\"\"","v":true}]
[]
[null,"Stabilization",null,null,null,"Production (m3OE)",null,5.5370000000000003E-2,null,{"$f":"IF(P17=TRUE,\" \",D17*H17)","v":" "},null,"tonnes CO2e",null,null,null,{"$f":"D17=\"\"","v":true}]
[]
[null,"Sales Compression",null,null,null,"Throughput (e3m3)",null,2.1350000000000001E-2,null,{"$f":"IF(P19=TRUE,\" \",D19*H19)","v":" "},null,"tonnes CO2e",null,null,null,{"$f":"D19=\"\"","v":true}]
[]
[null,"Sulphur Plant",null,null,null,"Production (tonnes sulphur)",null,0.4249,null,{"$f":"IF(P21=TRUE,\" \",D21*H21)","v":" "},null,"tonnes CO2e",null,null,null,{"$f":"D21=\"\"","v":true}]
[]
[null,"Acid Gas Injection",null,null,null,"Throughput (e3m3 acid gas)",null,0.39600000000000002,null,{"$f":"IF(P23=TRUE,\" \",D23*H23)","v":" "},null,"tonnes CO2e",null,null,null,{"$f":"D23=\"\"","v":true}]
[]
[null,"Ethane Extraction",null,null,null,"Production (m3OE)",null,0.12509999999999999,null,{"$f":"IF(P25=TRUE,\" \",D25*H25)","v":" "},null,"tonnes CO2e",null,null,null,true]
[null,null,null,null,null,null,null,null,null,null,null,null,null,null,null,true]
[null,"Cavern Storage",null,null,null,"Production (m3 ethane)",null,0.01,null,{"$f":"IF(P27=TRUE,\" \",D27*H27)","v":" "},null,"tonnes CO2e",null,null,null,true]
[]
[null,"CO2 Plant",null,null,null,"Throughput (e3m3 CO2)",null,0.18809999999999999,null,{"$f":"IF(P29=TRUE,\" \",D29*H29)","v":" "},null,"tonnes CO2e",null,null,null,true]
[]
[null,"Flaring, Venting, Fugitives, Other",null,null,null,"Production (m3OE)",null,4.4520000000000002E-3,null,{"$f":"IF(P31=TRUE,\" \",D31*H31)","v":" "},null,"tonnes CO2e",null,null,null,{"$f":"D31=\"\"","v":true}]
[]
[null,null,null,null,null,null,null,"Alberta Gas Processing Index (PABGPI)",null,{"$f":"SUM(J7:J32)","v":0},null,"tonnes CO2e"]
[]
[]
[]
[null,{"$f":"CONCATENATE(ReportingYear,\" - \", 'Section A1'!$B$5)","v":"2023 - "}]

{"sheet":"Section B7 (4)","index":47,"n_rows":59,"n_cols":10,"rows_kept":59,"cut":false,"hidden":true,"merged":[[0,0,0,4],[39,3,40,3]]}
[{"$f":"\"Section B: \" & Submission!C17 & \" Direct Emissions\"","v":"Section B:  Direct Emissions"},null,null,null,null,null,"hide","hide","hide","hide"]
[]
[null,{"$f":"\" Direct Emissions by Gas Type\"","v":" Direct Emissions by Gas Type"},null,null,null,null,"Direct Emissions by Gas Type","Direct Emissions by Gas Type"]
[null,null,"Total Tonnes (in CO2e)"]
[null,"Carbon dioxide (CO2)",{"$f":"SUM('Section B1 (4)'!L5,'Section B1 (4)'!L13,'Section B1 (4)'!L23,'Section B1 (4)'!L31,'Section B1 (4)'!L39,'Section B1 (4)'!L47,'Section B1 (4)'!L55,'Section B1 (4)'!L63)","v":0},"(Excludes CO2 from Biomass)"]
[]
[null,"Methane (CH4)",{"$f":"SUM('Section B1 (4)'!L7,'Section B1 (4)'!L15,'Section B1 (4)'!L25,'Section B1 (4)'!L33,'Section B1 (4)'!L41,'Section B1 (4)'!L49,'Section B1 (4)'!L57)","v":0}]
[]
[null,"Nitrous oxide (N2O)",{"$f":"SUM('Section B1 (4)'!L9,'Section B1 (4)'!L17,'Section B1 (4)'!L27,'Section B1 (4)'!L35,'Section B1 (4)'!L43,'Section B1 (4)'!L51,'Section B1 (4)'!L59)","v":0}]
[]
[null,"Hydrofluorocarbon (HFC)",{"$f":"SUM('Section B3 (4)'!L36)","v":0}]
[]
[null,"Perfluorocarbon (PFC)",{"$f":"'Section B3 (4)'!L38","v":0}]
[]
[null,"Sulphur Hexafluoride (SF6)",{"$f":"'Section B3 (4)'!L42","v":0}]
[]
[null,"Nitrogen Trifluoride (NF3)",{"$f":"'Section B3 (4)'!L40","v":0}]
[]
[null,{"$f":"\" Total Regulated Emissions Calculation\"","v":" Total Regulated Emissions Calculation"},null,null,null,null,"Benchmark Emissions Calculation","Benchmark Emissions Calculation"]
[null,null,"Total Tonnes (in CO2e)"]
[null,"Direct Emissions (DE)",{"$f":"SUM(C5,C7,C9,C11,C13,C15,C17)","v":0},"Sum of CO2, CH4, N2O, HFC, PFC, SF6, NF3",null,null,"Direct Emissions (DE)","Direct Emissions (DE)"]
[]
[null,"Exported CO2 (ECO2)",{"$f":"'Section B4 (4)'!H21","v":0}]
[]
[null,"Imported CO2 (ICO2)",{"$f":"'Section B4 (4)'!H25","v":0}]
[]
[null,"CO2 Used in Manufacturing of Urea (UCO2)",{"$f":"'Section B4 (4)'!J42","v":0}]
[]
[null,"Emission from Combustion of Clear Fuels (ECF)",{"$f":"'Section B4 (4)'!O54","v":0}]
[]
[null,"Capture Recognition Tonnes (CRT)",{"$f":"'Section B4 (4)'!O17","v":0}]
[]
[null,"Total Regulated Emissions (TRE)",{"$f":"C21-C25+C23+C27","v":0},{"$f":"IF(OR(Submission!$I$5=2,Submission!$I$5=1),\"TRE = DE - ICO2 + ECO2 + UCO2\",\"TRE = DE - ICO2 + ECO2 + UCO2 - CRT\")","v":"TRE = DE - ICO2 + ECO2 + UCO2"},null,null,"Benchmark Emissions (BE)","Benchmark Emissions (BM)","BE = DE - FFCE - ICO2 + ECO2 + UCO2","BE = DE - FFCE - ICO2 + ECO2 + UCO2"]
[]
[null,{"$f":"\"Allowable Emissions\"","v":"Allowable Emissions"}]
[null,null,"Total Tonnes (in CO2e)"]
[null,"Products Allocations",{"$f":"#REF!","v":{"$error":"#REF!"}},"∑ BEi x Pi + ∑ BAj x Pj",null,null,"This is OBA before subtraction"]
[]
[null,"Scope Adjustment for Indirect Emissions",{"$f":"'Section B4 (4)'!H32*'Section B7 (4)'!H48+'Section B4 (4)'!H34*'Section B7 (4)'!H50+('Section B4 (4)'!H36*'Section B7 (4)'!H52*(IF('Section B7 (4)'!H55>0,0,1)))","v":{"$error":"#REF!"}},"((BEE x IE) + (BEHy x IHy) + (BEIHE x IHE))",null,null,"Scope adjustment (B4) - calculated from inputs and put here."]
[null,null,null,"OBA = ∑ BEi x Pi + ∑ BAj x Pj – ((BEE x IE) + (BEHy x IHy) + (BEIHE x IHE)) + ∑ BTAk x Pk "]
[null,"Output Based Allocation (OBA)",{"$f":"MAX(ROUND(C37-C39,0),0)","v":{"$error":"#REF!"}},null,null,null,"OBA = gross-scope"]
[]
[null,{"$f":"CONCATENATE(ReportingYear,\" - \", 'Section A1'!$B$5)","v":"2023 - "}]
[]
[]
[null,null,null,null,null,null,{"$f":"\"Benchmarks for the current compliance/reporting year \" &ReportingYear","v":"Benchmarks for the current compliance/reporting year 2023"}]
[]
[null,null,null,null,null,null,"Electricity benchmark for the current year:",{"$f":"IF(ReportingYear=2018,#REF!,IF(ReportingYear=2019,#REF!,IF(ReportingYear=2020,#REF!,IF(ReportingYear=2021,#REF!,IF(ReportingYear=2022,#REF!,#REF!)))))","v":{"$error":"#REF!"}}]
[]
[null,null,null,null,null,null,"Heat",{"$f":"IF(ReportingYear=2018,#REF!,IF(ReportingYear=2019,#REF!,IF(ReportingYear=2020,#REF!,IF(ReportingYear=2021,#REF!,IF(ReportingYear=2022,#REF!,#REF!)))))","v":{"$error":"#REF!"}}]
[]
[null,null,null,null,null,null,"Hydrogen",{"$f":"IF(ReportingYear=2018,#REF!,IF(ReportingYear=2019,#REF!,IF(ReportingYear=2020,#REF!,IF(ReportingYear=2021,#REF!,IF(ReportingYear=2022,#REF!,#REF!)))))","v":{"$error":"#REF!"}}]
[]
[]
[null,null,null,null,null,null,"Hydrogen Exclusion Count",{"$f":"SUM(H56:H59)","v":{"$error":"#REF!"}}]
[null,null,null,null,null,null,"NAICS Refining",{"$f":"IF('Section A1'!B13=\"324110\",1,0)","v":0}]
[null,null,null,null,null,null,"Product Refining",{"$f":"(COUNTIF(#REF!,\"Refining\"))","v":{"$error":"#REF!"}}]
[null,null,null,null,null,null,"NAICS Oilsands",{"$f":"IF('Section A1'!B13=\"211141\",1,0)+IF('Section A1'!B13=\"211142\",1,0)","v":0}]
[null,null,null,null,null,null,"Product Upgrading",{"$f":"(COUNTIF(#REF!,\"Upgrading\"))","v":{"$error":"#REF!"}}]

{"sheet":"Section B8 (4)","index":48,"n_rows":58,"n_cols":21,"rows_kept":58,"cut":false,"hidden":true,"merged":[[0,0,0,10],[54,1,54,9]]}
[{"$f":"\"Section B: \" & Submission!C17 & \" Fuel Usage\"","v":"Section B:  Fuel Usage"},null,null,null,null,null,null,null,null,null,null,null,"hide","hide","hide","hide","hide","hide","hide","hide","hide"]
[]
[{"$f":"\" Fuel and Feedstock Usage Information\"","v":" Fuel and Feedstock Usage Information"}]
[]
[{"$f":"\"List all fuels and feedstocks associated with emissions that are reported for the facility:\"","v":"List all fuels and feedstocks associated with emissions that are reported for the facility:"}]
[]
[null,"Fuel / Feedstock",null,"Type","N/A","Description",null,"Quantity",null,"Units"]
[1,null,null,null,null,null,null,null,null,{"$f":"IF(N8=TRUE, \"\",VLOOKUP(D8,$R$8:$T$34,3,FALSE))","v":""},null,null,"Fuel",{"$f":"D8=\"\"","v":true},null,null,null,"Aviation gas",null,"Litres","Produced gas"]
[null,null,null,null,null,null,null,null,null,null,null,null,"Feedstock",null,null,null,null,"Aviation jet fuel",null,"Litres","Mixed Gas"]
[2,null,null,null,null,null,null,null,null,{"$f":"IF(N10=TRUE, \"\",VLOOKUP(D10,$R$8:$T$34,3,FALSE))","v":""},null,null,null,{"$f":"D10=\"\"","v":true},null,null,null,"Bunker fuel",null,"Litres","Benzene"]
[null,null,null,null,null,null,null,null,null,null,null,null,null,null,null,null,null,"Butane",null,"Litres","Methane"]
[3,null,null,null,null,null,null,null,null,{"$f":"IF(N12=TRUE, \"\",VLOOKUP(D12,$R$8:$T$34,3,FALSE))","v":""},null,null,null,true,null,null,null,"Coal coke",null,"Tonnes","Oil"]
[null,null,null,null,null,null,null,null,null,null,null,null,null,null,null,null,null,"Coke oven gas",null,"STD m3","Biomass"]
[4,null,null,null,null,null,null,null,null,{"$f":"IF(N14=TRUE, \"\",VLOOKUP(D14,$R$8:$T$34,3,FALSE))","v":""},null,null,null,true,null,null,null,"Diesel - Marked",null,"Litres","Black liquor"]
[null,null,null,null,null,null,null,null,null,null,null,null,null,null,null,null,null,"Diesel - Unmarked",null,"Litres","Hog fuel"]
[5,null,null,null,null,null,null,null,null,{"$f":"IF(N16=TRUE, \"\",VLOOKUP(D16,$R$8:$T$34,3,FALSE))","v":""},null,null,null,true,null,null,null,"Ethane",null,"Litres","NCG"]
[null,null,null,null,null,null,null,null,null,null,null,null,null,null,null,null,null,"Gas liquids",null,"Litres"]
[6,null,null,null,null,null,null,null,null,{"$f":"IF(N18=TRUE, \"\",VLOOKUP(D18,$R$8:$T$34,3,FALSE))","v":""},null,null,null,true,null,"STD m3",null,"Gasoline - Marked",null,"Litres"]
[null,null,null,null,null,null,null,null,null,null,null,null,null,null,null,"Tonnes",null,"Gasoline - Unmarked",null,"Litres"]
[7,null,null,null,null,null,null,null,null,{"$f":"IF(N20=TRUE, \"\",VLOOKUP(D20,$R$8:$T$34,3,FALSE))","v":""},null,null,null,true,null,"kilolitres",null,"Heating distillate oil",null,"Litres"]
[null,null,null,null,null,null,null,null,null,null,null,null,null,null,null,"dry tonnes",null,"Heavy fuel oil",null,"Litres"]
[8,null,null,null,null,null,null,null,null,{"$f":"IF(N22=TRUE, \"\",VLOOKUP(D22,$R$8:$T$34,3,FALSE))","v":""},null,null,null,true,null,null,null,"High heat value coal",null,"Tonnes"]
[null,null,null,null,null,null,null,null,null,null,null,null,null,null,null,null,null,"Kerosene",null,"Litres"]
[9,null,null,null,null,null,null,null,null,{"$f":"IF(N24=TRUE, \"\",VLOOKUP(D24,$R$8:$T$34,3,FALSE))","v":""},null,null,null,true,null,null,null,"Locomotive diesel",null,"Litres"]
[null,null,null,null,null,null,null,null,null,null,null,null,null,null,null,null,null,"Low heat value coal",null,"Tonnes"]
[10,null,null,null,null,null,null,null,null,{"$f":"IF(N26=TRUE, \"\",VLOOKUP(D26,$R$8:$T$34,3,FALSE))","v":""},null,null,null,true,null,null,null,"Methanol",null,"Litres"]
[null,null,null,null,null,null,null,null,null,null,null,null,null,null,null,null,null,"Naphtha",null,"Litres"]
[11,null,null,null,null,null,null,null,null,{"$f":"IF(N28=TRUE, \"\",VLOOKUP(D28,$R$8:$T$34,3,FALSE))","v":""},null,null,null,true,null,null,null,"Natural gas",null,"GJ"]
[null,null,null,null,null,null,null,null,null,null,null,null,null,null,null,null,null,"Raw gas",null,"GJ"]
[12,null,null,null,null,null,null,null,null,{"$f":"IF(N30=TRUE, \"\",VLOOKUP(D30,$R$8:$T$34,3,FALSE))","v":""},null,null,null,true,null,null,null,"Pentanes plus/condensate",null,"Litres"]
[null,null,null,null,null,null,null,null,null,null,null,null,null,null,null,null,null,"Propane",null,"Litres"]
[13,null,null,null,null,null,null,null,null,{"$f":"IF(N32=TRUE, \"\",VLOOKUP(D32,$R$8:$T$34,3,FALSE))","v":""},null,null,null,true,null,null,null,"Refinery gas",null,"STD m3"]
[null,null,null,null,null,null,null,null,null,null,null,null,null,null,null,null,null,"Refinery petroleum coke",null,"Tonnes"]
[14,null,null,null,null,null,null,null,null,{"$f":"IF(N34=TRUE, \"\",VLOOKUP(D34,$R$8:$T$34,3,FALSE))","v":""},null,null,null,true,null,null,null,"Upgrader petroleum coke",null,"Tonnes"]
[]
[15,null,null,null,null,null,null,null,null,{"$f":"IF(N36=TRUE, \"\",VLOOKUP(D36,$R$8:$T$34,3,FALSE))","v":""},null,null,null,true]
[]
[16,null,null,null,null,null,null,null,null,{"$f":"IF(N38=TRUE, \"\",VLOOKUP(D38,$R$8:$T$34,3,FALSE))","v":""},null,null,null,true]
[]
[17,null,null,null,null,null,null,null,null,{"$f":"IF(N40=TRUE, \"\",VLOOKUP(D40,$R$8:$T$34,3,FALSE))","v":""},null,null,null,true]
[]
[18,null,null,null,null,null,null,null,null,{"$f":"IF(N42=TRUE, \"\",VLOOKUP(D42,$R$8:$T$34,3,FALSE))","v":""},null,null,null,true]
[]
[19,null,null,null,null,null,null,null,null,{"$f":"IF(N44=TRUE, \"\",VLOOKUP(D44,$R$8:$T$34,3,FALSE))","v":""},null,null,null,true]
[]
[20,null,null,null,null,null,null,null,null,{"$f":"IF(N46=TRUE, \"\",VLOOKUP(D46,$R$8:$T$34,3,FALSE))","v":""},null,null,null,true]
[]
[]
[]
[]
[]
[]
[]
[]
[null,"All fuels need to be reported whether or not the federal fuel charge has been paid or not."]
[]
[]
[null,{"$f":"CONCATENATE(ReportingYear,\" - \", 'Section A1'!$B$5)","v":"2023 - "}]

{"sheet":"Section B1 (5)","index":49,"n_rows":65,"n_cols":16,"rows_kept":65,"cut":false,"hidden":true,"merged":[[20,1,20,7],[0,0,0,12],[1,1,1,11],[2,1,2,7],[4,1,4,4],[6,1,6,4],[8,1,8,4],[10,1,10,7],[12,1,12,4],[14,1,14,4],[16,1,16,4],[18,5,18,10],[44,1,44,7],[22,1,22,4],[24,1,24,4],[26,1,26,4],[28,1,28,7],[30,1,30,4],[32,1,32,4],[34,1,34,4],[36,1,36,7],[38,1,38,4],[40,1,40,4],[42,1,42,4],[58,1,58,4],[60,1,60,7],[62,1,62,4],[46,1,46,4],[48,1,48,4],[50,1,50,4],[52,1,52,7],[54,1,54,4],[56,1,56,4]]}
[{"$f":"\"Section B: \" & Submission!C19 & \" Direct Emissions\"","v":"Section B:  Direct Emissions"},null,null,null,null,null,null,null,null,null,null,null,null,null,"hide","hide"]
[null,{"$f":"CONCATENATE(O2,P2)","v":"Instructions: Enter value under Tonnes. Conversion to Tonnes CO2e is calculated automatically."},null,null,null,null,null,null,null,null,null,null,null,null,"Instructions: Enter value under Tonnes. Conversion to Tonnes CO2e is calculated automatically."]
[null,"Stationary Fuel Combustion Emissions"]
[null,null,null,null,null,"N/A",null,"Tonnes",null,"GWP",null,"Tonnes (in CO2e)"]
[null,"Carbon dioxide (CO2)",null,null,null,null,null,null,"X",{"$f":"Submission!I44","v":1},"=",{"$f":"H5*J5","v":0},null,null,null,{"$f":"H5=\"\"","v":true}]
[]
[null,"Methane (CH4)",null,null,null,null,null,null,"X",{"$f":"Submission!I45","v":28},"=",{"$f":"H7*J7","v":0},null,null,null,{"$f":"H7=\"\"","v":true}]
[]
[null,"Nitrous oxide (N2O)",null,null,null,null,null,null,"X",{"$f":"Submission!I46","v":265},"=",{"$f":"H9*J9","v":0},null,null,null,{"$f":"H9=\"\"","v":true}]
[]
[null,"Industrial Process Emissions"]
[null,null,null,null,null,"N/A",null,"Tonnes",null,"GWP",null,"Tonnes (in CO2e)"]
[null,"Carbon dioxide (CO2)",null,null,null,null,null,null,"X",{"$f":"J$5","v":1},"=",{"$f":"H13*J13","v":0},null,null,null,{"$f":"H13=\"\"","v":true}]
[]
[null,"Methane (CH4)",null,null,null,null,null,null,"X",{"$f":"J$7","v":28},"=",{"$f":"H15*J15","v":0},null,null,null,{"$f":"H15=\"\"","v":true}]
[]
[null,"Nitrous oxide (N2O)",null,null,null,null,null,null,"X",{"$f":"J$9","v":265},"=",{"$f":"H17*J17","v":0},null,null,null,{"$f":"H17=\"\"","v":true}]
[]
[null,null,null,null,null,"CO2, CH4 and N2O Industrial Process Total",null,null,null,null,null,{"$f":"SUM(L17,L15,L13)","v":0}]
[]
[null,"Venting Emissions"]
[null,null,null,null,null,"N/A",null,"Tonnes",null,"GWP",null,"Tonnes (in CO2e)"]
[null,"Carbon dioxide (CO2)",null,null,null,null,null,null,"X",{"$f":"J$5","v":1},"=",{"$f":"H23*J23","v":0},null,null,null,{"$f":"H23=\"\"","v":true}]
[]
[null,"Methane (CH4)",null,null,null,null,null,null,"X",{"$f":"J$7","v":28},"=",{"$f":"H25*J25","v":0},null,null,null,{"$f":"H25=\"\"","v":true}]
[]
[null,"Nitrous oxide (N2O)",null,null,null,null,null,null,"X",{"$f":"J$9","v":265},"=",{"$f":"H27*J27","v":0},null,null,null,{"$f":"H27=\"\"","v":true}]
[]
[null,"Flaring Emissions"]
[null,null,null,null,null,"N/A",null,"Tonnes",null,"GWP",null,"Tonnes (in CO2e)"]
[null,"Carbon dioxide (CO2)",null,null,null,null,null,null,"X",{"$f":"J$5","v":1},"=",{"$f":"H31*J31","v":0},null,null,null,{"$f":"H31=\"\"","v":true}]
[]
[null,"Methane (CH4)",null,null,null,null,null,null,"X",{"$f":"J$7","v":28},"=",{"$f":"H33*J33","v":0},null,null,null,{"$f":"H33=\"\"","v":true}]
[]
[null,"Nitrous oxide (N2O)",null,null,null,null,null,null,"X",{"$f":"J$9","v":265},"=",{"$f":"H35*J35","v":0},null,null,null,{"$f":"H35=\"\"","v":true}]
[]
[null,"Fugitive/Other Emissions"]
[null,null,null,null,null,"N/A",null,"Tonnes",null,"GWP",null,"Tonnes (in CO2e)"]
[null,"Carbon dioxide (CO2)",null,null,null,null,null,null,"X",{"$f":"J$5","v":1},"=",{"$f":"H39*J39","v":0},null,null,null,{"$f":"H39=\"\"","v":true}]
[]
[null,"Methane (CH4)",null,null,null,null,null,null,"X",{"$f":"J$7","v":28},"=",{"$f":"H41*J41","v":0},null,null,null,{"$f":"H41=\"\"","v":true}]
[]
[null,"Nitrous oxide (N2O)",null,null,null,null,null,null,"X",{"$f":"J$9","v":265},"=",{"$f":"H43*J43","v":0},null,null,null,{"$f":"H43=\"\"","v":true}]
[]
[null,"On-Site Transportation Emissions"]
[null,null,null,null,null,"N/A",null,"Tonnes",null,"GWP",null,"Tonnes (in CO2e)"]
[null,"Carbon dioxide (CO2)",null,null,null,null,null,null,"X",{"$f":"J$5","v":1},"=",{"$f":"H47*J47","v":0},null,null,null,{"$f":"H47=\"\"","v":true}]
[]
[null,"Methane (CH4)",null,null,null,null,null,null,"X",{"$f":"J$7","v":28},"=",{"$f":"H49*J49","v":0},null,null,null,{"$f":"H49=\"\"","v":true}]
[]
[null,"Nitrous oxide (N2O)",null,null,null,null,null,null,"X",{"$f":"J$9","v":265},"=",{"$f":"H51*J51","v":0},null,null,null,{"$f":"H51=\"\"","v":true}]
[]
[null,"Waste and Wastewater Emissions"]
[null,null,null,null,null,"N/A",null,"Tonnes",null,"GWP",null,"Tonnes (in CO2e)"]
[null,"Carbon dioxide (CO2)",null,null,null,null,null,null,"X",{"$f":"J$5","v":1},"=",{"$f":"H55*J55","v":0},null,null,null,{"$f":"H55=\"\"","v":true}]
[]
[null,"Methane (CH4)",null,null,null,null,null,null,"X",{"$f":"J$7","v":28},"=",{"$f":"H57*J57","v":0},null,null,null,{"$f":"H57=\"\"","v":true}]
[]
[null,"Nitrous oxide (N2O)",null,null,null,null,null,null,"X",{"$f":"J$9","v":265},"=",{"$f":"H59*J59","v":0},null,null,null,{"$f":"H59=\"\"","v":true}]
[]
[null,"Formation CO2 Emissions"]
[null,null,null,null,null,"N/A",null,"Tonnes",null,"GWP",null,"Tonnes (in CO2e)"]
[null,"Carbon dioxide (CO2)",null,null,null,null,null,null,"X",{"$f":"J5","v":1},"=",{"$f":"H63*J63","v":0},null,null,null,{"$f":"H63=\"\"","v":true}]
[]
[null,{"$f":"CONCATENATE(ReportingYear,\" - \", 'Section A1'!$B$5)","v":"2023 - "}]

{"sheet":"Section B2 (5)","index":50,"n_rows":46,"n_cols":13,"rows_kept":46,"cut":false,"hidden":true,"merged":[[0,0,0,9],[1,1,1,8],[43,2,43,7]]}
[{"$f":"\"Section B: \" & Submission!C19 & \" Direct Emissions\"","v":"Section B:  Direct Emissions"},null,null,null,null,null,null,null,null,null,null,"hide","hide"]
[null,{"$f":"CONCATENATE(L2,M2)","v":"Instructions: Enter value under Tonnes. Conversion to Tonnes CO2e is calculated automatically."},null,null,null,null,null,null,null,null,null,"Instructions: Enter value under Tonnes. Conversion to Tonnes CO2e is calculated automatically."]
[null,"Hydrofluorocarbon (HFC) Emissions "]
[null,null,null,null,null,null,null,null,null,null,null,null,{"$f":"I44=0","v":true}]
[null,null,"N/A",null,"Tonnes",null,"GWP",null,"Tonnes (in CO2e)"]
[null,"HFC-23 (CHF3)",null,null,null,"X",{"$f":"Submission!I47","v":12400},"=",{"$f":"E6*G6","v":0},null,null,null,{"$f":"E6=\"\"","v":true}]
[]
[null,"HFC-32 (CH2F2)",null,null,null,"X",{"$f":"Submission!I48","v":677},"=",{"$f":"E8*G8","v":0},null,null,null,{"$f":"E8=\"\"","v":true}]
[]
[null,"HFC-41 (CH3F)",null,null,null,"X",{"$f":"Submission!I49","v":116},"=",{"$f":"E10*G10","v":0},null,null,null,{"$f":"E10=\"\"","v":true}]
[]
[null,"HFC-43-10mee (C5H2F10)",null,null,null,"X",{"$f":"Submission!I50","v":1650},"=",{"$f":"E12*G12","v":0},null,null,null,{"$f":"E12=\"\"","v":true}]
[]
[null,"HFC-125 (C2HF5)",null,null,null,"X",{"$f":"Submission!I51","v":3170},"=",{"$f":"E14*G14","v":0},null,null,null,{"$f":"E14=\"\"","v":true}]
[]
[null,"HFC-134 (CHF2CHF2)",null,null,null,"X",{"$f":"Submission!I52","v":1120},"=",{"$f":"E16*G16","v":0},null,null,null,{"$f":"E16=\"\"","v":true}]
[]
[null,"HFC-134a (CH2FCF2)",null,null,null,"X",{"$f":"Submission!I53","v":1300},"=",{"$f":"E18*G18","v":0},null,null,null,{"$f":"E18=\"\"","v":true}]
[]
[null,"HFC-143 (CHF2CH2F)",null,null,null,"X",{"$f":"Submission!I54","v":328},"=",{"$f":"E20*G20","v":0},null,null,null,{"$f":"E20=\"\"","v":true}]
[]
[null,"HFC-143a (CF3CH3)",null,null,null,"X",{"$f":"Submission!I55","v":4800},"=",{"$f":"E22*G22","v":0},null,null,null,{"$f":"E22=\"\"","v":true}]
[]
[null,"HFC-152 (CH2FCH2F)",null,null,null,"X",{"$f":"Submission!I56","v":16},"=",{"$f":"E24*G24","v":0},null,null,null,{"$f":"E24=\"\"","v":true}]
[]
[null,"HFC-152a (CH3CHF2)",null,null,null,"X",{"$f":"Submission!I57","v":138},"=",{"$f":"E26*G26","v":0},null,null,null,{"$f":"E26=\"\"","v":true}]
[]
[null,"HFC-161 (CH3CH2F)",null,null,null,"X",{"$f":"Submission!I58","v":4},"=",{"$f":"E28*G28","v":0},null,null,null,{"$f":"E28=\"\"","v":true}]
[]
[null,"HFC-227ea (C3HF7)",null,null,null,"X",{"$f":"Submission!I59","v":3350},"=",{"$f":"E30*G30","v":0},null,null,null,{"$f":"E30=\"\"","v":true}]
[]
[null,"HFC-236cb (CH2FCF2CF3)",null,null,null,"X",{"$f":"Submission!I60","v":1210},"=",{"$f":"E32*G32","v":0},null,null,null,{"$f":"E32=\"\"","v":true}]
[]
[null,"HFC-236ea (CHF2CHFCF3)",null,null,null,"X",{"$f":"Submission!I61","v":1330},"=",{"$f":"E34*G34","v":0},null,null,null,{"$f":"E34=\"\"","v":true}]
[]
[null,"HFC-236fa (C3H2F6)",null,null,null,"X",{"$f":"Submission!I62","v":8060},"=",{"$f":"E36*G36","v":0},null,null,null,{"$f":"E36=\"\"","v":true}]
[]
[null,"HFC-245ca (C3H3F5)",null,null,null,"X",{"$f":"Submission!I63","v":716},"=",{"$f":"E38*G38","v":0},null,null,null,{"$f":"E38=\"\"","v":true}]
[]
[null,"HFC-245fa (CHF2CH2CF3)",null,null,null,"X",{"$f":"Submission!I64","v":858},"=",{"$f":"E40*G40","v":0},null,null,null,{"$f":"E40=\"\"","v":true}]
[]
[null,"HFC-365mfc (CH3CF2CH2CF3)",null,null,null,"X",{"$f":"Submission!I65","v":804},"=",{"$f":"E42*G42","v":0},null,null,null,{"$f":"E42=\"\"","v":true}]
[]
[null,null,"Total HFC:",null,null,null,null,null,{"$f":"SUM(I6,I8,I10,I12,I14,I16,I18,I20,I22,I24,I26,I28,I30,I32,I34,I36,I38,I40,I42)","v":0}]
[]
[null,{"$f":"CONCATENATE(ReportingYear,\" - \", 'Section A1'!$B$5)","v":"2023 - "}]

{"sheet":"Section B3 (5)","index":51,"n_rows":44,"n_cols":16,"rows_kept":44,"cut":false,"hidden":true,"merged":[[21,1,21,4],[0,0,0,12],[1,1,1,11],[2,1,2,11],[5,1,5,4],[7,1,7,4],[9,1,9,4],[11,1,11,4],[13,1,13,4],[15,1,15,4],[17,1,17,4],[19,1,19,4],[35,1,35,10],[37,1,37,10],[39,1,39,10],[41,1,41,10],[23,5,23,9],[25,1,25,10],[27,1,27,4],[29,1,29,10],[31,1,31,4],[33,1,33,10]]}
[{"$f":"\"Section B: \" & Submission!C19 & \" Direct Emissions\"","v":"Section B:  Direct Emissions"},null,null,null,null,null,null,null,null,null,null,null,null,null,"hide","hide"]
[null,{"$f":"CONCATENATE(O2,P2)","v":"Instructions: Enter value under Tonnes. Conversion to Tonnes CO2e is calculated automatically."},null,null,null,null,null,null,null,null,null,null,null,null,"Instructions: Enter value under Tonnes. Conversion to Tonnes CO2e is calculated automatically."]
[null,"Perfluorocarbon (PFC) Emissions "]
[null,null,null,null,null,null,null,null,null,null,null,null,null,null,null,{"$f":"(L24=0)","v":true}]
[null,null,null,null,null,"N/A",null,"Tonnes",null,"GWP",null,"Tonnes (in CO2e)"]
[null,"Perfluoromethane (CF4)",null,null,null,null,null,null,"X",{"$f":"Submission!I67","v":6630},"=",{"$f":"H6*J6","v":0},null,null,null,{"$f":"H6=\"\"","v":true}]
[]
[null,"Perfluoroethane (C2F6)",null,null,null,null,null,null,"X",{"$f":"Submission!I68","v":11100},"=",{"$f":"H8*J8","v":0},null,null,null,{"$f":"H8=\"\"","v":true}]
[]
[null,"Perfluoropropane (C3F8)",null,null,null,null,null,null,"X",{"$f":"Submission!I69","v":8900},"=",{"$f":"H10*J10","v":0},null,null,null,{"$f":"H10=\"\"","v":true}]
[]
[null,"Perfluorobutane (C4F10)",null,null,null,null,null,null,"X",{"$f":"Submission!I70","v":9200},"=",{"$f":"H12*J12","v":0},null,null,null,{"$f":"H12=\"\"","v":true}]
[]
[null,"Perfluorocyclobutane (c-C4F8)",null,null,null,null,null,null,"X",{"$f":"Submission!I71","v":9540},"=",{"$f":"H14*J14","v":0},null,null,null,{"$f":"H14=\"\"","v":true}]
[]
[null,"Perfluoropentane (C5F12)",null,null,null,null,null,null,"X",{"$f":"Submission!I72","v":8550},"=",{"$f":"H16*J16","v":0},null,null,null,{"$f":"H16=\"\"","v":true}]
[]
[null,"Perfluorohexane (C6F14)",null,null,null,null,null,null,"X",{"$f":"Submission!I73","v":7910},"=",{"$f":"H18*J18","v":0},null,null,null,{"$f":"H18=\"\"","v":true}]
[]
[null,"Perfluorodecalin C10F18",null,null,null,null,null,null,"X",{"$f":"Submission!I74","v":7190},"=",{"$f":"H20*J20","v":0},null,null,null,{"$f":"H20=\"\"","v":true}]
[]
[null,"Perfluorocyclopropane c-C3F6",null,null,null,null,null,null,"X",{"$f":"Submission!I75","v":9200},"=",{"$f":"H22*J22","v":0},null,null,null,{"$f":"H22=\"\"","v":true}]
[]
[null,null,null,null,null,"Total PFC :",null,null,null,null,"=",{"$f":"SUM(L6,L8,L10,L12,L14,L16,L18,L20,L22)","v":0}]
[]
[null,"Nitrogen Trifluoride (NF3)"]
[null,null,null,null,null,"N/A",null,"Tonnes",null,"GWP",null,"Tonnes (in CO2e)"]
[null,"Nitrogen Trifluoride (NF3)",null,null,null,null,null,null,"X",{"$f":"Submission!I76","v":16100},"=",{"$f":"H28*J28","v":0},null,null,null,{"$f":"H28=\"\"","v":true}]
[]
[null,"Sulphur Hexafluoride (SF6) Emissions"]
[null,null,null,null,null,"N/A",null,"Tonnes",null,"GWP",null,"Tonnes (in CO2e)"]
[null,"Sulphur hexafluoride (SF6)",null,null,null,null,null,null,"X",{"$f":"Submission!I66","v":23500},"=",{"$f":"H32*J32","v":0},null,null,null,{"$f":"H32=\"\"","v":true}]
[]
[null,"Total HFC, PFC, NF3 and SF6 Emissions"]
[null,null,null,null,null,null,null,null,null,null,null,"Tonnes (in CO2e)"]
[null,"Hydrofluorocarbon (HFC)",null,null,null,null,null,null,null,null,null,{"$f":"'Section B2 (5)'!$I$44","v":0}]
[]
[null,"Perfluorocarbons (PFC)",null,null,null,null,null,null,null,null,null,{"$f":"$L$24","v":0}]
[]
[null,"Nitrogen Trifluoride (NF3)",null,null,null,null,null,null,null,null,null,{"$f":"$L$28","v":0}]
[]
[null,"Sulphur hexafluoride (SF6)",null,null,null,null,null,null,null,null,null,{"$f":"$L$32","v":0}]
[]
[null,{"$f":"CONCATENATE(ReportingYear,\" - \", 'Section A1'!$B$5)","v":"2023 - "}]

{"sheet":"Section B4 (5)","index":52,"n_rows":57,"n_cols":28,"rows_kept":57,"cut":false,"hidden":true,"merged":[[10,1,10,4],[0,0,0,19],[1,0,1,14],[4,1,4,7],[6,1,6,4],[8,1,8,12],[39,11,39,12],[11,1,11,16],[13,7,13,12],[16,1,16,4],[20,1,20,4],[22,1,22,10],[24,1,24,4],[25,1,25,16],[28,11,28,14],[37,1,37,16],[28,16,28,18],[29,16,31,16],[18,13,18,16],[22,13,22,16],[14,13,14,16],[14,1,14,9],[54,1,54,16],[44,11,44,12],[45,1,45,8],[47,1,47,4],[49,1,49,4],[51,1,51,4],[53,8,53,13]]}
[{"$f":"\"Section B: \" & Submission!C19 & \" Direct Emissions\"","v":"Section B:  Direct Emissions"},null,null,null,null,null,null,null,null,null,null,null,null,null,null,null,null,null,null,null,null,"hide","hide","hide","hide","hide","hide","hide"]
[]
[null,"Biomass CO2 Emissions"]
[]
[null,"CO2 Emissions from Combustion of Biomass (BM)"]
[null,null,null,null,null,"N/A",null,"Tonnes"]
[null,"Carbon dioxide (CO2)",null,null,null,null,null,null,null,null,null,null,null,null,null,null,null,null,null,null,null,null,{"$f":"H7=\"\"","v":true}]
[]
[null,"CO2 Emissions from Decomposition of Biomass (BM)"]
[null,null,null,null,null,"N/A",null,"Tonnes"]
[null,"Carbon dioxide (CO2)",null,null,null,null,null,null,null,null,null,null,null,null,null,null,null,null,null,null,null,null,{"$f":"H11=\"\"","v":true}]
[null,"Note: Only CO₂ emissions from combustion and decomposition of biomass should be reported here. These emissions are not included in the calculation of the direct emissions. Methane and nitrous oxide emissions from biomass combustion and decomposition must be reported in Section B1 in the appropriate category."]
[null,"Captured CO2"]
[]
[null,"CO2 Geologically Injected On Site",null,null,null,null,null,null,null,null,null,null,null,"Capture Recognition Tonnes (CRT)"]
[null,null,null,null,null,"N/A",null,"Tonnes (in CO2e)",null,null,null,null,null,"N/A","Tonnes"]
[null,"Carbon dioxide (CO2)",null,null,null,null,null,null,null,null,null,null,null,null,null,null,null,null,null,null,null,null,{"$f":"H17=\"\"","v":true},null,{"$f":"O17=\"\"","v":true}]
[]
[null,"Exported CO2 (ECO2)",null,null,null,null,null,"Exported from non-IP",null,"IPExport",null,null,null,"Exported for Disposal as Acid Gas"]
[null,null,null,null,null,"N/A",null,"Tonnes (in CO2e)","N/A","Tonnes (in CO2e)",null,null,null,"N/A","Tonnes (in CO2e)"]
[null,"Carbon dioxide (CO2)",null,null,null,null,null,null,null,null,null,null,null,null,null,null,null,null,null,null,null,null,{"$f":"H21=\"\"","v":true},{"$f":"O21=\"\"","v":true},{"$f":"J21=\"\"","v":true}]
[]
[null,"Imported CO2 (ICO2)",null,null,null,null,null,null,null,null,null,null,null,"Imported for Disposal as Acid Gas"]
[null,null,null,null,null,"N/A",null,"Tonnes (in CO2e)",null,null,null,null,null,"N/A","Tonnes (in CO2e)"]
[null,"Carbon dioxide (CO2)",null,null,null,null,null,null,null,null,null,null,null,null,null,null,null,null,null,null,null,null,{"$f":"H25=\"\"","v":true},{"$f":"O25=\"\"","v":true}]
[null,"Note: This section should include data on carbon capture and storage activities, including acid gas injection and enhanced oil recovery projects. Trace CO2 in fuels, feedstock or products should not be included. \nAny carbon dioxide removed from raw gas and disposed of, as an acid gas stream, to an AER approved underground formation shall be excluded from Exported and Imported CO2. These quantities should be reported in the specific fields provided for disposal of acid gas in Cells O21 and O25.\nExported CO2 reported in this section is added in the calculation of Total Regulated Emissions. Please make sure not to include this quantity in Section B1 to avoid double counting. For example, if Formation or Industrial Process CO2 is being captured by the facility and exported to another facility regulated under TIER Regulation, it should be reported as an export only and not in section B1, otherwise it will be double counted in the Total Regulated Emissions.  "]
[null,"Greenhouse Gas Intensive Inputs & Outputs"]
[]
[null,null,null,null,null,null,null,null,null,null,null,"On site (AB-CWB Only)",null,null,null,null,"Wasted H2"]
[null,null,null,null,null,null,null,"Imported",null,"Exported",null,"Generated",null,null,"Used",null,"from Generated\non site",null,"from Imported",null,null,null,1E-4]
[]
[null,"Electricity [MWh]",null,null,null,null,"IE",null,null,null,null,null,null,null,null,null,null,null,null,null,null,null,{"$f":"H32=\"\"","v":true},{"$f":"J32=\"\"","v":true}]
[]
[null,"Heat [GJ]",null,null,null,null,"IHe",null,null,null,null,null,null,null,null,null,null,null,null,null,null,null,{"$f":"H34=\"\"","v":true},{"$f":"J34=\"\"","v":true}]
[]
[null,"Hydrogen [tonnes H2(*)]",null,null,null,null,"IHy",null,null,null,null,null,null,null,null,null,null,null,null,null,null,null,{"$f":"H36=\"\"","v":true},{"$f":"J36=\"\"","v":true},{"$f":"L36=\"\"","v":true},{"$f":"O36=\"\"","v":true},{"$f":"Q36=\"\"","v":true},{"$f":"S36=\"\"","v":true}]
[null,"(*) excluding trace H2 in fuels"]
[null,"Note: Exported quantities in this section do not generate allocations. Exported quantities that qualify as products must also be reported in Section B6. "]
[null,"CO2 Used in Manufacturing of Urea"]
[]
[null,null,null,null,null,null,null,null,"N/A","Tonnes (in CO2e)"]
[null,"CO2 Used in Manufacturing of Urea (UCO2)",null,null,null,null,null,null,null,null,null,null,null,null,null,null,null,null,null,null,null,null,{"$f":"J42=\"\"","v":true}]
[]
[null,"Emissions from Fuels Subject to the Federal Fuel Charge"]
[]
[null,"Emissions from Fuels Subject to the Federal Fuel Charge"]
[null,null,null,null,null,"N/A",null,"Tonnes",null,null,null,"GWP",null,null,"Tonnes (in CO2e)"]
[null,"Carbon dioxide (CO2)",null,null,null,null,null,null,null,"X",null,{"$f":"Submission!I44","v":1},null,"=",{"$f":"H48*L48","v":0},null,null,null,null,null,null,null,{"$f":"H48=\"\"","v":true}]
[]
[null,"Methane (CH4)",null,null,null,null,null,null,null,"X",null,{"$f":"Submission!I45","v":28},null,"=",{"$f":"H50*L50","v":0},null,null,null,null,null,null,null,{"$f":"H50=\"\"","v":true}]
[]
[null,"Nitrous oxide (N2O)",null,null,null,null,null,null,null,"X",null,{"$f":"Submission!I46","v":265},null,"=",{"$f":"H52*L52","v":0},null,null,null,null,null,null,null,{"$f":"H52=\"\"","v":true}]
[]
[null,null,null,null,null,null,null,null,"CO2, CH4 and N2O Clear Fuel Total (ECF)",null,null,null,null,null,{"$f":"SUM(O52,O50,O48)","v":0}]
[null,"Note: Quantities in this section are substracted from Benchmark Emissions (BE), make sure to also include these quantities in Section B1. "]
[]
[null,{"$f":"CONCATENATE(ReportingYear,\" - \", 'Section A1'!$B$5)","v":"2023 - "}]

{"sheet":"Section B4 EE (5)","index":53,"n_rows":51,"n_cols":15,"rows_kept":51,"cut":false,"hidden":true,"merged":[[0,0,0,10],[21,1,21,9],[35,1,35,9],[49,1,49,9],[50,1,50,9]]}
[{"$f":"\"Section B: \" & Submission!C19 & \" Direct Emissions\"","v":"Section B:  Direct Emissions"},null,null,null,null,null,null,null,null,null,null,null,"hide","hide","hide"]
[]
[null,{"$f":"\"Self-Generation Information\"","v":"Self-Generation Information"},null,null,null,null,null,null,null,null,null,null,null,null,"Trigger"]
[]
[null,null,null,null,null,null,null,null,null,null,null,null,null,{"$f":"IF(O5>0,FALSE,TRUE)","v":true},{"$f":"SUM(I17,I20,I26,I40,I48)","v":0}]
[]
[]
[null,"Self Generation Emissions"]
[]
[null,null,null,null,null,null,null,null,"Tonnes (in CO2e)"]
[null,"Carbon dioxide (CO2)",null,null,null,"X",{"$f":"Submission!I44","v":1},"=",{"$f":"E11*G11","v":0},null,null,null,null,{"$f":"E11=\"\"","v":true}]
[]
[null,"Methane (CH4)",null,null,null,"X",{"$f":"Submission!I45","v":28},"=",{"$f":"E13*G13","v":0},null,null,null,null,{"$f":"E13=\"\"","v":true}]
[]
[null,"Nitrous oxide (N2O)",null,null,null,"X",{"$f":"Submission!I46","v":265},"=",{"$f":"E15*G15","v":0},null,null,null,null,{"$f":"E15=\"\"","v":true}]
[]
[null,null,null,null,null,null,null,"Total GHG Emissions from Self Generation (EE)",{"$f":"SUM(I11,I13,I15)","v":0}]
[]
[]
[null,null,null,null,null,null,null,"Total GHG Emissions from Self Generation (EE)"]
[]
[null,"Note: Report in this section the emissions attributable to self-generation of electricity and\\or cogeneration at the facility for the production of the product or offsite exports of heat and electricity. This include all emissions from fossil fuels but only Methane (CH4) and Nitrous Oxide (N2O) emissions when the fuel used for electricity generation or cogeneration is biomass. "]
[]
[null,{"$f":"\" Electricity\"","v":" Electricity"}]
[null,null,null,null,null,null,null,"N/A","Quantity","Units"]
[null,null,null,null,null,null,"Electricity Self Generated (Net of Station Load)",null,null,"MWh",null,null,null,{"$f":"I26=\"\"","v":true}]
[]
[null,null,null,null,null,null,"Electricity Imported",null,{"$f":"'Section B4 (5)'!H32","v":0},"MWh"]
[]
[null,null,null,null,null,null,"Electricity Exported",null,{"$f":"'Section B4 (5)'!J32","v":0},"MWh"]
[]
[null,"Elecused = Elecself-generated + Elecimport-Elecexport",null,null,null,null,"Electricity Used",null,{"$f":"I26+I28-I30","v":0},"MWh"]
[]
[null,null,null,null,null,null,"Electricity Used",null,null,"MWh",null,null,null,{"$f":"I34=\"\"","v":true}]
[]
[null,{"$f":"IF(Submission!$I$5=2,N36,M36)","v":"Note: Report in this section the electricity generated at the facility from cogeneration and\\or non-cogeneration sources (net of station load). "},null,null,null,null,null,null,null,null,null,null,"Note: Report in this section the electricity generated at the facility from cogeneration and\\or non-cogeneration sources (net of station load). ","Note: Input the corresponding Electricity Used value from the Self-generation Multiproduct Form."]
[null,{"$f":"\" Heat\"","v":" Heat"}]
[]
[null,null,null,null,null,null,null,"N/A","Quantity","Units"]
[null,null,null,null,null,null,"Heat Cogenerated (Net heat produced by cogeneration)",null,null,"GJ",null,null,null,{"$f":"I40=\"\"","v":true}]
[]
[null,null,null,null,null,null,"Heat Imported",null,{"$f":"'Section B4 (5)'!H34","v":0},"GJ"]
[]
[null,null,null,null,null,null,"Heat Exported",null,{"$f":"'Section B4 (5)'!J34","v":0},"GJ"]
[]
[null,null,null,null,"Hused = Hcogenerated + Himport- Hexport",null,"Heat Used",null,{"$f":"I40+I42-I44","v":0},"GJ"]
[]
[null,null,null,null,null,null,"Heat Used",null,null,"GJ",null,null,null,{"$f":"I48=\"\"","v":true}]
[]
[null,{"$f":"IF(Submission!$I$5=2,N50,M50)","v":"Note: Heat cogenerated is heat produced as a by-product of electricity generation at the facility. It does not include heat produced using conventional boilers that are not related to the generation of electricity  "},null,null,null,null,null,null,null,null,null,null,"Note: Heat cogenerated is heat produced as a by-product of electricity generation at the facility. It does not include heat produced using conventional boilers that are not related to the generation of electricity  ","Note: Input the corresponding Heat Used value from the Self-generation Multiproduct Form."]
[null,{"$f":"CONCATENATE(ReportingYear,\" - \", 'Section A1'!$B$5)","v":"2023 - "}]

{"sheet":"Section B5 (5)","index":54,"n_rows":15,"n_cols":17,"rows_kept":15,"cut":false,"hidden":true,"merged":[[13,1,13,12],[14,1,14,12],[15,1,15,12],[0,0,0,13],[1,0,1,12],[3,1,3,12],[4,1,4,12],[6,1,6,12],[9,1,9,12]]}
[{"$f":"\"Section B: \" & Submission!C19 & \" Direct Emissions\"","v":"Section B:  Direct Emissions"},null,null,null,null,null,null,null,null,null,null,null,null,null,null,"hide","hide"]
[]
[null,"Negligible Emission Sources"]
[null,"List all GHG emission sources that are being treated as negligible in the space below. For all negligible, include the annual emissions estimate and expected year-to-year variation in (tonnes CO2e). If additional space is required, please attach a document and specify the name below. Under TIER Regulation all negligible sources are to be included in the corresponding emission categories in Sections B1, B2, B3 and B4, and count towards the Direct Emissions. Alternative methods may be used to assess the negligibility of these emissions."]
[]
[null,{"$f":"\"Public Availability of \"&Submission!C15&\" GHG Emissions Data\"","v":"Public Availability of  GHG Emissions Data"},null,null,null,null,null,null,null,null,null,null,null,null,null,"Options","Yes"]
[null,{"$f":"\"Are \"&Submission!C15&\" greenhouse gas emissions data by gas type for this facility publicly available (i.e., published or by request)?\"","v":"Are  greenhouse gas emissions data by gas type for this facility publicly available (i.e., published or by request)?"},null,null,null,null,null,null,null,null,null,null,null,null,null,null,"No"]
[null,null,null,null,null,null,null,null,null,null,null,null,null,null,null,"Total Publicly Available"]
[]
[null,{"$f":"\"Are \"&Submission!C15&\" greenhouse gas emissions data by source category for this facility publicly available (i.e., published or by request)?\"","v":"Are  greenhouse gas emissions data by source category for this facility publicly available (i.e., published or by request)?"}]
[null,null,null,null,null,null,null,null,null,null,null,null,null,null,null,"By Gas Available"]
[]
[null,"Note: Confidentiality must not be requested for information that is publicly available."]
[]
[null,{"$f":"CONCATENATE(ReportingYear,\" - \", 'Section A1'!$B$5)","v":"2023 - "}]

{"sheet":"Section B6 (3) ABGPI (3)","index":55,"n_rows":37,"n_cols":16,"rows_kept":37,"cut":false,"hidden":true,"merged":[[0,0,0,12],[2,1,2,12],[4,1,4,11],[34,1,34,9],[36,1,36,11]]}
[{"$f":"\"Section B: \" & Submission!C19 & \" Direct Emissions\"","v":"Section B:  Direct Emissions"},null,null,null,null,null,null,null,null,null,null,null,null,null,null,"hide"]
[]
[null,"Alberta Gas Processing Index Calculation Template"]
[]
[null,"Instructions: Enter the quantities for your facility as provided for the benchmarking exercise.  For facilities that did not participate in the benchmarking exercise, more detailed quantification guidance is forthcoming.  Note that the quantity for Non-Energy Utilities is total plant production, including straddle plant residue gas, in metres cubed oil equivalent.  The weighting factor was based on emissions associated with venting, flaring, and fugitives.  This quantity of total plant production is also used for the Formation CO2 benchmarks."]
[null,"Module","N/A","Quantity",null,"Quantity Units",null,"Weighting/ conversion factor",null,"Weighted Quantity",null,"Weighted Quantity Units"]
[null,"Inlet Compression",null,null,null,"Throughput (e3m3)",null,3.304E-2,null,{"$f":"IF(P7=TRUE,\" \",D7*H7)","v":" "},null,"tonnes CO2e",null,null,null,{"$f":"D7=\"\"","v":true}]
[]
[null,"Dehydration",null,null,null,"Throughput (e3m3)",null,2.47E-3,null,{"$f":"IF(P9=TRUE,\" \",D9*H9)","v":" "},null,"tonnes CO2e",null,null,null,{"$f":"D9=\"\"","v":true}]
[]
[null,"Amine Sweetening",null,null,null,"Throughput (e3m3)",null,3.04E-2,null,{"$f":"IF(P11=TRUE,\" \",D11*H11)","v":" "},null,"tonnes CO2e",null,null,null,{"$f":"D11=\"\"","v":true}]
[]
[null,"Total Refrigeration",null,null,null,"Throughput (e3m3)",null,1.8350000000000002E-2,null,{"$f":"IF(P13=TRUE,\" \",D13*H13)","v":" "},null,"tonnes CO2e",null,null,null,{"$f":"D13=\"\"","v":true}]
[]
[null,"Fractionation",null,null,null,"Production (m3OE)",null,4.1410000000000002E-2,null,{"$f":"IF(P15=TRUE,\" \",D15*H15)","v":" "},null,"tonnes CO2e",null,null,null,{"$f":"D15=\"\"","v":true}]
[]
[null,"Stabilization",null,null,null,"Production (m3OE)",null,5.5370000000000003E-2,null,{"$f":"IF(P17=TRUE,\" \",D17*H17)","v":" "},null,"tonnes CO2e",null,null,null,{"$f":"D17=\"\"","v":true}]
[]
[null,"Sales Compression",null,null,null,"Throughput (e3m3)",null,2.1350000000000001E-2,null,{"$f":"IF(P19=TRUE,\" \",D19*H19)","v":" "},null,"tonnes CO2e",null,null,null,{"$f":"D19=\"\"","v":true}]
[]
[null,"Sulphur Plant",null,null,null,"Production (tonnes sulphur)",null,0.4249,null,{"$f":"IF(P21=TRUE,\" \",D21*H21)","v":" "},null,"tonnes CO2e",null,null,null,{"$f":"D21=\"\"","v":true}]
[]
[null,"Acid Gas Injection",null,null,null,"Throughput (e3m3 acid gas)",null,0.39600000000000002,null,{"$f":"IF(P23=TRUE,\" \",D23*H23)","v":" "},null,"tonnes CO2e",null,null,null,{"$f":"D23=\"\"","v":true}]
[]
[null,"Ethane Extraction",null,null,null,"Production (m3OE)",null,0.12509999999999999,null,{"$f":"IF(P25=TRUE,\" \",D25*H25)","v":" "},null,"tonnes CO2e",null,null,null,true]
[null,null,null,null,null,null,null,null,null,null,null,null,null,null,null,true]
[null,"Cavern Storage",null,null,null,"Production (m3 ethane)",null,0.01,null,{"$f":"IF(P27=TRUE,\" \",D27*H27)","v":" "},null,"tonnes CO2e",null,null,null,true]
[]
[null,"CO2 Plant",null,null,null,"Throughput (e3m3 CO2)",null,0.18809999999999999,null,{"$f":"IF(P29=TRUE,\" \",D29*H29)","v":" "},null,"tonnes CO2e",null,null,null,true]
[]
[null,"Flaring, Venting, Fugitives, Other",null,null,null,"Production (m3OE)",null,4.4520000000000002E-3,null,{"$f":"IF(P31=TRUE,\" \",D31*H31)","v":" "},null,"tonnes CO2e",null,null,null,{"$f":"D31=\"\"","v":true}]
[]
[null,null,null,null,null,null,null,"Alberta Gas Processing Index (PABGPI)",null,{"$f":"SUM(J7:J32)","v":0},null,"tonnes CO2e"]
[]
[]
[]
[null,{"$f":"CONCATENATE(ReportingYear,\" - \", 'Section A1'!$B$5)","v":"2023 - "}]

{"sheet":"Section B6 (5)","index":56,"n_rows":85,"n_cols":27,"rows_kept":85,"cut":false,"hidden":true,"merged":[[79,17,79,24],[0,0,0,14],[48,1,48,13],[53,1,53,13],[76,17,76,24],[77,17,77,24],[78,17,78,24]]}
[{"$f":"\"Section B: \" & Submission!C19 & \" Production Information\"","v":"Section B:  Production Information"},null,null,null,null,null,null,null,null,null,null,null,null,null,null,null,"hide","hide","hide","hide","hide","hide","hide","hide","hide","hide","hide"]
[]
[null,{"$f":"\" Production Information for \"&Submission!C19","v":" Production Information for "}]
[]
[null,null,"N/A","Product (P)",null,"Quantity",null,"Units",null,{"$f":"\"Established or Assigned Benchmark\n(BE or BA) for \"&Submission!C11","v":"Established or Assigned Benchmark\n(BE or BA) for "},null,"Transition Allocation Benchmark (BTA)",null,"Allocations\nTonnes (in CO2e)",null,null,"Established or Assigned Benchmark","Checkboxes","Units",null,"ABGPI Selected"]
[null,"Production Item 1",null,"",null,"",null,null,null,{"$f":"Q6","v":""},null,null,null,{"$f":"IF(R6=TRUE,\" \",F6*J6+F6*L6)","v":" "},null,null,{"$f":"IFERROR(CHOOSE(MATCH($D6,$R$61:$R$76,0),INDIRECT(\"$\"&$V$83&\"$61\"),INDIRECT(\"$\"&$V$83&\"$62\"),INDIRECT(\"$\"&$V$83&\"$63\"),INDIRECT(\"$\"&$V$83&\"$64\"), INDIRECT(\"$\"&$V$83&\"$65\"), INDIRECT(\"$\"&$V$83&\"$66\"),INDIRECT(\"$\"&$V$83&\"$67\"),INDIRECT(\"$\"&$V$83&\"$68\"),INDIRECT(\"$\"&$V$83&\"$69\"),INDIRECT(\"$\"&$V$83&\"$70\"),INDIRECT(\"$\"&$V$83&\"$71\"),INDIRECT(\"$\"&$V$83&\"$72\"),INDIRECT(\"$\"&$V$83&\"$73\"),INDIRECT(\"$\"&$V$83&\"$74\"),INDIRECT(\"$\"&$V$83&\"$75\"),INDIRECT(\"$\"&$V$83&\"$76\")),\"\")","v":""},{"$f":"F6=\"\"","v":true},{"$f":"IFERROR(CHOOSE(MATCH($D6,$R$61:$R$76,0),$Y$61,$Y$62,$Y$63,$Y$64,$Y$65,$Y$66,$Y$67,$Y$68,$Y$69,$Y$70,$Y$71,$Y$72,$Y$73,$Y$74,$Y$75,$Y$76),\"\")","v":""},null,false]
[null,null,null,null,null,null,null,null,null,null,null,null,null,null,null,null,null,null,{"$f":"IFERROR(CHOOSE(MATCH($D7,$R$61:$R$76,0),$Y$61,$Y$62,$Y$63,$Y$64,$Y$65,$Y$66,$Y$67,$Y$68,$Y$69,$Y$70,$Y$71,$Y$72,$Y$73,$Y$74,$Y$75,$Y$76),\"\")","v":""}]
[null,"Production Item 2",null,"",null,"",null,null,null,{"$f":"Q8","v":""},null,null,null,{"$f":"IF(R8=TRUE,\" \",F8*J8+F8*L8)","v":" "},null,null,{"$f":"IFERROR(CHOOSE(MATCH($D8,$R$61:$R$76,0),INDIRECT(\"$\"&$V$83&\"$61\"),INDIRECT(\"$\"&$V$83&\"$62\"),INDIRECT(\"$\"&$V$83&\"$63\"),INDIRECT(\"$\"&$V$83&\"$64\"), INDIRECT(\"$\"&$V$83&\"$65\"), INDIRECT(\"$\"&$V$83&\"$66\"),INDIRECT(\"$\"&$V$83&\"$67\"),INDIRECT(\"$\"&$V$83&\"$68\"),INDIRECT(\"$\"&$V$83&\"$69\"),INDIRECT(\"$\"&$V$83&\"$70\"),INDIRECT(\"$\"&$V$83&\"$71\"),INDIRECT(\"$\"&$V$83&\"$72\"),INDIRECT(\"$\"&$V$83&\"$73\"),INDIRECT(\"$\"&$V$83&\"$74\"),INDIRECT(\"$\"&$V$83&\"$75\"),INDIRECT(\"$\"&$V$83&\"$76\")),\"\")","v":""},{"$f":"F8=\"\"","v":true},""]
[null,null,null,null,null,null,null,null,null,null,null,null,null,null,null,null,null,null,""]
[null,"Production Item 3",null,"",null,"",null,null,null,null,null,null,null,{"$f":"IF(R10=TRUE,\" \",F10*J10+F10*L10)","v":" "},null,null,"",{"$f":"F10=\"\"","v":true},""]
[null,null,null,null,null,null,null,null,null,null,null,null,null,null,null,null,null,null,""]
[null,"Production Item 4",null,"",null,"",null,null,null,null,null,null,null,{"$f":"IF(R12=TRUE,\" \",F12*J12+F12*L12)","v":" "},null,null,"",{"$f":"F12=\"\"","v":true},""]
[null,null,null,null,null,null,null,null,null,null,null,null,null,null,null,null,null,null,""]
[null,"Production Item 5",null,"",null,"",null,null,null,null,null,null,null,{"$f":"IF(R14=TRUE,\" \",F14*J14+F14*L14)","v":" "},null,null,"",{"$f":"F14=\"\"","v":true},""]
[null,null,null,null,null,null,null,null,null,null,null,null,null,null,null,null,null,null,""]
[null,"Production Item 6",null,"",null,"",null,null,null,null,null,null,null,{"$f":"IF(R16=TRUE,\" \",F16*J16+F16*L16)","v":" "},null,null,"",{"$f":"F16=\"\"","v":true},""]
[null,null,null,null,null,null,null,null,null,null,null,null,null,null,null,null,null,null,""]
[null,"Production Item 7",null,"",null,"",null,null,null,null,null,null,null,{"$f":"IF(R18=TRUE,\" \",F18*J18+F18*L18)","v":" "},null,null,"",{"$f":"F18=\"\"","v":true},""]
[null,null,null,null,null,null,null,null,null,null,null,null,null,null,null,null,null,null,""]
[null,"Production Item 8",null,"",null,"",null,null,null,null,null,null,null,{"$f":"IF(R20=TRUE,\" \",F20*J20+F20*L20)","v":" "},null,null,"",{"$f":"F20=\"\"","v":true},""]
[null,null,null,null,null,null,null,null,null,null,null,null,null,null,null,null,null,null,""]
[null,"Production Item 9",null,"",null,"",null,null,null,null,null,null,null,{"$f":"IF(R22=TRUE,\" \",F22*J22+F22*L22)","v":" "},null,null,"",{"$f":"F22=\"\"","v":true},""]
[null,null,null,null,null,null,null,null,null,null,null,null,null,null,null,null,null,null,""]
[null,"Production Item 10",null,"",null,"",null,null,null,null,null,null,null,{"$f":"IF(R24=TRUE,\" \",F24*J24+F24*L24)","v":" "},null,null,"",{"$f":"F24=\"\"","v":true},""]
[null,null,null,null,null,null,null,null,null,null,null,null,null,null,null,null,null,null,""]
[null,"Production Item 11",null,"",null,"",null,null,null,null,null,null,null,{"$f":"IF(R26=TRUE,\" \",F26*J26+F26*L26)","v":" "},null,null,"",{"$f":"F26=\"\"","v":true},""]
[null,null,null,null,null,null,null,null,null,null,null,null,null,null,null,null,null,null,""]
[null,"Production Item 12",null,"",null,"",null,null,null,null,null,null,null,{"$f":"IF(R28=TRUE,\" \",F28*J28+F28*L28)","v":" "},null,null,"",{"$f":"F28=\"\"","v":true},""]
[null,null,null,null,null,null,null,null,null,null,null,null,null,null,null,null,null,null,""]
[null,"Production Item 13",null,"",null,"",null,null,null,null,null,null,null,{"$f":"IF(R30=TRUE,\" \",F30*J30+F30*L30)","v":" "},null,null,"",{"$f":"F30=\"\"","v":true},""]
[null,null,null,null,null,null,null,null,null,null,null,null,null,null,null,null,null,null,""]
[null,"Production Item 14",null,"",null,"",null,null,null,null,null,null,null,{"$f":"IF(R32=TRUE,\" \",F32*J32+F32*L32)","v":" "},null,null,"",{"$f":"F32=\"\"","v":true},""]
[null,null,null,null,null,null,null,null,null,null,null,null,null,null,null,null,null,null,""]
[null,"Production Item 15",null,"",null,"",null,null,null,null,null,null,null,{"$f":"IF(R34=TRUE,\" \",F34*J34+F34*L34)","v":" "},null,null,"",{"$f":"F34=\"\"","v":true},""]
[null,null,null,null,null,null,null,null,null,null,null,null,null,null,null,null,null,null,""]
[null,"Production Item 16",null,"",null,"",null,null,null,null,null,null,null,{"$f":"IF(R36=TRUE,\" \",F36*J36+F36*L36)","v":" "},null,null,"",{"$f":"F36=\"\"","v":true},""]
[null,null,null,null,null,null,null,null,null,null,null,null,null,null,null,null,null,null,""]
[null,"Production Item 17",null,"",null,null,null,null,null,null,null,null,null,{"$f":"IF(R38=TRUE,\" \",F38*J38+F38*L38)","v":" "},null,null,"",{"$f":"F38=\"\"","v":true},""]
[null,null,null,null,null,null,null,null,null,null,null,null,null,null,null,null,null,null,""]
[null,"Production Item 18",null,"",null,null,null,null,null,null,null,null,null,{"$f":"IF(R40=TRUE,\" \",F40*J40+F40*L40)","v":" "},null,null,"",{"$f":"F40=\"\"","v":true},""]
[null,null,null,null,null,null,null,null,null,null,null,null,null,null,null,null,null,null,""]
[null,"Production Item 19",null,"",null,null,null,null,null,null,null,null,null,{"$f":"IF(R42=TRUE,\" \",F42*J42+F42*L42)","v":" "},null,null,"",{"$f":"F42=\"\"","v":true},""]
[null,null,null,null,null,null,null,null,null,null,null,null,null,null,null,null,null,null,""]
[null,"Production Item 20",null,"",null,null,null,null,null,{"$f":"Q44","v":""},null,null,null,{"$f":"IF(R44=TRUE,\" \",F44*J44+F44*L44)","v":" "},null,null,"",{"$f":"F44=\"\"","v":true},""]
[]
[null,"Products Allocations",null,null,null,null,null,null,null,null,null,"Tonnes (in CO2e)",null,{"$f":"SUM(N6,N8,N10,N12,N14,N16,N18,N20,N22,N24,N26,N28,N30,N32,N34,N36,N38,N40,N42,N44)","v":0}]
[]
[null,{"$f":"\"Public Availability of \"&Submission!C19&\" Production Information\"","v":"Public Availability of  Production Information"}]
[null,{"$f":"\"Is \"&Submission!C19&\" production information for this facility publicly available? (i.e. published or by request)\"","v":"Is  production information for this facility publicly available? (i.e. published or by request)"},null,null,null,null,null,null,null,null,null,null,null,null,null,null,null,{"$f":"COLUMN()","v":18}]
[]
[]
[null,"Note: Confidentiality must not be requested for information that is publicly available."]
[null,null,null,null,null,null,null,null,null,null,null,null,null,null,null,null,"Avail",1,"Options","Yes"]
[null,{"$f":"CONCATENATE(ReportingYear,\" - \", 'Section A1'!$B$5)","v":"2023 - "},null,null,null,null,null,null,null,null,null,null,null,null,null,null,null,null,null,"No"]
[]
[]
[null,null,null,null,null,null,null,null,null,null,null,null,null,null,null,null,null,null,"Table   Established Benchmarks for Products"]
[null,null,null,null,null,null,null,null,null,null,null,null,null,null,null,null,null,"Position of the column is the range 2018-2023",{"$f":"COLUMN()","v":19},{"$f":"COLUMN()","v":20},{"$f":"COLUMN()","v":21},{"$f":"COLUMN()","v":22},{"$f":"COLUMN()","v":23}]
[null,null,null,null,null,null,null,null,null,null,null,null,null,null,null,null,null,null,2018,2019,2020,2021,2022,null,"unit"]
[null,null,null,null,null,null,null,null,null,null,null,null,null,null,null,null,null,"Product","Established benchmark for 2018 (tonnes of CO2e per benchmark unit)","Established benchmark for 2019 (tonnes of CO2e per benchmark unit)","Established benchmark for 2020 (tonnes of CO2e per benchmark unit)","Established benchmark for 2021 (tonnes of CO2e per benchmark unit)","Established benchmark for 2022 (tonnes of CO2e per benchmark unit)","Established benchmark for 2023 and subsequent years (tonnes of CO2e per  benchmark unit) is determined as follows:","Benchmark unit","Name used?","List of unused names"]
[null,null,null,null,null,null,null,null,null,null,null,null,null,null,null,null,null,"Ammonia",1.9419999999999999,1.9419999999999999,1.9350000000000001,1.9279999999999999,1.921,"*BE = **BEY-1 - ***0.007","Tonne",{"$f":"IF(COUNTIF($D$6:$D$44,$R61)>=1,\"\",ROW())","v":61},{"$f":"IF(ROW(R61)-ROW(R$61)+1>COUNT(Z$61:Z$76),\"\",\nINDEX(R:R,SMALL(Z$61:Z$76,1+ROW(R61)-ROW(R$61))))","v":"Ammonia"}]
[null,null,null,null,null,null,null,null,null,null,null,null,null,null,null,null,null,"Ammonium nitrate",0.32600000000000001,0.32600000000000001,0.32500000000000001,0.32400000000000001,0.32300000000000001,"BE = BEY-1 - 0.0010","Tonne",62,"Ammonium nitrate"]
[null,null,null,null,null,null,null,null,null,null,null,null,null,null,null,null,null,"Alberta gas processing index",0.9,0.9,0.89100000000000001,0.88200000000000001,0.873,"BE = BEY-1 - 0.0090","Tonne CO2e",63,"Alberta gas processing index"]
[null,null,null,null,null,null,null,null,null,null,null,null,null,null,null,null,null,"Bituminous coal",7.0529999999999995E-2,7.0529999999999995E-2,6.9819999999999993E-2,6.9110000000000005E-2,6.8400000000000002E-2,"BE = BEY-1 - 0.00071","Tonne",64,"Bituminous coal"]
[null,null,null,null,null,null,null,null,null,null,null,null,null,null,null,null,null,"Cement",0.7853,0.7853,0.7823,0.77929999999999999,0.77629999999999999,"BE = BEY-1 - 0.0030","Tonne",65,"Cement"]
[null,null,null,null,null,null,null,null,null,null,null,null,null,null,null,null,null,"Electricity",0.37,0.37,0.36630000000000001,0.36259999999999998,0.3589,"BE = BEY-1 - 0.0037","Megawatt hour",66,"Electricity"]
[null,null,null,null,null,null,null,null,null,null,null,null,null,null,null,null,null,"Ethylene glycol",0.49459999999999998,0.49459999999999998,0.49209999999999998,0.48959999999999998,0.48709999999999998,"BE = BEY-1 - 0.0025","Tonne",67,"Ethylene glycol"]
[null,null,null,null,null,null,null,null,null,null,null,null,null,null,null,null,null,"Hardwood kraft pulp",0.20319999999999999,0.20319999999999999,0.20119999999999999,0.19919999999999999,0.19719999999999999,"BE = BEY-1 - 0.0020","Air dry metric tonne",68,"Hardwood kraft pulp"]
[null,null,null,null,null,null,null,null,null,null,null,null,null,null,null,null,null,"High value chemicals",0.48499999999999999,0.48499999999999999,0.48010000000000003,0.47520000000000001,0.4703,"BE = BEY-1 - 0.0049","Tonne",69,"High value chemicals"]
[null,null,null,null,null,null,null,null,null,null,null,null,null,null,null,null,null,"Hydrogen",9.0679999999999996,9.0679999999999996,8.9969999999999999,8.8859999999999992,8.7949999999999999,"BE = BEY-1 - 0.091","Tonne",70,"Hydrogen"]
[null,null,null,null,null,null,null,null,null,null,null,null,null,null,null,null,null,"Industrial heat",6.2990000000000004E-2,6.2990000000000004E-2,6.2359999999999999E-2,6.173E-2,6.1100000000000002E-2,"BE = BEY-1 - 0.00063","Gigajoule",71,"Industrial heat"]
[null,null,null,null,null,null,null,null,null,null,null,null,null,null,null,null,null,"Oil sands in situ bitumen",0.35039999999999999,0.35039999999999999,0.34689999999999999,0.34339999999999998,0.33989999999999998,"BE = BEY-1 - 0.0035","m3 of bitumen",72,"Oil sands in situ bitumen"]
[null,null,null,null,null,null,null,null,null,null,null,null,null,null,null,null,null,"Oil sands mining bitumen",0.19539999999999999,0.19539999999999999,0.19339999999999999,0.19139999999999999,0.18940000000000001,"BE = BEY-1 - 0.0020","m3 of bitumen",73,"Oil sands mining bitumen"]
[null,null,null,null,null,null,null,null,null,null,null,null,null,null,null,null,null,"Refining",3.831,3.831,3.7930000000000001,3.7549999999999999,3.7170000000000001,"BE = BEY-1 - 0.038","Alberta complexity weighted barrel (in thousands)",74,"Refining"]
[null,null,null,null,null,null,null,null,null,null,null,null,null,null,null,null,null,"Softwood kraft pulp",0.30149999999999999,0.30149999999999999,0.29849999999999999,0.29549999999999998,0.29249999999999998,"BE = BEY-1 - 0.0030","Air dry metric tonne",75,"Softwood kraft pulp"]
[null,null,null,null,null,null,null,null,null,null,null,null,null,null,null,null,null,"Upgrading",2.4510000000000001,2.4510000000000001,2.4260000000000002,2.4009999999999998,2.3759999999999999,"BE = BEY-1 - 0.025","Upgrading AB-CWB (in thousands)",76,"Upgrading"]
[null,null,null,null,null,null,null,null,null,null,null,null,null,null,null,null,null,"Note:  The values in the columns for 2020, 2021 and 2022 reflect the application of an annual 1% tightening rate."]
[null,null,null,null,null,null,null,null,null,null,null,null,null,null,null,null,null,"*BE is the established benchmark for the year."]
[null,null,null,null,null,null,null,null,null,null,null,null,null,null,null,null,null,"**BEY-1 is the established benchmark for the previous year."]
[null,null,null,null,null,null,null,null,null,null,null,null,null,null,null,null,null,"*** is the tightening rate."]
[]
[null,null,null,null,null,null,null,null,null,null,null,null,null,null,null,null,null,"Column that should be selected for the current year:",null,null,null,{"$f":"IFERROR(CHOOSE(MATCH(ReportingYear,$S$59:$X$59,0),$S$61,$S$62,$S$63,$S$64,$S$65,$S$66,$S$67,$S$68,$S$69,$S$70,$S$71,$S$72,$S$73,$S$74,$S$75,$S$76),\"\")","v":""}]
[null,null,null,null,null,null,null,null,null,null,null,null,null,null,null,null,null,"Letter of the column for the matching year:",null,null,null,{"$f":"SUBSTITUTE(ADDRESS(1,V84,4),\"1\",\"\")","v":"S"}]
[null,null,null,null,null,null,null,null,null,null,null,null,null,null,null,null,null,"Position of the matching year in the list 2018-2023 (add the number of column R to make sure the numbers are correct since MATCHE returns a relative number within the input list); 1 by default - if the Year is outside the 2018-2023 range.",null,null,null,{"$f":"IFERROR(MATCH(ReportingYear,$S$59:$W$59,0)+R49,1+R49)","v":19}]
[null,null,null,null,null,null,null,null,null,null,null,null,null,null,null,null,null,"Reporting year",null,null,null,{"$f":"ReportingYear","v":2023}]

{"sheet":"Section B6 (5) ABGPI","index":57,"n_rows":37,"n_cols":16,"rows_kept":37,"cut":false,"hidden":true,"merged":[[0,0,0,12],[2,1,2,12],[4,1,4,11],[34,1,34,9],[36,1,36,11]]}
[{"$f":"\"Section B: \" & Submission!C19 & \" Direct Emissions\"","v":"Section B:  Direct Emissions"},null,null,null,null,null,null,null,null,null,null,null,null,null,null,"hide"]
[]
[null,"Alberta Gas Processing Index Calculation Template"]
[]
[null,"Instructions: Enter the quantities for your facility as provided for the benchmarking exercise.  For facilities that did not participate in the benchmarking exercise, more detailed quantification guidance is forthcoming.  Note that the quantity for Non-Energy Utilities is total plant production, including straddle plant residue gas, in metres cubed oil equivalent.  The weighting factor was based on emissions associated with venting, flaring, and fugitives.  This quantity of total plant production is also used for the Formation CO2 benchmarks."]
[null,"Module","N/A","Quantity",null,"Quantity Units",null,"Weighting/ conversion factor",null,"Weighted Quantity",null,"Weighted Quantity Units"]
[null,"Inlet Compression",null,null,null,"Throughput (e3m3)",null,3.304E-2,null,{"$f":"IF(P7=TRUE,\" \",D7*H7)","v":" "},null,"tonnes CO2e",null,null,null,{"$f":"D7=\"\"","v":true}]
[]
[null,"Dehydration",null,null,null,"Throughput (e3m3)",null,2.47E-3,null,{"$f":"IF(P9=TRUE,\" \",D9*H9)","v":" "},null,"tonnes CO2e",null,null,null,{"$f":"D9=\"\"","v":true}]
[]
[null,"Amine Sweetening",null,null,null,"Throughput (e3m3)",null,3.04E-2,null,{"$f":"IF(P11=TRUE,\" \",D11*H11)","v":" "},null,"tonnes CO2e",null,null,null,{"$f":"D11=\"\"","v":true}]
[]
[null,"Total Refrigeration",null,null,null,"Throughput (e3m3)",null,1.8350000000000002E-2,null,{"$f":"IF(P13=TRUE,\" \",D13*H13)","v":" "},null,"tonnes CO2e",null,null,null,{"$f":"D13=\"\"","v":true}]
[]
[null,"Fractionation",null,null,null,"Production (m3OE)",null,4.1410000000000002E-2,null,{"$f":"IF(P15=TRUE,\" \",D15*H15)","v":" "},null,"tonnes CO2e",null,null,null,{"$f":"D15=\"\"","v":true}]
[]
[null,"Stabilization",null,null,null,"Production (m3OE)",null,5.5370000000000003E-2,null,{"$f":"IF(P17=TRUE,\" \",D17*H17)","v":" "},null,"tonnes CO2e",null,null,null,{"$f":"D17=\"\"","v":true}]
[]
[null,"Sales Compression",null,null,null,"Throughput (e3m3)",null,2.1350000000000001E-2,null,{"$f":"IF(P19=TRUE,\" \",D19*H19)","v":" "},null,"tonnes CO2e",null,null,null,{"$f":"D19=\"\"","v":true}]
[]
[null,"Sulphur Plant",null,null,null,"Production (tonnes sulphur)",null,0.4249,null,{"$f":"IF(P21=TRUE,\" \",D21*H21)","v":" "},null,"tonnes CO2e",null,null,null,{"$f":"D21=\"\"","v":true}]
[]
[null,"Acid Gas Injection",null,null,null,"Throughput (e3m3 acid gas)",null,0.39600000000000002,null,{"$f":"IF(P23=TRUE,\" \",D23*H23)","v":" "},null,"tonnes CO2e",null,null,null,{"$f":"D23=\"\"","v":true}]
[]
[null,"Ethane Extraction",null,null,null,"Production (m3OE)",null,0.12509999999999999,null,{"$f":"IF(P25=TRUE,\" \",D25*H25)","v":" "},null,"tonnes CO2e",null,null,null,true]
[null,null,null,null,null,null,null,null,null,null,null,null,null,null,null,true]
[null,"Cavern Storage",null,null,null,"Production (m3 ethane)",null,0.01,null,{"$f":"IF(P27=TRUE,\" \",D27*H27)","v":" "},null,"tonnes CO2e",null,null,null,true]
[]
[null,"CO2 Plant",null,null,null,"Throughput (e3m3 CO2)",null,0.18809999999999999,null,{"$f":"IF(P29=TRUE,\" \",D29*H29)","v":" "},null,"tonnes CO2e",null,null,null,true]
[]
[null,"Flaring, Venting, Fugitives, Other",null,null,null,"Production (m3OE)",null,4.4520000000000002E-3,null,{"$f":"IF(P31=TRUE,\" \",D31*H31)","v":" "},null,"tonnes CO2e",null,null,null,{"$f":"D31=\"\"","v":true}]
[]
[null,null,null,null,null,null,null,"Alberta Gas Processing Index (PABGPI)",null,{"$f":"SUM(J7:J32)","v":0},null,"tonnes CO2e"]
[]
[]
[]
[null,{"$f":"CONCATENATE(ReportingYear,\" - \", 'Section A1'!$B$5)","v":"2023 - "}]

{"sheet":"Section B7 (5)","index":58,"n_rows":59,"n_cols":10,"rows_kept":59,"cut":false,"hidden":true,"merged":[[0,0,0,4],[39,3,40,3]]}
[{"$f":"\"Section B: \" & Submission!C19 & \" Direct Emissions\"","v":"Section B:  Direct Emissions"},null,null,null,null,null,"hide","hide","hide","hide"]
[]
[null,{"$f":"\" Direct Emissions by Gas Type\"","v":" Direct Emissions by Gas Type"},null,null,null,null,"Direct Emissions by Gas Type","Direct Emissions by Gas Type"]
[null,null,"Total Tonnes (in CO2e)"]
[null,"Carbon dioxide (CO2)",{"$f":"SUM('Section B1 (5)'!L5,'Section B1 (5)'!L13,'Section B1 (5)'!L23,'Section B1 (5)'!L31,'Section B1 (5)'!L39,'Section B1 (5)'!L47,'Section B1 (5)'!L55,'Section B1 (5)'!L63)","v":0},"(Excludes CO2 from Biomass)"]
[]
[null,"Methane (CH4)",{"$f":"SUM('Section B1 (5)'!L7,'Section B1 (5)'!L15,'Section B1 (5)'!L25,'Section B1 (5)'!L33,'Section B1 (5)'!L41,'Section B1 (5)'!L49,'Section B1 (5)'!L57)","v":0}]
[]
[null,"Nitrous oxide (N2O)",{"$f":"SUM('Section B1 (5)'!L9,'Section B1 (5)'!L17,'Section B1 (5)'!L27,'Section B1 (5)'!L35,'Section B1 (5)'!L43,'Section B1 (5)'!L51,'Section B1 (5)'!L59)","v":0}]
[]
[null,"Hydrofluorocarbon (HFC)",{"$f":"SUM('Section B3 (5)'!L36)","v":0}]
[]
[null,"Perfluorocarbon (PFC)",{"$f":"'Section B3 (5)'!L38","v":0}]
[]
[null,"Sulphur Hexafluoride (SF6)",{"$f":"'Section B3 (5)'!L42","v":0}]
[]
[null,"Nitrogen Trifluoride (NF3)",{"$f":"'Section B3 (5)'!L40","v":0}]
[]
[null,{"$f":"\" Total Regulated Emissions Calculation\"","v":" Total Regulated Emissions Calculation"},null,null,null,null,"Benchmark Emissions Calculation","Benchmark Emissions Calculation"]
[null,null,"Total Tonnes (in CO2e)"]
[null,"Direct Emissions (DE)",{"$f":"SUM(C5,C7,C9,C11,C13,C15,C17)","v":0},"Sum of CO2, CH4, N2O, HFC, PFC, SF6, NF3",null,null,"Direct Emissions (DE)","Direct Emissions (DE)"]
[]
[null,"Exported CO2 (ECO2)",{"$f":"'Section B4 (5)'!H21","v":0}]
[]
[null,"Imported CO2 (ICO2)",{"$f":"'Section B4 (5)'!H25","v":0}]
[]
[null,"CO2 Used in Manufacturing of Urea (UCO2)",{"$f":"'Section B4 (5)'!J42","v":0}]
[]
[null,"Emission from Combustion of Clear Fuels (ECF)",{"$f":"'Section B4 (5)'!O54","v":0}]
[]
[null,"Capture Recognition Tonnes (CRT)",{"$f":"'Section B4 (5)'!O17","v":0}]
[]
[null,"Total Regulated Emissions (TRE)",{"$f":"C21-C25+C23+C27","v":0},{"$f":"IF(OR(Submission!$I$5=2,Submission!$I$5=1),\"TRE = DE - ICO2 + ECO2 + UCO2\",\"TRE = DE - ICO2 + ECO2 + UCO2 - CRT\")","v":"TRE = DE - ICO2 + ECO2 + UCO2"},null,null,"Benchmark Emissions (BE)","Benchmark Emissions (BE)","BE = DE - FFCE - ICO2 + ECO2 + UCO2","BE = DE - FFCE - ICO2 + ECO2 + UCO2"]
[]
[null,{"$f":"\"Allowable Emissions\"","v":"Allowable Emissions"}]
[null,null,"Total Tonnes (in CO2e)"]
[null,"Products Allocations",{"$f":"#REF!","v":{"$error":"#REF!"}},"∑ BEi x Pi + ∑ BAj x Pj",null,null,"This is OBA before subtraction"]
[]
[null,"Scope Adjustment for Indirect Emissions",{"$f":"'Section B4 (5)'!H32*'Section B7 (5)'!H48+'Section B4 (5)'!H34*'Section B7 (5)'!H50+('Section B4 (5)'!H36*'Section B7 (5)'!H52*(IF('Section B7 (5)'!H55>0,0,1)))","v":{"$error":"#REF!"}},"((BEE x IE) + (BEHy x IHy) + (BEIHE x IHE))",null,null,"Scope adjustment (B4) - calculated from inputs and put here."]
[null,null,null,"OBA = ∑ BEi x Pi + ∑ BAj x Pj – ((BEE x IE) + (BEHy x IHy) + (BEIHE x IHE)) + ∑ BTAk x Pk "]
[null,"Output Based Allocation (OBA)",{"$f":"MAX(ROUND(C37-C39,0),0)","v":{"$error":"#REF!"}},null,null,null,"OBA = gross-scope"]
[]
[null,{"$f":"CONCATENATE(ReportingYear,\" - \", 'Section A1'!$B$5)","v":"2023 - "}]
[]
[]
[null,null,null,null,null,null,{"$f":"\"Benchmarks for the current compliance/reporting year \" &ReportingYear","v":"Benchmarks for the current compliance/reporting year 2023"}]
[]
[null,null,null,null,null,null,"Electricity benchmark for the current year:",{"$f":"IF(ReportingYear=2018,#REF!,IF(ReportingYear=2019,#REF!,IF(ReportingYear=2020,#REF!,IF(ReportingYear=2021,#REF!,IF(ReportingYear=2022,#REF!,#REF!)))))","v":{"$error":"#REF!"}}]
[]
[null,null,null,null,null,null,"Heat",{"$f":"IF(ReportingYear=2018,#REF!,IF(ReportingYear=2019,#REF!,IF(ReportingYear=2020,#REF!,IF(ReportingYear=2021,#REF!,IF(ReportingYear=2022,#REF!,#REF!)))))","v":{"$error":"#REF!"}}]
[]
[null,null,null,null,null,null,"Hydrogen",{"$f":"IF(ReportingYear=2018,#REF!,IF(ReportingYear=2019,#REF!,IF(ReportingYear=2020,#REF!,IF(ReportingYear=2021,#REF!,IF(ReportingYear=2022,#REF!,#REF!)))))","v":{"$error":"#REF!"}}]
[]
[]
[null,null,null,null,null,null,"Hydrogen Exclusion Count",{"$f":"SUM(H56:H59)","v":{"$error":"#REF!"}}]
[null,null,null,null,null,null,"NAICS Refining",{"$f":"IF('Section A1'!B13=\"324110\",1,0)","v":0}]
[null,null,null,null,null,null,"Product Refining",{"$f":"(COUNTIF(#REF!,\"Refining\"))","v":{"$error":"#REF!"}}]
[null,null,null,null,null,null,"NAICS Oilsands",{"$f":"IF('Section A1'!B13=\"211141\",1,0)+IF('Section A1'!B13=\"211142\",1,0)","v":0}]
[null,null,null,null,null,null,"Product Upgrading",{"$f":"(COUNTIF(#REF!,\"Upgrading\"))","v":{"$error":"#REF!"}}]

{"sheet":"Section B8 (5)","index":59,"n_rows":58,"n_cols":21,"rows_kept":58,"cut":false,"hidden":true,"merged":[[0,0,0,10],[54,1,54,9]]}
[{"$f":"\"Section B: \" & Submission!C19 & \" Fuel Usage\"","v":"Section B:  Fuel Usage"},null,null,null,null,null,null,null,null,null,null,null,"hide","hide","hide","hide","hide","hide","hide","hide","hide"]
[]
[{"$f":"\" Fuel and Feedstock Usage Information\"","v":" Fuel and Feedstock Usage Information"}]
[]
[{"$f":"\"List all fuels and feedstocks associated with emissions that are reported for the facility:\"","v":"List all fuels and feedstocks associated with emissions that are reported for the facility:"}]
[]
[null,"Fuel / Feedstock",null,"Type","N/A","Description",null,"Quantity",null,"Units"]
[1,null,null,null,null,null,null,null,null,{"$f":"IF(N8=TRUE, \"\",VLOOKUP(D8,$R$8:$T$34,3,FALSE))","v":""},null,null,"Fuel",{"$f":"D8=\"\"","v":true},null,null,null,"Aviation gas",null,"Litres","Produced gas"]
[null,null,null,null,null,null,null,null,null,null,null,null,"Feedstock",null,null,null,null,"Aviation jet fuel",null,"Litres","Mixed Gas"]
[2,null,null,null,null,null,null,null,null,{"$f":"IF(N10=TRUE, \"\",VLOOKUP(D10,$R$8:$T$34,3,FALSE))","v":""},null,null,null,{"$f":"D10=\"\"","v":true},null,null,null,"Bunker fuel",null,"Litres","Benzene"]
[null,null,null,null,null,null,null,null,null,null,null,null,null,null,null,null,null,"Butane",null,"Litres","Methane"]
[3,null,null,null,null,null,null,null,null,{"$f":"IF(N12=TRUE, \"\",VLOOKUP(D12,$R$8:$T$34,3,FALSE))","v":""},null,null,null,true,null,null,null,"Coal coke",null,"Tonnes","Oil"]
[null,null,null,null,null,null,null,null,null,null,null,null,null,null,null,null,null,"Coke oven gas",null,"STD m3","Biomass"]
[4,null,null,null,null,null,null,null,null,{"$f":"IF(N14=TRUE, \"\",VLOOKUP(D14,$R$8:$T$34,3,FALSE))","v":""},null,null,null,true,null,null,null,"Diesel - Marked",null,"Litres","Black liquor"]
[null,null,null,null,null,null,null,null,null,null,null,null,null,null,null,null,null,"Diesel - Unmarked",null,"Litres","Hog fuel"]
[5,null,null,null,null,null,null,null,null,{"$f":"IF(N16=TRUE, \"\",VLOOKUP(D16,$R$8:$T$34,3,FALSE))","v":""},null,null,null,true,null,null,null,"Ethane",null,"Litres","NCG"]
[null,null,null,null,null,null,null,null,null,null,null,null,null,null,null,null,null,"Gas liquids",null,"Litres"]
[6,null,null,null,null,null,null,null,null,{"$f":"IF(N18=TRUE, \"\",VLOOKUP(D18,$R$8:$T$34,3,FALSE))","v":""},null,null,null,true,null,"STD m3",null,"Gasoline - Marked",null,"Litres"]
[null,null,null,null,null,null,null,null,null,null,null,null,null,null,null,"Tonnes",null,"Gasoline - Unmarked",null,"Litres"]
[7,null,null,null,null,null,null,null,null,{"$f":"IF(N20=TRUE, \"\",VLOOKUP(D20,$R$8:$T$34,3,FALSE))","v":""},null,null,null,true,null,"kilolitres",null,"Heating distillate oil",null,"Litres"]
[null,null,null,null,null,null,null,null,null,null,null,null,null,null,null,"dry tonnes",null,"Heavy fuel oil",null,"Litres"]
[8,null,null,null,null,null,null,null,null,{"$f":"IF(N22=TRUE, \"\",VLOOKUP(D22,$R$8:$T$34,3,FALSE))","v":""},null,null,null,true,null,null,null,"High heat value coal",null,"Tonnes"]
[null,null,null,null,null,null,null,null,null,null,null,null,null,null,null,null,null,"Kerosene",null,"Litres"]
[9,null,null,null,null,null,null,null,null,{"$f":"IF(N24=TRUE, \"\",VLOOKUP(D24,$R$8:$T$34,3,FALSE))","v":""},null,null,null,true,null,null,null,"Locomotive diesel",null,"Litres"]
[null,null,null,null,null,null,null,null,null,null,null,null,null,null,null,null,null,"Low heat value coal",null,"Tonnes"]
[10,null,null,null,null,null,null,null,null,{"$f":"IF(N26=TRUE, \"\",VLOOKUP(D26,$R$8:$T$34,3,FALSE))","v":""},null,null,null,true,null,null,null,"Methanol",null,"Litres"]
[null,null,null,null,null,null,null,null,null,null,null,null,null,null,null,null,null,"Naphtha",null,"Litres"]
[11,null,null,null,null,null,null,null,null,{"$f":"IF(N28=TRUE, \"\",VLOOKUP(D28,$R$8:$T$34,3,FALSE))","v":""},null,null,null,true,null,null,null,"Natural gas",null,"GJ"]
[null,null,null,null,null,null,null,null,null,null,null,null,null,null,null,null,null,"Raw gas",null,"GJ"]
[12,null,null,null,null,null,null,null,null,{"$f":"IF(N30=TRUE, \"\",VLOOKUP(D30,$R$8:$T$34,3,FALSE))","v":""},null,null,null,true,null,null,null,"Pentanes plus/condensate",null,"Litres"]
[null,null,null,null,null,null,null,null,null,null,null,null,null,null,null,null,null,"Propane",null,"Litres"]
[13,null,null,null,null,null,null,null,null,{"$f":"IF(N32=TRUE, \"\",VLOOKUP(D32,$R$8:$T$34,3,FALSE))","v":""},null,null,null,true,null,null,null,"Refinery gas",null,"STD m3"]
[null,null,null,null,null,null,null,null,null,null,null,null,null,null,null,null,null,"Refinery petroleum coke",null,"Tonnes"]
[14,null,null,null,null,null,null,null,null,{"$f":"IF(N34=TRUE, \"\",VLOOKUP(D34,$R$8:$T$34,3,FALSE))","v":""},null,null,null,true,null,null,null,"Upgrader petroleum coke",null,"Tonnes"]
[]
[15,null,null,null,null,null,null,null,null,{"$f":"IF(N36=TRUE, \"\",VLOOKUP(D36,$R$8:$T$34,3,FALSE))","v":""},null,null,null,true]
[]
[16,null,null,null,null,null,null,null,null,{"$f":"IF(N38=TRUE, \"\",VLOOKUP(D38,$R$8:$T$34,3,FALSE))","v":""},null,null,null,true]
[]
[17,null,null,null,null,null,null,null,null,{"$f":"IF(N40=TRUE, \"\",VLOOKUP(D40,$R$8:$T$34,3,FALSE))","v":""},null,null,null,true]
[]
[18,null,null,null,null,null,null,null,null,{"$f":"IF(N42=TRUE, \"\",VLOOKUP(D42,$R$8:$T$34,3,FALSE))","v":""},null,null,null,true]
[]
[19,null,null,null,null,null,null,null,null,{"$f":"IF(N44=TRUE, \"\",VLOOKUP(D44,$R$8:$T$34,3,FALSE))","v":""},null,null,null,true]
[]
[20,null,null,null,null,null,null,null,null,{"$f":"IF(N46=TRUE, \"\",VLOOKUP(D46,$R$8:$T$34,3,FALSE))","v":""},null,null,null,true]
[]
[]
[]
[]
[]
[]
[]
[]
[null,"All fuels need to be reported whether or not the federal fuel charge has been paid or not."]
[]
[]
[null,{"$f":"CONCATENATE(ReportingYear,\" - \", 'Section A1'!$B$5)","v":"2023 - "}]

{"sheet":"Section D","index":60,"n_rows":45,"n_cols":2,"rows_kept":45,"cut":false,"hidden":false,"merged":[[0,0,0,2],[4,1,42,1]]}
["Section D: Differences from Past SGER/Specified Gas Reporting Regulation Reports (SGRR) for the Same Time Period"]
[]
[null,"Description of Differences"]
[null,"In the space provided below, indicate any differences between the emissions or production information reported previously through the Specified Gas Reporting Regulation or the Specified Gas Emitters Regulation and the corresponding values submitted with this report for the respective time period. Include a qualitative description of the difference and the quantity in Tonnes of CO2e; indicating whether there is an increase or decrease. If more space is required, use Section F or submit additional documentation with this form. Facilities with changes to emissions data that was also reported under the National Mandatory Greenhouse Gas Reporting Program should contact Environment Canada to determine whether they are required to restate those emissions."]
[]
[]
[]
[]
[]
[]
[]
[]
[]
[]
[]
[]
[]
[]
[]
[]
[]
[]
[]
[]
[]
[]
[]
[]
[]
[]
[]
[]
[]
[]
[]
[]
[]
[]
[]
[]
[]
[]
[]
[]
[null,{"$f":"CONCATENATE(ReportingYear,\" - \", 'Section A1'!$B$5)","v":"2023 - "}]

{"sheet":"Section D (2)","index":61,"n_rows":64,"n_cols":2,"rows_kept":64,"cut":false,"hidden":true,"merged":[[0,0,0,2],[2,1,61,1]]}
["Section D: Differences from Past Reports (continued)"]
[]
[]
[]
[]
[]
[]
[]
[]
[]
[]
[]
[]
[]
[]
[]
[]
[]
[]
[]
[]
[]
[]
[]
[]
[]
[]
[]
[]
[]
[]
[]
[]
[]
[]
[]
[]
[]
[]
[]
[]
[]
[]
[]
[]
[]
[]
[]
[]
[]
[]
[]
[]
[]
[]
[]
[]
[]
[]
[]
[]
[]
[]
[null,{"$f":"IF(Submission!I5=2,LEFT(CONCATENATE(Submission!$C$11,\" - \",'Section A1'!$B$5),95),LEFT(CONCATENATE(Submission!$C$11,\"-\",Submission!$C$13,\"-\",Submission!$C$15,\" BEIA - \",'Section A1'!$B$5),85))","v":"-- BEIA - "}]

{"sheet":"Section E","index":62,"n_rows":65,"n_cols":30,"rows_kept":65,"cut":false,"hidden":false,"merged":[[0,0,0,17],[42,20,42,21]]}
["Section E: Facility Specific Benchmarks",null,null,null,null,null,null,null,null,null,null,null,null,null,null,null,null,null,"hide","hide","hide","hide","hide","hide","hide","hide","hide","hide","hide","hide"]
[]
[]
[null,"Emissions",null,null,null,null,null,null,null,null,null,null,null,null,null,null,null,null,null,"trigger multiP SelfGen",{"$f":"IF(AND(OR(Submission!$I$5=1,Submission!$I$5=0),Submission!H11=TRUE),1,0)","v":0},"Total Regulated Emissions (TRE)"]
[null,null,null,null,{"$f":"Submission!C11","v":0},null,{"$f":"Submission!C13","v":0},null,{"$f":"Submission!C15","v":0},null,{"$f":"Submission!C17","v":0},null,{"$f":"Submission!C19","v":0},null,"Total",null,"Units",null,null,{"$f":"IF(AND(Submission!$I$5=2,Submission!H11=TRUE),TRUE,FALSE)","v":false}]
[null,"Total Regulated Emissions (TRE)",null,null,{"$f":"'Section B7'!C33","v":0},null,{"$f":"'Section B7 (2)'!C33","v":0},null,{"$f":"'Section B7 (3)'!C33","v":0},null,{"$f":"'Section B7 (4)'!C33","v":0},null,{"$f":"'Section B7 (5)'!C33","v":0},null,{"$f":"SUM(E6,G6,I6,K6,M6)","v":0},null," Tonnes CO2e"]
[]
[null,"Industrial Process Emissions Generated (IPGenerated)",null,null,{"$f":"IF(Submission!$I$11,0,'Section B1'!L19+'Section B4'!J21+'Section B4'!J42)","v":0},null,{"$f":"IF(Submission!$I$11,0,'Section B1 (2)'!L19+'Section B4 (2)'!J21+'Section B4 (2)'!J42)","v":0},null,{"$f":"IF(Submission!$I$11,0,'Section B1 (3)'!L19+'Section B4 (3)'!J21+'Section B4 (3)'!J42)","v":0},null,{"$f":"IF(Submission!$I$11,0,'Section B1 (4)'!L19+'Section B4 (4)'!J21+'Section B4 (4)'!J42)","v":0},null,{"$f":"IF(Submission!$I$11,0,'Section B1 (5)'!L19+'Section B4 (5)'!J21+'Section B4 (5)'!J42)","v":0},null,{"$f":"SUM(E8,G8,I8,K8,M8)","v":0},null," Tonnes CO2e"]
[]
[null,"Emissions from Self Generation (EE)",null,null,{"$f":"'Section B4 EE'!I17","v":0},null,{"$f":"'Section B4 EE (2)'!I17","v":0},null,{"$f":"'Section B4 EE (3)'!I17","v":0},null,{"$f":"'Section B4 EE (4)'!I17","v":0},null,{"$f":"'Section B4 EE (5)'!I17","v":0},null,{"$f":"SUM(E10,G10,I10,K10,M10)","v":0},null," Tonnes CO2e"]
[]
[null,"Emissions from Electricity Used (Eelectricity used)",null,null,{"$f":"'Section B4 EE'!I32*AA51","v":0},null,{"$f":"'Section B4 EE (2)'!I32*AA51","v":0},null,{"$f":"'Section B4 EE (3)'!I32*AA51","v":0},null,{"$f":"'Section B4 EE (4)'!I32*AA51","v":0},null,{"$f":"'Section B4 EE (5)'!I32*AA51","v":0},null,{"$f":"SUM(E12,G12,I12,K12,M12)","v":0},null," Tonnes CO2e"]
[]
[null,"Emissions from Heat Used (Eheat used)",null,null,{"$f":"'Section B4 EE'!I46*AA52","v":0},null,{"$f":"'Section B4 EE (2)'!I46*AA52","v":0},null,{"$f":"'Section B4 EE (3)'!I46*AA52","v":0},null,{"$f":"'Section B4 EE (4)'!I46*AA52","v":0},null,{"$f":"'Section B4 EE (5)'!I46*AA52","v":0},null,{"$f":"SUM(E14,G14,I14,K14,M14)","v":0},null," Tonnes CO2e",null,null,{"$f":"IF(U20=1,('Section B4'!H36-'Section B4'!J36),('Section B4'!L36-'Section B4'!Q36))","v":0}]
[]
[null,{"$f":"IF(Submission!$I$11,\"Emissions from Hydrogen (E imported H2 fuel)\",\"Emissions from Hydrogen (EH2 used)\")","v":"Emissions from Hydrogen (EH2 used)"},null,null,{"$f":"IF(Submission!$I$11,'Section B4'!S36,('Section B4'!H36-'Section B4'!J36))*AA53","v":0},null,{"$f":"IF(Submission!$I$11,'Section B4 (2)'!S36,('Section B4 (2)'!H36-'Section B4 (2)'!J36))*AA53","v":0},null,{"$f":"IF(Submission!$I$11,'Section B4 (3)'!S36,('Section B4 (3)'!H36-'Section B4 (3)'!J36))*AA53","v":0},null,{"$f":"IF(Submission!$I$11,'Section B4 (4)'!S36,('Section B4 (4)'!H36-'Section B4 (4)'!J36))*AA53","v":0},null,{"$f":"IF(Submission!$I$11,'Section B4 (5)'!S36,('Section B4 (5)'!H36-'Section B4 (5)'!J36))*AA53","v":0},null,{"$f":"SUM(E16,G16,I16,K16,M16)","v":0},null," Tonnes CO2e"]
[]
[null,"Emissions from Useful Hydrogen Produced (EH2 produced)",null,null,{"$f":"IF(Submission!I11,('Section B4'!L36-'Section B4'!Q36)*AA53,0)","v":0},null,{"$f":"IF(Submission!I11,('Section B4 (2)'!L36-'Section B4 (2)'!Q36)*AA53,0)","v":0},null,{"$f":"IF(Submission!I11,('Section B4 (3)'!L36-'Section B4 (3)'!Q36)*AA53,0)","v":0},null,{"$f":"IF(Submission!I11,('Section B4 (4)'!L36-'Section B4 (4)'!Q36)*AA53,0)","v":0},null,{"$f":"IF(Submission!I11,('Section B4 (5)'!L36-'Section B4 (5)'!Q36)*AA53,0)","v":0},null,{"$f":"SUM(E18,G18,I18,K18,M18)","v":0},null," Tonnes CO2e"]
[null,null,null,null,null,null,null,null,null,null,null,null,null,null,null,null,null,null,null,null,"IP","H2"]
[null,"Production ",null,null,null,null,null,null,null,null,null,null,null,null,null,null,null,null,null,"Trigger AB-CWB",{"$f":"IF(SUM(T21:T22)>0,0,1)","v":1},{"$f":"IF(U20=1,0,1)","v":0}]
[null,null,null,null,{"$f":"E5","v":0},null,{"$f":"G5","v":0},null,0,null,0,null,0,null,"Total",null,"Units",null,"check box",{"$f":"IF(Submission!I11=TRUE,1,0)","v":0},"Emissions from Offsite Hydrogen Used  (EH2 used)"]
[null,null,"Product",null,"Quantity",null,"Quantity",null,"Quantity",null,"Quantity",null,"Quantity",null,"Quantity",null,null,null,"Naics refining",{"$f":"IF('Section A1'!B13=\"324110\",1,0)","v":0}]
[null,"Production (P)","Select or Type value",null,"",null,"",null,"",null,"",null,"",null,{"$f":"IFERROR(SUM(E23,G23,I23,K23,M23), \"Missing values\")","v":0},null,"",null,null,{"$f":"SUM(T21:T22)","v":0},"Emissions from useful Hydrogen Produced (EH2 produced)"]
[]
[null,"Facility Specific Benchmarks"]
[]
[null,null,null,null,null,null,null,null,null,null,null,null,null,"Reduction Target (RT)",{"$f":"V44","v":0.14000000000000001}]
[]
[null,null,null,null,null,null,null,null,null,null,null,null,null,"(FSB tightening)",{"$f":"IFERROR(((O6-(O8*U20)-(O10*U4)+O14+(O16)-(O18*V20))/O23),\" \")","v":" "},null,{"$f":"CONCATENATE(Q6,\" / \",Q23)","v":" Tonnes CO2e / "},null,null,{"$f":"IF(OR(C23={\"Refining\",\"Upgrading\",\"Select value\"}),IF(C23=\"Refining\", \"Alberta complexity weighted barrel (in thousands)\",  IF(C23=\"Upgrading\", \"Upgrading AB-CWB (in thousands))\", \"Select 'Refining' or 'Upgrading' from the dropdown in Row 23\")))","v":false}]
[]
[null,null,null,null,null,null,null,null,null,null,null,null,null,"(FSB non-tightening)",{"$f":"IFERROR((((O8*U20)+O12)/O23),\" \")","v":" "},null,{"$f":"CONCATENATE(Q6,\" / \",Q23)","v":" Tonnes CO2e / "}]
[null,null,null,null,null,null,null,null,null,null,null,null,null,null,null,null,null,null,null,null,"FORMULA"]
[null,null,null,null,null,null,null,null,null,null,null,null,null,"FSB = FSBtightening x (1 - RT) + FSBnon-tightening    Facility Specific Benchmark (FSB)",{"$f":"IFERROR(FIXED(((O29*(1-O27))+O31),3-(1+INT(LOG10(ABS(((O29*(1-O27))+O31))))),FALSE),\" \")","v":" "},null,{"$f":"CONCATENATE(Q6,\" / \",Q23)","v":" Tonnes CO2e / "},null,null,"FIXED(D4,3-(1+INT(LOG10(ABS(D4)))),FALSE)","((O27*(1-O25))+O29)"]
[]
[null,{"$f":"LEFT(CONCATENATE('Section A2'!$B$5, \" - \", 'Section A1'!$B$5),95)","v":" - "}]
[]
[]
[]
[null,null,null,null,null,null,null,null,null,null,null,null,null,null,null,null,null,null,null,"Product Tighetning Target",{"$f":"IFERROR(V39,T46)","v":"FSB - General"},{"$f":"VLOOKUP(C23,T51:U65,2,FALSE)","v":{"$error":"#N/A"}}]
[null,null,null,null,null,null,null,null,null,null,null,null,null,null,null,null,null,null,null,"Years of Operation",{"$f":"IF(AND(V40>0,V40<=8),V40,\"\")","v":""},{"$f":"'Section A1'!D27","v":2024}]
[null,null,null,null,null,null,null,null,null,null,null,null,null,null,null,null,null,null,null,"Selection Year",{"$f":"ReportingYear","v":2023},{"$f":"MATCH(U41,W44:AD44,0)","v":1}]
[]
[null,null,null,null,null,null,null,null,null,null,null,null,null,null,null,null,null,null,null,"TIGHETNING","Years of Operation",null,1,2,3,4,5,6,7,8]
[null,null,null,null,null,null,null,null,null,null,null,null,null,null,null,null,null,null,null,"Reduction Target","SELECTED RT>>",{"$f":"VLOOKUP(U39,T45:U48,2,FALSE)","v":0.14000000000000001},2023,2024,2025,2026,2027,2028,2029,2030]
[null,null,null,null,null,null,null,null,null,null,null,null,null,null,null,null,null,null,null,"NEW Facility",{"$f":"V45","v":1},{"$f":"IFERROR(CHOOSE($V$40,W45,X45,Y45,Z45,AA45,AB45,AC45,AD45),1)","v":1},0,0,0.05,0.1,0.15,0.2,0.25,0.3]
[null,null,null,null,null,null,null,null,null,null,null,null,null,null,null,null,null,null,null,"FSB - General",{"$f":"MIN($V$45,V46)","v":0.14000000000000001},{"$f":"CHOOSE($V$41,W46,X46,Y46,Z46,AA46,AB46,AC46,AD46)","v":0.14000000000000001},0.14000000000000001,0.16,0.18,0.2,0.22,0.24,0.26,0.28000000000000003]
[null,null,null,null,null,null,null,null,null,null,null,null,null,null,null,null,null,null,null,"FSB - Bitumen - Oil Sands In Situ",0.14000000000000001,{"$f":"CHOOSE($V$41,W47,X47,Y47,Z47,AA47,AB47,AC47,AD47)","v":0.14000000000000001},0.14000000000000001,0.16,0.18,0.2,0.22,0.24,0.28000000000000003,0.32]
[null,null,null,null,null,null,null,null,null,null,null,null,null,null,null,null,null,null,null,"FSB - Bitumen - Oil Sands Mining; Upgrading",0.2,0.2,0.2,0.22,0.24,0.26,0.28000000000000003,0.3,0.34,0.38]
[]
[null,null,null,null,null,null,null,null,null,null,null,null,null,null,null,null,null,null,null,"PRODUCT LOOKUP TIGHTENING",null,null,null,"HPB LOOKUP (Referenced from Section B6)"]
[null,null,null,null,null,null,null,null,null,null,null,null,null,null,null,null,null,null,null,"Ammonia","FSB - General",null,null,{"$f":"'Section B6'!R71","v":"Electricity"},{"$f":"'Section B6'!Q71","v":0.36259999999999998},{"$f":"'Section B6'!AF71","v":"Megawatt hour"},{"$f":"Y51","v":0.36259999999999998}]
[null,null,null,null,null,null,null,null,null,null,null,null,null,null,null,null,null,null,null,"Ammonium nitrate","FSB - General",null,null,{"$f":"'Section B6'!R76","v":"Industrial Heat"},{"$f":"'Section B6'!Q76","v":6.173E-2},{"$f":"'Section B6'!AF76","v":"Gigajoule"},6.2990000000000004E-2]
[null,null,null,null,null,null,null,null,null,null,null,null,null,null,null,null,null,null,null,"Bitumen - Oil Sands In Situ","FSB - Bitumen - Oil Sands In Situ",null,null,{"$f":"'Section B6'!R75","v":"Hydrogen"},{"$f":"'Section B6'!Q75","v":8.9930000000000003},{"$f":"'Section B6'!AF75","v":"Tonne"},9.0679999999999996]
[null,null,null,null,null,null,null,null,null,null,null,null,null,null,null,null,null,null,null,"Bitumen - Oil Sands Mining","FSB - Bitumen - Oil Sands Mining; Upgrading"]
[null,null,null,null,null,null,null,null,null,null,null,null,null,null,null,null,null,null,null,"Bleached Kraft Pulp","FSB - General"]
[null,null,null,null,null,null,null,null,null,null,null,null,null,null,null,null,null,null,null,"Canola Oil - Crude","FSB - General"]
[null,null,null,null,null,null,null,null,null,null,null,null,null,null,null,null,null,null,null,"Cement","FSB - General"]
[null,null,null,null,null,null,null,null,null,null,null,null,null,null,null,null,null,null,null,"Coal - Bituminous","FSB - General"]
[null,null,null,null,null,null,null,null,null,null,null,null,null,null,null,null,null,null,null,"Coal - Sub-bituminous","FSB - General"]
[null,null,null,null,null,null,null,null,null,null,null,null,null,null,null,null,null,null,null,"Ethyl alcohol","FSB - General"]
[null,null,null,null,null,null,null,null,null,null,null,null,null,null,null,null,null,null,null,"Ethylene glycol","FSB - General"]
[null,null,null,null,null,null,null,null,null,null,null,null,null,null,null,null,null,null,null,"High‑value Chemicals","FSB - General"]
[null,null,null,null,null,null,null,null,null,null,null,null,null,null,null,null,null,null,null,"Hydrogen","FSB - General"]
[null,null,null,null,null,null,null,null,null,null,null,null,null,null,null,null,null,null,null,"Refining","FSB - General"]
[null,null,null,null,null,null,null,null,null,null,null,null,null,null,null,null,null,null,null,"Upgrading","FSB - Bitumen - Oil Sands Mining; Upgrading"]

{"sheet":"Section E1","index":63,"n_rows":64,"n_cols":19,"rows_kept":64,"cut":false,"hidden":true,"merged":[[0,0,0,6],[42,1,42,5],[16,1,16,5],[22,1,22,5]]}
["Section E: Compliance",null,null,null,null,null,null,"hide","hide","hide","hide","hide","hide","hide","hide","hide","hide","hide","hide"]
[]
[null,"Emissions and Allocations"]
[]
[null,{"$f":"IF(Report=4,\"Total Regulated Emissions for \"&Submission!C11&\" - Period 1 (TRE)\",IF(Report=5,\"Total Regulated Emissions for \"&Submission!C11&\" - Period 2 (TRE)\",IF(Report=6,\"Total Regulated Emissions for \"&Submission!C11&\" - Period 3 (TRE)\",IF(Report=7,\"Total Regulated Emissions for \"&Submission!C11&\" - Period 4 (TRE)\",\"Total Regulated Emissions (TRE)\"))))","v":"Total Regulated Emissions (TRE)"},null,{"$f":"TRE","v":0},null,"tonnes CO2e"]
[]
[null,{"$f":"IF(Report=4,\"Output-Based Allocation for \"&Submission!C11&\" - Period 1 (OBA)\",IF(Report=5,\"Output-Based Allocation for \"&Submission!C11&\" - Period 2 (OBA)\",IF(Report=6,\"Output-Based Allocation for \"&Submission!C11&\" - Period 3 (OBA)\",IF(Report=7,\"Output-Based Allocation for \"&Submission!C11&\" - Period 4 (OBA)\",\"Output-Based Allocation (OBA)\"))))","v":"Output-Based Allocation (OBA)"},null,{"$f":"OBA","v":{"$error":"#VALUE!"}},null,"tonnes CO2e"]
[]
[null,"True Up Obligation and Credit Usage Limits"]
[]
[null,{"$f":"IF(Report=4,\"Total True Up Obligation for \"&Submission!C11&\" - Period 1 \",IF(Report=5,\"Total True Up Obligation for \"&Submission!C11&\" - Period 2 \",IF(Report=6,\"Total True Up Obligation for \"&Submission!C11&\" - Period 3 \",IF(Report=7,\"Total True Up Obligation for \"&Submission!C11&\" - Period 4 \",\"Total True Up Obligation\"))))","v":"Total True Up Obligation"},null,{"$f":"IFERROR(IF(NOT(OR(Report=1, Report=3)),IF(P50<0, 0, P50),0),\"Error\")","v":0},null,"Credits"]
[]
[null,"Pre-2017 Vintage EO + EPC Limit",null,{"$f":"IFERROR(IF(P50<0,0,ROUNDDOWN(P50*(L60/100),0)),\"Error\")","v":"Error"},null,"Credits"]
[]
[null,"Total EO + EPC Limit",null,{"$f":"IFERROR(IF(P50<0,0,ROUNDDOWN(P50*(J60/100),0)),\"Error\")","v":"Error"},null,"Credits"]
[]
[null,{"$f":"\"Forecasted Ratio of Fund Credits to EPC + EO\"","v":"Forecasted Ratio of Fund Credits to EPC + EO"}]
[]
[null,"Forecasted EO + EPC",null,null,null,"%"]
[]
[null,"Forecasted Fund Credit",null,{"$f":"100-D19","v":100},null,"%"]
[]
[null,{"$f":"\" EO + EPC Submitted for Previous Reporting Periods of the Year \"&Submission!C11","v":" EO + EPC Submitted for Previous Reporting Periods of the Year "}]
[]
[null,"Pre-2017 Vintage Emission Offsets",null,null,null,"Credits"]
[]
[null,"2017 and After Vintage Emission Offsets",null,null,null,"Credits"]
[]
[null,"Pre-2017 Vintage Emission Performance Credits",null,null,null,"Credits"]
[]
[null,"2017 and After Vintage Emission Performance Credits",null,null,null,"Credits"]
[]
[null,"Fund Credits",null,null,null,"Credits"]
[]
[null,{"$f":"\"Output-based Allocation Exceeded?\"","v":"Output-based Allocation Exceeded?"},null,null,null,null,null,null,{"$f":"TRE-OBA","v":{"$error":"#VALUE!"}},{"$f":"'Section B7'!C33-'Section B7'!C41","v":{"$error":"#VALUE!"}},"If TRE-OBA > 0 then the target is not achieved since regulated emissions exceed the allocated amounts."]
[]
[null,"Allocation Exceeded (Yes/No)",null,{"$f":"IFERROR(IF(NOT(OR(Report=1, Report=3)),IF(AND(TRE=0,OBA=0),\"No\",IF((P51>0), \"Yes\", \"No\")),0),\"Error\")","v":0},null,null,null,null,{"$f":"ROUND(I35-(D25+D27+D29+D31+D33),0)","v":{"$error":"#VALUE!"}},{"$f":"('Section B7'!C33-'Section B7'!C41-(D25+D29+D33))","v":{"$error":"#VALUE!"}},"TRE-OBA- credits applied (paid year to date)"]
[]
[null,{"$f":"IF(NOT(OR(Report=1, Report=2, Report=3)),\"Remaining Credits Required\",\"Credits Required\")","v":"Credits Required"},null,{"$f":"IFERROR(IF(NOT(OR(Report=1, Report=3)),IF(P51<0, 0, P51),0),\"Error\")","v":0},null,"Credits",null,null,{"$f":"OBA-TRE","v":{"$error":"#VALUE!"}},{"$f":"('Section B7'!C41-'Section B7'!C33)","v":{"$error":"#VALUE!"}},"OBA-TRE"]
[]
[null,"Emission Performance Credits Potential",null,{"$f":"IFERROR(IF(NOT(OR(Report=1, Report=3)),IF(D7-D5>0,D7-D5, 0),0),\"Error\")","v":0},null,"Credits",null,"OBA:",{"$f":"OBA","v":{"$error":"#VALUE!"}}]
[null,null,null,null,null,null,null,"TRE:",{"$f":"TRE","v":0}]
[null,"Note: If the output-based allocation was exceeded complete worksheets E2-E4 to demonstrate how the facility has trued-up to comply with the duty not to exceed output-based allocation.",null,null,null,null,null,"lastBSheetSuffix:",{"$f":"lastBSheetSuffix","v":" (3)"},null,null,null,null,null,null,null,"Total Pre-2017","2017 and After","Sum"]
[null,null,null,null,null,null,null,null,null,null,null,null,null,null,null,"Total Submitted",{"$f":"D25+D29","v":0},{"$f":"D27+D31","v":0},{"$f":"Q44+R44","v":0}]
[null,{"$f":"CONCATENATE(ReportingYear,\" - \", 'Section A1'!$B$5)","v":"2023 - "},null,null,null,null,null,null,null,"year",null,null,null,null,null,"Total within limit",{"$f":"ROUND(IF(Q44>D13,D13,Q44),0)","v":0},{"$f":"IF(R44>(D15-Q45),(D15-Q45),R44)","v":{"$error":"#VALUE!"}},{"$f":"Q45+R45","v":{"$error":"#VALUE!"}}]
[null,null,null,null,null,null,null,null,null,null,null,null,null,null,null,null,{"$f":"SUM(Q44:Q45)","v":0},{"$f":"SUM(R44:R45)","v":{"$error":"#VALUE!"}}]
[null,null,null,null,null,null,null,null,null,"Total EPC + EO Limit",null,"Old EPC + EO Limit",null,null,"Remaining for 2017 and after",null,{"$f":"D15-S45","v":{"$error":"#VALUE!"}}]
[null,null,null,null,null,null,null,null,null,"Reg","Forecast","Reg","Forecast",null,null,"Total valid True-up",{"$f":"S45+D33","v":{"$error":"#VALUE!"}}]
[null,null,null,null,null,null,null,null,2018,50,{"$f":"IF(D19<J49,D19,J49)","v":0},40,{"$f":"IF(K49<L49,K49,L49)","v":0}]
[null,null,null,null,null,null,null,null,2019,55,{"$f":"IF(D19<J50,D19,J50)","v":0},40,{"$f":"IF(K50<L50,K50,L50)","v":0},null,null,{"$f":"TRE-OBA","v":{"$error":"#VALUE!"}},"TRE-OBA","True Up obligation rounded"]
[null,null,null,null,null,null,null,null,2020,60,{"$f":"IF(D19<J51,D19,J51)","v":0},40,{"$f":"IF(K51<L51,K51,L51)","v":0},null,null,{"$f":"P50-Q48","v":{"$error":"#VALUE!"}},null,"Obligation - Valid True up"]
[null,null,null,null,null,null,null,null,2022,60]
[null,null,null,null,null,null,null,null,2023,60]
[null,null,null,null,null,null,null,null,2024,70]
[null,null,null,null,null,null,null,null,2025,80]
[null,null,null,null,null,null,null,null,2026,90]
[]
[null,null,null,null,null,null,null,"Forcasting facilities","Lower between reg and forecast",null,{"$f":"IF(J62>2019,K51,IF(J62=2019,K50,K49))","v":0},null,{"$f":"IF(J62>2019,M51,IF(J62=2019,M50,M49))","v":0}]
[null,null,null,null,null,null,null,"Non Forecasting",null,{"$f":"IF(J62>2019,J51,IF(J62=2019,J50,J49))","v":50},null,{"$f":"IF(J62>2019,L51,IF(J62=2019,L50,L49))","v":40}]
[null,null,null,null,null,null,null,"To be used in D13 and D15",null,{"$f":"IF(Report=2,J59,K58)","v":0},null,{"$f":"IF(Report=2,L59,M58)","v":0}]
[]
[null,null,null,null,null,null,null,null,"Year from submission Tab tab",{"$f":"Submission!C11","v":0},null,{"$f":"Report","v":1},"Report Type"]
[null,null,null,null,null,null,null,null,"Max for Name upper Limit in D19",{"$f":"IF(J62>2019,J51,IF(J62=2019,J50,J49))","v":50}]
[null,null,null,null,null,null,null,null,"T up oblig No rounding",{"$f":"IF(NOT(OR(Report=1, Report=3)),IF(P50<0, 0, P50),0)","v":0}]

{"sheet":"Section E2","index":64,"n_rows":21,"n_cols":13,"rows_kept":21,"cut":false,"hidden":true,"merged":[[18,1,18,5],[17,1,17,5],[14,1,14,4],[15,1,15,5],[0,0,0,6],[4,2,4,5],[13,1,13,4],[10,1,10,5]]}
["Section E: Compliance (continued)",null,null,null,null,null,null,null,"hide","hide","hide","hide","hide"]
[]
[null,"Fund Credits Information"]
[]
[null,null,null,null,null,null,null,null,"FC N/A",{"$f":"D8=\"\"","v":true}]
[]
[]
[null,"Number of Fund Credits Submitted for Compliance",null,null,null,"(1 credit = 1 tonne CO2e)"]
[]
[]
[null,{"$f":"IF(NOT(OR(Report=1,Report=2,Report=3)),CONCATENATE(\"Note: Be sure that the number above equals the number of fund credits purchased and allocated to this facility for this reporting period submission.\",\" Do not include fund credits previously submitted in earlier reporting periods.\"),CONCATENATE(\"Note: Be sure that the number above equals the total number of fund credits purchased and allocated to this facility for this compliance submission.\",\" If fund credits were purchased more than once for this facility for this compliance period (e.g. for retroactive error correction), the number above should equal the total sum of fund credits submitted.\"))","v":"Note: Be sure that the number above equals the total number of fund credits purchased and allocated to this facility for this compliance submission. If fund credits were purchased more than once for this facility for this compliance period (e.g. for retroactive error correction), the number above should equal the total sum of fund credits submitted."}]
[]
[null,"Assurance"]
[null,"The Person Responsible owns these Fund Credits.",null,null,null,null,null,null,"Responses",null,null,"Options",true]
[null,"These Fund Credits have not been used by any other facility within the company.",null,null,null,null,null,null,null,null,null,null,false]
[null,"Important:  If you answered \"False\" to either of the above, your fund credits may not be valid to use under the Carbon Competitiveness Incentive Regulation. Please contact ACCO (AEP.GHG@gov.ab.ca) for further instruction.",null,null,null,null,null,null,null,null,null,""]
[]
[null,"Additional notes/clarification:"]
[]
[]
[null,{"$f":"CONCATENATE(ReportingYear,\" - \", 'Section A1'!$B$5)","v":"2023 - "}]

{"sheet":"Section E3","index":65,"n_rows":41,"n_cols":13,"rows_kept":41,"cut":false,"hidden":true,"merged":[[0,0,0,6],[27,1,27,4],[29,1,29,4],[31,1,31,5],[37,1,37,5],[12,1,12,5],[4,2,4,5],[15,1,15,4],[17,1,17,4],[19,1,19,4],[13,1,13,5],[40,1,40,5],[39,1,39,5],[21,1,21,4],[23,1,23,4],[25,1,25,4]]}
["Section E: Compliance (continued)",null,null,null,null,null,null,null,"hide","hide","hide","hide","hide"]
[]
[null,"Emission Offsets Information"]
[]
[null,null,null,null,null,null,null,null,"OC N/A",{"$f":"IF(J8=FALSE,FALSE,IF(J10=FALSE,FALSE,TRUE))","v":true}]
[]
[]
[null,"Pre-2017 Vintage Emission Offsets Submitted for Compliance",null,null,null,"(1 credit = 1 tonne CO2e)",null,null,null,{"$f":"D8=\"\"","v":true}]
[]
[null,"2017 or Later Vintage Emission Offsets Submitted for Compliance",null,null,null,"(1 credit = 1 tonne CO2e)",null,null,null,{"$f":"D10=\"\"","v":true}]
[]
[]
[null,"List all Emission Offsets serial numbers (or range of numbers) that were retired for true-up for this facility. "]
[]
[]
[null,"The reduction or sequestration used to generate the Emission Offsets took place in Alberta.",null,null,null,null,null,null,"Responses",null,null,"Options",true]
[null,null,null,null,null,null,null,null,null,null,null,null,false]
[null,"The reduction or sequestration occurred from action taken that was not otherwise required by law at the time the action was taken."]
[]
[null,"The reduction or sequestration used to generate the Emission Offsets occurred after January 1, 2002."]
[]
[null,"The reduction or sequestration is real, demonstrable, quantifiable and measurable (either directly or by accurate estimation using replicable techniques)."]
[]
[null,"The Person Responsible owns these Emission Offsets."]
[]
[null,"These Emission Offsets have not been used by any other facility within this company."]
[]
[null,"The offset project(s) followed an approved offset quantification protocol."]
[]
[null,"The Emission Offsets were verified by a Third-Party Verifier."]
[]
[null,"Note: If you answered \"false\" to any of the above, your Emission Offsets may not be valid to use under the Carbon Competitiveness Incentive Regulation. Please contact ACCO (AEP.GHG@gov.ab.ca) for further instruction."]
[]
[]
[]
[]
[]
[]
[]
[]
[null,{"$f":"CONCATENATE(ReportingYear,\" - \", 'Section A1'!$B$5)","v":"2023 - "}]

{"sheet":"Section E4","index":66,"n_rows":25,"n_cols":13,"rows_kept":25,"cut":false,"hidden":true,"merged":[[0,0,0,6],[19,1,19,4],[21,1,21,4],[23,1,23,5],[4,2,4,5],[12,1,12,5],[15,1,15,4],[17,1,17,4],[13,1,13,5]]}
["Section E: Compliance (continued)",null,null,null,null,null,null,null,"hide","hide","hide","hide","hide"]
[]
[null,"Emission Performance Credits Information"]
[]
[null,null,null,null,null,null,null,null,"EPC N/A",{"$f":"IF(J8=FALSE,FALSE,IF(J10=FALSE,FALSE,TRUE))","v":true}]
[]
[]
[null,"Pre-2017 Vintage EPCs Submitted for Compliance",null,null,null,"(1 credit = 1 tonne CO2e)",null,null,null,{"$f":"D8=\"\"","v":true}]
[]
[null,"2017 or Later Vintage EPCs Submitted for Compliance",null,null,null,"(1 credit = 1 tonne CO2e)",null,null,null,{"$f":"D10=\"\"","v":true}]
[]
[]
[null,"List the range of serial numbers being retired. Only credits pending retirement on the registry for the facility are valid for compliance use."]
[]
[]
[null,"The Person Responsible owns all of the above Emission Performance Credits being used for the compliance of this facility.",null,null,null,null,null,null,"Responses",null,null,"Options",true]
[null,null,null,null,null,null,null,null,null,null,null,null,false]
[null,"None of these credits have been used for compliance by any other facility within my company."]
[]
[null,"None of these credits have been used for compliance by any other facility."]
[]
[null,"All of these credits were generated in compliance periods prior to the current period, and have been officially serialized and marked as pending retirement on the Alberta Emission Performance Credit Registry."]
[]
[null,"Important:  If you answered \"false\" to any of the above, your Emission Performance Credits may not be valid to use under the Carbon Competitiveness Incentive Regulation. Please contact ACCO (AEP.GHG@gov.ab.ca) for further instruction."]
[null,{"$f":"CONCATENATE(ReportingYear,\" - \", 'Section A1'!$B$5)","v":"2023 - "}]

{"sheet":"Section E5","index":67,"n_rows":52,"n_cols":23,"rows_kept":52,"cut":false,"hidden":true,"merged":[[0,0,0,8],[25,1,25,7],[33,1,33,7],[29,1,29,7],[4,3,4,5],[6,3,6,5],[13,3,13,5],[15,3,15,5],[17,3,17,5],[19,3,19,5],[23,3,23,5],[27,3,27,5],[31,3,31,5]]}
["Section E: Compliance (continued)",null,null,null,null,null,null,null,null,null,"hide","hide","hide","hide","hide","hide","hide","hide","hide","hide","hide","hide","hide"]
[]
[null,"Net Emissions"]
[]
[null,"Total Regulated Emissions",null,{"$f":"IF(NOT(OR(Report=1, Report=3)),TRE,0)","v":0},null,null,null,"tonnes CO2e"]
[null," (TRE)"]
[null,"Total Fund Credits Submitted",null,{"$f":"IF(NOT(OR(Report=1, Report=3)),'Section E1'!D33+'Section E2'!D8,0)","v":0},null,null,null,"tonnes CO2e"]
[null,"(FC)"]
[null,null,null,"Pre-2017 Vintage",null,"2017 and Later Vintage"]
[null,"Total Emission Offsets Submitted",null,{"$f":"IF(NOT(OR(Report=1, Report=3)),'Section E1'!D25+'Section E3'!D8,0)","v":0},null,{"$f":"IF(NOT(OR(Report=1, Report=3)),'Section E1'!D27+'Section E3'!D10,0)","v":0},null,"tonnes CO2e"]
[null,"(EO)"]
[null,"Emission Performance Credits Submitted",null,{"$f":"IF(NOT(OR(Report=1, Report=3)),'Section E1'!D29+'Section E4'!D8,0)","v":0},null,{"$f":"IF(NOT(OR(Report=1, Report=3)),'Section E1'!D31+'Section E4'!D10,0)","v":0},null,"tonnes CO2e"]
[null,"(EPC)"]
[null,"Net Emissions",null,{"$f":"IFERROR(IF(NOT(OR(Report=1, Report=3)),TRE-D7-V40,0),\"Error\")","v":0},null,null,null,"tonnes CO2e"]
[null," (TRE - FC - EO - EPC)"]
[null,"Output Based Allocation",null,{"$f":"IF(NOT(OR(Report=1, Report=3)),OBA,0)","v":0},null,null,null,"tonnes CO2e"]
[null," (OBA)"]
[null,"Credit usage limit exceeded (Y/N)",null,{"$f":"IFERROR(IF(NOT(OR(Report=1, Report=3)),IF(V39>V40,\"Yes\",\"No\"),0),\"Error\")","v":0},null,null,null,null,null,null,"should match remaining credits below"]
[]
[null,{"$f":"\" True Up Obligation Met (Y/N)\"","v":" True Up Obligation Met (Y/N)"},null,{"$f":"IF(NOT(OR(Report=1, Report=3)),IF(D14>OBA,\"No\", \"Yes\"),0)","v":0}]
[null,null,null,null,null,null,null,null,null,null,null,null,null,null,"Ratio to use for current year:",null,{"$f":"VLOOKUP(TRUE,O23:P25, 2, 0)","v":0.6}]
[null,"Credit Balance",null,null,null,null,null,null,null,null,null,null,null,null,"Reporting year is same?","Ratio"]
[null,null,null,null,null,null,null,null,null,null,null,null,null,null,{"$f":"ReportingYear=2018","v":false},0.5,"EPC+EO (offsets) can only be used to meet:\n2018: 50% of the compliance obligation\n2019: 55% of the compliance obligation\n2020: 60% of the compliance obligation\nPLUS this condition must be met: EPC+EO from a year before 2017 can only be used to meet 40% of compliance obligation."]
[null,"Remaining Credits Required (tonnes owed)",null,{"$f":"IF(NOT(OR(Report=1, Report=3)),IF(D14>OBA,D14-OBA, 0),0)","v":0},null,null,null,"tonnes CO2e",null,null,null,null,null,null,{"$f":"ReportingYear=2019","v":false},0.55000000000000004,"So, 2 conditions need to be checked: (1) emissions occurred 2018 and after - EO+EPC>50,55,60%, (2) offsets/EPCs purchased 2017 and before: EOold+EPCold<=40% of c.o."]
[null,null,null,null,null,null,null,null,null,null,null,null,null,null,{"$f":"ReportingYear>=2020","v":true},0.6]
[null,"A balance here means that an insufficient number of Fund Credits, Emission Offsets or Emission Performance Credits have been submitted, and this facility is not in compliance with its duty not to exceed output-based allocation."]
[]
[null,"Credit Surplus",null,{"$f":"IFERROR(IF(NOT(OR(Report=1, Report=3)),IF(W45<(T43+V40),((T43+V40-W45)+V48),V48),0),\"Error\")","v":0},null,null,null,"tonnes CO2e",null,null,"=row 19",null,null,null,null,null,2018,2019,2020]
[]
[null,"A balance here means that more credits have been submitted than were required to achieve compliance. It may also mean that not all Emission Offsets and/or Emission Performance Credits submitted were accepted because the credit usage limits established in the CCIR were exceeded. Before the submission deadline, facilities may adjust the number of Fund Credits, Emission Offsets or Emission Performance Credits in Sections E2-E4 so that only the required amount are submitted.",null,null,null,null,null,null,null,null,null,null,null,null,null,"old",0.4,0.4,0.4]
[null,null,null,null,null,null,null,null,null,null,null,null,null,null,null,"new",0.5,0.55000000000000004,0.6]
[null,"Emission Performance Credit Potential",null,{"$f":"IFERROR(IF(NOT(OR(Report=1, Report=3)),IF(D16-D5>0, D16-D5, 0),0),\"Error\")","v":0},null,null,null,"tonnes CO2e",null,null,"FC + EO + EPC-(TRE -OBA)=FC + EO + EPC-TRE + OBA",null,null,null,null,"Total",0.5,0.55000000000000004,0.6]
[]
[null,"A balance here means that Emission Performance Credits may be requested using the EPC Request form (for reporting period four), and may be granted after Alberta Climate Change Office has conducted a review of the compliance submission."]
[null,{"$f":"CONCATENATE(ReportingYear,\" - \", 'Section A1'!$B$5)","v":"2023 - "}]
[]
[]
[null,null,null,null,null,null,null,null,null,null,null,null,null,null,null,null,null,null,null,"Total Pre-2017","2017 and After","Sum"]
[null,null,null,null,null,null,null,null,null,null,null,null,null,null,null,"old",{"$f":"('Section E1'!D25+'Section E1'!D29+'Section E3'!D8+'Section E4'!D8)","v":0},null,"Total Submitted",{"$f":"'Section E1'!D25+'Section E1'!D29+'Section E3'!D8+'Section E4'!D8","v":0},{"$f":"'Section E1'!D27+'Section E1'!D31+'Section E3'!D10+'Section E4'!D10","v":0},{"$f":"T39+U39","v":0}]
[null,null,null,null,null,null,null,null,null,null,null,null,null,null,null,"New",{"$f":"('Section E1'!D27+'Section E1'!D31+'Section E3'!D10+'Section E4'!D10)","v":0},null,"Total within limit",{"$f":"MIN('Section E1'!D13,T39)","v":0},{"$f":"IF(U39>('Section E1'!D15-T40),('Section E1'!D15-T40),U39)","v":{"$error":"#VALUE!"}},{"$f":"T40+U40","v":{"$error":"#VALUE!"}}]
[null,null,null,null,null,null,null,null,null,null,null,null,null,null,null,"Total",{"$f":"Q39+Q40","v":0},null,null,{"$f":"SUM(T39:T40)","v":0},{"$f":"SUM(U39:U40)","v":{"$error":"#VALUE!"}}]
[null,null,null,null,null,null,null,null,null,null,null,null,null,null,null,null,null,null,null,{"$f":"'Section E1'!D15-V40","v":{"$error":"#VALUE!"}}]
[null,null,null,null,null,null,null,null,null,null,null,null,null,null,"total limit",{"$f":"IF(Submission!C11=2018,'Section E5'!Q32,IF(Submission!C11=2019,'Section E5'!R32,'Section E5'!S32))","v":0.6},null,null,"Total Fund Credits",{"$f":"'Section E1'!D33+'Section E2'!D8","v":0}]
[null,null,null,null,null,null,null,null,null,null,null,null,null,null,null,null,null,null,"Total valid True-up",{"$f":"V40+T43","v":{"$error":"#VALUE!"}}]
[null,null,null,null,null,null,null,null,null,null,null,null,null,null,null,null,null,null,{"$f":"ROUND(TRE-OBA,0)","v":{"$error":"#VALUE!"}},"TRE-OBA","True Up obligation",null,{"$f":"MAX((TRE-OBA),0)","v":{"$error":"#VALUE!"}}]
[null,null,null,null,null,null,null,null,null,null,null,null,null,null,null,null,null,null,{"$f":"S45-T44","v":{"$error":"#VALUE!"}},null,"Obligation - Valid True up"]
[]
[null,null,null,null,null,null,null,null,null,null,null,null,null,null,null,null,null,null,"Exceded Credits Limits ",null,null,{"$f":"V39-V40","v":{"$error":"#VALUE!"}}]
[]
[null,null,null,null,null,null,null,null,null,null,null,null,null,null,null,null,null,null,"OBA",{"$f":"OBA","v":{"$error":"#VALUE!"}}]
[null,null,null,null,null,null,null,null,null,null,null,null,null,null,null,null,null,null,"Net Emissions",{"$f":"D14","v":0}]
[null,null,null,null,null,null,null,null,null,null,null,null,null,null,null,null,null,null,"OBA - D14(NE)",{"$f":"T50-T51","v":{"$error":"#VALUE!"}}]

{"sheet":"Section F","index":68,"n_rows":3,"n_cols":2,"rows_kept":3,"cut":false,"hidden":false,"merged":[[0,0,0,2],[3,1,50,1]]}
["Section F: Additional Comments"]
[]
[null,"List any approved deviation requests or additional relevant information in the field below:"]

{"sheet":"Section G","index":69,"n_rows":37,"n_cols":8,"rows_kept":37,"cut":false,"hidden":false,"merged":[[33,1,33,3],[22,1,22,3],[0,0,0,4],[2,1,2,3],[37,1,52,3],[36,1,36,3]]}
["Section G: Third Party Assurance Provider Information",null,null,null,null,null,"hide","hide"]
[]
[null,"NOTE: This sheet must be completed electronically in the submitted .XLS document. Printed versions will not be accepted."]
[]
[null,"Section G - Designated Signing Authority Contact Information"]
[null,"Title"]
[]
[null,"First Name",null,"Last Name",null,null,"Mr."]
[null,null,null,null,null,null,"Ms."]
[null,"Position/Title Within Verification Company",null,"Professional Designation",null,null,"Mrs."]
[null,null,null,null,null,null,"Miss"]
[null,"Telephone Number",null,"Verification Training User ID",null,null,"Dr."]
[]
[null,"Mailing Address",null,"City/District/Municipality/County"]
[]
[null,"Province/Territory/State",null,"Country"]
[]
[null,"Postal Code/Zip Code",null,"E-mail Address"]
[]
[]
[null,"Verification Company Information"]
[null,"Company Name"]
[]
[null,"Telephone Number"]
[]
[null,"Mailing Address",null,"City/District/Municipality/County"]
[]
[null,"Province/Territory/State",null,"Country"]
[]
[null,"Postal Code/Zip Code",null,"Website Address"]
[]
[]
[null,"Third Party Assurance Provider Qualifications"]
[null,"Is the verification company accredited as a verification body to the ISO Standard 14065:2013 by the Standards Council of Canada, the American National Standards Institute or any other accreditation organization that is a member of the International Accreditation Forum (TIER Section 27(2)(a))?\nNote: Accreditation is mandatory after June 30, 2023 (TIER Section 27(4))."]
[null,null,null,"Verification Accreditation Organization and ID"]
[]
[null,"Explain how the third party assurance provider satisfies the Qualifications requirements for third party assurance provider (Section 27 of the Technology Innovation and Emissions Reduction Regulation and section 3(1) in Part 1 of the Standard for Validation, Verification, and Audit)."]

{"sheet":"Section H","index":70,"n_rows":68,"n_cols":9,"rows_kept":68,"cut":false,"hidden":false,"merged":[[0,0,0,4]]}
["Section H: Verification Team",null,null,null,null,null,"hide","hide","hide"]
[]
[null,"Lead Verifier"]
[null,null,null,null,null,null,"Same as Reporter",false,{"$f":"H4","v":false}]
["First Name",null,"Last Name"]
[]
["Position/Title",null,"Professional Designation"]
[]
["Telephone Number (eg. 780-123-4567 ext 8)",null,"E-mail Address"]
[]
["Mailing Address",null,"City/District/Municipality/County"]
[]
["Province",null,"Postal Code"]
[]
[null,null,"Verification Training User ID"]
[]
[]
[null,"Peer Reviewer"]
[]
["First Name",null,"Last Name"]
[]
["Position/Title",null,"E-mail Address"]
[]
["Telephone Number (eg. 780-123-4567 ext 8)",null,"Verification Training User ID"]
[]
["Mailing Address",null,"City/District/Municipality/County"]
[]
["Province",null,"Postal Code"]
[]
[]
[null,"Subject Matter Expert"]
[null,null,null,null,null,null,"Same as Reporter",false,false]
["First Name",null,"Last Name"]
[]
["Position/Title",null,"E-mail Address"]
[]
["Telephone Number (eg. 780-123-4567 ext 8)",null,"Verification Training User ID"]
[]
["Mailing Address",null,"City/District/Municipality/County"]
[]
["Province",null,"Postal Code"]
[]
[]
[null,"Verifier 1"]
[null,null,null,null,null,null,null,true]
["First Name",null,"Last Name",null,null,null,"Mr."]
[null,null,null,null,null,null,"Ms."]
["Telephone Number (eg. 780-123-4567 ext 8)",null,"E-mail Address"]
[]
[null,null,"Verification Training User ID"]
[]
[]
[null,"Verifier 2"]
[null,null,null,null,null,null,null,true]
["First Name",null,"Last Name",null,null,null,"Mr."]
[null,null,null,null,null,null,"Ms."]
["Telephone Number (eg. 780-123-4567 ext 8)",null,"E-mail Address"]
[]
[null,null,"Verification Training User ID"]
[]
[]
[null,"Verifier 3"]
[null,null,null,null,null,null,null,true]
["First Name",null,"Last Name",null,null,null,"Mr."]
[null,null,null,null,null,null,"Ms."]
["Telephone Number (eg. 780-123-4567 ext 8)",null,"E-mail Address"]
[]
[null,null,"Verification Training User ID"]

{"sheet":"CoI Checklist","index":71,"n_rows":49,"n_cols":12,"rows_kept":49,"cut":false,"hidden":false,"merged":[[0,0,0,8],[4,1,4,2],[6,1,6,2],[17,2,17,6],[11,2,11,6],[13,2,13,6],[4,4,4,5],[6,4,6,5],[23,2,23,6],[41,1,41,2],[39,1,39,2],[27,1,27,7],[33,1,33,7],[30,2,30,3],[19,2,19,6],[21,2,21,6],[15,2,15,6],[25,2,25,6],[48,1,48,2],[48,4,48,5],[32,2,32,3],[44,1,44,4],[44,6,44,7],[46,1,46,2],[46,4,46,7],[37,1,37,4],[37,6,37,7],[35,1,35,4],[41,4,41,5],[39,4,39,7]]}
["Conflict of Interest Checklist",null,null,null,null,null,null,null,null,null,"hide","hide"]
[]
[null,"Associated TIER Regulation Submission"]
[null,"Facility Name",null,null,"EPEA Approval Number(s)",null,null,"Facility ID"]
[null,{"$f":"'Section A1'!B5","v":0},null,null,{"$f":"'Section A1'!B7","v":0},null,null,{"$f":"'Section A1'!D5","v":0},null,null,null,"Old"]
[null,"Reporting Company Legal Name",null,null,"Report Type",null,null,{"$f":"IF(Submission!I5=3,\"Reporting Period\",IF(OR(Submission!I5={1,2}),\"Benchmark Period\",\"Compliance Period\"))","v":"Benchmark Period"},null,null,"Number of Reporting Years",{"$f":"COUNT(Submission!C11,Submission!C13,Submission!C15,Submission!C17,Submission!C19)","v":0}]
[null,{"$f":"'Section A2'!B5","v":0},null,null,{"$f":"IF(Submission!I5=3,\"Data Report\",IF(OR(Submission!I5={1,2}),\"Benchmark Application\",\"Compliance Report\"))","v":"Benchmark Application"},null,null,{"$f":"IF(OR(Submission!I5={1,2,3}),L7,Submission!C11)","v":0},null,null,"Years Format",{"$f":"IF(L6=5, Submission!C11&\", \"&Submission!C13&\" ,\"&Submission!C15&\" ,\"& Submission!C17&\",\"& Submission!C19,IF(L6=4, Submission!C11&\", \"&Submission!C13&\" ,\"&Submission!C15&\" ,\"& Submission!C17,IF(L6=3, Submission!C11&\", \"&Submission!C13&\" ,\"&Submission!C15,IF(L6=2, Submission!C11&\", \"&Submission!C13, Submission!C11))))","v":0}]
[]
[null,"Checklist",null,null,null,null,null,null,null,null,"Options for Checklist",true]
[null,"Respond either \"True\" or \"False\" to each of the following statements:",null,null,null,null,null,null,null,null,null,false]
[]
[null,"1.","The relationship between my firm and this reporting company poses unacceptable threat to or comprimises the impartiality of my firm.",null,null,null,null,null,null,null,"Responses"]
[]
[null,"2.","The finances and sources of income of my firm compromise the impartiality of my firm."]
[]
[null,"3.","The personnel my firm has scheduled to participate in the verification may have an actual or potential conflict of interest."]
[]
[null,"4.","My firm participated in some manner in the development or completion of the associated TIER Regulation submission for this reporting company."]
[]
[null,"5.","My firm provided greenhouse gas consultancy services to this reporting company or other products or services that pose and unnacceptable risk to impartiality."]
[]
[null,"6.","My firm will use personnel that have, are, or will be engaged or previously employed by the reporting company."]
[]
[null,"7.","My firm will outsource the Statement of Verification for the associated TIER Regulation submission."]
[]
[null,"8.","A member of the verification or their employer will be involved six verification engagments for this reporting company without a two consecutive year break."]
[]
[null,"Important: If you have checked \"True\" to any of the above, you may not fulfill the \"independence\" requirement for third party assurance providers. Please contact AEP for further instruction. If the potential conflict of interest is a sufficient threat to impartiality (perceived or actual), or cannot be effectively managed, your Verification Report will not be acceptable to AEP."]
[null,"Signature of Designated Signing Authority and Lead Verifier"]
[]
[null,"I ,",{"$f":"'Section G'!B9&\" \"&'Section G'!D9","v":" "},null,"(Designated Signing Authority), and"]
[]
[null,"I ,",{"$f":"'Section H'!B6&\" \"&'Section H'!D6","v":" "},null,"(Lead Verifier),"]
[null,"have personally examined and am familiar with the information contained in this Conflict-of Interest Checklist, and can demonstrate freedom from any conflict of interest related to the reporting company for which the verification was performed. I herby warrant that the information submitted in this Conflict-of Interest Checklist is true, accurate and complete to the best of my knowledge, and that all matters affecting the validity of this Conflict-of-Interest Checklist have been fully disclosed. Impartiality shall be monitored over the duration of the verification and any identified actual or potential conflict-of-interest situations will be communicated to AEP directly."]
[null,"Verifying Company Name"]
[null,{"$f":"'Section G'!B23","v":0}]
[null,"Signature of Designated Signing Authority",null,null,null,null,"Date"]
[]
[null,"First Name",null,null,"Last Name"]
[null,{"$f":"'Section G'!B9","v":0},null,null,{"$f":"'Section G'!D9","v":0}]
[null,"Professional Designation",null,null,"E-mail Address",null,null,"Phone Number"]
[null,{"$f":"'Section G'!D11","v":0},null,null,{"$f":"'Section G'!D19","v":0},null,null,{"$f":"'Section G'!B13","v":0}]
[]
[null,"Signature of Lead Verifier",null,null,null,null,"Date"]
[]
[null,"First Name",null,null,"Last Name"]
[null,{"$f":"'Section H'!B6","v":0},null,null,{"$f":"'Section H'!D6","v":0}]
[null,"Professional Designation",null,null,"E-mail Address",null,null,"Phone Number"]
[null,{"$f":"'Section H'!D8","v":0},null,null,{"$f":"'Section H'!D10","v":0},null,null,{"$f":"'Section H'!B10","v":0}]

{"sheet":"SoQ","index":72,"n_rows":52,"n_cols":12,"rows_kept":52,"cut":false,"hidden":false,"merged":[[18,6,18,7],[18,1,18,4],[11,2,11,3],[34,1,34,2],[34,4,34,7],[28,1,28,2],[14,1,14,7],[30,1,30,2],[30,4,30,5],[28,4,28,7],[26,1,26,4],[26,6,26,7],[15,6,15,7],[16,6,16,7],[36,4,36,5],[36,1,36,2],[40,1,40,5],[0,0,0,8],[23,1,23,2],[23,4,23,5],[7,4,7,5],[5,4,5,5],[1,0,1,8],[21,1,21,2],[16,1,16,4],[5,1,5,2],[7,1,7,2],[11,4,11,7],[13,2,13,3],[21,4,21,7],[50,2,50,6],[47,2,47,6],[48,2,48,6],[49,2,49,6],[46,2,46,6]]}
[null,null,null,null,null,null,null,null,null,null,"hide","hide"]
["Statement of Qualifications"]
[]
[null,"Associated TIER Regulation Submission"]
[null,"Facility Name",null,null,"EPEA Approval Number(s)",null,null,"Facility ID"]
[null,{"$f":"'Section A1'!B5","v":0},null,null,{"$f":"'Section A1'!B7","v":0},null," ",{"$f":"'Section A1'!D5","v":0}]
[null,"Reporting Company Legal Name",null,null,"Report Type",null,null,{"$f":"IF(Submission!I5=3,\"Reporting Period\",IF(OR(Submission!I5={1,2}),\"Benchmark Period\",\"Compliance Period\"))","v":"Benchmark Period"},null,null,"Number of Reporting Years",{"$f":"COUNT(Submission!C11,Submission!C13,Submission!C15)","v":0}]
[null,{"$f":"'Section A2'!B5","v":0},null,null,{"$f":"IF(Submission!I5=3,\"Data Report\",IF(OR(Submission!I5={1,2}),\"Benchmark Application\",\"Compliance Report\"))","v":"Benchmark Application"},null,null,{"$f":"'CoI Checklist'!H7","v":0},null,null,"Years Format",{"$f":"IF(L7=3,Submission!C11&\", \"&Submission!C13&\" ,\"&Submission!C15,IF(L7=2,Submission!C11&\", \"&Submission!C13,Submission!C11))","v":0}]
[]
[null,"Signature of Third Party Assurance Provider"]
[]
[null,"I ,",{"$f":"'Section G'!B9&\" \"&'Section G'!D9","v":" "},null,"(Designated Signing Authority), and"]
[]
[null,"I ,",{"$f":"'Section H'!B6&\" \"&'Section H'!D6","v":" "},null,"(Lead Verifier),"]
[null,"meet the qualifications of third party assurance providers described in Section 27 of the Technology Innovation and Emissions Reduction Regulation and Part 1 of the Standard for Validation, Verification and Audit."]
[null,"Verification Company Name",null,null," ",null,"Verification Body Accreditation Organization and ID"]
[null,{"$f":"'Section G'!B23:D23","v":0},null,null,null,null,{"$f":"'Section G'!D36","v":0}]
[null,"Signature of Designated Signing Authority",null,null,null,null,"Date"]
[]
[]
[null,"First Name",null,null,"Last Name"]
[null,{"$f":"'Section G'!B9","v":0},null,null,{"$f":"'Section G'!D9","v":0}]
[null,"Professional Designation",null,null,"E-mail Address",null,null,"Phone Number"]
[null,{"$f":"'Section G'!D11","v":0},null,null,{"$f":"'Section G'!D19","v":0},null,null,{"$f":"'Section G'!B13","v":0}]
[]
[null,"Signature of Lead Verifier",null,null,null,null,"Date"]
[]
[null,"First Name",null,null,"Last Name"]
[null,{"$f":"'Section H'!B6","v":0},null,null,{"$f":"'Section H'!D6","v":0}]
[null,"Professional Designation",null,null,"E-mail Address",null,null,"Phone Number"]
[null,{"$f":"'Section H'!D8","v":0},null,null,{"$f":"'Section H'!D10","v":0},null,null,{"$f":"'Section H'!B10","v":0},null,null,"Options for Checklist",true]
[null,null,null,null,null,null,null,null,null,null,null,false]
[null,"Peer Reviewer"]
[null,"First Name",null,null,"Last Name"]
[]
[null,"Professional Designation",null,null,"E-mail Address",null,null,"Phone Number"]
[]
[]
[null,"Qualifications Checklist: "]
[]
[null,"Is the verification company accredited as a verification body to the ISO Standard 14065:2013 by the Standards Council of Canada, the American National Standards Institute or any other accreditation organization that is a member of the International Accreditation Forum (TIER Section 27(2)(a))?\nNote: Accreditation is mandatory after June 30, 2023 (TIER Section 27(4)).",null,null,null,null,null,null,null,null,null,3]
[null,"Respond either \"True\" or \"False\" to each of the following statements:"]
[]
[null,"The Lead verifier and peer reviewer both have:"]
[]
[null,"1.","Knowledge of specified gas emission quantification methodologies;",null,null,null,null,null,null,null,null,3]
[null,"2.","Successfully completed training on the “ISO 14064-3: 2006 Greenhouse gases – Part 3: Specification with guidance for the validation and verification of greenhouse gas assertions” standard, as amended and replaced from time to time or the \"ISO 14064-3: 2019 Greenhouse gases - Part 3: Specification with Guidance for the Verification and Validation of Greenhouse Gas Statements\" standard, as amended;",null,null,null,null,null,null,null,null,3]
[null,"3.","A minimum of 3 years of experience in verifying emissions offsets or providing verifications;",null,null,null,null,null,null,null,null,3]
[null,"4.","Technical knowledge of the quantification of production, fuel usages, imported electricity, imported heat, imported hydrogen, carbon dioxide sequestration or reductions of specified gases being verified; and",null,null,null,null,null,null,null,null,3]
[null,"5.","Technical knowledge of the process operations and production of the sector that the verification is being performed for.",null,null,null,null,null,null,null,null,3]
[null,"6.","Successfully completed the TIER-specific verification training per Part 1 of the Standard for Validation, Verification and Audit.",null,null,null,null,null,null,null,null,3]
[null,null,null,null,null,"Verification Accreditation Organization and ID",null,{"$f":"'Section G'!D36","v":0}]

{"sheet":"SoV","index":73,"n_rows":70,"n_cols":19,"rows_kept":70,"cut":false,"hidden":false,"merged":[[62,5,62,7],[62,1,62,3],[62,9,62,13],[60,3,60,7],[45,3,46,13],[49,1,49,13],[51,1,51,13],[58,1,58,5],[58,8,58,13],[4,9,4,13],[37,3,37,7],[37,9,37,13],[0,0,0,14],[55,1,55,5],[4,1,4,3],[6,1,6,3],[4,5,4,7],[6,9,6,13],[65,1,65,5],[65,8,65,13],[67,3,67,7],[69,1,69,3],[69,5,69,7],[69,9,69,13]]}
["Statement of Verification",null,null,null,null,null,null,null,null,null,null,null,null,null,null,null,"hide","hide","hide"]
[]
[null,"Associated TIER Regulation Submission"]
[null,"Facility Name",null,null,null,"EPEA Approval Number(s)",null,null,null,"Facility ID"]
[null,{"$f":"'Section A1'!B5","v":0},null,null,null,{"$f":"'Section A1'!B7","v":0},null,null," ",{"$f":"'Section A1'!D5","v":0}]
[null,"Reporting Company Legal Name",null,null,null,"Report Type",null,null,null,{"$f":"IF(Submission!I5=3,\"Reporting Period\",IF(OR(Submission!I5={1,2}),\"Benchmark Period\",\"Compliance Period\"))","v":"Benchmark Period"},null,null,null,null,null,null,"Number of Reporting Years",{"$f":"COUNT(Submission!C11,Submission!C13,Submission!C15)","v":0}]
[null,{"$f":"'Section A2'!B5","v":0},null,null,null,{"$f":"IF(Submission!I5=3,\"Data Report\",IF(OR(Submission!I5={1,2}),\"Benchmark Application\",\"Compliance Report\"))","v":"Benchmark Application"},null,null,null,{"$f":"'CoI Checklist'!H7","v":0},null,null,null,null,null,null,"Years Format",{"$f":"IF(R6=3,Submission!C11&\", \"&Submission!C13&\" ,\"&Submission!C15,IF(R6=2,Submission!C11&\", \"&Submission!C13,Submission!C11))","v":0}]
[]
[null,"Statement of Verification"]
[null,{"$f":"IF(OR(Submission!I5=1,Submission!I5=2),\"Benchmark Statement\",IF(Submission!I5=4,\"Compliance Report Statement\",\"Assertion\"))","v":"Benchmark Statement"}]
[null,"Value",null,{"$f":"IF(NOT(OR(Report=1,Report=2,Report=3)),\"Period 1\"&CHAR(10)&\"Jan 01 to Mar 31\",Submission!C11)","v":0},null,{"$f":"IF(NOT(OR(Report=1,Report=2,Report=3)),IF(OR(Report=4),Submission!C13,\"Period 2\"&CHAR(10)&\"Jan 01 to Jun 30\"),Submission!C13)","v":0},null,{"$f":"IF(NOT(OR(Report=1,Report=2,Report=3)),IF(OR(Report=6,Report=7),\"Period 3\"&CHAR(10)&\"Jan 01 to Sep 30\",Submission!C15),Submission!C15)","v":0},null,{"$f":"IF(NOT(OR(Report=1,Report=2,Report=3)),IF(OR(Report=6,Report=7),\"Period 3\"&CHAR(10)&\"Jan 01 to Sep 30\",Submission!C15),Submission!C17)","v":0},null,{"$f":"IF(NOT(OR(Report=1,Report=2,Report=3)),IF(OR(Report=6,Report=7),\"Period 3\"&CHAR(10)&\"Jan 01 to Sep 30\",Submission!C15),Submission!C19)","v":0},null,"Units"]
[]
[null,{"$f":"IF(OR(Submission!I5=1,Submission!I5=2),\"Emissions\",\"Total Regulated Emissions\")","v":"Emissions"}]
[null,{"$f":"IF(OR(Submission!$I$5=1,Submission!$I$5=2),IF('Section E'!T5=TRUE,\"Total Regulated Emissions\",\"Total Regulated Emissions\"),\"Direct Emissions (DE)\")","v":"Total Regulated Emissions"},null,{"$f":"IF(OR(Submission!$I$5=1,Submission!$I$5=2),'Section E'!E6,INDIRECT(\"'Section B7\" & \"'\" & \"!$C$21\"))","v":0},null,{"$f":"IF(OR(Submission!$I$5=1,Submission!$I$5=2),'Section E'!G6,INDIRECT(\"'Section B7\" & \" (2)'\" & \"!$C$21\"))","v":0},null,{"$f":"IF(OR(Submission!$I$5=1,Submission!$I$5=2),'Section E'!I6,INDIRECT(\"'Section B7\" & \" (3)'\" & \"!$C$21\"))","v":0},null,{"$f":"IF(OR(Submission!$I$5=1,Submission!$I$5=2),'Section E'!K6,INDIRECT(\"'Section B7\" & \" (3)'\" & \"!$C$21\"))","v":0},null,{"$f":"IF(OR(Submission!$I$5=1,Submission!$I$5=2),'Section E'!M6,INDIRECT(\"'Section B7\" & \" (3)'\" & \"!$C$21\"))","v":0},null," Tonnes CO2e"]
[]
[null,{"$f":"IF(OR(Submission!$I$5=1,Submission!$I$5=2),\"Industrial Process Emissions Generated\",\"Exported CO2 (ECO2)\")","v":"Industrial Process Emissions Generated"},null,{"$f":"IF(OR(Submission!$I$5=1,Submission!$I$5=2),'Section E'!E8,INDIRECT(\"'Section B7\" & \"'\" & \"!$C$23\"))","v":0},null,{"$f":"IF(OR(Submission!$I$5=1,Submission!$I$5=2),'Section E'!G8,INDIRECT(\"'Section B7\" & \" (2)'\" & \"!$C$23\"))","v":0},null,{"$f":"IF(OR(Submission!$I$5=1,Submission!$I$5=2),'Section E'!I8,INDIRECT(\"'Section B7\" & \" (3)'\" & \"!$C$23\"))","v":0},null,{"$f":"IF(OR(Submission!$I$5=1,Submission!$I$5=2),'Section E'!K8,INDIRECT(\"'Section B7\" & \" (3)'\" & \"!$C$23\"))","v":0},null,{"$f":"IF(OR(Submission!$I$5=1,Submission!$I$5=2),'Section E'!M8,INDIRECT(\"'Section B7\" & \" (3)'\" & \"!$C$23\"))","v":0},null," Tonnes CO2e"]
[]
[null,{"$f":"IF(OR(Submission!$I$5={1,2}),\"Emissions from Self-generation\",\"Imported CO2 (ICO2)\")","v":"Emissions from Self-generation"},null,{"$f":"IF(OR(Submission!$I$5={1,2}),'Section E'!E10,INDIRECT(\"'Section B7\" & \"'\" & \"!$C$25\"))","v":0},null,{"$f":"IF(OR(Submission!$I$5={1,2}),'Section E'!G10,INDIRECT(\"'Section B7\" & \" (2)'\" & \"!$C$25\"))","v":0},null,{"$f":"IF(OR(Submission!$I$5={1,2}),'Section E'!I10,INDIRECT(\"'Section B7\" & \" (3)'\" & \"!$C$25\"))","v":0},null,{"$f":"IF(OR(Submission!$I$5={1,2}),'Section E'!K10,INDIRECT(\"'Section B7\" & \" (3)'\" & \"!$C$25\"))","v":0},null,{"$f":"IF(OR(Submission!$I$5={1,2}),'Section E'!M10,INDIRECT(\"'Section B7\" & \" (3)'\" & \"!$C$25\"))","v":0},null," Tonnes CO2e"]
[]
[null,{"$f":"IF(OR(Submission!$I$5=1,Submission!$I$5=2),\"Emissions from Electricity Used\",\"CO2 Used in Manufacturing of Urea (UCO2)\")","v":"Emissions from Electricity Used"},null,{"$f":"IF(OR(Submission!$I$5=1,Submission!$I$5=2),'Section E'!E12,INDIRECT(\"'Section B7\" & \"'\" & \"!$C$27\"))","v":0},null,{"$f":"IF(OR(Submission!$I$5=1,Submission!$I$5=2),'Section E'!G12,INDIRECT(\"'Section B7\" & \" (2)'\" & \"!$C$27\"))","v":0},null,{"$f":"IF(OR(Submission!$I$5=1,Submission!$I$5=2),'Section E'!I12,INDIRECT(\"'Section B7\" & \" (3)'\" & \"!$C$27\"))","v":0},null,{"$f":"IF(OR(Submission!$I$5=1,Submission!$I$5=2),'Section E'!K12,INDIRECT(\"'Section B7\" & \" (3)'\" & \"!$C$27\"))","v":0},null,{"$f":"IF(OR(Submission!$I$5=1,Submission!$I$5=2),'Section E'!M12,INDIRECT(\"'Section B7\" & \" (3)'\" & \"!$C$27\"))","v":0},null," Tonnes CO2e"]
[]
[null,{"$f":"IF(OR(Submission!$I$5=1,Submission!$I$5=2),\"Emissions from Heat Used\",\"Emission from Combustion of Clear Fuels (ECF)\")","v":"Emissions from Heat Used"},null,{"$f":"IF(OR(Submission!$I$5=1,Submission!$I$5=2),'Section E'!E14,INDIRECT(\"'Section B7\" & \"'\" & \"!$C$29\"))","v":0},null,{"$f":"IF(OR(Submission!$I$5=1,Submission!$I$5=2),'Section E'!G14,INDIRECT(\"'Section B7\" & \" (2)'\" & \"!$C$29\"))","v":0},null,{"$f":"IF(OR(Submission!$I$5=1,Submission!$I$5=2),'Section E'!I14,INDIRECT(\"'Section B7\" & \" (3)'\" & \"!$C$29\"))","v":0},null,{"$f":"IF(OR(Submission!$I$5=1,Submission!$I$5=2),'Section E'!K14,INDIRECT(\"'Section B7\" & \" (3)'\" & \"!$C$29\"))","v":0},null,{"$f":"IF(OR(Submission!$I$5=1,Submission!$I$5=2),'Section E'!M14,INDIRECT(\"'Section B7\" & \" (3)'\" & \"!$C$29\"))","v":0},null," Tonnes CO2e"]
[]
[null,{"$f":"'Section E'!B16","v":"Emissions from Hydrogen (EH2 used)"},null,{"$f":"'Section E'!E16","v":0},null,{"$f":"'Section E'!G16","v":0},null,{"$f":"'Section E'!I16","v":0},null,{"$f":"'Section E'!K16","v":0},null,{"$f":"'Section E'!M16","v":0},null," Tonnes CO2e"]
[]
[null,{"$f":"'Section E'!B18","v":"Emissions from Useful Hydrogen Produced (EH2 produced)"},null,{"$f":"'Section E'!E18","v":0},null,{"$f":"'Section E'!G18","v":0},null,{"$f":"'Section E'!I18","v":0},null,{"$f":"'Section E'!K18","v":0},null,{"$f":"'Section E'!M18","v":0},null," Tonnes CO2e"]
[null,"Products Allocations",null,{"$f":"INDIRECT(\"'Section B7\" & \"'\" & \"!$C$35\")","v":0},null,{"$f":"INDIRECT(\"'Section B7\" & \" (2)'\" & \"!$C$35\")","v":0},null,{"$f":"INDIRECT(\"'Section B7\" & \" (3)'\" & \"!$C$35\")","v":0},null,{"$f":"INDIRECT(\"'Section B7\" & \" (4)'\" & \"!$C$35\")","v":0},null,null,null," Tonnes CO2e"]
[]
[null,"Scope Adjustment for Indirect Emissions",null,{"$f":"INDIRECT(\"'Section B7\" & \"'\" & \"!$C$37\")","v":0},null,{"$f":"INDIRECT(\"'Section B7\" & \" (2)'\" & \"!$C$37\")","v":0},null,{"$f":"INDIRECT(\"'Section B7\" & \" (3)'\" & \"!$C$37\")","v":0},null,{"$f":"INDIRECT(\"'Section B7\" & \" (4)'\" & \"!$C$37\")","v":{"$error":"#REF!"}},null,null,null," Tonnes CO2e"]
[]
[null,"Output Based Allocation (OBA)",null,{"$f":"INDIRECT(\"'Section B7\" & \"'\" & \"!$C$39\")","v":"Error"},null,{"$f":"INDIRECT(\"'Section B7\" & \" (2)'\" & \"!$C$39\")","v":{"$error":"#VALUE!"}},null,{"$f":"INDIRECT(\"'Section B7\" & \" (3)'\" & \"!$C$39\")","v":{"$error":"#VALUE!"}},null,{"$f":"INDIRECT(\"'Section B7\" & \" (4)'\" & \"!$C$39\")","v":{"$error":"#REF!"}},null,null,null," Tonnes CO2e"]
[]
[null,{"$f":"IF(Submission!I5=1,\"Production\",\"Indirect Emissions & Production\")","v":"Production"}]
[null,"Indirect Emissions",null,{"$f":"INDIRECT(\"'Section E\" & \"'\" & \"!$E$10\")","v":0},null,{"$f":"INDIRECT(\"'Section E\" & \"'\" & \"!$G$10\")","v":0},null,{"$f":"INDIRECT(\"'Section E\" & \"'\" & \"!$I$10\")","v":0},null,null,null,null,null," Tonnes CO2e"]
[]
[null,{"$f":"'Section E'!C23","v":"Select or Type value"},null,{"$f":"INDIRECT(\"'Section E\" & \"'\" & \"!$E$23\")","v":""},null,{"$f":"INDIRECT(\"'Section E\" & \"'\" & \"!$G$23\")","v":""},null,{"$f":"INDIRECT(\"'Section E\" & \"'\" & \"!$I$23\")","v":""},null,{"$f":"INDIRECT(\"'Section E\" & \"'\" & \"!$K$23\")","v":""},null,{"$f":"INDIRECT(\"'Section E\" & \"'\" & \"!$M$23\")","v":""},null,{"$f":"'Section E'!Q23","v":""}]
[]
[null,"Facility Specific Benchmark (FSB)",null,{"$f":"'Section E'!O33","v":" "},null,null,null,null,null,{"$f":"'Section E'!Q33","v":" Tonnes CO2e / "}]
[]
[null,"Confirmation of Self-Generation Emissions "]
[]
[null,"Confirmation of Production "]
[]
[null,"Confirmation of Fuel Usage Information"]
[]
[null,"Statement of Assertion"]
[]
[]
[null,"Responsibilities of Reporting Company and Third Party Assurance Provider"]
[]
[null,"Conclusion",null,null,null,null,null,null,null,null,null,null,null,null,null,null,"Response",1]
[null,null,null,null,null,null,null,null,null,null,null,null,null,null,null,null,"Options","ISO 14064-3:2006 – Specification with guidance for the validation and verification of greenhouse gas assertions"]
[null,null,null,null,null,null,null,null,null,null,null,null,null,null,null,null,null,"Standards for Assurance Engagements, CICA Handbook – Assurance Section 5025"]
[null,"Signature of Designated Signing Authority and Lead Verifier",null,null,null,null,null,null,null,null,null,null,null,null,null,null,null,"ISAE 3000 – Assurance Engagements Other Than Audits or Reviews of Historical Financial Information"]
[null,"Third Party Assurance Provider Company Name"]
[null,{"$f":"'Section G'!B23:D23","v":0}]
[]
[null,"Signature of Designated Signing Authority",null,null,null,null,null,null,"Date",null,null,null,null,null,null,null,null,null,"NEED TO FIX CONCLUSION FIELD FOR CASES WHERE PAYMENT IS MADE FOR MULTIPLE FACILITIES IN ONE FORM."]
[]
[null,"First Name",null,"Last Name"]
[null,{"$f":"'Section G'!B9","v":0},null,{"$f":"'Section G'!D9","v":0}]
[null,"Professional Designation",null,null,null,"E-mail Address",null,null,null,"Phone Number"]
[null,{"$f":"'Section G'!D11","v":0},null,null,null,{"$f":"'Section G'!D19","v":0},null,null,null,{"$f":"'Section G'!B13","v":0}]
[]
[null,"Signature of Lead Verifier",null,null,null,null,null,null,"Date",null,null,null,null,null,null,null,null,null,"NEED TO FIX CONCLUSION FIELD FOR CASES WHERE PAYMENT IS MADE FOR MULTIPLE FACILITIES IN ONE FORM."]
[]
[null,"First Name",null,"Last Name"]
[null,{"$f":"'Section H'!B6","v":0},null,{"$f":"'Section H'!D6","v":0}]
[null,"Professional Designation",null,null,null,"E-mail Address",null,null,null,"Phone Number"]
[null,{"$f":"'Section H'!D8","v":0},null,null,null,{"$f":"'Section H'!D10","v":0},null,null,null,{"$f":"'Section H'!B10","v":0}]

{"sheet":"SoC","index":74,"n_rows":54,"n_cols":20,"rows_kept":54,"cut":false,"hidden":false,"merged":[[53,1,53,14],[33,4,33,10],[40,4,40,8],[40,10,40,14],[7,6,7,8],[7,10,7,14],[46,1,46,14],[48,1,48,6],[50,1,50,2],[50,4,50,8],[52,6,52,8],[52,1,52,4],[45,2,45,3],[48,9,48,14],[45,4,45,14],[52,10,52,14],[0,0,0,15],[5,1,5,4],[7,1,7,4],[1,0,1,15],[5,6,5,8],[5,10,5,14]]}
[null,null,null,null,null,null,null,null,null,null,null,null,null,null,null,null,null,"hide","hide","hide"]
["Statement of Certification"]
[]
[null,"Associated TIER Regulation Submission"]
[null,"Facility Name",null,null,null,null,"EPEA Approval Number(s)",null,null,null,"Facility ID"]
[null,{"$f":"'Section A1'!B5","v":0},null,null,null,null,{"$f":"'Section A1'!B7","v":0},null,null," ",{"$f":"'Section A1'!D5","v":0}]
[null,"Reporting Company Legal Name",null,null,null,null,"Report Type",null,null,null,{"$f":"IF(Submission!I5=3,\"Reporting Period\",IF(OR(Submission!I5={1,2}),\"Benchmark Period\",\"Compliance Period\"))","v":"Benchmark Period"},null,null,null,null,null,null,"Number of Reporting Years",{"$f":"COUNT(Submission!C11,Submission!C13,Submission!C15)","v":0}]
[null,{"$f":"'Section A2'!B5","v":0},null,null,null,null,{"$f":"IF(Submission!I5=3,\"Data Report\",IF(OR(Submission!I5={1,2}),\"Benchmark Application\",\"Compliance Report\"))","v":"Benchmark Application"},null,null,null,{"$f":"SoQ!H8","v":0},null,null,null,null,null,null,"Years Format",{"$f":"IF(S7=3,Submission!C11&\", \"&Submission!C13&\" ,\"&Submission!C15,IF(S7=2,Submission!C11&\", \"&Submission!C13,Submission!C11))","v":0}]
[]
[null,"Summary of Emissions and Production Data"]
[null,{"$f":"IF(Submission!I5=1,\"Benchmark Assertion\",IF(Submission!I5=2,\"Compliance Assertion\",\"Assertion\"))","v":"Benchmark Assertion"},null,null,null,null,null,null,null,null,null,null,null,null,null,null,null,null,{"$f":"Submission!I5-3","v":-2}]
[null,null,"Value",null,{"$f":"IF(NOT(OR(Report=1,Report=2,Report=3)),\"Period 1\"&CHAR(10)&\"Jan 01 to Mar 31\",Submission!C11)","v":0},null,{"$f":"IF(NOT(OR(Report=1,Report=2,Report=3)),IF(OR(Report=4),Submission!C13,\"Period 2\"&CHAR(10)&\"Jan 01 to Jun 30\"),Submission!C13)","v":0},null,{"$f":"IF(NOT(OR(Report=1,Report=2,Report=3)),IF(OR(Report=6,Report=7),\"Period 3\"&CHAR(10)&\"Jan 01 to Sep 30\",Submission!C15),Submission!C15)","v":0},null,{"$f":"IF(NOT(OR(Report=1,Report=2,Report=3)),IF(OR(Report=6,Report=7),\"Period 3\"&CHAR(10)&\"Jan 01 to Sep 30\",Submission!E15),Submission!C17)","v":0},null,{"$f":"IF(NOT(OR(Report=1,Report=2,Report=3)),IF(OR(Report=6,Report=7),\"Period 3\"&CHAR(10)&\"Jan 01 to Sep 30\",Submission!G15),Submission!C19)","v":0},null,"Units"]
[]
[null,{"$f":"IF(Submission!$I$5=1,\"Emissions\",\"Total Regulated Emissions\")","v":"Emissions"}]
[null,null,{"$f":"IF(OR(Submission!$I$5=1,Submission!$I$5=2),IF('Section E'!T5=TRUE,\"Total Regulated Emissions\",\"Total Regulated Emissions\"),\"Direct Emissions (DE)\")","v":"Total Regulated Emissions"},null,{"$f":"IF(OR(Submission!$I$5=1,Submission!$I$5=2),'Section E'!E6,INDIRECT(\"'Section B7\" & \"'\" & \"!$C$21\"))","v":0},null,{"$f":"IF(OR(Submission!$I$5=1,Submission!$I$5=2),'Section E'!G6,INDIRECT(\"'Section B7\" & \" (2)'\" & \"!$C$21\"))","v":0},null,{"$f":"IF(OR(Submission!$I$5=1,Submission!$I$5=2),'Section E'!I6,INDIRECT(\"'Section B7\" & \" (3)'\" & \"!$C$21\"))","v":0},null,{"$f":"IF(OR(Submission!$I$5=1,Submission!$I$5=2),'Section E'!K6,INDIRECT(\"'Section B7\" & \" (3)'\" & \"!$C$21\"))","v":0},null,{"$f":"IF(OR(Submission!$I$5=1,Submission!$I$5=2),'Section E'!M6,INDIRECT(\"'Section B7\" & \" (3)'\" & \"!$C$21\"))","v":0},null," Tonnes CO2e"]
[]
[null,null,{"$f":"IF(OR(Submission!$I$5=1,Submission!$I$5=2),\"Industrial Process Emissions Generated\",\"Exported CO2 (ECO2)\")","v":"Industrial Process Emissions Generated"},null,{"$f":"IF(OR(Submission!$I$5=1,Submission!$I$5=2),'Section E'!E8,INDIRECT(\"'Section B7\" & \"'\" & \"!$C$23\"))","v":0},null,{"$f":"IF(OR(Submission!$I$5=1,Submission!$I$5=2),'Section E'!G8,INDIRECT(\"'Section B7\" & \" (2)'\" & \"!$C$23\"))","v":0},null,{"$f":"IF(OR(Submission!$I$5=1,Submission!$I$5=2),'Section E'!I8,INDIRECT(\"'Section B7\" & \" (3)'\" & \"!$C$23\"))","v":0},null,{"$f":"IF(OR(Submission!$I$5=1,Submission!$I$5=2),'Section E'!K8,INDIRECT(\"'Section B7\" & \" (3)'\" & \"!$C$23\"))","v":0},null,{"$f":"IF(OR(Submission!$I$5=1,Submission!$I$5=2),'Section E'!M8,INDIRECT(\"'Section B7\" & \" (3)'\" & \"!$C$23\"))","v":0},null," Tonnes CO2e"]
[]
[null,null,{"$f":"IF(OR(Submission!$I$5={1,2}),\"Emissions from Self-generation\",\"Imported CO2 (ICO2)\")","v":"Emissions from Self-generation"},null,{"$f":"IF(OR(Submission!$I$5={1,2}),'Section E'!E10,INDIRECT(\"'Section B7\" & \"'\" & \"!$C$25\"))","v":0},null,{"$f":"IF(OR(Submission!$I$5={1,2}),'Section E'!G10,INDIRECT(\"'Section B7\" & \" (2)'\" & \"!$C$25\"))","v":0},null,{"$f":"IF(OR(Submission!$I$5={1,2}),'Section E'!I10,INDIRECT(\"'Section B7\" & \" (3)'\" & \"!$C$25\"))","v":0},null,{"$f":"IF(OR(Submission!$I$5={1,2}),'Section E'!K10,INDIRECT(\"'Section B7\" & \" (3)'\" & \"!$C$25\"))","v":0},null,{"$f":"IF(OR(Submission!$I$5={1,2}),'Section E'!M10,INDIRECT(\"'Section B7\" & \" (3)'\" & \"!$C$25\"))","v":0},null," Tonnes CO2e"]
[]
[null,null,{"$f":"IF(OR(Submission!$I$5=1,Submission!$I$5=2),\"Emissions from Electricity Used\",\"CO2 Used in Manufacturing of Urea (UCO2)\")","v":"Emissions from Electricity Used"},null,{"$f":"IF(OR(Submission!$I$5=1,Submission!$I$5=2),'Section E'!E12,INDIRECT(\"'Section B7\" & \"'\" & \"!$C$27\"))","v":0},null,{"$f":"IF(OR(Submission!$I$5=1,Submission!$I$5=2),'Section E'!G12,INDIRECT(\"'Section B7\" & \" (2)'\" & \"!$C$27\"))","v":0},null,{"$f":"IF(OR(Submission!$I$5=1,Submission!$I$5=2),'Section E'!I12,INDIRECT(\"'Section B7\" & \" (3)'\" & \"!$C$27\"))","v":0},null,{"$f":"IF(OR(Submission!$I$5=1,Submission!$I$5=2),'Section E'!K12,INDIRECT(\"'Section B7\" & \" (3)'\" & \"!$C$27\"))","v":0},null,{"$f":"IF(OR(Submission!$I$5=1,Submission!$I$5=2),'Section E'!M12,INDIRECT(\"'Section B7\" & \" (3)'\" & \"!$C$27\"))","v":0},null," Tonnes CO2e"]
[]
[null,null,{"$f":"IF(OR(Submission!$I$5=1,Submission!$I$5=2),\"Emissions from Heat Used\",\"Emission from Combustion of Clear Fuels (ECF)\")","v":"Emissions from Heat Used"},null,{"$f":"IF(OR(Submission!$I$5=1,Submission!$I$5=2),'Section E'!E14,INDIRECT(\"'Section B7\" & \"'\" & \"!$C$29\"))","v":0},null,{"$f":"IF(OR(Submission!$I$5=1,Submission!$I$5=2),'Section E'!G14,INDIRECT(\"'Section B7\" & \" (2)'\" & \"!$C$29\"))","v":0},null,{"$f":"IF(OR(Submission!$I$5=1,Submission!$I$5=2),'Section E'!I14,INDIRECT(\"'Section B7\" & \" (3)'\" & \"!$C$29\"))","v":0},null,{"$f":"IF(OR(Submission!$I$5=1,Submission!$I$5=2),'Section E'!K14,INDIRECT(\"'Section B7\" & \" (3)'\" & \"!$C$29\"))","v":0},null,{"$f":"IF(OR(Submission!$I$5=1,Submission!$I$5=2),'Section E'!M14,INDIRECT(\"'Section B7\" & \" (3)'\" & \"!$C$29\"))","v":0},null," Tonnes CO2e"]
[]
[null,null,{"$f":"SoV!B24","v":"Emissions from Hydrogen (EH2 used)"},null,{"$f":"SoV!D24","v":0},null,{"$f":"SoV!F24","v":0},null,{"$f":"SoV!H24","v":0},null,{"$f":"SoV!J24","v":0},null,{"$f":"SoV!L24","v":0},null," Tonnes CO2e"]
[]
[null,null,{"$f":"SoV!B26","v":"Emissions from Useful Hydrogen Produced (EH2 produced)"},null,{"$f":"SoV!D26","v":0},null,{"$f":"SoV!F26","v":0},null,{"$f":"SoV!H26","v":0},null,{"$f":"SoV!J26","v":0},null,{"$f":"SoV!L26","v":0},null," Tonnes CO2e"]
[null,null,"Products Allocations",null,{"$f":"INDIRECT(\"'Section B7\" & \"'\" & \"!$C$35\")","v":0},null,{"$f":"INDIRECT(\"'Section B7\" & \" (2)'\" & \"!$C$35\")","v":0},null,{"$f":"INDIRECT(\"'Section B7\" & \" (3)'\" & \"!$C$35\")","v":0},null,{"$f":"INDIRECT(\"'Section B7\" & \" (4)'\" & \"!$C$35\")","v":0},null,null,null," Tonnes CO2e"]
[]
[null,null,"Scope Adjustment for Indirect Emissions",null,{"$f":"INDIRECT(\"'Section B7\" & \"'\" & \"!$C$37\")","v":0},null,{"$f":"INDIRECT(\"'Section B7\" & \" (2)'\" & \"!$C$37\")","v":0},null,{"$f":"INDIRECT(\"'Section B7\" & \" (3)'\" & \"!$C$37\")","v":0},null,{"$f":"INDIRECT(\"'Section B7\" & \" (4)'\" & \"!$C$37\")","v":{"$error":"#REF!"}},null,null,null," Tonnes CO2e"]
[]
[null,null,"Output Based Allocation (OBA)",null,{"$f":"INDIRECT(\"'Section B7\" & \"'\" & \"!$C$39\")","v":"Error"},null,{"$f":"INDIRECT(\"'Section B7\" & \" (2)'\" & \"!$C$39\")","v":{"$error":"#VALUE!"}},null,{"$f":"INDIRECT(\"'Section B7\" & \" (3)'\" & \"!$C$39\")","v":{"$error":"#VALUE!"}},null,{"$f":"INDIRECT(\"'Section B7\" & \" (4)'\" & \"!$C$39\")","v":{"$error":"#REF!"}},null,null,null," Tonnes CO2e"]
[]
[null,null,"True Up Obligation Met?",null,{"$f":"'Section E5'!D20","v":0}]
[]
[null,{"$f":"IF(Submission!I5=1,\"Production\",\"Indirect Emissions & Production\")","v":"Production"}]
[null,null,"Indirect Emissions",null,{"$f":"INDIRECT(\"'Section E\" & \"'\" & \"!$E$10\")","v":0},null,{"$f":"INDIRECT(\"'Section E\" & \"'\" & \"!$G$10\")","v":0},null,{"$f":"INDIRECT(\"'Section E\" & \"'\" & \"!$I$10\")","v":0},null,null,null,null,null," Tonnes CO2e"]
[]
[null,null,{"$f":"'Section E'!C23","v":"Select or Type value"},null,{"$f":"INDIRECT(\"'Section E\" & \"'\" & \"!$E$23\")","v":""},null,{"$f":"INDIRECT(\"'Section E\" & \"'\" & \"!$G$23\")","v":""},null,{"$f":"INDIRECT(\"'Section E\" & \"'\" & \"!$I$23\")","v":""},null,{"$f":"INDIRECT(\"'Section E\" & \"'\" & \"!$K$23\")","v":""},null,{"$f":"INDIRECT(\"'Section E\" & \"'\" & \"!$M$23\")","v":""},null,{"$f":"'Section E'!Q23","v":""}]
[]
[null,null,"Facility Specific Benchmark (FSB)",null,{"$f":"'Section E'!O33","v":" "},null,null,null,null,null,{"$f":"'Section E'!Q33","v":" Tonnes CO2e / "}]
[]
[]
[null,"Signature of Certifying Official"]
[]
[null,"I ,",{"$f":"'Section A2'!B33&\" \"&'Section A2'!D33","v":" "},null,"(Certifying Official), having the authority to bind the reporting company, hereby certify"]
[null," that I have reviewed the information being submitted, including the confirmation of fuel usage information, that I have exercised due diligence to ensure that the information is true and complete, and that, to the best of my knowledge, the quantities submitted herein are accurate and based on reasonable estimates using available data."]
[null,"Signature of Certifying Official (Double click on X to sign)",null,null,null,null,null,null,null,null,"Date"]
[]
[null,"First Name",null,null,"Last Name"]
[null,{"$f":"'Section A2'!B33","v":0},null,null,{"$f":"'Section A2'!D33","v":0}]
[null,"Position/Title",null,null,null,null,"E-mail Address",null,null,null,"Phone Number"]
[null,{"$f":"'Section A2'!B35","v":0},null,null,null,null,{"$f":"'Section A2'!D35","v":0},null,null,null,{"$f":"'Section A2'!B37","v":0}]
[null,{"$f":"IF(OR(Report=1,Report=2,Report=3),\"\",IF('Section E5'!D20<>\"Yes\",\"Section E5 Indicates that the True Up Obligation has not been met.\",\"\"))","v":""}]

{"sheet":"EPC Request","index":75,"n_rows":25,"n_cols":11,"rows_kept":25,"cut":false,"hidden":true,"merged":[[0,0,0,7],[19,1,19,2],[4,1,4,2],[6,1,6,2],[15,1,15,6],[14,2,14,3],[19,4,19,6],[21,1,21,2],[24,1,24,6],[10,1,10,3],[10,5,10,6],[17,1,17,4],[23,1,23,6]]}
["Emission Performance Credit Request Form",null,null,null,null,null,null,null,null,"hide","hide"]
[]
[null,"Associated CCIR Submission"]
[null,"Facility Name",null,null,"EPEA Approval Number(s)",null,"AER License/Registration Number(s)"]
[null,{"$f":"'Section A1'!B5","v":0},null,null,{"$f":"'Section A1'!B7","v":0}," ",{"$f":"'Section A1'!B9","v":0}]
[null,"Reporting Company Legal Name",null,null,"Report Type",null,{"$f":"IF(Submission!I5=3,\"Reporting Period\",IF(Submission!I5=1,\"Benchmark Period\",\"Compliance Period\"))","v":"Benchmark Period"},null,null,"Number of Reporting Years",{"$f":"COUNT(Submission!C11,Submission!C13,Submission!C15)","v":0}]
[null,{"$f":"'Section A2'!B5","v":0},null,null,{"$f":"IF(Submission!I5=3,\"Data Report\",IF(Submission!I5=1,Submission!L5,IF(OR(Submission!I5={4,5,6}),\"Interim Compliance Report\",\"Compliance Report\")))","v":"Facility Specific Benchmark"},null,{"$f":"IF(Submission!I5=2,Submission!C11,IF(OR(Submission!I5={4,5,6,7}),CONCATENATE(Submission!C11,\" - Period \",Submission!I5-3),K7))","v":0},null,null,"Years Format",{"$f":"IF(K6=3,Submission!C11&\", \"&Submission!C13&\" ,\"&Submission!C15,IF(K6=2,Submission!C11&\", \"&Submission!C13,Submission!C11))","v":0}]
[]
[null,"Emission Performance Credit Request"]
[]
[null,"Emission Performance Credits Requested ",null,null,"Error"," Credits"]
[]
[null,"Signature of Certifying Official"]
[]
[null,"I ,",{"$f":"'Section A2'!B33&\" \"&'Section A2'!D33","v":" "},null,"(Certifying Official), hereby certify that the Total Regulated Emissions "]
[null,"contained in this Compliance Report is less than the Output-based Allocation for the compliance period specified above, and that the associated facility is eligible to request the above number of Emission Performance Credits."]
[null,"Signature of Certifying Official",null,null,null,null,"Date"]
[]
[null,"First Name",null,null,"Last Name"]
[null,{"$f":"'Section A2'!B33","v":0},null,null,{"$f":"'Section A2'!D33","v":0}]
[null,"Position/Title",null,null,"E-mail Address",null,"Phone Number"]
[null,{"$f":"'Section A2'!B35","v":0},null,null,{"$f":"'Section A2'!D35","v":0},null,{"$f":"'Section A2'!B37","v":0}]
[null,"Description of activities taken at the facility that resulted in emissions intensity improvements:"]
[]
[null,"Note: Emission Performance Credits must result from a demonstrable improvement in facility performance, and cannot be generated through changes in reporting methodology."]

{"sheet":"Fund Credit Purchase","index":76,"n_rows":54,"n_cols":15,"rows_kept":54,"cut":false,"hidden":true,"merged":[[11,1,11,2],[14,1,14,8],[0,0,0,9],[7,4,7,8],[9,4,9,8],[7,1,7,2],[9,1,9,2],[5,1,5,2],[5,4,5,8],[23,11,23,13],[24,11,24,13],[27,1,27,8],[16,5,16,8],[18,5,18,8],[20,5,20,8],[24,1,24,3],[22,4,22,8],[23,1,23,3]]}
["Fund Credit Purchase Form",null,null,null,null,null,null,null,null,null,null,"hide","hide","hide","hide"]
[]
[null,"Contact Information"]
[null,"Note: The Fund Credit purchase receipt will be issued to the contact below."]
[null,"Title",null,null,"Facility ID",null,null,null,null,null,null,"Mr.",null,"Fund Price Table"]
[null,null,null,null,{"$f":"'Section A1'!D5","v":0},null,null,null,null,null,null,"Ms.",null,"Year","Price"]
[null,"First Name",null,null,"Last Name",null,null,null,null,null,null,"Mrs.",null,2020,30]
[null,{"$f":"'Section A2'!B33","v":0},null,null,{"$f":"'Section A2'!D33","v":0},null,null,null,null,null,null,"Miss",null,2021,40]
[null,"Position / Title",null,null,"Company Name",null,null,null,null,null,null,"Dr.",null,2022,50]
[null,{"$f":"'Section A2'!B35","v":0},null,null,{"$f":"'Section A2'!B5","v":0}]
[null,"Mailing Address",null,null,"City",null,"Province",null,"Postal Code"]
[null,{"$f":"'Section A2'!B39","v":0},null,null,{"$f":"'Section A2'!D39","v":0},null,{"$f":"'Section A2'!B41","v":0},null,{"$f":"'Section A2'!D41","v":0}]
[]
[null,"Fund Credit Purchase"]
[null,"Note: The amount below must equal the payment amount accompanying this form."]
[]
[null,"Number of Fund Credits Purchased",null,null,{"$f":"ROUND(I54,0)","v":0},"(1 credit = 1 tonne CO2e)"]
[]
[null,"Cost of Fund Credit Purchase",null,null,{"$f":"E17*creditFundPricePerTonne","v":{"$error":"#N/A"}},{"$f":"\"($\" & creditFundPricePerTonne & \" / tonne CO2e)\"","v":{"$error":"#N/A"}}]
[]
[null,"Date of Purchase"]
[]
[null,"Submit electronic fund transfers using the following details:",null,null,"Fund Payment Receipt Stamp:",null,null,null,null,null,null,"Fund Contributions should be submitted to:"]
[null,"Account Name: PA Technology Innovation & Emission\nBank Name: CIBC\nBank Address: 10102 Jasper Avenue Edmonton\nInstitution Number: 0010\nTransit Number: 00059\nAccount Number: 92-74219",null,null,null,null,null,null,null,null,null,"Government of Alberta, Financial Services Branch\nAlberta Environment and Parks\n6th floor, South Petroleum Plaza\n9915 108 Street NW\nEdmonton, Alberta, T5K 2G8"]
[null,"Note: The fund credit payment must be submitted and received by AEP.revenue@gov.ab.ca by the reporting deadline. Note that electronic fund transfers may take three or more days to process. \n\nPlease include the facility I.D. in the bank deposit memo.",null,null,null,null,null,null,null,null,null,"Note: Be sure to include a copy of this worksheet when submitting payment to the Financial Services Branch. A copy of the purchase receipt will automatically be forwarded to the Director."]
[]
[null,"Allocation of Fund Credits"]
[null,"Note: The total Fund Credit allocation below must match the number being purchased above."]
[null,null,"Facility Name",null,"NAICS Code",null,"Compliance Year",null,"Number of Credits"]
[null,"1. "]
[]
[null,"2. "]
[]
[null,"3. "]
[]
[null,"4. "]
[]
[null,"5. "]
[]
[null,"6. "]
[]
[null,"7. "]
[]
[null,"8. "]
[]
[null,"9. "]
[]
[null,"10. "]
[]
[null,"11. "]
[]
[null,"12. "]
[]
[null,null,"Total",null,null,null,null,null,{"$f":"SUM(I30:I52)","v":0}]

{"sheet":"Table","index":77,"n_rows":81,"n_cols":15,"rows_kept":81,"cut":false,"hidden":true,"merged":[]}
["allSheets","baselineReportSheets","crNonForecastReportSheets","dataReportSheets","year1BDataReportSheets","year2BDataReportSheets","year3BDataReportSheets","year4BDataReportSheets","year5BDataReportSheets","year1BBenchmarkReportSheets","year2BBenchmarkReportSheets","year3BBenchmarkReportSheets","year4BBenchmarkReportSheets","year5BBenchmarkReportSheets","sheetsToHide"]
["Instructions","Section E","Section E1","Section B1","Section B1","Section B1 (2)","Section B1 (3)","Section B1 (4)","Section B1 (5)","Section B1","Section B1 (2)","Section B1 (3)","Section B1 (4)","Section B1 (5)","Section E"]
["Submission","Section B1","Section E2","Section B2","Section B2","Section B2 (2)","Section B2 (3)","Section B2 (4)","Section B2 (5)","Section B2","Section B2 (2)","Section B2 (3)","Section B2 (4)","Section B2 (5)","Section E1"]
["Section B4 EE","Section B2","Section E3","Section B3","Section B3","Section B3 (2)","Section B3 (3)","Section B3 (4)","Section B3 (5)","Section B3","Section B3 (2)","Section B3 (3)","Section B3 (4)","Section B3 (5)","Section E2"]
["Section B4 EE (2)","Section B3","Section E4","Section B4","Section B4","Section B4 (2)","Section B4 (3)","Section B4 (4)","Section B4 (5)","Section B4","Section B4 (2)","Section B4 (3)","Section B4 (4)","Section B4 (5)","Section E3"]
["Section B4 EE (3)","Section B4","Section E5","Section B5","Section B4 EE","Section B4 EE (2)","Section B4 EE (3)","Section B4 EE (4)","Section B4 EE (5)","Section B4 EE","Section B4 EE (2)","Section B4 EE (3)","Section B4 EE (4)","Section B4 EE (5)","Section E4"]
["Section A1","Section B5","EPC Request","Section B6","Section B5","Section B5 (2)","Section B5 (3)","Section B5 (4)","Section B5 (5)","Section B5","Section B5 (2)","Section B5 (3)","Section B5 (4)","Section B5 (5)","Section E5"]
["Section A2","Section B7","Fund Credit Purchase","Section B7","Section B6","Section B6 (2)","Section B6 (3)","Section B6 (4)","Section B6 (5)","Section B6 ABGPI","Section B6 (2) ABGPI","Section B6 (3) ABGPI","Section B6 (4) ABGPI","Section B6 (5) ABGPI","EPC Request"]
["Section A3","Section B8","Section B1","Section B8","Section B6 ABGPI","Section B6 (2) ABGPI","Section B6 (3) ABGPI","Section B6 (4) ABGPI","Section B6 (5) ABGPI","Section B7","Section B7 (2)","Section B7 (3)","Section B7 (4)","Section B7 (5)","Fund Credit Purchase"]
["Section A4","Section B1 (2)","Section B2","Section B1 (2)","Section B7","Section B7 (2)","Section B7 (3)","Section B7 (4)","Section B7 (5)","Section B8","Section B8 (2)","Section B8 (3)","Section B8 (4)","Section B8 (5)","Section B1"]
["Section A5","Section B2 (2)","Section B3","Section B2 (2)","Section B8","Section B8 (2)","Section B8 (3)","Section B8 (4)","Section B8 (5)",null,null,null,null,null,"Section B2"]
["Section B1","Section B3 (2)","Section B4","Section B3 (2)",null,null,null,null,null,null,null,null,null,null,"Section B3"]
["Section B2","Section B4 (2)","Section B5","Section B4 (2)",null,null,null,null,null,null,null,null,null,null,"Section B4"]
["Section B3","Section B5 (2)","Section B6","Section B5 (2)",null,null,null,null,null,null,null,null,null,null,"Section B4 EE"]
["Section B4","Section B7 (2)","Section B7","Section B6 (2)",null,null,null,null,null,null,null,null,null,null,"Section B5"]
["Section B4 EE","Section B8 (2)","Section B8","Section B7 (2)",null,null,null,null,null,null,null,null,null,null,"Section B6"]
["Section B5","Section B1 (3)",null,"Section B8 (2)",null,null,null,null,null,null,null,null,null,null,"Section B6 ABGPI"]
["Section B6","Section B2 (3)",null,"Section B1 (3)",null,null,null,null,null,null,null,null,null,null,"Section B7"]
["Section B6 ABGPI","Section B3 (3)",null,"Section B2 (3)",null,null,null,null,null,null,null,null,null,null,"Section B8"]
["Section B7","Section B4 (3)",null,"Section B3 (3)",null,null,null,null,null,null,null,null,null,null,"Section B1 (2)"]
["Section B8","Section B5 (3)",null,"Section B4 (3)",null,null,null,null,null,null,null,null,null,null,"Section B2 (2)"]
["Section B1 (2)","Section B7 (3)",null,"Section B5 (3)",null,null,null,null,null,null,null,null,null,null,"Section B3 (2)"]
["Section B2 (2)","Section B8 (3)",null,"Section B6 (3)",null,null,null,null,null,null,null,null,null,null,"Section B4 (2)"]
["Section B3 (2)",null,null,"Section B7 (3)",null,null,null,null,null,null,null,null,null,null,"Section B4 EE (2)"]
["Section B4 (2)",null,null,"Section B8 (3)",null,null,null,null,null,null,null,null,null,null,"Section B5 (2)"]
["Section B4 EE (2)",null,null,null,null,null,null,null,null,null,null,null,null,null,"Section B6 (2)"]
["Section B5 (2)",null,null,null,null,null,null,null,null,null,null,null,null,null,"Section B6 (2) ABGPI"]
["Section B6 (2)",null,null,null,null,null,null,null,null,null,null,null,null,null,"Section B7 (2)"]
["Section B6 (2) ABGPI",null,null,null,null,null,null,null,null,null,null,null,null,null,"Section B8 (2)"]
["Section B7 (2)",null,null,null,null,null,null,null,null,null,null,null,null,null,"Section B1 (3)"]
["Section B8 (2)",null,null,null,null,null,null,null,null,null,null,null,null,null,"Section B2 (3)"]
["Section B1 (3)",null,null,null,null,null,null,null,null,null,null,null,null,null,"Section B3 (3)"]
["Section B2 (3)",null,null,null,null,null,null,null,null,null,null,null,null,null,"Section B4 (3)"]
["Section B3 (3)",null,null,null,null,null,null,null,null,null,null,null,null,null,"Section B4 EE (3)"]
["Section B4 (3)",null,null,null,null,null,null,null,null,null,null,null,null,null,"Section B5 (3)"]
["Section B4 EE (3)",null,null,null,null,null,null,null,null,null,null,null,null,null,"Section B6 (3)"]
["Section B5 (3)",null,null,null,null,null,null,null,null,null,null,null,null,null,"Section B6 (3) ABGPI"]
["Section B6 (3)",null,null,null,null,null,null,null,null,null,null,null,null,null,"Section B7 (3)"]
["Section B6 (3) ABGPI",null,null,null,null,null,null,null,null,null,null,null,null,null,"Section B8 (3)"]
["Section B7 (3)",null,null,null,null,null,null,null,null,null,null,null,null,null,"Section B1 (4)"]
["Section B8 (3)",null,null,null,null,null,null,null,null,null,null,null,null,null,"Section B2 (4)"]
["Section B1 (4)",null,null,null,null,null,null,null,null,null,null,null,null,null,"Section B3 (4)"]
["Section B2 (4)",null,null,null,null,null,null,null,null,null,null,null,null,null,"Section B4 (4)"]
["Section B3 (4)",null,null,null,null,null,null,null,null,null,null,null,null,null,"Section B4 EE (4)"]
["Section B4 (4)",null,null,null,null,null,null,null,null,null,null,null,null,null,"Section B5 (4)"]
["Section B4 EE (4)",null,null,null,null,null,null,null,null,null,null,null,null,null,"Section B6 (4)"]
["Section B5 (4)",null,null,null,null,null,null,null,null,null,null,null,null,null,"Section B6 (4) ABGPI"]
["Section B6 (4)",null,null,null,null,null,null,null,null,null,null,null,null,null,"Section B7 (4)"]
["Section B6 (4) ABGPI",null,null,null,null,null,null,null,null,null,null,null,null,null,"Section B8 (4)"]
["Section B7 (4)",null,null,null,null,null,null,null,null,null,null,null,null,null,"Section B1 (5)"]
["Section B8 (4)",null,null,null,null,null,null,null,null,null,null,null,null,null,"Section B2 (5)"]
["Section B1 (5)",null,null,null,null,null,null,null,null,null,null,null,null,null,"Section B3 (5)"]
["Section B2 (5)",null,null,null,null,null,null,null,null,null,null,null,null,null,"Section B4 (5)"]
["Section B3 (5)",null,null,null,null,null,null,null,null,null,null,null,null,null,"Section B4 EE (5)"]
["Section B4 (5)",null,null,null,null,null,null,null,null,null,null,null,null,null,"Section B5 (5)"]
["Section B4 EE (5)",null,null,null,null,null,null,null,null,null,null,null,null,null,"Section B6 (5)"]
["Section B5 (5)",null,null,null,null,null,null,null,null,null,null,null,null,null,"Section B6 (5) ABGPI"]
["Section B6 (5)",null,null,null,null,null,null,null,null,null,null,null,null,null,"Section B7 (5)"]
["Section B6 (5) ABGPI",null,null,null,null,null,null,null,null,null,null,null,null,null,"Section B8 (5)"]
["Section B7 (5)"]
["Section B8 (5)"]
["Section C1"]
["Section C2"]
["Section D"]
["Section D (2)"]
["Section E"]
["Section E1"]
["Section E2"]
["Section E3"]
["Section E4"]
["Section E5"]
["Section F"]
["Section G"]
["Section H"]
["CoI Checklist"]
["SoQ"]
["SoV"]
["SoC"]
["EPC Request"]
["Fund Credit Purchase"]
["Track Changes"]

{"sheet":"Track Changes","index":78,"n_rows":100,"n_cols":26,"rows_kept":100,"cut":false,"hidden":true,"merged":[]}
["Date","Version","Who","What"]
["2016-10-05",15.2,"Gustavo","hide 2nd and 3rd year in the SoV ad SoC when it is selected CR"]
["2016-12-30",15.3,"John","change reference to tech guidance, remove heat generated and used"]
["2017-01-05",15.4,"Manika","change 2nd and 3rd year section B4 to follow 1st year, add marked and unmarked gasoline and diesel in section B9"]
[null,null,null,"hide row 38 and 39 in section B4, added isblank functions for years 2 and 3 "]
["2017-01-06",15.5,"Manika","change referencing of CO2 TDE and BM (Section B8) in years 2 and 3"]
[null,null,null,"tested using Hinton Pulp CR 2015"]
["2017-01-06",16,"Gustavo","Minor editions on Section B9s to allow any entry in the units."]
[null,null,null,"Added the characteristic that in not selecting any report type is selected the new GWPs"]
[null,null,null,"Minor editions in sections B6 (2), B6 (3), B4 (3) to make them identical to the B6 and B4."]
["2017-01-09",16,"Gustavo","Addressed the John Choi's feedback (right-justified CO2 in B1, no enough figures in electricity in B4, and automatic N/A when a value is entered)"]
["2017-02-03",16,"Manika","Automated set of the units in sections B9s"]
["2017-02-08",16.100000000000001,"Gustavo","Minor changes in B9s units and save on the first tab"]
["2018-01-09",18,"Yury P","Version 1.0 released for the new CCIR. Change log is available in the Appendix A of \"...Data Management\\Automation\\ComplianceReportFormUpdatesFor2018\\4_AnalysisAndResults\\ComplianceFormUpdatesFor2018ProjectReportV.01.00.docx\"."]
["2019-05-03",18.3,"Yury P","Fixed the issues:\n1. Fixed a bug when an some benchmark values disappeared in the B6 tab when the report type was changed immediately after opening the workbook. That happened due to variable initialization not happening until a cell was clicked. Now initialization is happening on workbook opening.\n2. In section E1 created \"obligation_rounding_adjustment\": True Up obligation rounding error - to be used when adjusting net emissions (D14) in Section E5 to make sure that the rounding error does not skew the comparison \nof OBA and Net emissions in E5. In certain cases not accounting for this rounding error may result in Net emissions being 1 credit higher then OBA, which in turn incorrectly says \"No\" in the True up obligation met box. \n! That adjustment was added to E5's D14 to make sure the Net Emissions number is correct: =IF(NOT(OR(Report=1, Report=3)),TRE-D7-V40-obligation_rounding_adjustment,0)."]
["2019-05-03",19.100000000000001,"Yury P","Version 19.1 rolled out with major changes and fixes: \n- Form version updated to 19.1 to reflect the year 2019.\n- Allowed 2 decimal places for less confusion and better consistency: the Quantity column in B6 sheets: Section B6, Section B6 (2), Section B6 (3), Section B6 (4). Also changed the N46 display to 2-decimal precision to be consistent with the rest.\nNote: Section B6 ABGPI, Section B6 (2) ABGPI and Section B6 (3) ABGPI  tab did not seem to have formulas related to the B6 tabs so those were untouched.\n- Locked N46 in B6 sheets since it should not be editable: Section B6, Section B6 (2), Section B6 (3), Section B6 (4).\n- Fixed the compliance year issue in B6 sheets (Section B6, Section B6 (2), Section B6 (3), Section B6 (4)): when entering the year = 2020 in the Submission tab, the benchmark value (taken R:Z columns of B6 ) does not reflect that year and stays on 2018/2019.\n- Set the ReportingYear variable to use the C9 variable from the Submission tab and added error handling that defaults ReportYear to 2018 if C9 is not set.\n- Fixed the new issues - when changing the year the benchmark does not get updated. Fixed by setting the benchmark values to references (via cell.formula) instead of values: set the formula to reference the Q cell instead of the setting to the Q value directly. This will ensure that the benchmark reference will get updated when the year is changed in the submission tab.\n- Allowed 2 decimal places for less confusion and better consistency: Rows 23-34 in E1 (used for forecasting facilities period 2-4 only)\n- Cells D23,D25,D27,D29,D33 in E1 (used for forecasting facilities Period 2-4 only) are now cleared and blocked from user input when changing the report type to a non-forecasting facility or to a forecasting facility Period 1. Otherwise that could lead to incorrect numbers in E5 when hidden cells have values in them. \n- Have only the first year cell editable for all report types except the benchmark report. For the latter report all three years should be editable.\nNote: year 2 and 3 are also blocked for the Data Report. Should they be unblocked for that report type?\n- Password is in plain text in VBA: solved the issue."]
["2023-05-25",23,"Dylan Zingle","Majour updating to the new TIER 2023 Regulation"]
[]
[]
[]
[]
[]
[]
[]
[]
[]
[]
[]
[]
[]
[]
[]
[]
[]
[]
[]
[]
[]
[]
[]
[]
[]
[]
[]
[]
[]
[]
[]
[]
[]
[]
[]
[]
[]
[]
[]
[]
[]
[]
[]
[]
[]
[]
[]
[]
[]
[]
[]
[]
[]
[]
[]
[]
[]
[]
[]
[]
[]
[]
[]
[]
[]
[]
[]
[]
[]
[]
[]
[]
[]
[]
[]
[]
[]
[]
[]
[]
[]
[]
[null,null,null,null,null,null,null,null,null,null,null,null,null,null,null,null,null,null,null,null,null,null,null,null,null,"bWl0aWdhdGlvbg=="]